Workbook

Sheet VSTUPY
A1: VSTUPY
A6: ROČNÍ POTŘEBA TEPLA (dostupný rozsah od 1 500 GJ/r do 15 000 GJ/r) | E6: EKONOMICKÉ PARAMETRY
A7: Celková roční potřeba tepla: | B7: 10000 | C7: GJ/r | D7: =IF(B7<1500,"MIMO ROZSAH",IF(B7>15000,"MIMO ROZSAH",IF(B7="","MIMO ROZSAH",""))) ->  | E7: Doba hodnoceni | F7: 20 | G7: let
A8: POMĚR POTŘEB | E8: Diskontní míra | F8: 5 | G8: %
A9: Podíl potřeby tepla na vytápění: | B9: =100-B10-B11 -> 50 | C9: % | E9: Růst ceny elektřiny | F9: 0 | G9: %/r (včetně inflace)
A10: Podíl potřeby tepla na ohřev TUV: | B10: 15 | C10: % | E10: Růst ceny štěpky | F10: 0 | G10: %/r (včetně inflace)
A11: Podíl potřeby tepla na technologii: | B11: 35 | C11: % | E11: Růst ceny pelet | F11: 0 | G11: %/r (včetně inflace)
A12: Potřeba tepla na vytápění: | B12: =$B$7*B9/100 -> 5000 | C12: GJ/r | E12: Inv. náklady: WAVE 120 | F12: 3672600 | G12: Kč/jednotka
A13: Potřeba tepla na ohřev TUV: | B13: 1500 | C13: GJ/r | E13: Inv. náklady: kotel na štěpku | F13: 23300 | G13: Kč/kW_inst
A14: Potřeba tepla na technologii: | B14: 3500 | C14: GJ/r | E14: Inv. náklady: kotel na pelety | F14: 17100 | G14: Kč/kW_inst
A15: DALŠÍ PARAMETRY | E15: Cena elektřiny | F15: 2600 | G15: Kč/MWh
A16: Vnitřní teplota objektů: | B16: 20 | C16: °C | E16: Cena štěpky | F16: 135 | G16: Kč bez DPH/GJ
A17: Lokalita: | B17: Praha a Středočeský | D17: =IF(B17="","VYBRAT LOKALITU","") ->  | E17: Cena pelet | F17: 245 | G17: Kč bez DPH/GJ
A18: Ztráta rozvodů mezi výrobou a spotřebou: | B18: 5 | C18: %
A19: Doba denního provozu technologií: | B19: 12 | C19: h/den

Sheet VÝSLEDKY
A1: VÝSLEDKY
A2: DIAGRAM TRVÁNÍ POTŘEBY VÝKONU
C4: Potřeba tepla | D4: Potřeba výkonu v měsíci
A5: měsíc | B5: dny | C5: [GJ/měsíc] | D5: P_prum [kW] | E5: P_max [kW] | F5: P_min [kW]
A6: leden | B6: 31 | C6: ='Velikost zdroje'!F89 -> 1315.312716 | D6: ='Velikost zdroje'!C89 -> 491.0815099 | E6: ='Velikost zdroje'!D89 -> 762.5067915 | F6: ='Velikost zdroje'!E89 -> 345.2448649
A7: únor | B7: 28 | C7: ='Velikost zdroje'!F90 -> 1151.030271 | D7: ='Velikost zdroje'!C90 -> 475.7896294 | E7: ='Velikost zdroje'!D90 -> 740.8545713 | F7: ='Velikost zdroje'!E90 -> 332.2535327
A8: březen | B8: 31 | C8: ='Velikost zdroje'!F91 -> 1114.619629 | D8: ='Velikost zdroje'!C91 -> 416.1512952 | E8: ='Velikost zdroje'!D91 -> 656.4109122 | F8: ='Velikost zdroje'!E91 -> 276.3364966
A9: duben | B9: 30 | C9: ='Velikost zdroje'!F92 -> 884.4450405 | D9: ='Velikost zdroje'!C92 -> 341.2210804 | E9: ='Velikost zdroje'!D92 -> 550.3150329 | F9: ='Velikost zdroje'!E92 -> 196.7645871
A10: květen | B10: 31 | C10: ='Velikost zdroje'!F93 -> 696.7182236 | D10: ='Velikost zdroje'!C93 -> 263.2324896 | E10: ='Velikost zdroje'!D93 -> 439.8887096 | F10: ='Velikost zdroje'!E93 -> 113.9448446
A11: červen | B11: 30 | C11: ='Velikost zdroje'!F94 -> 432.5883201 | D11: ='Velikost zdroje'!C94 -> 166.893642 | E11: ='Velikost zdroje'!D94 -> 303.4797219 | F11: ='Velikost zdroje'!E94 -> 5.819051925
A12: červenec | B12: 31 | C12: ='Velikost zdroje'!F95 -> 447.0079308 | D12: ='Velikost zdroje'!C95 -> 166.893642 | E12: ='Velikost zdroje'!D95 -> 303.4797219 | F12: ='Velikost zdroje'!E95 -> 5.819051925
A13: srpen | B13: 31 | C13: ='Velikost zdroje'!F96 -> 447.0079308 | D13: ='Velikost zdroje'!C96 -> 166.893642 | E13: ='Velikost zdroje'!D96 -> 303.4797219 | F13: ='Velikost zdroje'!E96 -> 5.819051925
A14: září | B14: 30 | C14: ='Velikost zdroje'!F97 -> 690.2259238 | D14: ='Velikost zdroje'!C97 -> 266.2908657 | E14: ='Velikost zdroje'!D97 -> 444.2191536 | F14: ='Velikost zdroje'!E97 -> 117.1926776
A15: říjen | B15: 31 | C15: ='Velikost zdroje'!F98 -> 909.8307645 | D15: ='Velikost zdroje'!C98 -> 339.6918924 | E15: ='Velikost zdroje'!D98 -> 548.1498109 | F15: ='Velikost zdroje'!E98 -> 195.1406706
A16: listopad | B16: 30 | C16: ='Velikost zdroje'!F99 -> 1090.555123 | D16: ='Velikost zdroje'!C99 -> 420.7388593 | E16: ='Velikost zdroje'!D99 -> 662.9065783 | F16: ='Velikost zdroje'!E99 -> 281.2082461
A17: prosinec | B17: 31 | C17: ='Velikost zdroje'!F100 -> 1270.259166 | D17: ='Velikost zdroje'!C100 -> 474.2604413 | E17: ='Velikost zdroje'!D100 -> 738.6893492 | F17: ='Velikost zdroje'!E100 -> 330.9543995
A21: VELIKOST INSTALOVANÉHO VÝKONU
A23: Celková roční potřeba tepla: | B23: =VSTUPY!B7 -> 10000 | C23: GJ/r
A24: Max. potřebný výkon: | B24: =Pomocné!B67 -> 762.5067915 | C24: kW
A25: Min. potřebný výkon: | B25: =Pomocné!B68 -> 6 | C25: kW
A26: Vždy zajištěný výkon: | B26: ='A_WAVE+pelety'!B6 -> 608 | C26: kW | D26: Výkon, který by měl být k dispozici i při výpadku největší jednotky pro zajištění funkce zdroje.
A30: OPTIMÁLNÍ NÁVRH PRO JEDNOTLIVÉ VARIANTY - EKONOMICKÉ POROVNÁNÍ
D32: A: WAVE + kotle na pelety | E32: B: WAVE + kotle na štěpku | F32: C: kotle na pelety | G32: D: kotle na štěpku
A33: Instalovaný tepelný výkon | C33: kW | D33: =SUM(D34:D36) -> 770 | E33: =SUM(E34:E36) -> 770 | F33: =SUM(F34:F36) -> 770 | G33: 770
A34: Kogenerační jednotka WAVE 120 | C34: kW | D34: =IF('A_WAVE+pelety'!$AI$33=1,'A_WAVE+pelety'!B18,IF('A_WAVE+pelety'!$AI$33=2,'A_WAVE+pelety'!B78,IF('A_WAVE+pelety'!$AI$33=3,'A_WAVE+pelety'!B144,IF('A_WAVE+pelety'!$AI$33=4,'A_WAVE+pelety'!B214,IF('A_WAVE+pelety'!$AI$33=5,'A_WAVE+pelety'!B288,IF('A_WAVE+pelety'!$AI$33=6,'A_WAVE+pelety'!B366,IF('A_WAVE+pelety'!$AI$33=7,'A_WAVE+pelety'!B448,IF('A_WAVE+pelety'!$AI$33=8,'A_WAVE+pelety'!B534,IF('A_WAVE+pelety'!$AI$33=9,'A_WAVE+pelety'!B624,IF('A_WAVE+pelety'!$AI$33=10,'A_WAVE+pelety'!B718,"CHYBA")))))))))) -> 600 | E34: =IF('B_WAVE+štěpka'!$AI$33=1,'B_WAVE+štěpka'!B18,IF('B_WAVE+štěpka'!$AI$33=2,'B_WAVE+štěpka'!B78,IF('B_WAVE+štěpka'!$AI$33=3,'B_WAVE+štěpka'!B144,IF('B_WAVE+štěpka'!$AI$33=4,'B_WAVE+štěpka'!B214,IF('B_WAVE+štěpka'!$AI$33=5,'B_WAVE+štěpka'!B288,IF('B_WAVE+štěpka'!$AI$33=6,'B_WAVE+štěpka'!B366,IF('B_WAVE+štěpka'!$AI$33=7,'B_WAVE+štěpka'!B448,IF('B_WAVE+štěpka'!$AI$33=8,'B_WAVE+štěpka'!B534,IF('B_WAVE+štěpka'!$AI$33=9,'B_WAVE+štěpka'!B624,IF('B_WAVE+štěpka'!$AI$33=10,'B_WAVE+štěpka'!B718,"CHYBA")))))))))) -> 360 | F34: 0 | G34: 0
A35: Kotle na pelety | C35: kW | D35: =IF('A_WAVE+pelety'!$AI$33=1,'A_WAVE+pelety'!B39,IF('A_WAVE+pelety'!$AI$33=2,'A_WAVE+pelety'!B99,IF('A_WAVE+pelety'!$AI$33=3,'A_WAVE+pelety'!B165,IF('A_WAVE+pelety'!$AI$33=4,'A_WAVE+pelety'!B235,IF('A_WAVE+pelety'!$AI$33=5,'A_WAVE+pelety'!B309,IF('A_WAVE+pelety'!$AI$33=6,'A_WAVE+pelety'!B387,IF('A_WAVE+pelety'!$AI$33=7,'A_WAVE+pelety'!B469,IF('A_WAVE+pelety'!$AI$33=8,'A_WAVE+pelety'!B555,IF('A_WAVE+pelety'!$AI$33=9,'A_WAVE+pelety'!B645,IF('A_WAVE+pelety'!$AI$33=10,'A_WAVE+pelety'!B739,"CHYBA")))))))))) -> 170 | E35: 0 | F35: =C_pelety!T13 -> 770 | G35: 0
A36: Kotle na štěpku | C36: kW | D36: 0 | E36: =IF('B_WAVE+štěpka'!$AI$33=1,'B_WAVE+štěpka'!B39,IF('B_WAVE+štěpka'!$AI$33=2,'B_WAVE+štěpka'!B99,IF('B_WAVE+štěpka'!$AI$33=3,'B_WAVE+štěpka'!B165,IF('B_WAVE+štěpka'!$AI$33=4,'B_WAVE+štěpka'!B235,IF('B_WAVE+štěpka'!$AI$33=5,'B_WAVE+štěpka'!B309,IF('B_WAVE+štěpka'!$AI$33=6,'B_WAVE+štěpka'!B387,IF('B_WAVE+štěpka'!$AI$33=7,'B_WAVE+štěpka'!B469,IF('B_WAVE+štěpka'!$AI$33=8,'B_WAVE+štěpka'!B555,IF('B_WAVE+štěpka'!$AI$33=9,'B_WAVE+štěpka'!B645,IF('B_WAVE+štěpka'!$AI$33=10,'B_WAVE+štěpka'!B739,"CHYBA")))))))))) -> 410 | F36: 0 | G36: =D_štěpka!T14 -> 770
A37: Doba porovnání | C37: roky | D37: =Ekonomika!B1 -> 20 | E37: =D37 -> 20 | F37: =E37 -> 20 | G37: =F37 -> 20
A38: Diskontní míra | C38: % | D38: =Ekonomika!B2 -> 5 | E38: =D38 -> 5 | F38: =E38 -> 5 | G38: =F38 -> 5
A39: Meziroční růst ceny elektřiny | C39: % | D39: =Ekonomika!B9 -> 0 | E39: =D39 -> 0 | F39: =E39 -> 0 | G39: =F39 -> 0
A40: Meziroční růst ceny štěpky | C40: % | D40: =Ekonomika!B10 -> 0 | E40: =D40 -> 0 | F40: 0 | G40: 0
A41: Meziroční růst ceny pelet | C41: % | D41: =Ekonomika!B11 -> 0 | E41: =D41 -> 0 | F41: 0 | G41: 0
A42: Odhad investičních nákladů | C42: tis. Kč | D42: ='A_WAVE+pelety'!AI35 -> -21270 | E42: ='B_WAVE+štěpka'!AI35 -> -20570.8 | F42: =C_pelety!T14 -> -13167 | G42: =D_štěpka!T15 -> -17941
A43: NPV | C43: tis. Kč | D43: ='A_WAVE+pelety'!AI34 -> -77077.59673 | E43: ='B_WAVE+štěpka'!AI34 -> -76160.48287 | F43: =C_pelety!AB34 -> -128836.6843 | G43: =D_štěpka!AB34 -> -82135.73922
A44: Odhad ročních provozních nákladů (v roce 1) | C44: tis. Kč/r | D44: =SUM(D45:D47) -> -2075.980778 | E44: =SUM(E45:E47) -> -2002.251862 | F44: =SUM(F45:F47) -> -3331.571918 | G44: -1848.966665
A45: Náklady na palivo-štěpku | C45: tis. Kč/r | D45: =IF('A_WAVE+pelety'!$AI$33=1,'A_WAVE+pelety'!T25,IF('A_WAVE+pelety'!$AI$33=2,'A_WAVE+pelety'!T85,IF('A_WAVE+pelety'!$AI$33=3,'A_WAVE+pelety'!T151,IF('A_WAVE+pelety'!$AI$33=4,'A_WAVE+pelety'!T221,IF('A_WAVE+pelety'!$AI$33=5,'A_WAVE+pelety'!T295,IF('A_WAVE+pelety'!$AI$33=6,'A_WAVE+pelety'!T373,IF('A_WAVE+pelety'!$AI$33=7,'A_WAVE+pelety'!T455,IF('A_WAVE+pelety'!$AI$33=8,'A_WAVE+pelety'!T541,IF('A_WAVE+pelety'!$AI$33=9,'A_WAVE+pelety'!T631,IF('A_WAVE+pelety'!$AI$33=10,'A_WAVE+pelety'!T725,"CHYBA")))))))))) -> -1832.922432 | E45: =IF('B_WAVE+štěpka'!$AI$33=1,'B_WAVE+štěpka'!T25,IF('B_WAVE+štěpka'!$AI$33=2,'B_WAVE+štěpka'!T85,IF('B_WAVE+štěpka'!$AI$33=3,'B_WAVE+štěpka'!T151,IF('B_WAVE+štěpka'!$AI$33=4,'B_WAVE+štěpka'!T221,IF('B_WAVE+štěpka'!$AI$33=5,'B_WAVE+štěpka'!T295,IF('B_WAVE+štěpka'!$AI$33=6,'B_WAVE+štěpka'!T373,IF('B_WAVE+štěpka'!$AI$33=7,'B_WAVE+štěpka'!T455,IF('B_WAVE+štěpka'!$AI$33=8,'B_WAVE+štěpka'!T541,IF('B_WAVE+štěpka'!$AI$33=9,'B_WAVE+štěpka'!T631,IF('B_WAVE+štěpka'!$AI$33=10,'B_WAVE+štěpka'!T725,"CHYBA"))))))))))+IF('B_WAVE+štěpka'!$AI$33=1,'B_WAVE+štěpka'!U25,IF('B_WAVE+štěpka'!$AI$33=2,'B_WAVE+štěpka'!U85,IF('B_WAVE+štěpka'!$AI$33=3,'B_WAVE+štěpka'!U151,IF('B_WAVE+štěpka'!$AI$33=4,'B_WAVE+štěpka'!U221,IF('B_WAVE+štěpka'!$AI$33=5,'B_WAVE+štěpka'!U295,IF('B_WAVE+štěpka'!$AI$33=6,'B_WAVE+štěpka'!U373,IF('B_WAVE+štěpka'!$AI$33=7,'B_WAVE+štěpka'!U455,IF('B_WAVE+štěpka'!$AI$33=8,'B_WAVE+štěpka'!U541,IF('B_WAVE+štěpka'!$AI$33=9,'B_WAVE+štěpka'!U631,IF('B_WAVE+štěpka'!$AI$33=10,'B_WAVE+štěpka'!U725,"CHYBA")))))))))) -> -1874.318936 | F45: 0 | G45: =D_štěpka!T22 -> -1833.563758
A46: Náklady na palivo-pelety | C46: tis. Kč/r | D46: =IF('A_WAVE+pelety'!$AI$33=1,'A_WAVE+pelety'!U25,IF('A_WAVE+pelety'!$AI$33=2,'A_WAVE+pelety'!U85,IF('A_WAVE+pelety'!$AI$33=3,'A_WAVE+pelety'!U151,IF('A_WAVE+pelety'!$AI$33=4,'A_WAVE+pelety'!U221,IF('A_WAVE+pelety'!$AI$33=5,'A_WAVE+pelety'!U295,IF('A_WAVE+pelety'!$AI$33=6,'A_WAVE+pelety'!U373,IF('A_WAVE+pelety'!$AI$33=7,'A_WAVE+pelety'!U455,IF('A_WAVE+pelety'!$AI$33=8,'A_WAVE+pelety'!U541,IF('A_WAVE+pelety'!$AI$33=9,'A_WAVE+pelety'!U631,IF('A_WAVE+pelety'!$AI$33=10,'A_WAVE+pelety'!U725,"CHYBA")))))))))) -> -87.56427273 | E46: 0 | F46: =C_pelety!T22 -> -3327.578673 | G46: 0
A47: Nálkady na spotřebu elektřiny | C47: tis. Kč/r | D47: =IF('A_WAVE+pelety'!$AI$33=1,'A_WAVE+pelety'!V25,IF('A_WAVE+pelety'!$AI$33=2,'A_WAVE+pelety'!V85,IF('A_WAVE+pelety'!$AI$33=3,'A_WAVE+pelety'!V151,IF('A_WAVE+pelety'!$AI$33=4,'A_WAVE+pelety'!V221,IF('A_WAVE+pelety'!$AI$33=5,'A_WAVE+pelety'!V295,IF('A_WAVE+pelety'!$AI$33=6,'A_WAVE+pelety'!V373,IF('A_WAVE+pelety'!$AI$33=7,'A_WAVE+pelety'!V455,IF('A_WAVE+pelety'!$AI$33=8,'A_WAVE+pelety'!V541,IF('A_WAVE+pelety'!$AI$33=9,'A_WAVE+pelety'!V631,IF('A_WAVE+pelety'!$AI$33=10,'A_WAVE+pelety'!V725,"CHYBA")))))))))) -> -155.494073 | E47: =IF('B_WAVE+štěpka'!$AI$33=1,'B_WAVE+štěpka'!V25,IF('B_WAVE+štěpka'!$AI$33=2,'B_WAVE+štěpka'!V85,IF('B_WAVE+štěpka'!$AI$33=3,'B_WAVE+štěpka'!V151,IF('B_WAVE+štěpka'!$AI$33=4,'B_WAVE+štěpka'!V221,IF('B_WAVE+štěpka'!$AI$33=5,'B_WAVE+štěpka'!V295,IF('B_WAVE+štěpka'!$AI$33=6,'B_WAVE+štěpka'!V373,IF('B_WAVE+štěpka'!$AI$33=7,'B_WAVE+štěpka'!V455,IF('B_WAVE+štěpka'!$AI$33=8,'B_WAVE+štěpka'!V541,IF('B_WAVE+štěpka'!$AI$33=9,'B_WAVE+štěpka'!V631,IF('B_WAVE+štěpka'!$AI$33=10,'B_WAVE+štěpka'!V725,"CHYBA")))))))))) -> -127.9329259 | F47: =C_pelety!U22 -> -3.993245535 | G47: =D_štěpka!U22 -> -15.40290633
A48: Úspora z vlastní produkce elektřiny | C48: tis. Kč/r | D48: =IF('A_WAVE+pelety'!$AI$33=1,'A_WAVE+pelety'!W25,IF('A_WAVE+pelety'!$AI$33=2,'A_WAVE+pelety'!W85,IF('A_WAVE+pelety'!$AI$33=3,'A_WAVE+pelety'!W151,IF('A_WAVE+pelety'!$AI$33=4,'A_WAVE+pelety'!W221,IF('A_WAVE+pelety'!$AI$33=5,'A_WAVE+pelety'!W295,IF('A_WAVE+pelety'!$AI$33=6,'A_WAVE+pelety'!W373,IF('A_WAVE+pelety'!$AI$33=7,'A_WAVE+pelety'!W455,IF('A_WAVE+pelety'!$AI$33=8,'A_WAVE+pelety'!W541,IF('A_WAVE+pelety'!$AI$33=9,'A_WAVE+pelety'!W631,IF('A_WAVE+pelety'!$AI$33=10,'A_WAVE+pelety'!W725,"CHYBA")))))))))) -> 468.5844826 | E48: =IF('B_WAVE+štěpka'!$AI$33=1,'B_WAVE+štěpka'!W25,IF('B_WAVE+štěpka'!$AI$33=2,'B_WAVE+štěpka'!W85,IF('B_WAVE+štěpka'!$AI$33=3,'B_WAVE+štěpka'!W151,IF('B_WAVE+štěpka'!$AI$33=4,'B_WAVE+štěpka'!W221,IF('B_WAVE+štěpka'!$AI$33=5,'B_WAVE+štěpka'!W295,IF('B_WAVE+štěpka'!$AI$33=6,'B_WAVE+štěpka'!W373,IF('B_WAVE+štěpka'!$AI$33=7,'B_WAVE+štěpka'!W455,IF('B_WAVE+štěpka'!$AI$33=8,'B_WAVE+štěpka'!W541,IF('B_WAVE+štěpka'!$AI$33=9,'B_WAVE+štěpka'!W631,IF('B_WAVE+štěpka'!$AI$33=10,'B_WAVE+štěpka'!W725,"CHYBA")))))))))) -> 401.1320224 | F48: 0 | G48: 0

Sheet VÝSLEDKY_provoz
A1: VÝSLEDKY - PROVOZNÍ PARAMETRY
A2: VARIANTA A: KOGENERAČNÍ JEDNOTKY WAVE 120 + KOTLE NA PELETY
C4: WAVY CELKEM | D4: 1. WAVE | E4: 2. WAVE | F4: 3. WAVE | G4: 4. WAVE | H4: 5. WAVE | I4: 6. WAVE | J4: 7. WAVE | K4: 8. WAVE | L4: 9. WAVE | M4: 10. WAVE
A5: Jmenovitý tepelný výkon | B5: kW | C5: =SUM(D5:M5) -> 600 | D5: =IF('A_WAVE+pelety'!$AI$33>=2,120,0) -> 120 | E5: =IF('A_WAVE+pelety'!$AI$33>=1,120,0) -> 120 | F5: =IF('A_WAVE+pelety'!$AI$33>=3,120,0) -> 120 | G5: =IF('A_WAVE+pelety'!$AI$33>=4,120,0) -> 120 | H5: =IF('A_WAVE+pelety'!$AI$33>=5,120,0) -> 120 | I5: =IF('A_WAVE+pelety'!$AI$33>=6,120,0) -> 0 | J5: =IF('A_WAVE+pelety'!$AI$33>=7,120,0) -> 0 | K5: =IF('A_WAVE+pelety'!$AI$33>=8,120,0) -> 0 | L5: =IF('A_WAVE+pelety'!$AI$33>=9,120,0) -> 0 | M5: =IF('A_WAVE+pelety'!$AI$33>=10,120,0) -> 0
A6: Minimální tepelný výkon | B6: kW | C6: =MIN(IF(D6:M6>0,D6:M6)) -> 72 | D6: =IF(D5=120,'Kotle na pelety'!$F$23,0) -> 72 | E6: =IF(E5=120,'Kotle na pelety'!$F$23,0) -> 72 | F6: =IF(F5=120,'Kotle na pelety'!$F$23,0) -> 72 | G6: =IF(G5=120,'Kotle na pelety'!$F$23,0) -> 72 | H6: =IF(H5=120,'Kotle na pelety'!$F$23,0) -> 72 | I6: =IF(I5=120,'Kotle na pelety'!$F$23,0) -> 0 | J6: =IF(J5=120,'Kotle na pelety'!$F$23,0) -> 0 | K6: =IF(K5=120,'Kotle na pelety'!$F$23,0) -> 0 | L6: =IF(L5=120,'Kotle na pelety'!$F$23,0) -> 0 | M6: =IF(M5=120,'Kotle na pelety'!$F$23,0) -> 0
A7: Čistý elektrický výkon | B7: kW | C7: =SUM(D7:M7) -> 30 | D7: =IF(D5=120,('Kotle na pelety'!$J$23-'Kotle na pelety'!$I$23)/1000,0) -> 6 | E7: =IF(E5=120,('Kotle na pelety'!$J$23-'Kotle na pelety'!$I$23)/1000,0) -> 6 | F7: =IF(F5=120,('Kotle na pelety'!$J$23-'Kotle na pelety'!$I$23)/1000,0) -> 6 | G7: =IF(G5=120,('Kotle na pelety'!$J$23-'Kotle na pelety'!$I$23)/1000,0) -> 6 | H7: =IF(H5=120,('Kotle na pelety'!$J$23-'Kotle na pelety'!$I$23)/1000,0) -> 6 | I7: =IF(I5=120,('Kotle na pelety'!$J$23-'Kotle na pelety'!$I$23)/1000,0) -> 0 | J7: =IF(J5=120,('Kotle na pelety'!$J$23-'Kotle na pelety'!$I$23)/1000,0) -> 0 | K7: =IF(K5=120,('Kotle na pelety'!$J$23-'Kotle na pelety'!$I$23)/1000,0) -> 0 | L7: =IF(L5=120,('Kotle na pelety'!$J$23-'Kotle na pelety'!$I$23)/1000,0) -> 0 | M7: =IF(M5=120,('Kotle na pelety'!$J$23-'Kotle na pelety'!$I$23)/1000,0) -> 0
A8: Roční produkce tepla | B8: GJ/r | C8: =SUM(D8:M8) -> 10182.9024 | D8: =IF('A_WAVE+pelety'!$AI$33=1,'A_WAVE+pelety'!B22,IF('A_WAVE+pelety'!$AI$33=2,'A_WAVE+pelety'!C82,IF('A_WAVE+pelety'!$AI$33=3,'A_WAVE+pelety'!C148,IF('A_WAVE+pelety'!$AI$33=4,'A_WAVE+pelety'!C218,IF('A_WAVE+pelety'!$AI$33=5,'A_WAVE+pelety'!C292,IF('A_WAVE+pelety'!$AI$33=6,'A_WAVE+pelety'!C370,IF('A_WAVE+pelety'!$AI$33=7,'A_WAVE+pelety'!C452,IF('A_WAVE+pelety'!$AI$33=8,'A_WAVE+pelety'!C538,IF('A_WAVE+pelety'!$AI$33=9,'A_WAVE+pelety'!C628,IF('A_WAVE+pelety'!$AI$33=10,'A_WAVE+pelety'!C722,"CHYBA")))))))))) -> 2993.12736 | E8: =IF('A_WAVE+pelety'!$AI$33=1,'A_WAVE+pelety'!C22,IF('A_WAVE+pelety'!$AI$33=2,'A_WAVE+pelety'!D82,IF('A_WAVE+pelety'!$AI$33=3,'A_WAVE+pelety'!D148,IF('A_WAVE+pelety'!$AI$33=4,'A_WAVE+pelety'!D218,IF('A_WAVE+pelety'!$AI$33=5,'A_WAVE+pelety'!D292,IF('A_WAVE+pelety'!$AI$33=6,'A_WAVE+pelety'!D370,IF('A_WAVE+pelety'!$AI$33=7,'A_WAVE+pelety'!D452,IF('A_WAVE+pelety'!$AI$33=8,'A_WAVE+pelety'!D538,IF('A_WAVE+pelety'!$AI$33=9,'A_WAVE+pelety'!D628,IF('A_WAVE+pelety'!$AI$33=10,'A_WAVE+pelety'!D722,"CHYBA")))))))))) -> 2730.32376 | F8: =IF('A_WAVE+pelety'!$AI$33=1,'A_WAVE+pelety'!D22,IF('A_WAVE+pelety'!$AI$33=2,'A_WAVE+pelety'!E82,IF('A_WAVE+pelety'!$AI$33=3,'A_WAVE+pelety'!E148,IF('A_WAVE+pelety'!$AI$33=4,'A_WAVE+pelety'!E218,IF('A_WAVE+pelety'!$AI$33=5,'A_WAVE+pelety'!E292,IF('A_WAVE+pelety'!$AI$33=6,'A_WAVE+pelety'!E370,IF('A_WAVE+pelety'!$AI$33=7,'A_WAVE+pelety'!E452,IF('A_WAVE+pelety'!$AI$33=8,'A_WAVE+pelety'!E538,IF('A_WAVE+pelety'!$AI$33=9,'A_WAVE+pelety'!E628,IF('A_WAVE+pelety'!$AI$33=10,'A_WAVE+pelety'!E722,"CHYBA")))))))))) -> 2440.42656 | G8: =IF('A_WAVE+pelety'!$AI$33=1,'A_WAVE+pelety'!E22,IF('A_WAVE+pelety'!$AI$33=2,'A_WAVE+pelety'!F82,IF('A_WAVE+pelety'!$AI$33=3,'A_WAVE+pelety'!F148,IF('A_WAVE+pelety'!$AI$33=4,'A_WAVE+pelety'!F218,IF('A_WAVE+pelety'!$AI$33=5,'A_WAVE+pelety'!F292,IF('A_WAVE+pelety'!$AI$33=6,'A_WAVE+pelety'!F370,IF('A_WAVE+pelety'!$AI$33=7,'A_WAVE+pelety'!F452,IF('A_WAVE+pelety'!$AI$33=8,'A_WAVE+pelety'!F538,IF('A_WAVE+pelety'!$AI$33=9,'A_WAVE+pelety'!F628,IF('A_WAVE+pelety'!$AI$33=10,'A_WAVE+pelety'!F722,"CHYBA")))))))))) -> 1436.46336 | H8: =IF('A_WAVE+pelety'!$AI$33=1,'A_WAVE+pelety'!F22,IF('A_WAVE+pelety'!$AI$33=2,'A_WAVE+pelety'!G82,IF('A_WAVE+pelety'!$AI$33=3,'A_WAVE+pelety'!G148,IF('A_WAVE+pelety'!$AI$33=4,'A_WAVE+pelety'!G218,IF('A_WAVE+pelety'!$AI$33=5,'A_WAVE+pelety'!G292,IF('A_WAVE+pelety'!$AI$33=6,'A_WAVE+pelety'!G370,IF('A_WAVE+pelety'!$AI$33=7,'A_WAVE+pelety'!G452,IF('A_WAVE+pelety'!$AI$33=8,'A_WAVE+pelety'!G538,IF('A_WAVE+pelety'!$AI$33=9,'A_WAVE+pelety'!G628,IF('A_WAVE+pelety'!$AI$33=10,'A_WAVE+pelety'!G722,"CHYBA")))))))))) -> 582.56136 | I8: =IF('A_WAVE+pelety'!$AI$33=1,'A_WAVE+pelety'!G22,IF('A_WAVE+pelety'!$AI$33=2,'A_WAVE+pelety'!H82,IF('A_WAVE+pelety'!$AI$33=3,'A_WAVE+pelety'!H148,IF('A_WAVE+pelety'!$AI$33=4,'A_WAVE+pelety'!H218,IF('A_WAVE+pelety'!$AI$33=5,'A_WAVE+pelety'!H292,IF('A_WAVE+pelety'!$AI$33=6,'A_WAVE+pelety'!H370,IF('A_WAVE+pelety'!$AI$33=7,'A_WAVE+pelety'!H452,IF('A_WAVE+pelety'!$AI$33=8,'A_WAVE+pelety'!H538,IF('A_WAVE+pelety'!$AI$33=9,'A_WAVE+pelety'!H628,IF('A_WAVE+pelety'!$AI$33=10,'A_WAVE+pelety'!H722,"CHYBA")))))))))) -> 0 | J8: =IF('A_WAVE+pelety'!$AI$33=1,'A_WAVE+pelety'!H22,IF('A_WAVE+pelety'!$AI$33=2,'A_WAVE+pelety'!I82,IF('A_WAVE+pelety'!$AI$33=3,'A_WAVE+pelety'!I148,IF('A_WAVE+pelety'!$AI$33=4,'A_WAVE+pelety'!I218,IF('A_WAVE+pelety'!$AI$33=5,'A_WAVE+pelety'!I292,IF('A_WAVE+pelety'!$AI$33=6,'A_WAVE+pelety'!I370,IF('A_WAVE+pelety'!$AI$33=7,'A_WAVE+pelety'!I452,IF('A_WAVE+pelety'!$AI$33=8,'A_WAVE+pelety'!I538,IF('A_WAVE+pelety'!$AI$33=9,'A_WAVE+pelety'!I628,IF('A_WAVE+pelety'!$AI$33=10,'A_WAVE+pelety'!I722,"CHYBA")))))))))) -> 0 | K8: =IF('A_WAVE+pelety'!$AI$33=1,'A_WAVE+pelety'!I22,IF('A_WAVE+pelety'!$AI$33=2,'A_WAVE+pelety'!J82,IF('A_WAVE+pelety'!$AI$33=3,'A_WAVE+pelety'!J148,IF('A_WAVE+pelety'!$AI$33=4,'A_WAVE+pelety'!J218,IF('A_WAVE+pelety'!$AI$33=5,'A_WAVE+pelety'!J292,IF('A_WAVE+pelety'!$AI$33=6,'A_WAVE+pelety'!J370,IF('A_WAVE+pelety'!$AI$33=7,'A_WAVE+pelety'!J452,IF('A_WAVE+pelety'!$AI$33=8,'A_WAVE+pelety'!J538,IF('A_WAVE+pelety'!$AI$33=9,'A_WAVE+pelety'!J628,IF('A_WAVE+pelety'!$AI$33=10,'A_WAVE+pelety'!J722,"CHYBA")))))))))) -> 0 | L8: =IF('A_WAVE+pelety'!$AI$33=1,'A_WAVE+pelety'!J22,IF('A_WAVE+pelety'!$AI$33=2,'A_WAVE+pelety'!K82,IF('A_WAVE+pelety'!$AI$33=3,'A_WAVE+pelety'!K148,IF('A_WAVE+pelety'!$AI$33=4,'A_WAVE+pelety'!K218,IF('A_WAVE+pelety'!$AI$33=5,'A_WAVE+pelety'!K292,IF('A_WAVE+pelety'!$AI$33=6,'A_WAVE+pelety'!K370,IF('A_WAVE+pelety'!$AI$33=7,'A_WAVE+pelety'!K452,IF('A_WAVE+pelety'!$AI$33=8,'A_WAVE+pelety'!K538,IF('A_WAVE+pelety'!$AI$33=9,'A_WAVE+pelety'!K628,IF('A_WAVE+pelety'!$AI$33=10,'A_WAVE+pelety'!K722,"CHYBA")))))))))) -> 0 | M8: =IF('A_WAVE+pelety'!$AI$33=1,'A_WAVE+pelety'!K22,IF('A_WAVE+pelety'!$AI$33=2,'A_WAVE+pelety'!L82,IF('A_WAVE+pelety'!$AI$33=3,'A_WAVE+pelety'!L148,IF('A_WAVE+pelety'!$AI$33=4,'A_WAVE+pelety'!L218,IF('A_WAVE+pelety'!$AI$33=5,'A_WAVE+pelety'!L292,IF('A_WAVE+pelety'!$AI$33=6,'A_WAVE+pelety'!L370,IF('A_WAVE+pelety'!$AI$33=7,'A_WAVE+pelety'!L452,IF('A_WAVE+pelety'!$AI$33=8,'A_WAVE+pelety'!L538,IF('A_WAVE+pelety'!$AI$33=9,'A_WAVE+pelety'!L628,IF('A_WAVE+pelety'!$AI$33=10,'A_WAVE+pelety'!L722,"CHYBA")))))))))) -> 0
A9: Doba v provozu | B9: h/r | D9: =IF('A_WAVE+pelety'!$AI$33=1,'A_WAVE+pelety'!B20,IF('A_WAVE+pelety'!$AI$33=2,'A_WAVE+pelety'!C80,IF('A_WAVE+pelety'!$AI$33=3,'A_WAVE+pelety'!C146,IF('A_WAVE+pelety'!$AI$33=4,'A_WAVE+pelety'!C216,IF('A_WAVE+pelety'!$AI$33=5,'A_WAVE+pelety'!C290,IF('A_WAVE+pelety'!$AI$33=6,'A_WAVE+pelety'!C368,IF('A_WAVE+pelety'!$AI$33=7,'A_WAVE+pelety'!C450,IF('A_WAVE+pelety'!$AI$33=8,'A_WAVE+pelety'!C536,IF('A_WAVE+pelety'!$AI$33=9,'A_WAVE+pelety'!C626,IF('A_WAVE+pelety'!$AI$33=10,'A_WAVE+pelety'!C720,"CHYBA")))))))))) -> 8024 | E9: =IF('A_WAVE+pelety'!$AI$33=1,'A_WAVE+pelety'!C20,IF('A_WAVE+pelety'!$AI$33=2,'A_WAVE+pelety'!D80,IF('A_WAVE+pelety'!$AI$33=3,'A_WAVE+pelety'!D146,IF('A_WAVE+pelety'!$AI$33=4,'A_WAVE+pelety'!D216,IF('A_WAVE+pelety'!$AI$33=5,'A_WAVE+pelety'!D290,IF('A_WAVE+pelety'!$AI$33=6,'A_WAVE+pelety'!D368,IF('A_WAVE+pelety'!$AI$33=7,'A_WAVE+pelety'!D450,IF('A_WAVE+pelety'!$AI$33=8,'A_WAVE+pelety'!D536,IF('A_WAVE+pelety'!$AI$33=9,'A_WAVE+pelety'!D626,IF('A_WAVE+pelety'!$AI$33=10,'A_WAVE+pelety'!D720,"CHYBA")))))))))) -> 7351 | F9: =IF('A_WAVE+pelety'!$AI$33=1,'A_WAVE+pelety'!D20,IF('A_WAVE+pelety'!$AI$33=2,'A_WAVE+pelety'!E80,IF('A_WAVE+pelety'!$AI$33=3,'A_WAVE+pelety'!E146,IF('A_WAVE+pelety'!$AI$33=4,'A_WAVE+pelety'!E216,IF('A_WAVE+pelety'!$AI$33=5,'A_WAVE+pelety'!E290,IF('A_WAVE+pelety'!$AI$33=6,'A_WAVE+pelety'!E368,IF('A_WAVE+pelety'!$AI$33=7,'A_WAVE+pelety'!E450,IF('A_WAVE+pelety'!$AI$33=8,'A_WAVE+pelety'!E536,IF('A_WAVE+pelety'!$AI$33=9,'A_WAVE+pelety'!E626,IF('A_WAVE+pelety'!$AI$33=10,'A_WAVE+pelety'!E720,"CHYBA")))))))))) -> 6527 | G9: =IF('A_WAVE+pelety'!$AI$33=1,'A_WAVE+pelety'!E20,IF('A_WAVE+pelety'!$AI$33=2,'A_WAVE+pelety'!F80,IF('A_WAVE+pelety'!$AI$33=3,'A_WAVE+pelety'!F146,IF('A_WAVE+pelety'!$AI$33=4,'A_WAVE+pelety'!F216,IF('A_WAVE+pelety'!$AI$33=5,'A_WAVE+pelety'!F290,IF('A_WAVE+pelety'!$AI$33=6,'A_WAVE+pelety'!F368,IF('A_WAVE+pelety'!$AI$33=7,'A_WAVE+pelety'!F450,IF('A_WAVE+pelety'!$AI$33=8,'A_WAVE+pelety'!F536,IF('A_WAVE+pelety'!$AI$33=9,'A_WAVE+pelety'!F626,IF('A_WAVE+pelety'!$AI$33=10,'A_WAVE+pelety'!F720,"CHYBA")))))))))) -> 3752 | H9: =IF('A_WAVE+pelety'!$AI$33=1,'A_WAVE+pelety'!F20,IF('A_WAVE+pelety'!$AI$33=2,'A_WAVE+pelety'!G80,IF('A_WAVE+pelety'!$AI$33=3,'A_WAVE+pelety'!G146,IF('A_WAVE+pelety'!$AI$33=4,'A_WAVE+pelety'!G216,IF('A_WAVE+pelety'!$AI$33=5,'A_WAVE+pelety'!G290,IF('A_WAVE+pelety'!$AI$33=6,'A_WAVE+pelety'!G368,IF('A_WAVE+pelety'!$AI$33=7,'A_WAVE+pelety'!G450,IF('A_WAVE+pelety'!$AI$33=8,'A_WAVE+pelety'!G536,IF('A_WAVE+pelety'!$AI$33=9,'A_WAVE+pelety'!G626,IF('A_WAVE+pelety'!$AI$33=10,'A_WAVE+pelety'!G720,"CHYBA")))))))))) -> 1450 | I9: =IF('A_WAVE+pelety'!$AI$33=1,'A_WAVE+pelety'!G20,IF('A_WAVE+pelety'!$AI$33=2,'A_WAVE+pelety'!H80,IF('A_WAVE+pelety'!$AI$33=3,'A_WAVE+pelety'!H146,IF('A_WAVE+pelety'!$AI$33=4,'A_WAVE+pelety'!H216,IF('A_WAVE+pelety'!$AI$33=5,'A_WAVE+pelety'!H290,IF('A_WAVE+pelety'!$AI$33=6,'A_WAVE+pelety'!H368,IF('A_WAVE+pelety'!$AI$33=7,'A_WAVE+pelety'!H450,IF('A_WAVE+pelety'!$AI$33=8,'A_WAVE+pelety'!H536,IF('A_WAVE+pelety'!$AI$33=9,'A_WAVE+pelety'!H626,IF('A_WAVE+pelety'!$AI$33=10,'A_WAVE+pelety'!H720,"CHYBA")))))))))) -> 0 | J9: =IF('A_WAVE+pelety'!$AI$33=1,'A_WAVE+pelety'!H20,IF('A_WAVE+pelety'!$AI$33=2,'A_WAVE+pelety'!I80,IF('A_WAVE+pelety'!$AI$33=3,'A_WAVE+pelety'!I146,IF('A_WAVE+pelety'!$AI$33=4,'A_WAVE+pelety'!I216,IF('A_WAVE+pelety'!$AI$33=5,'A_WAVE+pelety'!I290,IF('A_WAVE+pelety'!$AI$33=6,'A_WAVE+pelety'!I368,IF('A_WAVE+pelety'!$AI$33=7,'A_WAVE+pelety'!I450,IF('A_WAVE+pelety'!$AI$33=8,'A_WAVE+pelety'!I536,IF('A_WAVE+pelety'!$AI$33=9,'A_WAVE+pelety'!I626,IF('A_WAVE+pelety'!$AI$33=10,'A_WAVE+pelety'!I720,"CHYBA")))))))))) -> 0 | K9: =IF('A_WAVE+pelety'!$AI$33=1,'A_WAVE+pelety'!I20,IF('A_WAVE+pelety'!$AI$33=2,'A_WAVE+pelety'!J80,IF('A_WAVE+pelety'!$AI$33=3,'A_WAVE+pelety'!J146,IF('A_WAVE+pelety'!$AI$33=4,'A_WAVE+pelety'!J216,IF('A_WAVE+pelety'!$AI$33=5,'A_WAVE+pelety'!J290,IF('A_WAVE+pelety'!$AI$33=6,'A_WAVE+pelety'!J368,IF('A_WAVE+pelety'!$AI$33=7,'A_WAVE+pelety'!J450,IF('A_WAVE+pelety'!$AI$33=8,'A_WAVE+pelety'!J536,IF('A_WAVE+pelety'!$AI$33=9,'A_WAVE+pelety'!J626,IF('A_WAVE+pelety'!$AI$33=10,'A_WAVE+pelety'!J720,"CHYBA")))))))))) -> 0 | L9: =IF('A_WAVE+pelety'!$AI$33=1,'A_WAVE+pelety'!J20,IF('A_WAVE+pelety'!$AI$33=2,'A_WAVE+pelety'!K80,IF('A_WAVE+pelety'!$AI$33=3,'A_WAVE+pelety'!K146,IF('A_WAVE+pelety'!$AI$33=4,'A_WAVE+pelety'!K216,IF('A_WAVE+pelety'!$AI$33=5,'A_WAVE+pelety'!K290,IF('A_WAVE+pelety'!$AI$33=6,'A_WAVE+pelety'!K368,IF('A_WAVE+pelety'!$AI$33=7,'A_WAVE+pelety'!K450,IF('A_WAVE+pelety'!$AI$33=8,'A_WAVE+pelety'!K536,IF('A_WAVE+pelety'!$AI$33=9,'A_WAVE+pelety'!K626,IF('A_WAVE+pelety'!$AI$33=10,'A_WAVE+pelety'!K720,"CHYBA")))))))))) -> 0 | M9: =IF('A_WAVE+pelety'!$AI$33=1,'A_WAVE+pelety'!K20,IF('A_WAVE+pelety'!$AI$33=2,'A_WAVE+pelety'!L80,IF('A_WAVE+pelety'!$AI$33=3,'A_WAVE+pelety'!L146,IF('A_WAVE+pelety'!$AI$33=4,'A_WAVE+pelety'!L216,IF('A_WAVE+pelety'!$AI$33=5,'A_WAVE+pelety'!L290,IF('A_WAVE+pelety'!$AI$33=6,'A_WAVE+pelety'!L368,IF('A_WAVE+pelety'!$AI$33=7,'A_WAVE+pelety'!L450,IF('A_WAVE+pelety'!$AI$33=8,'A_WAVE+pelety'!L536,IF('A_WAVE+pelety'!$AI$33=9,'A_WAVE+pelety'!L626,IF('A_WAVE+pelety'!$AI$33=10,'A_WAVE+pelety'!L720,"CHYBA")))))))))) -> 0
A10: Využití instalovaného výkonu | B10: h/r | C10: =IFERROR(C8/3.6*1000/C5,0) -> 4714.306667 | D10: =IFERROR(D8/3.6*1000/D5,0) -> 6928.535556 | E10: =IFERROR(E8/3.6*1000/E5,0) -> 6320.193889 | F10: 5649.135556 | G10: 3325.146667 | H10: 1348.521667 | I10: 0 | J10: 0 | K10: 0 | L10: 0 | M10: 0
B11: % | C11: =100/8760*C10 -> 53.81628615 | D11: =100/8760*D10 -> 79.09287164 | E11: =100/8760*E10 -> 72.14833206 | F11: 64.48784881 | G11: 37.95829528 | H11: 15.39408295 | I11: 0 | J11: 0 | K11: 0 | L11: 0 | M11: 0
A12: Odhad investičních nákladů | B12: tis. Kč | C12: =SUM(D12:M12) -> -18363 | D12: =-0.001*IF(D5=120,Ekonomika!$B$3,0) -> -3672.6 | E12: =-0.001*IF(E5=120,Ekonomika!$B$3,0) -> -3672.6 | F12: =-0.001*IF(F5=120,Ekonomika!$B$3,0) -> -3672.6 | G12: =-0.001*IF(G5=120,Ekonomika!$B$3,0) -> -3672.6 | H12: =-0.001*IF(H5=120,Ekonomika!$B$3,0) -> -3672.6 | I12: =-0.001*IF(I5=120,Ekonomika!$B$3,0) -> 0 | J12: =-0.001*IF(J5=120,Ekonomika!$B$3,0) -> 0 | K12: =-0.001*IF(K5=120,Ekonomika!$B$3,0) -> 0 | L12: =-0.001*IF(L5=120,Ekonomika!$B$3,0) -> 0 | M12: =-0.001*IF(M5=120,Ekonomika!$B$3,0) -> 0
A13: Odhad provozních nákladů (nom.hodn.) | B13: tis. Kč/r | C13: =SUM(D13:M13) -> -1519.372829 | D13: =IF('A_WAVE+pelety'!$AI$33=1,'A_WAVE+pelety'!B34,IF('A_WAVE+pelety'!$AI$33=2,'A_WAVE+pelety'!C94,IF('A_WAVE+pelety'!$AI$33=3,'A_WAVE+pelety'!C160,IF('A_WAVE+pelety'!$AI$33=4,'A_WAVE+pelety'!C230,IF('A_WAVE+pelety'!$AI$33=5,'A_WAVE+pelety'!C304,IF('A_WAVE+pelety'!$AI$33=6,'A_WAVE+pelety'!C382,IF('A_WAVE+pelety'!$AI$33=7,'A_WAVE+pelety'!C464,IF('A_WAVE+pelety'!$AI$33=8,'A_WAVE+pelety'!C550,IF('A_WAVE+pelety'!$AI$33=9,'A_WAVE+pelety'!C640,IF('A_WAVE+pelety'!$AI$33=10,'A_WAVE+pelety'!C734,"CHYBA"))))))))))/1000 -> -446.9260913 | E13: =IF('A_WAVE+pelety'!$AI$33=1,'A_WAVE+pelety'!C34,IF('A_WAVE+pelety'!$AI$33=2,'A_WAVE+pelety'!D94,IF('A_WAVE+pelety'!$AI$33=3,'A_WAVE+pelety'!D160,IF('A_WAVE+pelety'!$AI$33=4,'A_WAVE+pelety'!D230,IF('A_WAVE+pelety'!$AI$33=5,'A_WAVE+pelety'!D304,IF('A_WAVE+pelety'!$AI$33=6,'A_WAVE+pelety'!D382,IF('A_WAVE+pelety'!$AI$33=7,'A_WAVE+pelety'!D464,IF('A_WAVE+pelety'!$AI$33=8,'A_WAVE+pelety'!D550,IF('A_WAVE+pelety'!$AI$33=9,'A_WAVE+pelety'!D640,IF('A_WAVE+pelety'!$AI$33=10,'A_WAVE+pelety'!D734,"CHYBA"))))))))))/1000 -> -407.8652614 | F13: =IF('A_WAVE+pelety'!$AI$33=1,'A_WAVE+pelety'!D34,IF('A_WAVE+pelety'!$AI$33=2,'A_WAVE+pelety'!E94,IF('A_WAVE+pelety'!$AI$33=3,'A_WAVE+pelety'!E160,IF('A_WAVE+pelety'!$AI$33=4,'A_WAVE+pelety'!E230,IF('A_WAVE+pelety'!$AI$33=5,'A_WAVE+pelety'!E304,IF('A_WAVE+pelety'!$AI$33=6,'A_WAVE+pelety'!E382,IF('A_WAVE+pelety'!$AI$33=7,'A_WAVE+pelety'!E464,IF('A_WAVE+pelety'!$AI$33=8,'A_WAVE+pelety'!E550,IF('A_WAVE+pelety'!$AI$33=9,'A_WAVE+pelety'!E640,IF('A_WAVE+pelety'!$AI$33=10,'A_WAVE+pelety'!E734,"CHYBA"))))))))))/1000 -> -364.310624 | G13: =IF('A_WAVE+pelety'!$AI$33=1,'A_WAVE+pelety'!E34,IF('A_WAVE+pelety'!$AI$33=2,'A_WAVE+pelety'!F94,IF('A_WAVE+pelety'!$AI$33=3,'A_WAVE+pelety'!F160,IF('A_WAVE+pelety'!$AI$33=4,'A_WAVE+pelety'!F230,IF('A_WAVE+pelety'!$AI$33=5,'A_WAVE+pelety'!F304,IF('A_WAVE+pelety'!$AI$33=6,'A_WAVE+pelety'!F382,IF('A_WAVE+pelety'!$AI$33=7,'A_WAVE+pelety'!F464,IF('A_WAVE+pelety'!$AI$33=8,'A_WAVE+pelety'!F550,IF('A_WAVE+pelety'!$AI$33=9,'A_WAVE+pelety'!F640,IF('A_WAVE+pelety'!$AI$33=10,'A_WAVE+pelety'!F734,"CHYBA"))))))))))/1000 -> -213.9234118 | H13: =IF('A_WAVE+pelety'!$AI$33=1,'A_WAVE+pelety'!F34,IF('A_WAVE+pelety'!$AI$33=2,'A_WAVE+pelety'!G94,IF('A_WAVE+pelety'!$AI$33=3,'A_WAVE+pelety'!G160,IF('A_WAVE+pelety'!$AI$33=4,'A_WAVE+pelety'!G230,IF('A_WAVE+pelety'!$AI$33=5,'A_WAVE+pelety'!G304,IF('A_WAVE+pelety'!$AI$33=6,'A_WAVE+pelety'!G382,IF('A_WAVE+pelety'!$AI$33=7,'A_WAVE+pelety'!G464,IF('A_WAVE+pelety'!$AI$33=8,'A_WAVE+pelety'!G550,IF('A_WAVE+pelety'!$AI$33=9,'A_WAVE+pelety'!G640,IF('A_WAVE+pelety'!$AI$33=10,'A_WAVE+pelety'!G734,"CHYBA"))))))))))/1000 -> -86.34744096 | I13: =IF('A_WAVE+pelety'!$AI$33=1,'A_WAVE+pelety'!G34,IF('A_WAVE+pelety'!$AI$33=2,'A_WAVE+pelety'!H94,IF('A_WAVE+pelety'!$AI$33=3,'A_WAVE+pelety'!H160,IF('A_WAVE+pelety'!$AI$33=4,'A_WAVE+pelety'!H230,IF('A_WAVE+pelety'!$AI$33=5,'A_WAVE+pelety'!H304,IF('A_WAVE+pelety'!$AI$33=6,'A_WAVE+pelety'!H382,IF('A_WAVE+pelety'!$AI$33=7,'A_WAVE+pelety'!H464,IF('A_WAVE+pelety'!$AI$33=8,'A_WAVE+pelety'!H550,IF('A_WAVE+pelety'!$AI$33=9,'A_WAVE+pelety'!H640,IF('A_WAVE+pelety'!$AI$33=10,'A_WAVE+pelety'!H734,"CHYBA"))))))))))/1000 -> 0 | J13: =IF('A_WAVE+pelety'!$AI$33=1,'A_WAVE+pelety'!H34,IF('A_WAVE+pelety'!$AI$33=2,'A_WAVE+pelety'!I94,IF('A_WAVE+pelety'!$AI$33=3,'A_WAVE+pelety'!I160,IF('A_WAVE+pelety'!$AI$33=4,'A_WAVE+pelety'!I230,IF('A_WAVE+pelety'!$AI$33=5,'A_WAVE+pelety'!I304,IF('A_WAVE+pelety'!$AI$33=6,'A_WAVE+pelety'!I382,IF('A_WAVE+pelety'!$AI$33=7,'A_WAVE+pelety'!I464,IF('A_WAVE+pelety'!$AI$33=8,'A_WAVE+pelety'!I550,IF('A_WAVE+pelety'!$AI$33=9,'A_WAVE+pelety'!I640,IF('A_WAVE+pelety'!$AI$33=10,'A_WAVE+pelety'!I734,"CHYBA"))))))))))/1000 -> 0 | K13: =IF('A_WAVE+pelety'!$AI$33=1,'A_WAVE+pelety'!I34,IF('A_WAVE+pelety'!$AI$33=2,'A_WAVE+pelety'!J94,IF('A_WAVE+pelety'!$AI$33=3,'A_WAVE+pelety'!J160,IF('A_WAVE+pelety'!$AI$33=4,'A_WAVE+pelety'!J230,IF('A_WAVE+pelety'!$AI$33=5,'A_WAVE+pelety'!J304,IF('A_WAVE+pelety'!$AI$33=6,'A_WAVE+pelety'!J382,IF('A_WAVE+pelety'!$AI$33=7,'A_WAVE+pelety'!J464,IF('A_WAVE+pelety'!$AI$33=8,'A_WAVE+pelety'!J550,IF('A_WAVE+pelety'!$AI$33=9,'A_WAVE+pelety'!J640,IF('A_WAVE+pelety'!$AI$33=10,'A_WAVE+pelety'!J734,"CHYBA"))))))))))/1000 -> 0 | L13: =IF('A_WAVE+pelety'!$AI$33=1,'A_WAVE+pelety'!J34,IF('A_WAVE+pelety'!$AI$33=2,'A_WAVE+pelety'!K94,IF('A_WAVE+pelety'!$AI$33=3,'A_WAVE+pelety'!K160,IF('A_WAVE+pelety'!$AI$33=4,'A_WAVE+pelety'!K230,IF('A_WAVE+pelety'!$AI$33=5,'A_WAVE+pelety'!K304,IF('A_WAVE+pelety'!$AI$33=6,'A_WAVE+pelety'!K382,IF('A_WAVE+pelety'!$AI$33=7,'A_WAVE+pelety'!K464,IF('A_WAVE+pelety'!$AI$33=8,'A_WAVE+pelety'!K550,IF('A_WAVE+pelety'!$AI$33=9,'A_WAVE+pelety'!K640,IF('A_WAVE+pelety'!$AI$33=10,'A_WAVE+pelety'!K734,"CHYBA"))))))))))/1000 -> 0 | M13: =IF('A_WAVE+pelety'!$AI$33=1,'A_WAVE+pelety'!K34,IF('A_WAVE+pelety'!$AI$33=2,'A_WAVE+pelety'!L94,IF('A_WAVE+pelety'!$AI$33=3,'A_WAVE+pelety'!L160,IF('A_WAVE+pelety'!$AI$33=4,'A_WAVE+pelety'!L230,IF('A_WAVE+pelety'!$AI$33=5,'A_WAVE+pelety'!L304,IF('A_WAVE+pelety'!$AI$33=6,'A_WAVE+pelety'!L382,IF('A_WAVE+pelety'!$AI$33=7,'A_WAVE+pelety'!L464,IF('A_WAVE+pelety'!$AI$33=8,'A_WAVE+pelety'!L550,IF('A_WAVE+pelety'!$AI$33=9,'A_WAVE+pelety'!L640,IF('A_WAVE+pelety'!$AI$33=10,'A_WAVE+pelety'!L734,"CHYBA"))))))))))/1000 -> 0
C15: KOTLE CELKEM | D15: 1. kotel | E15: 2. kotel | F15: 3. kotel | G15: 4. kotel | H15: 5. kotel | I15: 6. kotel | J15: 7. kotel | K15: 8. kotel | L15: 9. kotel | M15: 10. kotel | N15: 11. kotel | O15: 12. kotel | P15: 13. kotel | Q15: 14. kotel | R15: 15. kotel
A16: Jmenovitý tepelný výkon | B16: kW | C16: =SUM(D16:R16) -> 170 | D16: =IF('A_WAVE+pelety'!$AI$33=1,'A_WAVE+pelety'!C39,IF('A_WAVE+pelety'!$AI$33=2,'A_WAVE+pelety'!C99,IF('A_WAVE+pelety'!$AI$33=3,'A_WAVE+pelety'!C165,IF('A_WAVE+pelety'!$AI$33=4,'A_WAVE+pelety'!C235,IF('A_WAVE+pelety'!$AI$33=5,'A_WAVE+pelety'!C309,IF('A_WAVE+pelety'!$AI$33=6,'A_WAVE+pelety'!C387,IF('A_WAVE+pelety'!$AI$33=7,'A_WAVE+pelety'!C469,IF('A_WAVE+pelety'!$AI$33=8,'A_WAVE+pelety'!C555,IF('A_WAVE+pelety'!$AI$33=9,'A_WAVE+pelety'!C645,IF('A_WAVE+pelety'!$AI$33=10,'A_WAVE+pelety'!C739,"CHYBA")))))))))) -> 20 | E16: =IF('A_WAVE+pelety'!$AI$33=1,'A_WAVE+pelety'!D39,IF('A_WAVE+pelety'!$AI$33=2,'A_WAVE+pelety'!D99,IF('A_WAVE+pelety'!$AI$33=3,'A_WAVE+pelety'!D165,IF('A_WAVE+pelety'!$AI$33=4,'A_WAVE+pelety'!D235,IF('A_WAVE+pelety'!$AI$33=5,'A_WAVE+pelety'!D309,IF('A_WAVE+pelety'!$AI$33=6,'A_WAVE+pelety'!D387,IF('A_WAVE+pelety'!$AI$33=7,'A_WAVE+pelety'!D469,IF('A_WAVE+pelety'!$AI$33=8,'A_WAVE+pelety'!D555,IF('A_WAVE+pelety'!$AI$33=9,'A_WAVE+pelety'!D645,IF('A_WAVE+pelety'!$AI$33=10,'A_WAVE+pelety'!D739,"CHYBA")))))))))) -> 70 | F16: =IF('A_WAVE+pelety'!$AI$33=1,'A_WAVE+pelety'!E39,IF('A_WAVE+pelety'!$AI$33=2,'A_WAVE+pelety'!E99,IF('A_WAVE+pelety'!$AI$33=3,'A_WAVE+pelety'!E165,IF('A_WAVE+pelety'!$AI$33=4,'A_WAVE+pelety'!E235,IF('A_WAVE+pelety'!$AI$33=5,'A_WAVE+pelety'!E309,IF('A_WAVE+pelety'!$AI$33=6,'A_WAVE+pelety'!E387,IF('A_WAVE+pelety'!$AI$33=7,'A_WAVE+pelety'!E469,IF('A_WAVE+pelety'!$AI$33=8,'A_WAVE+pelety'!E555,IF('A_WAVE+pelety'!$AI$33=9,'A_WAVE+pelety'!E645,IF('A_WAVE+pelety'!$AI$33=10,'A_WAVE+pelety'!E739,"CHYBA")))))))))) -> 0 | G16: =IF('A_WAVE+pelety'!$AI$33=1,'A_WAVE+pelety'!F39,IF('A_WAVE+pelety'!$AI$33=2,'A_WAVE+pelety'!F99,IF('A_WAVE+pelety'!$AI$33=3,'A_WAVE+pelety'!F165,IF('A_WAVE+pelety'!$AI$33=4,'A_WAVE+pelety'!F235,IF('A_WAVE+pelety'!$AI$33=5,'A_WAVE+pelety'!F309,IF('A_WAVE+pelety'!$AI$33=6,'A_WAVE+pelety'!F387,IF('A_WAVE+pelety'!$AI$33=7,'A_WAVE+pelety'!F469,IF('A_WAVE+pelety'!$AI$33=8,'A_WAVE+pelety'!F555,IF('A_WAVE+pelety'!$AI$33=9,'A_WAVE+pelety'!F645,IF('A_WAVE+pelety'!$AI$33=10,'A_WAVE+pelety'!F739,"CHYBA")))))))))) -> 80 | H16: =IF('A_WAVE+pelety'!$AI$33=1,'A_WAVE+pelety'!G39,IF('A_WAVE+pelety'!$AI$33=2,'A_WAVE+pelety'!G99,IF('A_WAVE+pelety'!$AI$33=3,'A_WAVE+pelety'!G165,IF('A_WAVE+pelety'!$AI$33=4,'A_WAVE+pelety'!G235,IF('A_WAVE+pelety'!$AI$33=5,'A_WAVE+pelety'!G309,IF('A_WAVE+pelety'!$AI$33=6,'A_WAVE+pelety'!G387,IF('A_WAVE+pelety'!$AI$33=7,'A_WAVE+pelety'!G469,IF('A_WAVE+pelety'!$AI$33=8,'A_WAVE+pelety'!G555,IF('A_WAVE+pelety'!$AI$33=9,'A_WAVE+pelety'!G645,IF('A_WAVE+pelety'!$AI$33=10,'A_WAVE+pelety'!G739,"CHYBA")))))))))) -> 0 | I16: =IF('A_WAVE+pelety'!$AI$33=1,'A_WAVE+pelety'!H39,IF('A_WAVE+pelety'!$AI$33=2,'A_WAVE+pelety'!H99,IF('A_WAVE+pelety'!$AI$33=3,'A_WAVE+pelety'!H165,IF('A_WAVE+pelety'!$AI$33=4,'A_WAVE+pelety'!H235,IF('A_WAVE+pelety'!$AI$33=5,'A_WAVE+pelety'!H309,IF('A_WAVE+pelety'!$AI$33=6,'A_WAVE+pelety'!H387,IF('A_WAVE+pelety'!$AI$33=7,'A_WAVE+pelety'!H469,IF('A_WAVE+pelety'!$AI$33=8,'A_WAVE+pelety'!H555,IF('A_WAVE+pelety'!$AI$33=9,'A_WAVE+pelety'!H645,IF('A_WAVE+pelety'!$AI$33=10,'A_WAVE+pelety'!H739,"CHYBA")))))))))) -> 0 | J16: =IF('A_WAVE+pelety'!$AI$33=1,'A_WAVE+pelety'!I39,IF('A_WAVE+pelety'!$AI$33=2,'A_WAVE+pelety'!I99,IF('A_WAVE+pelety'!$AI$33=3,'A_WAVE+pelety'!I165,IF('A_WAVE+pelety'!$AI$33=4,'A_WAVE+pelety'!I235,IF('A_WAVE+pelety'!$AI$33=5,'A_WAVE+pelety'!I309,IF('A_WAVE+pelety'!$AI$33=6,'A_WAVE+pelety'!I387,IF('A_WAVE+pelety'!$AI$33=7,'A_WAVE+pelety'!I469,IF('A_WAVE+pelety'!$AI$33=8,'A_WAVE+pelety'!I555,IF('A_WAVE+pelety'!$AI$33=9,'A_WAVE+pelety'!I645,IF('A_WAVE+pelety'!$AI$33=10,'A_WAVE+pelety'!I739,"CHYBA")))))))))) -> 0 | K16: =IF('A_WAVE+pelety'!$AI$33=1,'A_WAVE+pelety'!J39,IF('A_WAVE+pelety'!$AI$33=2,'A_WAVE+pelety'!J99,IF('A_WAVE+pelety'!$AI$33=3,'A_WAVE+pelety'!J165,IF('A_WAVE+pelety'!$AI$33=4,'A_WAVE+pelety'!J235,IF('A_WAVE+pelety'!$AI$33=5,'A_WAVE+pelety'!J309,IF('A_WAVE+pelety'!$AI$33=6,'A_WAVE+pelety'!J387,IF('A_WAVE+pelety'!$AI$33=7,'A_WAVE+pelety'!J469,IF('A_WAVE+pelety'!$AI$33=8,'A_WAVE+pelety'!J555,IF('A_WAVE+pelety'!$AI$33=9,'A_WAVE+pelety'!J645,IF('A_WAVE+pelety'!$AI$33=10,'A_WAVE+pelety'!J739,"CHYBA")))))))))) -> 0 | L16: =IF('A_WAVE+pelety'!$AI$33=1,'A_WAVE+pelety'!K39,IF('A_WAVE+pelety'!$AI$33=2,'A_WAVE+pelety'!K99,IF('A_WAVE+pelety'!$AI$33=3,'A_WAVE+pelety'!K165,IF('A_WAVE+pelety'!$AI$33=4,'A_WAVE+pelety'!K235,IF('A_WAVE+pelety'!$AI$33=5,'A_WAVE+pelety'!K309,IF('A_WAVE+pelety'!$AI$33=6,'A_WAVE+pelety'!K387,IF('A_WAVE+pelety'!$AI$33=7,'A_WAVE+pelety'!K469,IF('A_WAVE+pelety'!$AI$33=8,'A_WAVE+pelety'!K555,IF('A_WAVE+pelety'!$AI$33=9,'A_WAVE+pelety'!K645,IF('A_WAVE+pelety'!$AI$33=10,'A_WAVE+pelety'!K739,"CHYBA")))))))))) -> 0 | M16: =IF('A_WAVE+pelety'!$AI$33=1,'A_WAVE+pelety'!L39,IF('A_WAVE+pelety'!$AI$33=2,'A_WAVE+pelety'!L99,IF('A_WAVE+pelety'!$AI$33=3,'A_WAVE+pelety'!L165,IF('A_WAVE+pelety'!$AI$33=4,'A_WAVE+pelety'!L235,IF('A_WAVE+pelety'!$AI$33=5,'A_WAVE+pelety'!L309,IF('A_WAVE+pelety'!$AI$33=6,'A_WAVE+pelety'!L387,IF('A_WAVE+pelety'!$AI$33=7,'A_WAVE+pelety'!L469,IF('A_WAVE+pelety'!$AI$33=8,'A_WAVE+pelety'!L555,IF('A_WAVE+pelety'!$AI$33=9,'A_WAVE+pelety'!L645,IF('A_WAVE+pelety'!$AI$33=10,'A_WAVE+pelety'!L739,"CHYBA")))))))))) -> 0 | N16: =IF('A_WAVE+pelety'!$AI$33=1,'A_WAVE+pelety'!M39,IF('A_WAVE+pelety'!$AI$33=2,'A_WAVE+pelety'!M99,IF('A_WAVE+pelety'!$AI$33=3,'A_WAVE+pelety'!M165,IF('A_WAVE+pelety'!$AI$33=4,'A_WAVE+pelety'!M235,IF('A_WAVE+pelety'!$AI$33=5,'A_WAVE+pelety'!M309,IF('A_WAVE+pelety'!$AI$33=6,'A_WAVE+pelety'!M387,IF('A_WAVE+pelety'!$AI$33=7,'A_WAVE+pelety'!M469,IF('A_WAVE+pelety'!$AI$33=8,'A_WAVE+pelety'!M555,IF('A_WAVE+pelety'!$AI$33=9,'A_WAVE+pelety'!M645,IF('A_WAVE+pelety'!$AI$33=10,'A_WAVE+pelety'!M739,"CHYBA")))))))))) -> 0 | O16: =IF('A_WAVE+pelety'!$AI$33=1,'A_WAVE+pelety'!N39,IF('A_WAVE+pelety'!$AI$33=2,'A_WAVE+pelety'!N99,IF('A_WAVE+pelety'!$AI$33=3,'A_WAVE+pelety'!N165,IF('A_WAVE+pelety'!$AI$33=4,'A_WAVE+pelety'!N235,IF('A_WAVE+pelety'!$AI$33=5,'A_WAVE+pelety'!N309,IF('A_WAVE+pelety'!$AI$33=6,'A_WAVE+pelety'!N387,IF('A_WAVE+pelety'!$AI$33=7,'A_WAVE+pelety'!N469,IF('A_WAVE+pelety'!$AI$33=8,'A_WAVE+pelety'!N555,IF('A_WAVE+pelety'!$AI$33=9,'A_WAVE+pelety'!N645,IF('A_WAVE+pelety'!$AI$33=10,'A_WAVE+pelety'!N739,"CHYBA")))))))))) -> 0 | P16: =IF('A_WAVE+pelety'!$AI$33=1,'A_WAVE+pelety'!O39,IF('A_WAVE+pelety'!$AI$33=2,'A_WAVE+pelety'!O99,IF('A_WAVE+pelety'!$AI$33=3,'A_WAVE+pelety'!O165,IF('A_WAVE+pelety'!$AI$33=4,'A_WAVE+pelety'!O235,IF('A_WAVE+pelety'!$AI$33=5,'A_WAVE+pelety'!O309,IF('A_WAVE+pelety'!$AI$33=6,'A_WAVE+pelety'!O387,IF('A_WAVE+pelety'!$AI$33=7,'A_WAVE+pelety'!O469,IF('A_WAVE+pelety'!$AI$33=8,'A_WAVE+pelety'!O555,IF('A_WAVE+pelety'!$AI$33=9,'A_WAVE+pelety'!O645,IF('A_WAVE+pelety'!$AI$33=10,'A_WAVE+pelety'!O739,"CHYBA")))))))))) -> 0 | Q16: =IF('A_WAVE+pelety'!$AI$33=1,'A_WAVE+pelety'!P39,IF('A_WAVE+pelety'!$AI$33=2,'A_WAVE+pelety'!P99,IF('A_WAVE+pelety'!$AI$33=3,'A_WAVE+pelety'!P165,IF('A_WAVE+pelety'!$AI$33=4,'A_WAVE+pelety'!P235,IF('A_WAVE+pelety'!$AI$33=5,'A_WAVE+pelety'!P309,IF('A_WAVE+pelety'!$AI$33=6,'A_WAVE+pelety'!P387,IF('A_WAVE+pelety'!$AI$33=7,'A_WAVE+pelety'!P469,IF('A_WAVE+pelety'!$AI$33=8,'A_WAVE+pelety'!P555,IF('A_WAVE+pelety'!$AI$33=9,'A_WAVE+pelety'!P645,IF('A_WAVE+pelety'!$AI$33=10,'A_WAVE+pelety'!P739,"CHYBA")))))))))) -> 0 | R16: =IF('A_WAVE+pelety'!$AI$33=1,'A_WAVE+pelety'!Q39,IF('A_WAVE+pelety'!$AI$33=2,'A_WAVE+pelety'!Q99,IF('A_WAVE+pelety'!$AI$33=3,'A_WAVE+pelety'!Q165,IF('A_WAVE+pelety'!$AI$33=4,'A_WAVE+pelety'!Q235,IF('A_WAVE+pelety'!$AI$33=5,'A_WAVE+pelety'!Q309,IF('A_WAVE+pelety'!$AI$33=6,'A_WAVE+pelety'!Q387,IF('A_WAVE+pelety'!$AI$33=7,'A_WAVE+pelety'!Q469,IF('A_WAVE+pelety'!$AI$33=8,'A_WAVE+pelety'!Q555,IF('A_WAVE+pelety'!$AI$33=9,'A_WAVE+pelety'!Q645,IF('A_WAVE+pelety'!$AI$33=10,'A_WAVE+pelety'!Q739,"CHYBA")))))))))) -> 0
A17: Minimální tepelný výkon | B17: kW | C17: =MIN(IF(D17:R17>0,D17:R17)) -> 6 | D17: =IF('A_WAVE+pelety'!$AI$33=1,'A_WAVE+pelety'!C40,IF('A_WAVE+pelety'!$AI$33=2,'A_WAVE+pelety'!C100,IF('A_WAVE+pelety'!$AI$33=3,'A_WAVE+pelety'!C166,IF('A_WAVE+pelety'!$AI$33=4,'A_WAVE+pelety'!C236,IF('A_WAVE+pelety'!$AI$33=5,'A_WAVE+pelety'!C310,IF('A_WAVE+pelety'!$AI$33=6,'A_WAVE+pelety'!C388,IF('A_WAVE+pelety'!$AI$33=7,'A_WAVE+pelety'!C470,IF('A_WAVE+pelety'!$AI$33=8,'A_WAVE+pelety'!C556,IF('A_WAVE+pelety'!$AI$33=9,'A_WAVE+pelety'!C646,IF('A_WAVE+pelety'!$AI$33=10,'A_WAVE+pelety'!C740,"CHYBA")))))))))) -> 6 | E17: =IF('A_WAVE+pelety'!$AI$33=1,'A_WAVE+pelety'!D40,IF('A_WAVE+pelety'!$AI$33=2,'A_WAVE+pelety'!D100,IF('A_WAVE+pelety'!$AI$33=3,'A_WAVE+pelety'!D166,IF('A_WAVE+pelety'!$AI$33=4,'A_WAVE+pelety'!D236,IF('A_WAVE+pelety'!$AI$33=5,'A_WAVE+pelety'!D310,IF('A_WAVE+pelety'!$AI$33=6,'A_WAVE+pelety'!D388,IF('A_WAVE+pelety'!$AI$33=7,'A_WAVE+pelety'!D470,IF('A_WAVE+pelety'!$AI$33=8,'A_WAVE+pelety'!D556,IF('A_WAVE+pelety'!$AI$33=9,'A_WAVE+pelety'!D646,IF('A_WAVE+pelety'!$AI$33=10,'A_WAVE+pelety'!D740,"CHYBA")))))))))) -> 21 | F17: =IF('A_WAVE+pelety'!$AI$33=1,'A_WAVE+pelety'!E40,IF('A_WAVE+pelety'!$AI$33=2,'A_WAVE+pelety'!E100,IF('A_WAVE+pelety'!$AI$33=3,'A_WAVE+pelety'!E166,IF('A_WAVE+pelety'!$AI$33=4,'A_WAVE+pelety'!E236,IF('A_WAVE+pelety'!$AI$33=5,'A_WAVE+pelety'!E310,IF('A_WAVE+pelety'!$AI$33=6,'A_WAVE+pelety'!E388,IF('A_WAVE+pelety'!$AI$33=7,'A_WAVE+pelety'!E470,IF('A_WAVE+pelety'!$AI$33=8,'A_WAVE+pelety'!E556,IF('A_WAVE+pelety'!$AI$33=9,'A_WAVE+pelety'!E646,IF('A_WAVE+pelety'!$AI$33=10,'A_WAVE+pelety'!E740,"CHYBA")))))))))) -> 0 | G17: =IF('A_WAVE+pelety'!$AI$33=1,'A_WAVE+pelety'!F40,IF('A_WAVE+pelety'!$AI$33=2,'A_WAVE+pelety'!F100,IF('A_WAVE+pelety'!$AI$33=3,'A_WAVE+pelety'!F166,IF('A_WAVE+pelety'!$AI$33=4,'A_WAVE+pelety'!F236,IF('A_WAVE+pelety'!$AI$33=5,'A_WAVE+pelety'!F310,IF('A_WAVE+pelety'!$AI$33=6,'A_WAVE+pelety'!F388,IF('A_WAVE+pelety'!$AI$33=7,'A_WAVE+pelety'!F470,IF('A_WAVE+pelety'!$AI$33=8,'A_WAVE+pelety'!F556,IF('A_WAVE+pelety'!$AI$33=9,'A_WAVE+pelety'!F646,IF('A_WAVE+pelety'!$AI$33=10,'A_WAVE+pelety'!F740,"CHYBA")))))))))) -> 24 | H17: =IF('A_WAVE+pelety'!$AI$33=1,'A_WAVE+pelety'!G40,IF('A_WAVE+pelety'!$AI$33=2,'A_WAVE+pelety'!G100,IF('A_WAVE+pelety'!$AI$33=3,'A_WAVE+pelety'!G166,IF('A_WAVE+pelety'!$AI$33=4,'A_WAVE+pelety'!G236,IF('A_WAVE+pelety'!$AI$33=5,'A_WAVE+pelety'!G310,IF('A_WAVE+pelety'!$AI$33=6,'A_WAVE+pelety'!G388,IF('A_WAVE+pelety'!$AI$33=7,'A_WAVE+pelety'!G470,IF('A_WAVE+pelety'!$AI$33=8,'A_WAVE+pelety'!G556,IF('A_WAVE+pelety'!$AI$33=9,'A_WAVE+pelety'!G646,IF('A_WAVE+pelety'!$AI$33=10,'A_WAVE+pelety'!G740,"CHYBA")))))))))) -> 0 | I17: =IF('A_WAVE+pelety'!$AI$33=1,'A_WAVE+pelety'!H40,IF('A_WAVE+pelety'!$AI$33=2,'A_WAVE+pelety'!H100,IF('A_WAVE+pelety'!$AI$33=3,'A_WAVE+pelety'!H166,IF('A_WAVE+pelety'!$AI$33=4,'A_WAVE+pelety'!H236,IF('A_WAVE+pelety'!$AI$33=5,'A_WAVE+pelety'!H310,IF('A_WAVE+pelety'!$AI$33=6,'A_WAVE+pelety'!H388,IF('A_WAVE+pelety'!$AI$33=7,'A_WAVE+pelety'!H470,IF('A_WAVE+pelety'!$AI$33=8,'A_WAVE+pelety'!H556,IF('A_WAVE+pelety'!$AI$33=9,'A_WAVE+pelety'!H646,IF('A_WAVE+pelety'!$AI$33=10,'A_WAVE+pelety'!H740,"CHYBA")))))))))) -> 0 | J17: =IF('A_WAVE+pelety'!$AI$33=1,'A_WAVE+pelety'!I40,IF('A_WAVE+pelety'!$AI$33=2,'A_WAVE+pelety'!I100,IF('A_WAVE+pelety'!$AI$33=3,'A_WAVE+pelety'!I166,IF('A_WAVE+pelety'!$AI$33=4,'A_WAVE+pelety'!I236,IF('A_WAVE+pelety'!$AI$33=5,'A_WAVE+pelety'!I310,IF('A_WAVE+pelety'!$AI$33=6,'A_WAVE+pelety'!I388,IF('A_WAVE+pelety'!$AI$33=7,'A_WAVE+pelety'!I470,IF('A_WAVE+pelety'!$AI$33=8,'A_WAVE+pelety'!I556,IF('A_WAVE+pelety'!$AI$33=9,'A_WAVE+pelety'!I646,IF('A_WAVE+pelety'!$AI$33=10,'A_WAVE+pelety'!I740,"CHYBA")))))))))) -> 0 | K17: =IF('A_WAVE+pelety'!$AI$33=1,'A_WAVE+pelety'!J40,IF('A_WAVE+pelety'!$AI$33=2,'A_WAVE+pelety'!J100,IF('A_WAVE+pelety'!$AI$33=3,'A_WAVE+pelety'!J166,IF('A_WAVE+pelety'!$AI$33=4,'A_WAVE+pelety'!J236,IF('A_WAVE+pelety'!$AI$33=5,'A_WAVE+pelety'!J310,IF('A_WAVE+pelety'!$AI$33=6,'A_WAVE+pelety'!J388,IF('A_WAVE+pelety'!$AI$33=7,'A_WAVE+pelety'!J470,IF('A_WAVE+pelety'!$AI$33=8,'A_WAVE+pelety'!J556,IF('A_WAVE+pelety'!$AI$33=9,'A_WAVE+pelety'!J646,IF('A_WAVE+pelety'!$AI$33=10,'A_WAVE+pelety'!J740,"CHYBA")))))))))) -> 0 | L17: =IF('A_WAVE+pelety'!$AI$33=1,'A_WAVE+pelety'!K40,IF('A_WAVE+pelety'!$AI$33=2,'A_WAVE+pelety'!K100,IF('A_WAVE+pelety'!$AI$33=3,'A_WAVE+pelety'!K166,IF('A_WAVE+pelety'!$AI$33=4,'A_WAVE+pelety'!K236,IF('A_WAVE+pelety'!$AI$33=5,'A_WAVE+pelety'!K310,IF('A_WAVE+pelety'!$AI$33=6,'A_WAVE+pelety'!K388,IF('A_WAVE+pelety'!$AI$33=7,'A_WAVE+pelety'!K470,IF('A_WAVE+pelety'!$AI$33=8,'A_WAVE+pelety'!K556,IF('A_WAVE+pelety'!$AI$33=9,'A_WAVE+pelety'!K646,IF('A_WAVE+pelety'!$AI$33=10,'A_WAVE+pelety'!K740,"CHYBA")))))))))) -> 0 | M17: =IF('A_WAVE+pelety'!$AI$33=1,'A_WAVE+pelety'!L40,IF('A_WAVE+pelety'!$AI$33=2,'A_WAVE+pelety'!L100,IF('A_WAVE+pelety'!$AI$33=3,'A_WAVE+pelety'!L166,IF('A_WAVE+pelety'!$AI$33=4,'A_WAVE+pelety'!L236,IF('A_WAVE+pelety'!$AI$33=5,'A_WAVE+pelety'!L310,IF('A_WAVE+pelety'!$AI$33=6,'A_WAVE+pelety'!L388,IF('A_WAVE+pelety'!$AI$33=7,'A_WAVE+pelety'!L470,IF('A_WAVE+pelety'!$AI$33=8,'A_WAVE+pelety'!L556,IF('A_WAVE+pelety'!$AI$33=9,'A_WAVE+pelety'!L646,IF('A_WAVE+pelety'!$AI$33=10,'A_WAVE+pelety'!L740,"CHYBA")))))))))) -> 0 | N17: =IF('A_WAVE+pelety'!$AI$33=1,'A_WAVE+pelety'!M40,IF('A_WAVE+pelety'!$AI$33=2,'A_WAVE+pelety'!M100,IF('A_WAVE+pelety'!$AI$33=3,'A_WAVE+pelety'!M166,IF('A_WAVE+pelety'!$AI$33=4,'A_WAVE+pelety'!M236,IF('A_WAVE+pelety'!$AI$33=5,'A_WAVE+pelety'!M310,IF('A_WAVE+pelety'!$AI$33=6,'A_WAVE+pelety'!M388,IF('A_WAVE+pelety'!$AI$33=7,'A_WAVE+pelety'!M470,IF('A_WAVE+pelety'!$AI$33=8,'A_WAVE+pelety'!M556,IF('A_WAVE+pelety'!$AI$33=9,'A_WAVE+pelety'!M646,IF('A_WAVE+pelety'!$AI$33=10,'A_WAVE+pelety'!M740,"CHYBA")))))))))) -> 0 | O17: =IF('A_WAVE+pelety'!$AI$33=1,'A_WAVE+pelety'!N40,IF('A_WAVE+pelety'!$AI$33=2,'A_WAVE+pelety'!N100,IF('A_WAVE+pelety'!$AI$33=3,'A_WAVE+pelety'!N166,IF('A_WAVE+pelety'!$AI$33=4,'A_WAVE+pelety'!N236,IF('A_WAVE+pelety'!$AI$33=5,'A_WAVE+pelety'!N310,IF('A_WAVE+pelety'!$AI$33=6,'A_WAVE+pelety'!N388,IF('A_WAVE+pelety'!$AI$33=7,'A_WAVE+pelety'!N470,IF('A_WAVE+pelety'!$AI$33=8,'A_WAVE+pelety'!N556,IF('A_WAVE+pelety'!$AI$33=9,'A_WAVE+pelety'!N646,IF('A_WAVE+pelety'!$AI$33=10,'A_WAVE+pelety'!N740,"CHYBA")))))))))) -> 0 | P17: =IF('A_WAVE+pelety'!$AI$33=1,'A_WAVE+pelety'!O40,IF('A_WAVE+pelety'!$AI$33=2,'A_WAVE+pelety'!O100,IF('A_WAVE+pelety'!$AI$33=3,'A_WAVE+pelety'!O166,IF('A_WAVE+pelety'!$AI$33=4,'A_WAVE+pelety'!O236,IF('A_WAVE+pelety'!$AI$33=5,'A_WAVE+pelety'!O310,IF('A_WAVE+pelety'!$AI$33=6,'A_WAVE+pelety'!O388,IF('A_WAVE+pelety'!$AI$33=7,'A_WAVE+pelety'!O470,IF('A_WAVE+pelety'!$AI$33=8,'A_WAVE+pelety'!O556,IF('A_WAVE+pelety'!$AI$33=9,'A_WAVE+pelety'!O646,IF('A_WAVE+pelety'!$AI$33=10,'A_WAVE+pelety'!O740,"CHYBA")))))))))) -> 0 | Q17: =IF('A_WAVE+pelety'!$AI$33=1,'A_WAVE+pelety'!P40,IF('A_WAVE+pelety'!$AI$33=2,'A_WAVE+pelety'!P100,IF('A_WAVE+pelety'!$AI$33=3,'A_WAVE+pelety'!P166,IF('A_WAVE+pelety'!$AI$33=4,'A_WAVE+pelety'!P236,IF('A_WAVE+pelety'!$AI$33=5,'A_WAVE+pelety'!P310,IF('A_WAVE+pelety'!$AI$33=6,'A_WAVE+pelety'!P388,IF('A_WAVE+pelety'!$AI$33=7,'A_WAVE+pelety'!P470,IF('A_WAVE+pelety'!$AI$33=8,'A_WAVE+pelety'!P556,IF('A_WAVE+pelety'!$AI$33=9,'A_WAVE+pelety'!P646,IF('A_WAVE+pelety'!$AI$33=10,'A_WAVE+pelety'!P740,"CHYBA")))))))))) -> 0 | R17: =IF('A_WAVE+pelety'!$AI$33=1,'A_WAVE+pelety'!Q40,IF('A_WAVE+pelety'!$AI$33=2,'A_WAVE+pelety'!Q100,IF('A_WAVE+pelety'!$AI$33=3,'A_WAVE+pelety'!Q166,IF('A_WAVE+pelety'!$AI$33=4,'A_WAVE+pelety'!Q236,IF('A_WAVE+pelety'!$AI$33=5,'A_WAVE+pelety'!Q310,IF('A_WAVE+pelety'!$AI$33=6,'A_WAVE+pelety'!Q388,IF('A_WAVE+pelety'!$AI$33=7,'A_WAVE+pelety'!Q470,IF('A_WAVE+pelety'!$AI$33=8,'A_WAVE+pelety'!Q556,IF('A_WAVE+pelety'!$AI$33=9,'A_WAVE+pelety'!Q646,IF('A_WAVE+pelety'!$AI$33=10,'A_WAVE+pelety'!Q740,"CHYBA")))))))))) -> 0
A18: Roční produkce tepla | B18: GJ/r | C18: =IF('A_WAVE+pelety'!$AI$33=1,'A_WAVE+pelety'!B41,IF('A_WAVE+pelety'!$AI$33=2,'A_WAVE+pelety'!B101,IF('A_WAVE+pelety'!$AI$33=3,'A_WAVE+pelety'!B167,IF('A_WAVE+pelety'!$AI$33=4,'A_WAVE+pelety'!B237,IF('A_WAVE+pelety'!$AI$33=5,'A_WAVE+pelety'!B311,IF('A_WAVE+pelety'!$AI$33=6,'A_WAVE+pelety'!B389,IF('A_WAVE+pelety'!$AI$33=7,'A_WAVE+pelety'!B471,IF('A_WAVE+pelety'!$AI$33=8,'A_WAVE+pelety'!B557,IF('A_WAVE+pelety'!$AI$33=9,'A_WAVE+pelety'!B647,IF('A_WAVE+pelety'!$AI$33=10,'A_WAVE+pelety'!B741,"CHYBA")))))))))) -> 275.202
A19: Využití instalovaného výkonu | B19: h/r | C19: =IFERROR(C18/3.6*1000/C16,0) -> 449.6764706
B20: % | C20: =100/8760*C19 -> 5.133293043
A21: Odhad investičních nákladů | B21: tis. Kč | C21: =-0.001*IF('A_WAVE+pelety'!$AI$33=1,'A_WAVE+pelety'!B49,IF('A_WAVE+pelety'!$AI$33=2,'A_WAVE+pelety'!B109,IF('A_WAVE+pelety'!$AI$33=3,'A_WAVE+pelety'!B175,IF('A_WAVE+pelety'!$AI$33=4,'A_WAVE+pelety'!B245,IF('A_WAVE+pelety'!$AI$33=5,'A_WAVE+pelety'!B319,IF('A_WAVE+pelety'!$AI$33=6,'A_WAVE+pelety'!B397,IF('A_WAVE+pelety'!$AI$33=7,'A_WAVE+pelety'!B479,IF('A_WAVE+pelety'!$AI$33=8,'A_WAVE+pelety'!B565,IF('A_WAVE+pelety'!$AI$33=9,'A_WAVE+pelety'!B655,IF('A_WAVE+pelety'!$AI$33=10,'A_WAVE+pelety'!B749,"CHYBA")))))))))) -> -2907
A22: Odhad provozních nákladů (nom.hodn.) | B22: tis. Kč/r | C22: =-0.001*IF('A_WAVE+pelety'!$AI$33=1,'A_WAVE+pelety'!D49,IF('A_WAVE+pelety'!$AI$33=2,'A_WAVE+pelety'!D109,IF('A_WAVE+pelety'!$AI$33=3,'A_WAVE+pelety'!D175,IF('A_WAVE+pelety'!$AI$33=4,'A_WAVE+pelety'!D245,IF('A_WAVE+pelety'!$AI$33=5,'A_WAVE+pelety'!D319,IF('A_WAVE+pelety'!$AI$33=6,'A_WAVE+pelety'!D397,IF('A_WAVE+pelety'!$AI$33=7,'A_WAVE+pelety'!D479,IF('A_WAVE+pelety'!$AI$33=8,'A_WAVE+pelety'!D565,IF('A_WAVE+pelety'!$AI$33=9,'A_WAVE+pelety'!D655,IF('A_WAVE+pelety'!$AI$33=10,'A_WAVE+pelety'!D749,"CHYBA")))))))))) -> -88.02346577
A25: Produkce tepla | C25: LEDEN | D25: ÚNOR | E25: BŘEZEN | F25: DUBEN | G25: KVĚTEN | H25: ČERVEN | I25: ČERVENEC | J25: SRPEN | K25: ZÁŘÍ | L25: ŘÍJEN | M25: LISTOPAD | N25: PROSINEC
A26: WAVY celkem | B26: GJ/měsíc | C26: =IF('A_WAVE+pelety'!$AI$33=1,'A_WAVE+pelety'!C64,IF('A_WAVE+pelety'!$AI$33=2,'A_WAVE+pelety'!C128,IF('A_WAVE+pelety'!$AI$33=3,'A_WAVE+pelety'!C197,IF('A_WAVE+pelety'!$AI$33=4,'A_WAVE+pelety'!C270,IF('A_WAVE+pelety'!$AI$33=5,'A_WAVE+pelety'!C347,IF('A_WAVE+pelety'!$AI$33=6,'A_WAVE+pelety'!C428,IF('A_WAVE+pelety'!$AI$33=7,'A_WAVE+pelety'!C513,IF('A_WAVE+pelety'!$AI$33=8,'A_WAVE+pelety'!C602,IF('A_WAVE+pelety'!$AI$33=9,'A_WAVE+pelety'!C695,IF('A_WAVE+pelety'!$AI$33=10,'A_WAVE+pelety'!C792,"CHYBA")))))))))) -> 1252.71 | D26: =IF('A_WAVE+pelety'!$AI$33=1,'A_WAVE+pelety'!D64,IF('A_WAVE+pelety'!$AI$33=2,'A_WAVE+pelety'!D128,IF('A_WAVE+pelety'!$AI$33=3,'A_WAVE+pelety'!D197,IF('A_WAVE+pelety'!$AI$33=4,'A_WAVE+pelety'!D270,IF('A_WAVE+pelety'!$AI$33=5,'A_WAVE+pelety'!D347,IF('A_WAVE+pelety'!$AI$33=6,'A_WAVE+pelety'!D428,IF('A_WAVE+pelety'!$AI$33=7,'A_WAVE+pelety'!D513,IF('A_WAVE+pelety'!$AI$33=8,'A_WAVE+pelety'!D602,IF('A_WAVE+pelety'!$AI$33=9,'A_WAVE+pelety'!D695,IF('A_WAVE+pelety'!$AI$33=10,'A_WAVE+pelety'!D792,"CHYBA")))))))))) -> 1103.9616 | E26: =IF('A_WAVE+pelety'!$AI$33=1,'A_WAVE+pelety'!E64,IF('A_WAVE+pelety'!$AI$33=2,'A_WAVE+pelety'!E128,IF('A_WAVE+pelety'!$AI$33=3,'A_WAVE+pelety'!E197,IF('A_WAVE+pelety'!$AI$33=4,'A_WAVE+pelety'!E270,IF('A_WAVE+pelety'!$AI$33=5,'A_WAVE+pelety'!E347,IF('A_WAVE+pelety'!$AI$33=6,'A_WAVE+pelety'!E428,IF('A_WAVE+pelety'!$AI$33=7,'A_WAVE+pelety'!E513,IF('A_WAVE+pelety'!$AI$33=8,'A_WAVE+pelety'!E602,IF('A_WAVE+pelety'!$AI$33=9,'A_WAVE+pelety'!E695,IF('A_WAVE+pelety'!$AI$33=10,'A_WAVE+pelety'!E792,"CHYBA")))))))))) -> 1099.0368 | F26: =IF('A_WAVE+pelety'!$AI$33=1,'A_WAVE+pelety'!F64,IF('A_WAVE+pelety'!$AI$33=2,'A_WAVE+pelety'!F128,IF('A_WAVE+pelety'!$AI$33=3,'A_WAVE+pelety'!F197,IF('A_WAVE+pelety'!$AI$33=4,'A_WAVE+pelety'!F270,IF('A_WAVE+pelety'!$AI$33=5,'A_WAVE+pelety'!F347,IF('A_WAVE+pelety'!$AI$33=6,'A_WAVE+pelety'!F428,IF('A_WAVE+pelety'!$AI$33=7,'A_WAVE+pelety'!F513,IF('A_WAVE+pelety'!$AI$33=8,'A_WAVE+pelety'!F602,IF('A_WAVE+pelety'!$AI$33=9,'A_WAVE+pelety'!F695,IF('A_WAVE+pelety'!$AI$33=10,'A_WAVE+pelety'!F792,"CHYBA")))))))))) -> 884.52 | G26: =IF('A_WAVE+pelety'!$AI$33=1,'A_WAVE+pelety'!G64,IF('A_WAVE+pelety'!$AI$33=2,'A_WAVE+pelety'!G128,IF('A_WAVE+pelety'!$AI$33=3,'A_WAVE+pelety'!G197,IF('A_WAVE+pelety'!$AI$33=4,'A_WAVE+pelety'!G270,IF('A_WAVE+pelety'!$AI$33=5,'A_WAVE+pelety'!G347,IF('A_WAVE+pelety'!$AI$33=6,'A_WAVE+pelety'!G428,IF('A_WAVE+pelety'!$AI$33=7,'A_WAVE+pelety'!G513,IF('A_WAVE+pelety'!$AI$33=8,'A_WAVE+pelety'!G602,IF('A_WAVE+pelety'!$AI$33=9,'A_WAVE+pelety'!G695,IF('A_WAVE+pelety'!$AI$33=10,'A_WAVE+pelety'!G792,"CHYBA")))))))))) -> 702.0756 | H26: =IF('A_WAVE+pelety'!$AI$33=1,'A_WAVE+pelety'!H64,IF('A_WAVE+pelety'!$AI$33=2,'A_WAVE+pelety'!H128,IF('A_WAVE+pelety'!$AI$33=3,'A_WAVE+pelety'!H197,IF('A_WAVE+pelety'!$AI$33=4,'A_WAVE+pelety'!H270,IF('A_WAVE+pelety'!$AI$33=5,'A_WAVE+pelety'!H347,IF('A_WAVE+pelety'!$AI$33=6,'A_WAVE+pelety'!H428,IF('A_WAVE+pelety'!$AI$33=7,'A_WAVE+pelety'!H513,IF('A_WAVE+pelety'!$AI$33=8,'A_WAVE+pelety'!H602,IF('A_WAVE+pelety'!$AI$33=9,'A_WAVE+pelety'!H695,IF('A_WAVE+pelety'!$AI$33=10,'A_WAVE+pelety'!H792,"CHYBA")))))))))) -> 408.564 | I26: =IF('A_WAVE+pelety'!$AI$33=1,'A_WAVE+pelety'!I64,IF('A_WAVE+pelety'!$AI$33=2,'A_WAVE+pelety'!I128,IF('A_WAVE+pelety'!$AI$33=3,'A_WAVE+pelety'!I197,IF('A_WAVE+pelety'!$AI$33=4,'A_WAVE+pelety'!I270,IF('A_WAVE+pelety'!$AI$33=5,'A_WAVE+pelety'!I347,IF('A_WAVE+pelety'!$AI$33=6,'A_WAVE+pelety'!I428,IF('A_WAVE+pelety'!$AI$33=7,'A_WAVE+pelety'!I513,IF('A_WAVE+pelety'!$AI$33=8,'A_WAVE+pelety'!I602,IF('A_WAVE+pelety'!$AI$33=9,'A_WAVE+pelety'!I695,IF('A_WAVE+pelety'!$AI$33=10,'A_WAVE+pelety'!I792,"CHYBA")))))))))) -> 422.1828 | J26: =IF('A_WAVE+pelety'!$AI$33=1,'A_WAVE+pelety'!J64,IF('A_WAVE+pelety'!$AI$33=2,'A_WAVE+pelety'!J128,IF('A_WAVE+pelety'!$AI$33=3,'A_WAVE+pelety'!J197,IF('A_WAVE+pelety'!$AI$33=4,'A_WAVE+pelety'!J270,IF('A_WAVE+pelety'!$AI$33=5,'A_WAVE+pelety'!J347,IF('A_WAVE+pelety'!$AI$33=6,'A_WAVE+pelety'!J428,IF('A_WAVE+pelety'!$AI$33=7,'A_WAVE+pelety'!J513,IF('A_WAVE+pelety'!$AI$33=8,'A_WAVE+pelety'!J602,IF('A_WAVE+pelety'!$AI$33=9,'A_WAVE+pelety'!J695,IF('A_WAVE+pelety'!$AI$33=10,'A_WAVE+pelety'!J792,"CHYBA")))))))))) -> 422.1828 | K26: =IF('A_WAVE+pelety'!$AI$33=1,'A_WAVE+pelety'!K64,IF('A_WAVE+pelety'!$AI$33=2,'A_WAVE+pelety'!K128,IF('A_WAVE+pelety'!$AI$33=3,'A_WAVE+pelety'!K197,IF('A_WAVE+pelety'!$AI$33=4,'A_WAVE+pelety'!K270,IF('A_WAVE+pelety'!$AI$33=5,'A_WAVE+pelety'!K347,IF('A_WAVE+pelety'!$AI$33=6,'A_WAVE+pelety'!K428,IF('A_WAVE+pelety'!$AI$33=7,'A_WAVE+pelety'!K513,IF('A_WAVE+pelety'!$AI$33=8,'A_WAVE+pelety'!K602,IF('A_WAVE+pelety'!$AI$33=9,'A_WAVE+pelety'!K695,IF('A_WAVE+pelety'!$AI$33=10,'A_WAVE+pelety'!K792,"CHYBA")))))))))) -> 686.016 | L26: =IF('A_WAVE+pelety'!$AI$33=1,'A_WAVE+pelety'!L64,IF('A_WAVE+pelety'!$AI$33=2,'A_WAVE+pelety'!L128,IF('A_WAVE+pelety'!$AI$33=3,'A_WAVE+pelety'!L197,IF('A_WAVE+pelety'!$AI$33=4,'A_WAVE+pelety'!L270,IF('A_WAVE+pelety'!$AI$33=5,'A_WAVE+pelety'!L347,IF('A_WAVE+pelety'!$AI$33=6,'A_WAVE+pelety'!L428,IF('A_WAVE+pelety'!$AI$33=7,'A_WAVE+pelety'!L513,IF('A_WAVE+pelety'!$AI$33=8,'A_WAVE+pelety'!L602,IF('A_WAVE+pelety'!$AI$33=9,'A_WAVE+pelety'!L695,IF('A_WAVE+pelety'!$AI$33=10,'A_WAVE+pelety'!L792,"CHYBA")))))))))) -> 909.9864 | M26: =IF('A_WAVE+pelety'!$AI$33=1,'A_WAVE+pelety'!M64,IF('A_WAVE+pelety'!$AI$33=2,'A_WAVE+pelety'!M128,IF('A_WAVE+pelety'!$AI$33=3,'A_WAVE+pelety'!M197,IF('A_WAVE+pelety'!$AI$33=4,'A_WAVE+pelety'!M270,IF('A_WAVE+pelety'!$AI$33=5,'A_WAVE+pelety'!M347,IF('A_WAVE+pelety'!$AI$33=6,'A_WAVE+pelety'!M428,IF('A_WAVE+pelety'!$AI$33=7,'A_WAVE+pelety'!M513,IF('A_WAVE+pelety'!$AI$33=8,'A_WAVE+pelety'!M602,IF('A_WAVE+pelety'!$AI$33=9,'A_WAVE+pelety'!M695,IF('A_WAVE+pelety'!$AI$33=10,'A_WAVE+pelety'!M792,"CHYBA")))))))))) -> 1072.548 | N26: =IF('A_WAVE+pelety'!$AI$33=1,'A_WAVE+pelety'!N64,IF('A_WAVE+pelety'!$AI$33=2,'A_WAVE+pelety'!N128,IF('A_WAVE+pelety'!$AI$33=3,'A_WAVE+pelety'!N197,IF('A_WAVE+pelety'!$AI$33=4,'A_WAVE+pelety'!N270,IF('A_WAVE+pelety'!$AI$33=5,'A_WAVE+pelety'!N347,IF('A_WAVE+pelety'!$AI$33=6,'A_WAVE+pelety'!N428,IF('A_WAVE+pelety'!$AI$33=7,'A_WAVE+pelety'!N513,IF('A_WAVE+pelety'!$AI$33=8,'A_WAVE+pelety'!N602,IF('A_WAVE+pelety'!$AI$33=9,'A_WAVE+pelety'!N695,IF('A_WAVE+pelety'!$AI$33=10,'A_WAVE+pelety'!N792,"CHYBA")))))))))) -> 1219.1184
A27: Kotle celkem | B27: GJ/měsíc | C27: =IF('A_WAVE+pelety'!$AI$33=1,'A_WAVE+pelety'!C67,IF('A_WAVE+pelety'!$AI$33=2,'A_WAVE+pelety'!C131,IF('A_WAVE+pelety'!$AI$33=3,'A_WAVE+pelety'!C200,IF('A_WAVE+pelety'!$AI$33=4,'A_WAVE+pelety'!C273,IF('A_WAVE+pelety'!$AI$33=5,'A_WAVE+pelety'!C350,IF('A_WAVE+pelety'!$AI$33=6,'A_WAVE+pelety'!C431,IF('A_WAVE+pelety'!$AI$33=7,'A_WAVE+pelety'!C516,IF('A_WAVE+pelety'!$AI$33=8,'A_WAVE+pelety'!C605,IF('A_WAVE+pelety'!$AI$33=9,'A_WAVE+pelety'!C698,IF('A_WAVE+pelety'!$AI$33=10,'A_WAVE+pelety'!C795,"CHYBA")))))))))) -> 62.496 | D27: =IF('A_WAVE+pelety'!$AI$33=1,'A_WAVE+pelety'!D67,IF('A_WAVE+pelety'!$AI$33=2,'A_WAVE+pelety'!D131,IF('A_WAVE+pelety'!$AI$33=3,'A_WAVE+pelety'!D200,IF('A_WAVE+pelety'!$AI$33=4,'A_WAVE+pelety'!D273,IF('A_WAVE+pelety'!$AI$33=5,'A_WAVE+pelety'!D350,IF('A_WAVE+pelety'!$AI$33=6,'A_WAVE+pelety'!D431,IF('A_WAVE+pelety'!$AI$33=7,'A_WAVE+pelety'!D516,IF('A_WAVE+pelety'!$AI$33=8,'A_WAVE+pelety'!D605,IF('A_WAVE+pelety'!$AI$33=9,'A_WAVE+pelety'!D698,IF('A_WAVE+pelety'!$AI$33=10,'A_WAVE+pelety'!D795,"CHYBA")))))))))) -> 47.1744 | E27: =IF('A_WAVE+pelety'!$AI$33=1,'A_WAVE+pelety'!E67,IF('A_WAVE+pelety'!$AI$33=2,'A_WAVE+pelety'!E131,IF('A_WAVE+pelety'!$AI$33=3,'A_WAVE+pelety'!E200,IF('A_WAVE+pelety'!$AI$33=4,'A_WAVE+pelety'!E273,IF('A_WAVE+pelety'!$AI$33=5,'A_WAVE+pelety'!E350,IF('A_WAVE+pelety'!$AI$33=6,'A_WAVE+pelety'!E431,IF('A_WAVE+pelety'!$AI$33=7,'A_WAVE+pelety'!E516,IF('A_WAVE+pelety'!$AI$33=8,'A_WAVE+pelety'!E605,IF('A_WAVE+pelety'!$AI$33=9,'A_WAVE+pelety'!E698,IF('A_WAVE+pelety'!$AI$33=10,'A_WAVE+pelety'!E795,"CHYBA")))))))))) -> 15.624 | F27: =IF('A_WAVE+pelety'!$AI$33=1,'A_WAVE+pelety'!F67,IF('A_WAVE+pelety'!$AI$33=2,'A_WAVE+pelety'!F131,IF('A_WAVE+pelety'!$AI$33=3,'A_WAVE+pelety'!F200,IF('A_WAVE+pelety'!$AI$33=4,'A_WAVE+pelety'!F273,IF('A_WAVE+pelety'!$AI$33=5,'A_WAVE+pelety'!F350,IF('A_WAVE+pelety'!$AI$33=6,'A_WAVE+pelety'!F431,IF('A_WAVE+pelety'!$AI$33=7,'A_WAVE+pelety'!F516,IF('A_WAVE+pelety'!$AI$33=8,'A_WAVE+pelety'!F605,IF('A_WAVE+pelety'!$AI$33=9,'A_WAVE+pelety'!F698,IF('A_WAVE+pelety'!$AI$33=10,'A_WAVE+pelety'!F795,"CHYBA")))))))))) -> 0 | G27: =IF('A_WAVE+pelety'!$AI$33=1,'A_WAVE+pelety'!G67,IF('A_WAVE+pelety'!$AI$33=2,'A_WAVE+pelety'!G131,IF('A_WAVE+pelety'!$AI$33=3,'A_WAVE+pelety'!G200,IF('A_WAVE+pelety'!$AI$33=4,'A_WAVE+pelety'!G273,IF('A_WAVE+pelety'!$AI$33=5,'A_WAVE+pelety'!G350,IF('A_WAVE+pelety'!$AI$33=6,'A_WAVE+pelety'!G431,IF('A_WAVE+pelety'!$AI$33=7,'A_WAVE+pelety'!G516,IF('A_WAVE+pelety'!$AI$33=8,'A_WAVE+pelety'!G605,IF('A_WAVE+pelety'!$AI$33=9,'A_WAVE+pelety'!G698,IF('A_WAVE+pelety'!$AI$33=10,'A_WAVE+pelety'!G795,"CHYBA")))))))))) -> 3.0132 | H27: =IF('A_WAVE+pelety'!$AI$33=1,'A_WAVE+pelety'!H67,IF('A_WAVE+pelety'!$AI$33=2,'A_WAVE+pelety'!H131,IF('A_WAVE+pelety'!$AI$33=3,'A_WAVE+pelety'!H200,IF('A_WAVE+pelety'!$AI$33=4,'A_WAVE+pelety'!H273,IF('A_WAVE+pelety'!$AI$33=5,'A_WAVE+pelety'!H350,IF('A_WAVE+pelety'!$AI$33=6,'A_WAVE+pelety'!H431,IF('A_WAVE+pelety'!$AI$33=7,'A_WAVE+pelety'!H516,IF('A_WAVE+pelety'!$AI$33=8,'A_WAVE+pelety'!H605,IF('A_WAVE+pelety'!$AI$33=9,'A_WAVE+pelety'!H698,IF('A_WAVE+pelety'!$AI$33=10,'A_WAVE+pelety'!H795,"CHYBA")))))))))) -> 23.976 | I27: =IF('A_WAVE+pelety'!$AI$33=1,'A_WAVE+pelety'!I67,IF('A_WAVE+pelety'!$AI$33=2,'A_WAVE+pelety'!I131,IF('A_WAVE+pelety'!$AI$33=3,'A_WAVE+pelety'!I200,IF('A_WAVE+pelety'!$AI$33=4,'A_WAVE+pelety'!I273,IF('A_WAVE+pelety'!$AI$33=5,'A_WAVE+pelety'!I350,IF('A_WAVE+pelety'!$AI$33=6,'A_WAVE+pelety'!I431,IF('A_WAVE+pelety'!$AI$33=7,'A_WAVE+pelety'!I516,IF('A_WAVE+pelety'!$AI$33=8,'A_WAVE+pelety'!I605,IF('A_WAVE+pelety'!$AI$33=9,'A_WAVE+pelety'!I698,IF('A_WAVE+pelety'!$AI$33=10,'A_WAVE+pelety'!I795,"CHYBA")))))))))) -> 24.7752 | J27: =IF('A_WAVE+pelety'!$AI$33=1,'A_WAVE+pelety'!J67,IF('A_WAVE+pelety'!$AI$33=2,'A_WAVE+pelety'!J131,IF('A_WAVE+pelety'!$AI$33=3,'A_WAVE+pelety'!J200,IF('A_WAVE+pelety'!$AI$33=4,'A_WAVE+pelety'!J273,IF('A_WAVE+pelety'!$AI$33=5,'A_WAVE+pelety'!J350,IF('A_WAVE+pelety'!$AI$33=6,'A_WAVE+pelety'!J431,IF('A_WAVE+pelety'!$AI$33=7,'A_WAVE+pelety'!J516,IF('A_WAVE+pelety'!$AI$33=8,'A_WAVE+pelety'!J605,IF('A_WAVE+pelety'!$AI$33=9,'A_WAVE+pelety'!J698,IF('A_WAVE+pelety'!$AI$33=10,'A_WAVE+pelety'!J795,"CHYBA")))))))))) -> 24.7752 | K27: =IF('A_WAVE+pelety'!$AI$33=1,'A_WAVE+pelety'!K67,IF('A_WAVE+pelety'!$AI$33=2,'A_WAVE+pelety'!K131,IF('A_WAVE+pelety'!$AI$33=3,'A_WAVE+pelety'!K200,IF('A_WAVE+pelety'!$AI$33=4,'A_WAVE+pelety'!K273,IF('A_WAVE+pelety'!$AI$33=5,'A_WAVE+pelety'!K350,IF('A_WAVE+pelety'!$AI$33=6,'A_WAVE+pelety'!K431,IF('A_WAVE+pelety'!$AI$33=7,'A_WAVE+pelety'!K516,IF('A_WAVE+pelety'!$AI$33=8,'A_WAVE+pelety'!K605,IF('A_WAVE+pelety'!$AI$33=9,'A_WAVE+pelety'!K698,IF('A_WAVE+pelety'!$AI$33=10,'A_WAVE+pelety'!K795,"CHYBA")))))))))) -> 4.104 | L27: =IF('A_WAVE+pelety'!$AI$33=1,'A_WAVE+pelety'!L67,IF('A_WAVE+pelety'!$AI$33=2,'A_WAVE+pelety'!L131,IF('A_WAVE+pelety'!$AI$33=3,'A_WAVE+pelety'!L200,IF('A_WAVE+pelety'!$AI$33=4,'A_WAVE+pelety'!L273,IF('A_WAVE+pelety'!$AI$33=5,'A_WAVE+pelety'!L350,IF('A_WAVE+pelety'!$AI$33=6,'A_WAVE+pelety'!L431,IF('A_WAVE+pelety'!$AI$33=7,'A_WAVE+pelety'!L516,IF('A_WAVE+pelety'!$AI$33=8,'A_WAVE+pelety'!L605,IF('A_WAVE+pelety'!$AI$33=9,'A_WAVE+pelety'!L698,IF('A_WAVE+pelety'!$AI$33=10,'A_WAVE+pelety'!L795,"CHYBA")))))))))) -> 0 | M27: =IF('A_WAVE+pelety'!$AI$33=1,'A_WAVE+pelety'!M67,IF('A_WAVE+pelety'!$AI$33=2,'A_WAVE+pelety'!M131,IF('A_WAVE+pelety'!$AI$33=3,'A_WAVE+pelety'!M200,IF('A_WAVE+pelety'!$AI$33=4,'A_WAVE+pelety'!M273,IF('A_WAVE+pelety'!$AI$33=5,'A_WAVE+pelety'!M350,IF('A_WAVE+pelety'!$AI$33=6,'A_WAVE+pelety'!M431,IF('A_WAVE+pelety'!$AI$33=7,'A_WAVE+pelety'!M516,IF('A_WAVE+pelety'!$AI$33=8,'A_WAVE+pelety'!M605,IF('A_WAVE+pelety'!$AI$33=9,'A_WAVE+pelety'!M698,IF('A_WAVE+pelety'!$AI$33=10,'A_WAVE+pelety'!M795,"CHYBA")))))))))) -> 17.928 | N27: =IF('A_WAVE+pelety'!$AI$33=1,'A_WAVE+pelety'!N67,IF('A_WAVE+pelety'!$AI$33=2,'A_WAVE+pelety'!N131,IF('A_WAVE+pelety'!$AI$33=3,'A_WAVE+pelety'!N200,IF('A_WAVE+pelety'!$AI$33=4,'A_WAVE+pelety'!N273,IF('A_WAVE+pelety'!$AI$33=5,'A_WAVE+pelety'!N350,IF('A_WAVE+pelety'!$AI$33=6,'A_WAVE+pelety'!N431,IF('A_WAVE+pelety'!$AI$33=7,'A_WAVE+pelety'!N516,IF('A_WAVE+pelety'!$AI$33=8,'A_WAVE+pelety'!N605,IF('A_WAVE+pelety'!$AI$33=9,'A_WAVE+pelety'!N698,IF('A_WAVE+pelety'!$AI$33=10,'A_WAVE+pelety'!N795,"CHYBA")))))))))) -> 51.336
A28: CELKEM | B28: GJ/měsíc | C28: =C27+C26 -> 1315.206 | D28: =D27+D26 -> 1151.136 | E28: =E27+E26 -> 1114.6608 | F28: =F27+F26 -> 884.52 | G28: =G27+G26 -> 705.0888 | H28: =H27+H26 -> 432.54 | I28: =I27+I26 -> 446.958 | J28: =J27+J26 -> 446.958 | K28: =K27+K26 -> 690.12 | L28: =L27+L26 -> 909.9864 | M28: =M27+M26 -> 1090.476 | N28: =N27+N26 -> 1270.4544 | O28: =SUM(C28:N28) -> 10458.1044 | P28: GJ/rok
A30: Využití instalovaného výkonu | C30: LEDEN | D30: ÚNOR | E30: BŘEZEN | F30: DUBEN | G30: KVĚTEN | H30: ČERVEN | I30: ČERVENEC | J30: SRPEN | K30: ZÁŘÍ | L30: ŘÍJEN | M30: LISTOPAD | N30: PROSINEC
A31: WAVY celkem | B31: h/měsíc | C31: =IF('A_WAVE+pelety'!$AI$33=1,'A_WAVE+pelety'!C68,IF('A_WAVE+pelety'!$AI$33=2,'A_WAVE+pelety'!C134,IF('A_WAVE+pelety'!$AI$33=3,'A_WAVE+pelety'!C204,IF('A_WAVE+pelety'!$AI$33=4,'A_WAVE+pelety'!C278,IF('A_WAVE+pelety'!$AI$33=5,'A_WAVE+pelety'!C356,IF('A_WAVE+pelety'!$AI$33=6,'A_WAVE+pelety'!C438,IF('A_WAVE+pelety'!$AI$33=7,'A_WAVE+pelety'!C524,IF('A_WAVE+pelety'!$AI$33=8,'A_WAVE+pelety'!C614,IF('A_WAVE+pelety'!$AI$33=9,'A_WAVE+pelety'!C708,IF('A_WAVE+pelety'!$AI$33=10,'A_WAVE+pelety'!C806,"CHYBA")))))))))) -> 579.9583333 | D31: =IF('A_WAVE+pelety'!$AI$33=1,'A_WAVE+pelety'!D68,IF('A_WAVE+pelety'!$AI$33=2,'A_WAVE+pelety'!D134,IF('A_WAVE+pelety'!$AI$33=3,'A_WAVE+pelety'!D204,IF('A_WAVE+pelety'!$AI$33=4,'A_WAVE+pelety'!D278,IF('A_WAVE+pelety'!$AI$33=5,'A_WAVE+pelety'!D356,IF('A_WAVE+pelety'!$AI$33=6,'A_WAVE+pelety'!D438,IF('A_WAVE+pelety'!$AI$33=7,'A_WAVE+pelety'!D524,IF('A_WAVE+pelety'!$AI$33=8,'A_WAVE+pelety'!D614,IF('A_WAVE+pelety'!$AI$33=9,'A_WAVE+pelety'!D708,IF('A_WAVE+pelety'!$AI$33=10,'A_WAVE+pelety'!D806,"CHYBA")))))))))) -> 511.0933333 | E31: =IF('A_WAVE+pelety'!$AI$33=1,'A_WAVE+pelety'!E68,IF('A_WAVE+pelety'!$AI$33=2,'A_WAVE+pelety'!E134,IF('A_WAVE+pelety'!$AI$33=3,'A_WAVE+pelety'!E204,IF('A_WAVE+pelety'!$AI$33=4,'A_WAVE+pelety'!E278,IF('A_WAVE+pelety'!$AI$33=5,'A_WAVE+pelety'!E356,IF('A_WAVE+pelety'!$AI$33=6,'A_WAVE+pelety'!E438,IF('A_WAVE+pelety'!$AI$33=7,'A_WAVE+pelety'!E524,IF('A_WAVE+pelety'!$AI$33=8,'A_WAVE+pelety'!E614,IF('A_WAVE+pelety'!$AI$33=9,'A_WAVE+pelety'!E708,IF('A_WAVE+pelety'!$AI$33=10,'A_WAVE+pelety'!E806,"CHYBA")))))))))) -> 508.8133333 | F31: =IF('A_WAVE+pelety'!$AI$33=1,'A_WAVE+pelety'!F68,IF('A_WAVE+pelety'!$AI$33=2,'A_WAVE+pelety'!F134,IF('A_WAVE+pelety'!$AI$33=3,'A_WAVE+pelety'!F204,IF('A_WAVE+pelety'!$AI$33=4,'A_WAVE+pelety'!F278,IF('A_WAVE+pelety'!$AI$33=5,'A_WAVE+pelety'!F356,IF('A_WAVE+pelety'!$AI$33=6,'A_WAVE+pelety'!F438,IF('A_WAVE+pelety'!$AI$33=7,'A_WAVE+pelety'!F524,IF('A_WAVE+pelety'!$AI$33=8,'A_WAVE+pelety'!F614,IF('A_WAVE+pelety'!$AI$33=9,'A_WAVE+pelety'!F708,IF('A_WAVE+pelety'!$AI$33=10,'A_WAVE+pelety'!F806,"CHYBA")))))))))) -> 409.5 | G31: =IF('A_WAVE+pelety'!$AI$33=1,'A_WAVE+pelety'!G68,IF('A_WAVE+pelety'!$AI$33=2,'A_WAVE+pelety'!G134,IF('A_WAVE+pelety'!$AI$33=3,'A_WAVE+pelety'!G204,IF('A_WAVE+pelety'!$AI$33=4,'A_WAVE+pelety'!G278,IF('A_WAVE+pelety'!$AI$33=5,'A_WAVE+pelety'!G356,IF('A_WAVE+pelety'!$AI$33=6,'A_WAVE+pelety'!G438,IF('A_WAVE+pelety'!$AI$33=7,'A_WAVE+pelety'!G524,IF('A_WAVE+pelety'!$AI$33=8,'A_WAVE+pelety'!G614,IF('A_WAVE+pelety'!$AI$33=9,'A_WAVE+pelety'!G708,IF('A_WAVE+pelety'!$AI$33=10,'A_WAVE+pelety'!G806,"CHYBA")))))))))) -> 325.035 | H31: =IF('A_WAVE+pelety'!$AI$33=1,'A_WAVE+pelety'!H68,IF('A_WAVE+pelety'!$AI$33=2,'A_WAVE+pelety'!H134,IF('A_WAVE+pelety'!$AI$33=3,'A_WAVE+pelety'!H204,IF('A_WAVE+pelety'!$AI$33=4,'A_WAVE+pelety'!H278,IF('A_WAVE+pelety'!$AI$33=5,'A_WAVE+pelety'!H356,IF('A_WAVE+pelety'!$AI$33=6,'A_WAVE+pelety'!H438,IF('A_WAVE+pelety'!$AI$33=7,'A_WAVE+pelety'!H524,IF('A_WAVE+pelety'!$AI$33=8,'A_WAVE+pelety'!H614,IF('A_WAVE+pelety'!$AI$33=9,'A_WAVE+pelety'!H708,IF('A_WAVE+pelety'!$AI$33=10,'A_WAVE+pelety'!H806,"CHYBA")))))))))) -> 189.15 | I31: =IF('A_WAVE+pelety'!$AI$33=1,'A_WAVE+pelety'!I68,IF('A_WAVE+pelety'!$AI$33=2,'A_WAVE+pelety'!I134,IF('A_WAVE+pelety'!$AI$33=3,'A_WAVE+pelety'!I204,IF('A_WAVE+pelety'!$AI$33=4,'A_WAVE+pelety'!I278,IF('A_WAVE+pelety'!$AI$33=5,'A_WAVE+pelety'!I356,IF('A_WAVE+pelety'!$AI$33=6,'A_WAVE+pelety'!I438,IF('A_WAVE+pelety'!$AI$33=7,'A_WAVE+pelety'!I524,IF('A_WAVE+pelety'!$AI$33=8,'A_WAVE+pelety'!I614,IF('A_WAVE+pelety'!$AI$33=9,'A_WAVE+pelety'!I708,IF('A_WAVE+pelety'!$AI$33=10,'A_WAVE+pelety'!I806,"CHYBA")))))))))) -> 195.455 | J31: =IF('A_WAVE+pelety'!$AI$33=1,'A_WAVE+pelety'!J68,IF('A_WAVE+pelety'!$AI$33=2,'A_WAVE+pelety'!J134,IF('A_WAVE+pelety'!$AI$33=3,'A_WAVE+pelety'!J204,IF('A_WAVE+pelety'!$AI$33=4,'A_WAVE+pelety'!J278,IF('A_WAVE+pelety'!$AI$33=5,'A_WAVE+pelety'!J356,IF('A_WAVE+pelety'!$AI$33=6,'A_WAVE+pelety'!J438,IF('A_WAVE+pelety'!$AI$33=7,'A_WAVE+pelety'!J524,IF('A_WAVE+pelety'!$AI$33=8,'A_WAVE+pelety'!J614,IF('A_WAVE+pelety'!$AI$33=9,'A_WAVE+pelety'!J708,IF('A_WAVE+pelety'!$AI$33=10,'A_WAVE+pelety'!J806,"CHYBA")))))))))) -> 195.455 | K31: =IF('A_WAVE+pelety'!$AI$33=1,'A_WAVE+pelety'!K68,IF('A_WAVE+pelety'!$AI$33=2,'A_WAVE+pelety'!K134,IF('A_WAVE+pelety'!$AI$33=3,'A_WAVE+pelety'!K204,IF('A_WAVE+pelety'!$AI$33=4,'A_WAVE+pelety'!K278,IF('A_WAVE+pelety'!$AI$33=5,'A_WAVE+pelety'!K356,IF('A_WAVE+pelety'!$AI$33=6,'A_WAVE+pelety'!K438,IF('A_WAVE+pelety'!$AI$33=7,'A_WAVE+pelety'!K524,IF('A_WAVE+pelety'!$AI$33=8,'A_WAVE+pelety'!K614,IF('A_WAVE+pelety'!$AI$33=9,'A_WAVE+pelety'!K708,IF('A_WAVE+pelety'!$AI$33=10,'A_WAVE+pelety'!K806,"CHYBA")))))))))) -> 317.6 | L31: =IF('A_WAVE+pelety'!$AI$33=1,'A_WAVE+pelety'!L68,IF('A_WAVE+pelety'!$AI$33=2,'A_WAVE+pelety'!L134,IF('A_WAVE+pelety'!$AI$33=3,'A_WAVE+pelety'!L204,IF('A_WAVE+pelety'!$AI$33=4,'A_WAVE+pelety'!L278,IF('A_WAVE+pelety'!$AI$33=5,'A_WAVE+pelety'!L356,IF('A_WAVE+pelety'!$AI$33=6,'A_WAVE+pelety'!L438,IF('A_WAVE+pelety'!$AI$33=7,'A_WAVE+pelety'!L524,IF('A_WAVE+pelety'!$AI$33=8,'A_WAVE+pelety'!L614,IF('A_WAVE+pelety'!$AI$33=9,'A_WAVE+pelety'!L708,IF('A_WAVE+pelety'!$AI$33=10,'A_WAVE+pelety'!L806,"CHYBA")))))))))) -> 421.29 | M31: =IF('A_WAVE+pelety'!$AI$33=1,'A_WAVE+pelety'!M68,IF('A_WAVE+pelety'!$AI$33=2,'A_WAVE+pelety'!M134,IF('A_WAVE+pelety'!$AI$33=3,'A_WAVE+pelety'!M204,IF('A_WAVE+pelety'!$AI$33=4,'A_WAVE+pelety'!M278,IF('A_WAVE+pelety'!$AI$33=5,'A_WAVE+pelety'!M356,IF('A_WAVE+pelety'!$AI$33=6,'A_WAVE+pelety'!M438,IF('A_WAVE+pelety'!$AI$33=7,'A_WAVE+pelety'!M524,IF('A_WAVE+pelety'!$AI$33=8,'A_WAVE+pelety'!M614,IF('A_WAVE+pelety'!$AI$33=9,'A_WAVE+pelety'!M708,IF('A_WAVE+pelety'!$AI$33=10,'A_WAVE+pelety'!M806,"CHYBA")))))))))) -> 496.55 | N31: =IF('A_WAVE+pelety'!$AI$33=1,'A_WAVE+pelety'!N68,IF('A_WAVE+pelety'!$AI$33=2,'A_WAVE+pelety'!N134,IF('A_WAVE+pelety'!$AI$33=3,'A_WAVE+pelety'!N204,IF('A_WAVE+pelety'!$AI$33=4,'A_WAVE+pelety'!N278,IF('A_WAVE+pelety'!$AI$33=5,'A_WAVE+pelety'!N356,IF('A_WAVE+pelety'!$AI$33=6,'A_WAVE+pelety'!N438,IF('A_WAVE+pelety'!$AI$33=7,'A_WAVE+pelety'!N524,IF('A_WAVE+pelety'!$AI$33=8,'A_WAVE+pelety'!N614,IF('A_WAVE+pelety'!$AI$33=9,'A_WAVE+pelety'!N708,IF('A_WAVE+pelety'!$AI$33=10,'A_WAVE+pelety'!N806,"CHYBA")))))))))) -> 564.4066667
B32: % | C32: =100/(24*'A_WAVE+pelety'!C$13)*C31 -> 77.95138889 | D32: =100/(24*'A_WAVE+pelety'!D13)*D31 -> 76.05555556 | E32: =100/(24*'A_WAVE+pelety'!E13)*E31 -> 68.38888889 | F32: =100/(24*'A_WAVE+pelety'!F13)*F31 -> 56.875 | G32: =100/(24*'A_WAVE+pelety'!G13)*G31 -> 43.6875 | H32: =100/(24*'A_WAVE+pelety'!H13)*H31 -> 26.27083333 | I32: =100/(24*'A_WAVE+pelety'!I13)*I31 -> 26.27083333 | J32: =100/(24*'A_WAVE+pelety'!J13)*J31 -> 26.27083333 | K32: =100/(24*'A_WAVE+pelety'!K13)*K31 -> 44.11111111 | L32: =100/(24*'A_WAVE+pelety'!L13)*L31 -> 56.625 | M32: =100/(24*'A_WAVE+pelety'!M13)*M31 -> 68.96527778 | N32: =100/(24*'A_WAVE+pelety'!N13)*N31 -> 75.86111111
A33: Kotle celkem | B33: h/měsíc | C33: =IF('A_WAVE+pelety'!$AI$33=1,'A_WAVE+pelety'!C71,IF('A_WAVE+pelety'!$AI$33=2,'A_WAVE+pelety'!C137,IF('A_WAVE+pelety'!$AI$33=3,'A_WAVE+pelety'!C207,IF('A_WAVE+pelety'!$AI$33=4,'A_WAVE+pelety'!C281,IF('A_WAVE+pelety'!$AI$33=5,'A_WAVE+pelety'!C359,IF('A_WAVE+pelety'!$AI$33=6,'A_WAVE+pelety'!C441,IF('A_WAVE+pelety'!$AI$33=7,'A_WAVE+pelety'!C527,IF('A_WAVE+pelety'!$AI$33=8,'A_WAVE+pelety'!C617,IF('A_WAVE+pelety'!$AI$33=9,'A_WAVE+pelety'!C711,IF('A_WAVE+pelety'!$AI$33=10,'A_WAVE+pelety'!C809,"CHYBA")))))))))) -> 102.1176471 | D33: =IF('A_WAVE+pelety'!$AI$33=1,'A_WAVE+pelety'!D71,IF('A_WAVE+pelety'!$AI$33=2,'A_WAVE+pelety'!D137,IF('A_WAVE+pelety'!$AI$33=3,'A_WAVE+pelety'!D207,IF('A_WAVE+pelety'!$AI$33=4,'A_WAVE+pelety'!D281,IF('A_WAVE+pelety'!$AI$33=5,'A_WAVE+pelety'!D359,IF('A_WAVE+pelety'!$AI$33=6,'A_WAVE+pelety'!D441,IF('A_WAVE+pelety'!$AI$33=7,'A_WAVE+pelety'!D527,IF('A_WAVE+pelety'!$AI$33=8,'A_WAVE+pelety'!D617,IF('A_WAVE+pelety'!$AI$33=9,'A_WAVE+pelety'!D711,IF('A_WAVE+pelety'!$AI$33=10,'A_WAVE+pelety'!D809,"CHYBA")))))))))) -> 77.08235294 | E33: =IF('A_WAVE+pelety'!$AI$33=1,'A_WAVE+pelety'!E71,IF('A_WAVE+pelety'!$AI$33=2,'A_WAVE+pelety'!E137,IF('A_WAVE+pelety'!$AI$33=3,'A_WAVE+pelety'!E207,IF('A_WAVE+pelety'!$AI$33=4,'A_WAVE+pelety'!E281,IF('A_WAVE+pelety'!$AI$33=5,'A_WAVE+pelety'!E359,IF('A_WAVE+pelety'!$AI$33=6,'A_WAVE+pelety'!E441,IF('A_WAVE+pelety'!$AI$33=7,'A_WAVE+pelety'!E527,IF('A_WAVE+pelety'!$AI$33=8,'A_WAVE+pelety'!E617,IF('A_WAVE+pelety'!$AI$33=9,'A_WAVE+pelety'!E711,IF('A_WAVE+pelety'!$AI$33=10,'A_WAVE+pelety'!E809,"CHYBA")))))))))) -> 25.52941176 | F33: =IF('A_WAVE+pelety'!$AI$33=1,'A_WAVE+pelety'!F71,IF('A_WAVE+pelety'!$AI$33=2,'A_WAVE+pelety'!F137,IF('A_WAVE+pelety'!$AI$33=3,'A_WAVE+pelety'!F207,IF('A_WAVE+pelety'!$AI$33=4,'A_WAVE+pelety'!F281,IF('A_WAVE+pelety'!$AI$33=5,'A_WAVE+pelety'!F359,IF('A_WAVE+pelety'!$AI$33=6,'A_WAVE+pelety'!F441,IF('A_WAVE+pelety'!$AI$33=7,'A_WAVE+pelety'!F527,IF('A_WAVE+pelety'!$AI$33=8,'A_WAVE+pelety'!F617,IF('A_WAVE+pelety'!$AI$33=9,'A_WAVE+pelety'!F711,IF('A_WAVE+pelety'!$AI$33=10,'A_WAVE+pelety'!F809,"CHYBA")))))))))) -> 0 | G33: =IF('A_WAVE+pelety'!$AI$33=1,'A_WAVE+pelety'!G71,IF('A_WAVE+pelety'!$AI$33=2,'A_WAVE+pelety'!G137,IF('A_WAVE+pelety'!$AI$33=3,'A_WAVE+pelety'!G207,IF('A_WAVE+pelety'!$AI$33=4,'A_WAVE+pelety'!G281,IF('A_WAVE+pelety'!$AI$33=5,'A_WAVE+pelety'!G359,IF('A_WAVE+pelety'!$AI$33=6,'A_WAVE+pelety'!G441,IF('A_WAVE+pelety'!$AI$33=7,'A_WAVE+pelety'!G527,IF('A_WAVE+pelety'!$AI$33=8,'A_WAVE+pelety'!G617,IF('A_WAVE+pelety'!$AI$33=9,'A_WAVE+pelety'!G711,IF('A_WAVE+pelety'!$AI$33=10,'A_WAVE+pelety'!G809,"CHYBA")))))))))) -> 4.923529412 | H33: =IF('A_WAVE+pelety'!$AI$33=1,'A_WAVE+pelety'!H71,IF('A_WAVE+pelety'!$AI$33=2,'A_WAVE+pelety'!H137,IF('A_WAVE+pelety'!$AI$33=3,'A_WAVE+pelety'!H207,IF('A_WAVE+pelety'!$AI$33=4,'A_WAVE+pelety'!H281,IF('A_WAVE+pelety'!$AI$33=5,'A_WAVE+pelety'!H359,IF('A_WAVE+pelety'!$AI$33=6,'A_WAVE+pelety'!H441,IF('A_WAVE+pelety'!$AI$33=7,'A_WAVE+pelety'!H527,IF('A_WAVE+pelety'!$AI$33=8,'A_WAVE+pelety'!H617,IF('A_WAVE+pelety'!$AI$33=9,'A_WAVE+pelety'!H711,IF('A_WAVE+pelety'!$AI$33=10,'A_WAVE+pelety'!H809,"CHYBA")))))))))) -> 39.17647059 | I33: =IF('A_WAVE+pelety'!$AI$33=1,'A_WAVE+pelety'!I71,IF('A_WAVE+pelety'!$AI$33=2,'A_WAVE+pelety'!I137,IF('A_WAVE+pelety'!$AI$33=3,'A_WAVE+pelety'!I207,IF('A_WAVE+pelety'!$AI$33=4,'A_WAVE+pelety'!I281,IF('A_WAVE+pelety'!$AI$33=5,'A_WAVE+pelety'!I359,IF('A_WAVE+pelety'!$AI$33=6,'A_WAVE+pelety'!I441,IF('A_WAVE+pelety'!$AI$33=7,'A_WAVE+pelety'!I527,IF('A_WAVE+pelety'!$AI$33=8,'A_WAVE+pelety'!I617,IF('A_WAVE+pelety'!$AI$33=9,'A_WAVE+pelety'!I711,IF('A_WAVE+pelety'!$AI$33=10,'A_WAVE+pelety'!I809,"CHYBA")))))))))) -> 40.48235294 | J33: =IF('A_WAVE+pelety'!$AI$33=1,'A_WAVE+pelety'!J71,IF('A_WAVE+pelety'!$AI$33=2,'A_WAVE+pelety'!J137,IF('A_WAVE+pelety'!$AI$33=3,'A_WAVE+pelety'!J207,IF('A_WAVE+pelety'!$AI$33=4,'A_WAVE+pelety'!J281,IF('A_WAVE+pelety'!$AI$33=5,'A_WAVE+pelety'!J359,IF('A_WAVE+pelety'!$AI$33=6,'A_WAVE+pelety'!J441,IF('A_WAVE+pelety'!$AI$33=7,'A_WAVE+pelety'!J527,IF('A_WAVE+pelety'!$AI$33=8,'A_WAVE+pelety'!J617,IF('A_WAVE+pelety'!$AI$33=9,'A_WAVE+pelety'!J711,IF('A_WAVE+pelety'!$AI$33=10,'A_WAVE+pelety'!J809,"CHYBA")))))))))) -> 40.48235294 | K33: =IF('A_WAVE+pelety'!$AI$33=1,'A_WAVE+pelety'!K71,IF('A_WAVE+pelety'!$AI$33=2,'A_WAVE+pelety'!K137,IF('A_WAVE+pelety'!$AI$33=3,'A_WAVE+pelety'!K207,IF('A_WAVE+pelety'!$AI$33=4,'A_WAVE+pelety'!K281,IF('A_WAVE+pelety'!$AI$33=5,'A_WAVE+pelety'!K359,IF('A_WAVE+pelety'!$AI$33=6,'A_WAVE+pelety'!K441,IF('A_WAVE+pelety'!$AI$33=7,'A_WAVE+pelety'!K527,IF('A_WAVE+pelety'!$AI$33=8,'A_WAVE+pelety'!K617,IF('A_WAVE+pelety'!$AI$33=9,'A_WAVE+pelety'!K711,IF('A_WAVE+pelety'!$AI$33=10,'A_WAVE+pelety'!K809,"CHYBA")))))))))) -> 6.705882353 | L33: =IF('A_WAVE+pelety'!$AI$33=1,'A_WAVE+pelety'!L71,IF('A_WAVE+pelety'!$AI$33=2,'A_WAVE+pelety'!L137,IF('A_WAVE+pelety'!$AI$33=3,'A_WAVE+pelety'!L207,IF('A_WAVE+pelety'!$AI$33=4,'A_WAVE+pelety'!L281,IF('A_WAVE+pelety'!$AI$33=5,'A_WAVE+pelety'!L359,IF('A_WAVE+pelety'!$AI$33=6,'A_WAVE+pelety'!L441,IF('A_WAVE+pelety'!$AI$33=7,'A_WAVE+pelety'!L527,IF('A_WAVE+pelety'!$AI$33=8,'A_WAVE+pelety'!L617,IF('A_WAVE+pelety'!$AI$33=9,'A_WAVE+pelety'!L711,IF('A_WAVE+pelety'!$AI$33=10,'A_WAVE+pelety'!L809,"CHYBA")))))))))) -> 0 | M33: =IF('A_WAVE+pelety'!$AI$33=1,'A_WAVE+pelety'!M71,IF('A_WAVE+pelety'!$AI$33=2,'A_WAVE+pelety'!M137,IF('A_WAVE+pelety'!$AI$33=3,'A_WAVE+pelety'!M207,IF('A_WAVE+pelety'!$AI$33=4,'A_WAVE+pelety'!M281,IF('A_WAVE+pelety'!$AI$33=5,'A_WAVE+pelety'!M359,IF('A_WAVE+pelety'!$AI$33=6,'A_WAVE+pelety'!M441,IF('A_WAVE+pelety'!$AI$33=7,'A_WAVE+pelety'!M527,IF('A_WAVE+pelety'!$AI$33=8,'A_WAVE+pelety'!M617,IF('A_WAVE+pelety'!$AI$33=9,'A_WAVE+pelety'!M711,IF('A_WAVE+pelety'!$AI$33=10,'A_WAVE+pelety'!M809,"CHYBA")))))))))) -> 29.29411765 | N33: =IF('A_WAVE+pelety'!$AI$33=1,'A_WAVE+pelety'!N71,IF('A_WAVE+pelety'!$AI$33=2,'A_WAVE+pelety'!N137,IF('A_WAVE+pelety'!$AI$33=3,'A_WAVE+pelety'!N207,IF('A_WAVE+pelety'!$AI$33=4,'A_WAVE+pelety'!N281,IF('A_WAVE+pelety'!$AI$33=5,'A_WAVE+pelety'!N359,IF('A_WAVE+pelety'!$AI$33=6,'A_WAVE+pelety'!N441,IF('A_WAVE+pelety'!$AI$33=7,'A_WAVE+pelety'!N527,IF('A_WAVE+pelety'!$AI$33=8,'A_WAVE+pelety'!N617,IF('A_WAVE+pelety'!$AI$33=9,'A_WAVE+pelety'!N711,IF('A_WAVE+pelety'!$AI$33=10,'A_WAVE+pelety'!N809,"CHYBA")))))))))) -> 83.88235294
B34: % | C34: =100/(24*'A_WAVE+pelety'!C$13)*C33 -> 13.7254902 | D34: =100/(24*'A_WAVE+pelety'!D$13)*D33 -> 11.47058824 | E34: =100/(24*'A_WAVE+pelety'!E$13)*E33 -> 3.431372549 | F34: =100/(24*'A_WAVE+pelety'!F$13)*F33 -> 0 | G34: =100/(24*'A_WAVE+pelety'!G$13)*G33 -> 0.6617647059 | H34: =100/(24*'A_WAVE+pelety'!H$13)*H33 -> 5.441176471 | I34: =100/(24*'A_WAVE+pelety'!I$13)*I33 -> 5.441176471 | J34: =100/(24*'A_WAVE+pelety'!J$13)*J33 -> 5.441176471 | K34: =100/(24*'A_WAVE+pelety'!K$13)*K33 -> 0.931372549 | L34: =100/(24*'A_WAVE+pelety'!L$13)*L33 -> 0 | M34: =100/(24*'A_WAVE+pelety'!M$13)*M33 -> 4.068627451 | N34: =100/(24*'A_WAVE+pelety'!N$13)*N33 -> 11.2745098
A38: VARIANTA B: KOGENERAČNÍ JEDNOTKY WAVE 120 + KOTLE NA ŠTĚPKU
C40: WAVY CELKEM | D40: 1. WAVE | E40: 2. WAVE | F40: 3. WAVE | G40: 4. WAVE | H40: 5. WAVE | I40: 6. WAVE | J40: 7. WAVE | K40: 8. WAVE | L40: 9. WAVE | M40: 10. WAVE
A41: Jmenovitý tepelný výkon | B41: kW | C41: =SUM(D41:M41) -> 360 | D41: =IF('B_WAVE+štěpka'!$AI$33>=2,120,0) -> 120 | E41: =IF('B_WAVE+štěpka'!$AI$33>=1,120,0) -> 120 | F41: =IF('B_WAVE+štěpka'!$AI$33>=3,120,0) -> 120 | G41: =IF('B_WAVE+štěpka'!$AI$33>=4,120,0) -> 0 | H41: =IF('B_WAVE+štěpka'!$AI$33>=5,120,0) -> 0 | I41: =IF('B_WAVE+štěpka'!$AI$33>=6,120,0) -> 0 | J41: =IF('B_WAVE+štěpka'!$AI$33>=7,120,0) -> 0 | K41: =IF('B_WAVE+štěpka'!$AI$33>=8,120,0) -> 0 | L41: =IF('B_WAVE+štěpka'!$AI$33>=9,120,0) -> 0 | M41: =IF('B_WAVE+štěpka'!$AI$33>=10,120,0) -> 0
A42: Minimální tepelný výkon | B42: kW | C42: =MIN(IF(D42:M42>0,D42:M42)) -> 72 | D42: =IF(D41=120,'Kotle na štěpku'!$F$23,0) -> 72 | E42: =IF(E41=120,'Kotle na štěpku'!$F$23,0) -> 72 | F42: =IF(F41=120,'Kotle na štěpku'!$F$23,0) -> 72 | G42: =IF(G41=120,'Kotle na štěpku'!$F$23,0) -> 0 | H42: =IF(H41=120,'Kotle na štěpku'!$F$23,0) -> 0 | I42: =IF(I41=120,'Kotle na štěpku'!$F$23,0) -> 0 | J42: =IF(J41=120,'Kotle na štěpku'!$F$23,0) -> 0 | K42: =IF(K41=120,'Kotle na štěpku'!$F$23,0) -> 0 | L42: =IF(L41=120,'Kotle na štěpku'!$F$23,0) -> 0 | M42: =IF(M41=120,'Kotle na štěpku'!$F$23,0) -> 0
A43: Čistý elektrický výkon | B43: kW | C43: =SUM(D43:M43) -> 18 | D43: =IF(D41=120,('Kotle na štěpku'!$J$23-'Kotle na štěpku'!$I$23)/1000,0) -> 6 | E43: =IF(E41=120,('Kotle na štěpku'!$J$23-'Kotle na štěpku'!$I$23)/1000,0) -> 6 | F43: =IF(F41=120,('Kotle na štěpku'!$J$23-'Kotle na štěpku'!$I$23)/1000,0) -> 6 | G43: =IF(G41=120,('Kotle na štěpku'!$J$23-'Kotle na štěpku'!$I$23)/1000,0) -> 0 | H43: =IF(H41=120,('Kotle na štěpku'!$J$23-'Kotle na štěpku'!$I$23)/1000,0) -> 0 | I43: =IF(I41=120,('Kotle na štěpku'!$J$23-'Kotle na štěpku'!$I$23)/1000,0) -> 0 | J43: =IF(J41=120,('Kotle na štěpku'!$J$23-'Kotle na štěpku'!$I$23)/1000,0) -> 0 | K43: =IF(K41=120,('Kotle na štěpku'!$J$23-'Kotle na štěpku'!$I$23)/1000,0) -> 0 | L43: =IF(L41=120,('Kotle na štěpku'!$J$23-'Kotle na štěpku'!$I$23)/1000,0) -> 0 | M43: =IF(M41=120,('Kotle na štěpku'!$J$23-'Kotle na štěpku'!$I$23)/1000,0) -> 0
A44: Roční produkce tepla | B44: GJ/r | C44: =SUM(D44:M44) -> 8717.0796 | D44: =IF('B_WAVE+štěpka'!$AI$33=1,'B_WAVE+štěpka'!B22,IF('B_WAVE+štěpka'!$AI$33=2,'B_WAVE+štěpka'!C82,IF('B_WAVE+štěpka'!$AI$33=3,'B_WAVE+štěpka'!C148,IF('B_WAVE+štěpka'!$AI$33=4,'B_WAVE+štěpka'!C218,IF('B_WAVE+štěpka'!$AI$33=5,'B_WAVE+štěpka'!C292,IF('B_WAVE+štěpka'!$AI$33=6,'B_WAVE+štěpka'!C370,IF('B_WAVE+štěpka'!$AI$33=7,'B_WAVE+štěpka'!C452,IF('B_WAVE+štěpka'!$AI$33=8,'B_WAVE+štěpka'!C538,IF('B_WAVE+štěpka'!$AI$33=9,'B_WAVE+štěpka'!C628,IF('B_WAVE+štěpka'!$AI$33=10,'B_WAVE+štěpka'!C722,"CHYBA")))))))))) -> 3177.528 | E44: =IF('B_WAVE+štěpka'!$AI$33=1,'B_WAVE+štěpka'!C22,IF('B_WAVE+štěpka'!$AI$33=2,'B_WAVE+štěpka'!D82,IF('B_WAVE+štěpka'!$AI$33=3,'B_WAVE+štěpka'!D148,IF('B_WAVE+štěpka'!$AI$33=4,'B_WAVE+štěpka'!D218,IF('B_WAVE+štěpka'!$AI$33=5,'B_WAVE+štěpka'!D292,IF('B_WAVE+štěpka'!$AI$33=6,'B_WAVE+štěpka'!D370,IF('B_WAVE+štěpka'!$AI$33=7,'B_WAVE+štěpka'!D452,IF('B_WAVE+štěpka'!$AI$33=8,'B_WAVE+štěpka'!D538,IF('B_WAVE+štěpka'!$AI$33=9,'B_WAVE+štěpka'!D628,IF('B_WAVE+štěpka'!$AI$33=10,'B_WAVE+štěpka'!D722,"CHYBA")))))))))) -> 2914.7244 | F44: =IF('B_WAVE+štěpka'!$AI$33=1,'B_WAVE+štěpka'!D22,IF('B_WAVE+štěpka'!$AI$33=2,'B_WAVE+štěpka'!E82,IF('B_WAVE+štěpka'!$AI$33=3,'B_WAVE+štěpka'!E148,IF('B_WAVE+štěpka'!$AI$33=4,'B_WAVE+štěpka'!E218,IF('B_WAVE+štěpka'!$AI$33=5,'B_WAVE+štěpka'!E292,IF('B_WAVE+štěpka'!$AI$33=6,'B_WAVE+štěpka'!E370,IF('B_WAVE+štěpka'!$AI$33=7,'B_WAVE+štěpka'!E452,IF('B_WAVE+štěpka'!$AI$33=8,'B_WAVE+štěpka'!E538,IF('B_WAVE+štěpka'!$AI$33=9,'B_WAVE+štěpka'!E628,IF('B_WAVE+štěpka'!$AI$33=10,'B_WAVE+štěpka'!E722,"CHYBA")))))))))) -> 2624.8272 | G44: =IF('B_WAVE+štěpka'!$AI$33=1,'B_WAVE+štěpka'!E22,IF('B_WAVE+štěpka'!$AI$33=2,'B_WAVE+štěpka'!F82,IF('B_WAVE+štěpka'!$AI$33=3,'B_WAVE+štěpka'!F148,IF('B_WAVE+štěpka'!$AI$33=4,'B_WAVE+štěpka'!F218,IF('B_WAVE+štěpka'!$AI$33=5,'B_WAVE+štěpka'!F292,IF('B_WAVE+štěpka'!$AI$33=6,'B_WAVE+štěpka'!F370,IF('B_WAVE+štěpka'!$AI$33=7,'B_WAVE+štěpka'!F452,IF('B_WAVE+štěpka'!$AI$33=8,'B_WAVE+štěpka'!F538,IF('B_WAVE+štěpka'!$AI$33=9,'B_WAVE+štěpka'!F628,IF('B_WAVE+štěpka'!$AI$33=10,'B_WAVE+štěpka'!F722,"CHYBA")))))))))) -> 0 | H44: =IF('B_WAVE+štěpka'!$AI$33=1,'B_WAVE+štěpka'!F22,IF('B_WAVE+štěpka'!$AI$33=2,'B_WAVE+štěpka'!G82,IF('B_WAVE+štěpka'!$AI$33=3,'B_WAVE+štěpka'!G148,IF('B_WAVE+štěpka'!$AI$33=4,'B_WAVE+štěpka'!G218,IF('B_WAVE+štěpka'!$AI$33=5,'B_WAVE+štěpka'!G292,IF('B_WAVE+štěpka'!$AI$33=6,'B_WAVE+štěpka'!G370,IF('B_WAVE+štěpka'!$AI$33=7,'B_WAVE+štěpka'!G452,IF('B_WAVE+štěpka'!$AI$33=8,'B_WAVE+štěpka'!G538,IF('B_WAVE+štěpka'!$AI$33=9,'B_WAVE+štěpka'!G628,IF('B_WAVE+štěpka'!$AI$33=10,'B_WAVE+štěpka'!G722,"CHYBA")))))))))) -> 0 | I44: =IF('B_WAVE+štěpka'!$AI$33=1,'B_WAVE+štěpka'!G22,IF('B_WAVE+štěpka'!$AI$33=2,'B_WAVE+štěpka'!H82,IF('B_WAVE+štěpka'!$AI$33=3,'B_WAVE+štěpka'!H148,IF('B_WAVE+štěpka'!$AI$33=4,'B_WAVE+štěpka'!H218,IF('B_WAVE+štěpka'!$AI$33=5,'B_WAVE+štěpka'!H292,IF('B_WAVE+štěpka'!$AI$33=6,'B_WAVE+štěpka'!H370,IF('B_WAVE+štěpka'!$AI$33=7,'B_WAVE+štěpka'!H452,IF('B_WAVE+štěpka'!$AI$33=8,'B_WAVE+štěpka'!H538,IF('B_WAVE+štěpka'!$AI$33=9,'B_WAVE+štěpka'!H628,IF('B_WAVE+štěpka'!$AI$33=10,'B_WAVE+štěpka'!H722,"CHYBA")))))))))) -> 0 | J44: =IF('B_WAVE+štěpka'!$AI$33=1,'B_WAVE+štěpka'!H22,IF('B_WAVE+štěpka'!$AI$33=2,'B_WAVE+štěpka'!I82,IF('B_WAVE+štěpka'!$AI$33=3,'B_WAVE+štěpka'!I148,IF('B_WAVE+štěpka'!$AI$33=4,'B_WAVE+štěpka'!I218,IF('B_WAVE+štěpka'!$AI$33=5,'B_WAVE+štěpka'!I292,IF('B_WAVE+štěpka'!$AI$33=6,'B_WAVE+štěpka'!I370,IF('B_WAVE+štěpka'!$AI$33=7,'B_WAVE+štěpka'!I452,IF('B_WAVE+štěpka'!$AI$33=8,'B_WAVE+štěpka'!I538,IF('B_WAVE+štěpka'!$AI$33=9,'B_WAVE+štěpka'!I628,IF('B_WAVE+štěpka'!$AI$33=10,'B_WAVE+štěpka'!I722,"CHYBA")))))))))) -> 0 | K44: =IF('B_WAVE+štěpka'!$AI$33=1,'B_WAVE+štěpka'!I22,IF('B_WAVE+štěpka'!$AI$33=2,'B_WAVE+štěpka'!J82,IF('B_WAVE+štěpka'!$AI$33=3,'B_WAVE+štěpka'!J148,IF('B_WAVE+štěpka'!$AI$33=4,'B_WAVE+štěpka'!J218,IF('B_WAVE+štěpka'!$AI$33=5,'B_WAVE+štěpka'!J292,IF('B_WAVE+štěpka'!$AI$33=6,'B_WAVE+štěpka'!J370,IF('B_WAVE+štěpka'!$AI$33=7,'B_WAVE+štěpka'!J452,IF('B_WAVE+štěpka'!$AI$33=8,'B_WAVE+štěpka'!J538,IF('B_WAVE+štěpka'!$AI$33=9,'B_WAVE+štěpka'!J628,IF('B_WAVE+štěpka'!$AI$33=10,'B_WAVE+štěpka'!J722,"CHYBA")))))))))) -> 0 | L44: =IF('B_WAVE+štěpka'!$AI$33=1,'B_WAVE+štěpka'!J22,IF('B_WAVE+štěpka'!$AI$33=2,'B_WAVE+štěpka'!K82,IF('B_WAVE+štěpka'!$AI$33=3,'B_WAVE+štěpka'!K148,IF('B_WAVE+štěpka'!$AI$33=4,'B_WAVE+štěpka'!K218,IF('B_WAVE+štěpka'!$AI$33=5,'B_WAVE+štěpka'!K292,IF('B_WAVE+štěpka'!$AI$33=6,'B_WAVE+štěpka'!K370,IF('B_WAVE+štěpka'!$AI$33=7,'B_WAVE+štěpka'!K452,IF('B_WAVE+štěpka'!$AI$33=8,'B_WAVE+štěpka'!K538,IF('B_WAVE+štěpka'!$AI$33=9,'B_WAVE+štěpka'!K628,IF('B_WAVE+štěpka'!$AI$33=10,'B_WAVE+štěpka'!K722,"CHYBA")))))))))) -> 0 | M44: =IF('B_WAVE+štěpka'!$AI$33=1,'B_WAVE+štěpka'!K22,IF('B_WAVE+štěpka'!$AI$33=2,'B_WAVE+štěpka'!L82,IF('B_WAVE+štěpka'!$AI$33=3,'B_WAVE+štěpka'!L148,IF('B_WAVE+štěpka'!$AI$33=4,'B_WAVE+štěpka'!L218,IF('B_WAVE+štěpka'!$AI$33=5,'B_WAVE+štěpka'!L292,IF('B_WAVE+štěpka'!$AI$33=6,'B_WAVE+štěpka'!L370,IF('B_WAVE+štěpka'!$AI$33=7,'B_WAVE+štěpka'!L452,IF('B_WAVE+štěpka'!$AI$33=8,'B_WAVE+štěpka'!L538,IF('B_WAVE+štěpka'!$AI$33=9,'B_WAVE+štěpka'!L628,IF('B_WAVE+štěpka'!$AI$33=10,'B_WAVE+štěpka'!L722,"CHYBA")))))))))) -> 0
A45: Doba v provozu | B45: h/r | D45: =IF('B_WAVE+štěpka'!$AI$33=1,'B_WAVE+štěpka'!B20,IF('B_WAVE+štěpka'!$AI$33=2,'B_WAVE+štěpka'!C80,IF('B_WAVE+štěpka'!$AI$33=3,'B_WAVE+štěpka'!C146,IF('B_WAVE+štěpka'!$AI$33=4,'B_WAVE+štěpka'!C216,IF('B_WAVE+štěpka'!$AI$33=5,'B_WAVE+štěpka'!C290,IF('B_WAVE+štěpka'!$AI$33=6,'B_WAVE+štěpka'!C368,IF('B_WAVE+štěpka'!$AI$33=7,'B_WAVE+štěpka'!C450,IF('B_WAVE+štěpka'!$AI$33=8,'B_WAVE+štěpka'!C536,IF('B_WAVE+štěpka'!$AI$33=9,'B_WAVE+štěpka'!C626,IF('B_WAVE+štěpka'!$AI$33=10,'B_WAVE+štěpka'!C720,"CHYBA")))))))))) -> 8024 | E45: =IF('B_WAVE+štěpka'!$AI$33=1,'B_WAVE+štěpka'!C20,IF('B_WAVE+štěpka'!$AI$33=2,'B_WAVE+štěpka'!D80,IF('B_WAVE+štěpka'!$AI$33=3,'B_WAVE+štěpka'!D146,IF('B_WAVE+štěpka'!$AI$33=4,'B_WAVE+štěpka'!D216,IF('B_WAVE+štěpka'!$AI$33=5,'B_WAVE+štěpka'!D290,IF('B_WAVE+štěpka'!$AI$33=6,'B_WAVE+štěpka'!D368,IF('B_WAVE+štěpka'!$AI$33=7,'B_WAVE+štěpka'!D450,IF('B_WAVE+štěpka'!$AI$33=8,'B_WAVE+štěpka'!D536,IF('B_WAVE+štěpka'!$AI$33=9,'B_WAVE+štěpka'!D626,IF('B_WAVE+štěpka'!$AI$33=10,'B_WAVE+štěpka'!D720,"CHYBA")))))))))) -> 7351 | F45: =IF('B_WAVE+štěpka'!$AI$33=1,'B_WAVE+štěpka'!D20,IF('B_WAVE+štěpka'!$AI$33=2,'B_WAVE+štěpka'!E80,IF('B_WAVE+štěpka'!$AI$33=3,'B_WAVE+štěpka'!E146,IF('B_WAVE+štěpka'!$AI$33=4,'B_WAVE+štěpka'!E216,IF('B_WAVE+štěpka'!$AI$33=5,'B_WAVE+štěpka'!E290,IF('B_WAVE+štěpka'!$AI$33=6,'B_WAVE+štěpka'!E368,IF('B_WAVE+štěpka'!$AI$33=7,'B_WAVE+štěpka'!E450,IF('B_WAVE+štěpka'!$AI$33=8,'B_WAVE+štěpka'!E536,IF('B_WAVE+štěpka'!$AI$33=9,'B_WAVE+štěpka'!E626,IF('B_WAVE+štěpka'!$AI$33=10,'B_WAVE+štěpka'!E720,"CHYBA")))))))))) -> 6527 | G45: =IF('B_WAVE+štěpka'!$AI$33=1,'B_WAVE+štěpka'!E20,IF('B_WAVE+štěpka'!$AI$33=2,'B_WAVE+štěpka'!F80,IF('B_WAVE+štěpka'!$AI$33=3,'B_WAVE+štěpka'!F146,IF('B_WAVE+štěpka'!$AI$33=4,'B_WAVE+štěpka'!F216,IF('B_WAVE+štěpka'!$AI$33=5,'B_WAVE+štěpka'!F290,IF('B_WAVE+štěpka'!$AI$33=6,'B_WAVE+štěpka'!F368,IF('B_WAVE+štěpka'!$AI$33=7,'B_WAVE+štěpka'!F450,IF('B_WAVE+štěpka'!$AI$33=8,'B_WAVE+štěpka'!F536,IF('B_WAVE+štěpka'!$AI$33=9,'B_WAVE+štěpka'!F626,IF('B_WAVE+štěpka'!$AI$33=10,'B_WAVE+štěpka'!F720,"CHYBA")))))))))) -> 0 | H45: =IF('B_WAVE+štěpka'!$AI$33=1,'B_WAVE+štěpka'!F20,IF('B_WAVE+štěpka'!$AI$33=2,'B_WAVE+štěpka'!G80,IF('B_WAVE+štěpka'!$AI$33=3,'B_WAVE+štěpka'!G146,IF('B_WAVE+štěpka'!$AI$33=4,'B_WAVE+štěpka'!G216,IF('B_WAVE+štěpka'!$AI$33=5,'B_WAVE+štěpka'!G290,IF('B_WAVE+štěpka'!$AI$33=6,'B_WAVE+štěpka'!G368,IF('B_WAVE+štěpka'!$AI$33=7,'B_WAVE+štěpka'!G450,IF('B_WAVE+štěpka'!$AI$33=8,'B_WAVE+štěpka'!G536,IF('B_WAVE+štěpka'!$AI$33=9,'B_WAVE+štěpka'!G626,IF('B_WAVE+štěpka'!$AI$33=10,'B_WAVE+štěpka'!G720,"CHYBA")))))))))) -> 0 | I45: =IF('B_WAVE+štěpka'!$AI$33=1,'B_WAVE+štěpka'!G20,IF('B_WAVE+štěpka'!$AI$33=2,'B_WAVE+štěpka'!H80,IF('B_WAVE+štěpka'!$AI$33=3,'B_WAVE+štěpka'!H146,IF('B_WAVE+štěpka'!$AI$33=4,'B_WAVE+štěpka'!H216,IF('B_WAVE+štěpka'!$AI$33=5,'B_WAVE+štěpka'!H290,IF('B_WAVE+štěpka'!$AI$33=6,'B_WAVE+štěpka'!H368,IF('B_WAVE+štěpka'!$AI$33=7,'B_WAVE+štěpka'!H450,IF('B_WAVE+štěpka'!$AI$33=8,'B_WAVE+štěpka'!H536,IF('B_WAVE+štěpka'!$AI$33=9,'B_WAVE+štěpka'!H626,IF('B_WAVE+štěpka'!$AI$33=10,'B_WAVE+štěpka'!H720,"CHYBA")))))))))) -> 0 | J45: =IF('B_WAVE+štěpka'!$AI$33=1,'B_WAVE+štěpka'!H20,IF('B_WAVE+štěpka'!$AI$33=2,'B_WAVE+štěpka'!I80,IF('B_WAVE+štěpka'!$AI$33=3,'B_WAVE+štěpka'!I146,IF('B_WAVE+štěpka'!$AI$33=4,'B_WAVE+štěpka'!I216,IF('B_WAVE+štěpka'!$AI$33=5,'B_WAVE+štěpka'!I290,IF('B_WAVE+štěpka'!$AI$33=6,'B_WAVE+štěpka'!I368,IF('B_WAVE+štěpka'!$AI$33=7,'B_WAVE+štěpka'!I450,IF('B_WAVE+štěpka'!$AI$33=8,'B_WAVE+štěpka'!I536,IF('B_WAVE+štěpka'!$AI$33=9,'B_WAVE+štěpka'!I626,IF('B_WAVE+štěpka'!$AI$33=10,'B_WAVE+štěpka'!I720,"CHYBA")))))))))) -> 0 | K45: =IF('B_WAVE+štěpka'!$AI$33=1,'B_WAVE+štěpka'!I20,IF('B_WAVE+štěpka'!$AI$33=2,'B_WAVE+štěpka'!J80,IF('B_WAVE+štěpka'!$AI$33=3,'B_WAVE+štěpka'!J146,IF('B_WAVE+štěpka'!$AI$33=4,'B_WAVE+štěpka'!J216,IF('B_WAVE+štěpka'!$AI$33=5,'B_WAVE+štěpka'!J290,IF('B_WAVE+štěpka'!$AI$33=6,'B_WAVE+štěpka'!J368,IF('B_WAVE+štěpka'!$AI$33=7,'B_WAVE+štěpka'!J450,IF('B_WAVE+štěpka'!$AI$33=8,'B_WAVE+štěpka'!J536,IF('B_WAVE+štěpka'!$AI$33=9,'B_WAVE+štěpka'!J626,IF('B_WAVE+štěpka'!$AI$33=10,'B_WAVE+štěpka'!J720,"CHYBA")))))))))) -> 0 | L45: =IF('B_WAVE+štěpka'!$AI$33=1,'B_WAVE+štěpka'!J20,IF('B_WAVE+štěpka'!$AI$33=2,'B_WAVE+štěpka'!K80,IF('B_WAVE+štěpka'!$AI$33=3,'B_WAVE+štěpka'!K146,IF('B_WAVE+štěpka'!$AI$33=4,'B_WAVE+štěpka'!K216,IF('B_WAVE+štěpka'!$AI$33=5,'B_WAVE+štěpka'!K290,IF('B_WAVE+štěpka'!$AI$33=6,'B_WAVE+štěpka'!K368,IF('B_WAVE+štěpka'!$AI$33=7,'B_WAVE+štěpka'!K450,IF('B_WAVE+štěpka'!$AI$33=8,'B_WAVE+štěpka'!K536,IF('B_WAVE+štěpka'!$AI$33=9,'B_WAVE+štěpka'!K626,IF('B_WAVE+štěpka'!$AI$33=10,'B_WAVE+štěpka'!K720,"CHYBA")))))))))) -> 0 | M45: =IF('B_WAVE+štěpka'!$AI$33=1,'B_WAVE+štěpka'!K20,IF('B_WAVE+štěpka'!$AI$33=2,'B_WAVE+štěpka'!L80,IF('B_WAVE+štěpka'!$AI$33=3,'B_WAVE+štěpka'!L146,IF('B_WAVE+štěpka'!$AI$33=4,'B_WAVE+štěpka'!L216,IF('B_WAVE+štěpka'!$AI$33=5,'B_WAVE+štěpka'!L290,IF('B_WAVE+štěpka'!$AI$33=6,'B_WAVE+štěpka'!L368,IF('B_WAVE+štěpka'!$AI$33=7,'B_WAVE+štěpka'!L450,IF('B_WAVE+štěpka'!$AI$33=8,'B_WAVE+štěpka'!L536,IF('B_WAVE+štěpka'!$AI$33=9,'B_WAVE+štěpka'!L626,IF('B_WAVE+štěpka'!$AI$33=10,'B_WAVE+štěpka'!L720,"CHYBA")))))))))) -> 0
A46: Využití instalovaného výkonu | B46: h/r | C46: =IFERROR(C44/3.6*1000/C41,0) -> 6726.141667 | D46: =IFERROR(D44/3.6*1000/D41,0) -> 7355.388889 | E46: =IFERROR(E44/3.6*1000/E41,0) -> 6747.047222 | F46: 6075.988889 | G46: 0 | H46: 0 | I46: 0 | J46: 0 | K46: 0 | L46: 0 | M46: 0
B47: % | C47: =100/8760*C46 -> 76.78243912 | D47: =100/8760*D46 -> 83.96562659 | E47: =100/8760*E46 -> 77.02108701 | F47: =100/8760*F46 -> 69.36060375 | G47: =100/8760*G46 -> 0 | H47: =100/8760*H46 -> 0 | I47: =100/8760*I46 -> 0 | J47: =100/8760*J46 -> 0 | K47: =100/8760*K46 -> 0 | L47: =100/8760*L46 -> 0 | M47: =100/8760*M46 -> 0
A48: Odhad investičních nákladů | B48: tis. Kč | C48: =SUM(D48:M48) -> -11017.8 | D48: =-0.001*IF(D41=120,Ekonomika!$B$3,0) -> -3672.6 | E48: =-0.001*IF(E41=120,Ekonomika!$B$3,0) -> -3672.6 | F48: =-0.001*IF(F41=120,Ekonomika!$B$3,0) -> -3672.6 | G48: =-0.001*IF(G41=120,Ekonomika!$B$3,0) -> 0 | H48: =-0.001*IF(H41=120,Ekonomika!$B$3,0) -> 0 | I48: =-0.001*IF(I41=120,Ekonomika!$B$3,0) -> 0 | J48: =-0.001*IF(J41=120,Ekonomika!$B$3,0) -> 0 | K48: =-0.001*IF(K41=120,Ekonomika!$B$3,0) -> 0 | L48: =-0.001*IF(L41=120,Ekonomika!$B$3,0) -> 0 | M48: =-0.001*IF(M41=120,Ekonomika!$B$3,0) -> 0
A49: Odhad provozních nákladů (nom.hodn.) | B49: tis. Kč/r | C49: =SUM(D49:M49) -> -1293.221746 | D49: =IF('B_WAVE+štěpka'!$AI$33=1,'B_WAVE+štěpka'!B34,IF('B_WAVE+štěpka'!$AI$33=2,'B_WAVE+štěpka'!C94,IF('B_WAVE+štěpka'!$AI$33=3,'B_WAVE+štěpka'!C160,IF('B_WAVE+štěpka'!$AI$33=4,'B_WAVE+štěpka'!C230,IF('B_WAVE+štěpka'!$AI$33=5,'B_WAVE+štěpka'!C304,IF('B_WAVE+štěpka'!$AI$33=6,'B_WAVE+štěpka'!C382,IF('B_WAVE+štěpka'!$AI$33=7,'B_WAVE+štěpka'!C464,IF('B_WAVE+štěpka'!$AI$33=8,'B_WAVE+štěpka'!C550,IF('B_WAVE+štěpka'!$AI$33=9,'B_WAVE+štěpka'!C640,IF('B_WAVE+štěpka'!$AI$33=10,'B_WAVE+štěpka'!C734,"CHYBA"))))))))))/1000 -> -471.6326809 | E49: =IF('B_WAVE+štěpka'!$AI$33=1,'B_WAVE+štěpka'!C34,IF('B_WAVE+štěpka'!$AI$33=2,'B_WAVE+štěpka'!D94,IF('B_WAVE+štěpka'!$AI$33=3,'B_WAVE+štěpka'!D160,IF('B_WAVE+štěpka'!$AI$33=4,'B_WAVE+štěpka'!D230,IF('B_WAVE+štěpka'!$AI$33=5,'B_WAVE+štěpka'!D304,IF('B_WAVE+štěpka'!$AI$33=6,'B_WAVE+štěpka'!D382,IF('B_WAVE+štěpka'!$AI$33=7,'B_WAVE+štěpka'!D464,IF('B_WAVE+štěpka'!$AI$33=8,'B_WAVE+štěpka'!D550,IF('B_WAVE+štěpka'!$AI$33=9,'B_WAVE+štěpka'!D640,IF('B_WAVE+štěpka'!$AI$33=10,'B_WAVE+štěpka'!D734,"CHYBA"))))))))))/1000 -> -432.571851 | F49: =IF('B_WAVE+štěpka'!$AI$33=1,'B_WAVE+štěpka'!D34,IF('B_WAVE+štěpka'!$AI$33=2,'B_WAVE+štěpka'!E94,IF('B_WAVE+štěpka'!$AI$33=3,'B_WAVE+štěpka'!E160,IF('B_WAVE+štěpka'!$AI$33=4,'B_WAVE+štěpka'!E230,IF('B_WAVE+štěpka'!$AI$33=5,'B_WAVE+štěpka'!E304,IF('B_WAVE+štěpka'!$AI$33=6,'B_WAVE+štěpka'!E382,IF('B_WAVE+štěpka'!$AI$33=7,'B_WAVE+štěpka'!E464,IF('B_WAVE+štěpka'!$AI$33=8,'B_WAVE+štěpka'!E550,IF('B_WAVE+štěpka'!$AI$33=9,'B_WAVE+štěpka'!E640,IF('B_WAVE+štěpka'!$AI$33=10,'B_WAVE+štěpka'!E734,"CHYBA"))))))))))/1000 -> -389.0172136 | G49: =IF('B_WAVE+štěpka'!$AI$33=1,'B_WAVE+štěpka'!E34,IF('B_WAVE+štěpka'!$AI$33=2,'B_WAVE+štěpka'!F94,IF('B_WAVE+štěpka'!$AI$33=3,'B_WAVE+štěpka'!F160,IF('B_WAVE+štěpka'!$AI$33=4,'B_WAVE+štěpka'!F230,IF('B_WAVE+štěpka'!$AI$33=5,'B_WAVE+štěpka'!F304,IF('B_WAVE+štěpka'!$AI$33=6,'B_WAVE+štěpka'!F382,IF('B_WAVE+štěpka'!$AI$33=7,'B_WAVE+štěpka'!F464,IF('B_WAVE+štěpka'!$AI$33=8,'B_WAVE+štěpka'!F550,IF('B_WAVE+štěpka'!$AI$33=9,'B_WAVE+štěpka'!F640,IF('B_WAVE+štěpka'!$AI$33=10,'B_WAVE+štěpka'!F734,"CHYBA"))))))))))/1000 -> 0 | H49: =IF('B_WAVE+štěpka'!$AI$33=1,'B_WAVE+štěpka'!F34,IF('B_WAVE+štěpka'!$AI$33=2,'B_WAVE+štěpka'!G94,IF('B_WAVE+štěpka'!$AI$33=3,'B_WAVE+štěpka'!G160,IF('B_WAVE+štěpka'!$AI$33=4,'B_WAVE+štěpka'!G230,IF('B_WAVE+štěpka'!$AI$33=5,'B_WAVE+štěpka'!G304,IF('B_WAVE+štěpka'!$AI$33=6,'B_WAVE+štěpka'!G382,IF('B_WAVE+štěpka'!$AI$33=7,'B_WAVE+štěpka'!G464,IF('B_WAVE+štěpka'!$AI$33=8,'B_WAVE+štěpka'!G550,IF('B_WAVE+štěpka'!$AI$33=9,'B_WAVE+štěpka'!G640,IF('B_WAVE+štěpka'!$AI$33=10,'B_WAVE+štěpka'!G734,"CHYBA"))))))))))/1000 -> 0 | I49: =IF('B_WAVE+štěpka'!$AI$33=1,'B_WAVE+štěpka'!G34,IF('B_WAVE+štěpka'!$AI$33=2,'B_WAVE+štěpka'!H94,IF('B_WAVE+štěpka'!$AI$33=3,'B_WAVE+štěpka'!H160,IF('B_WAVE+štěpka'!$AI$33=4,'B_WAVE+štěpka'!H230,IF('B_WAVE+štěpka'!$AI$33=5,'B_WAVE+štěpka'!H304,IF('B_WAVE+štěpka'!$AI$33=6,'B_WAVE+štěpka'!H382,IF('B_WAVE+štěpka'!$AI$33=7,'B_WAVE+štěpka'!H464,IF('B_WAVE+štěpka'!$AI$33=8,'B_WAVE+štěpka'!H550,IF('B_WAVE+štěpka'!$AI$33=9,'B_WAVE+štěpka'!H640,IF('B_WAVE+štěpka'!$AI$33=10,'B_WAVE+štěpka'!H734,"CHYBA"))))))))))/1000 -> 0 | J49: =IF('B_WAVE+štěpka'!$AI$33=1,'B_WAVE+štěpka'!H34,IF('B_WAVE+štěpka'!$AI$33=2,'B_WAVE+štěpka'!I94,IF('B_WAVE+štěpka'!$AI$33=3,'B_WAVE+štěpka'!I160,IF('B_WAVE+štěpka'!$AI$33=4,'B_WAVE+štěpka'!I230,IF('B_WAVE+štěpka'!$AI$33=5,'B_WAVE+štěpka'!I304,IF('B_WAVE+štěpka'!$AI$33=6,'B_WAVE+štěpka'!I382,IF('B_WAVE+štěpka'!$AI$33=7,'B_WAVE+štěpka'!I464,IF('B_WAVE+štěpka'!$AI$33=8,'B_WAVE+štěpka'!I550,IF('B_WAVE+štěpka'!$AI$33=9,'B_WAVE+štěpka'!I640,IF('B_WAVE+štěpka'!$AI$33=10,'B_WAVE+štěpka'!I734,"CHYBA"))))))))))/1000 -> 0 | K49: =IF('B_WAVE+štěpka'!$AI$33=1,'B_WAVE+štěpka'!I34,IF('B_WAVE+štěpka'!$AI$33=2,'B_WAVE+štěpka'!J94,IF('B_WAVE+štěpka'!$AI$33=3,'B_WAVE+štěpka'!J160,IF('B_WAVE+štěpka'!$AI$33=4,'B_WAVE+štěpka'!J230,IF('B_WAVE+štěpka'!$AI$33=5,'B_WAVE+štěpka'!J304,IF('B_WAVE+štěpka'!$AI$33=6,'B_WAVE+štěpka'!J382,IF('B_WAVE+štěpka'!$AI$33=7,'B_WAVE+štěpka'!J464,IF('B_WAVE+štěpka'!$AI$33=8,'B_WAVE+štěpka'!J550,IF('B_WAVE+štěpka'!$AI$33=9,'B_WAVE+štěpka'!J640,IF('B_WAVE+štěpka'!$AI$33=10,'B_WAVE+štěpka'!J734,"CHYBA"))))))))))/1000 -> 0 | L49: =IF('B_WAVE+štěpka'!$AI$33=1,'B_WAVE+štěpka'!J34,IF('B_WAVE+štěpka'!$AI$33=2,'B_WAVE+štěpka'!K94,IF('B_WAVE+štěpka'!$AI$33=3,'B_WAVE+štěpka'!K160,IF('B_WAVE+štěpka'!$AI$33=4,'B_WAVE+štěpka'!K230,IF('B_WAVE+štěpka'!$AI$33=5,'B_WAVE+štěpka'!K304,IF('B_WAVE+štěpka'!$AI$33=6,'B_WAVE+štěpka'!K382,IF('B_WAVE+štěpka'!$AI$33=7,'B_WAVE+štěpka'!K464,IF('B_WAVE+štěpka'!$AI$33=8,'B_WAVE+štěpka'!K550,IF('B_WAVE+štěpka'!$AI$33=9,'B_WAVE+štěpka'!K640,IF('B_WAVE+štěpka'!$AI$33=10,'B_WAVE+štěpka'!K734,"CHYBA"))))))))))/1000 -> 0 | M49: =IF('B_WAVE+štěpka'!$AI$33=1,'B_WAVE+štěpka'!K34,IF('B_WAVE+štěpka'!$AI$33=2,'B_WAVE+štěpka'!L94,IF('B_WAVE+štěpka'!$AI$33=3,'B_WAVE+štěpka'!L160,IF('B_WAVE+štěpka'!$AI$33=4,'B_WAVE+štěpka'!L230,IF('B_WAVE+štěpka'!$AI$33=5,'B_WAVE+štěpka'!L304,IF('B_WAVE+štěpka'!$AI$33=6,'B_WAVE+štěpka'!L382,IF('B_WAVE+štěpka'!$AI$33=7,'B_WAVE+štěpka'!L464,IF('B_WAVE+štěpka'!$AI$33=8,'B_WAVE+štěpka'!L550,IF('B_WAVE+štěpka'!$AI$33=9,'B_WAVE+štěpka'!L640,IF('B_WAVE+štěpka'!$AI$33=10,'B_WAVE+štěpka'!L734,"CHYBA"))))))))))/1000 -> 0
C51: KOTLE CELKEM | D51: 1. kotel | E51: 2. kotel | F51: 3. kotel | G51: 4. kotel | H51: 5. kotel | I51: 6. kotel | J51: 7. kotel | K51: 8. kotel | L51: 9. kotel | M51: 10. kotel | N51: 11. kotel | O51: 12. kotel | P51: 13. kotel | Q51: 14. kotel | R51: 15. kotel
A52: Jmenovitý tepelný výkon | B52: kW | C52: =SUM(D52:R52) -> 410 | D52: =IF('B_WAVE+štěpka'!$AI$33=1,'B_WAVE+štěpka'!C39,IF('B_WAVE+štěpka'!$AI$33=2,'B_WAVE+štěpka'!C99,IF('B_WAVE+štěpka'!$AI$33=3,'B_WAVE+štěpka'!C165,IF('B_WAVE+štěpka'!$AI$33=4,'B_WAVE+štěpka'!C235,IF('B_WAVE+štěpka'!$AI$33=5,'B_WAVE+štěpka'!C309,IF('B_WAVE+štěpka'!$AI$33=6,'B_WAVE+štěpka'!C387,IF('B_WAVE+štěpka'!$AI$33=7,'B_WAVE+štěpka'!C469,IF('B_WAVE+štěpka'!$AI$33=8,'B_WAVE+štěpka'!C555,IF('B_WAVE+štěpka'!$AI$33=9,'B_WAVE+štěpka'!C645,IF('B_WAVE+štěpka'!$AI$33=10,'B_WAVE+štěpka'!C739,"CHYBA")))))))))) -> 20 | E52: =IF('B_WAVE+štěpka'!$AI$33=1,'B_WAVE+štěpka'!D39,IF('B_WAVE+štěpka'!$AI$33=2,'B_WAVE+štěpka'!D99,IF('B_WAVE+štěpka'!$AI$33=3,'B_WAVE+štěpka'!D165,IF('B_WAVE+štěpka'!$AI$33=4,'B_WAVE+štěpka'!D235,IF('B_WAVE+štěpka'!$AI$33=5,'B_WAVE+štěpka'!D309,IF('B_WAVE+štěpka'!$AI$33=6,'B_WAVE+štěpka'!D387,IF('B_WAVE+štěpka'!$AI$33=7,'B_WAVE+štěpka'!D469,IF('B_WAVE+štěpka'!$AI$33=8,'B_WAVE+štěpka'!D555,IF('B_WAVE+štěpka'!$AI$33=9,'B_WAVE+štěpka'!D645,IF('B_WAVE+štěpka'!$AI$33=10,'B_WAVE+štěpka'!D739,"CHYBA")))))))))) -> 70 | F52: =IF('B_WAVE+štěpka'!$AI$33=1,'B_WAVE+štěpka'!E39,IF('B_WAVE+štěpka'!$AI$33=2,'B_WAVE+štěpka'!E99,IF('B_WAVE+štěpka'!$AI$33=3,'B_WAVE+štěpka'!E165,IF('B_WAVE+štěpka'!$AI$33=4,'B_WAVE+štěpka'!E235,IF('B_WAVE+štěpka'!$AI$33=5,'B_WAVE+štěpka'!E309,IF('B_WAVE+štěpka'!$AI$33=6,'B_WAVE+štěpka'!E387,IF('B_WAVE+štěpka'!$AI$33=7,'B_WAVE+štěpka'!E469,IF('B_WAVE+štěpka'!$AI$33=8,'B_WAVE+štěpka'!E555,IF('B_WAVE+štěpka'!$AI$33=9,'B_WAVE+štěpka'!E645,IF('B_WAVE+štěpka'!$AI$33=10,'B_WAVE+štěpka'!E739,"CHYBA")))))))))) -> 0 | G52: =IF('B_WAVE+štěpka'!$AI$33=1,'B_WAVE+štěpka'!F39,IF('B_WAVE+štěpka'!$AI$33=2,'B_WAVE+štěpka'!F99,IF('B_WAVE+štěpka'!$AI$33=3,'B_WAVE+štěpka'!F165,IF('B_WAVE+štěpka'!$AI$33=4,'B_WAVE+štěpka'!F235,IF('B_WAVE+štěpka'!$AI$33=5,'B_WAVE+štěpka'!F309,IF('B_WAVE+štěpka'!$AI$33=6,'B_WAVE+štěpka'!F387,IF('B_WAVE+štěpka'!$AI$33=7,'B_WAVE+štěpka'!F469,IF('B_WAVE+štěpka'!$AI$33=8,'B_WAVE+štěpka'!F555,IF('B_WAVE+štěpka'!$AI$33=9,'B_WAVE+štěpka'!F645,IF('B_WAVE+štěpka'!$AI$33=10,'B_WAVE+štěpka'!F739,"CHYBA")))))))))) -> 140 | H52: =IF('B_WAVE+štěpka'!$AI$33=1,'B_WAVE+štěpka'!G39,IF('B_WAVE+štěpka'!$AI$33=2,'B_WAVE+štěpka'!G99,IF('B_WAVE+štěpka'!$AI$33=3,'B_WAVE+štěpka'!G165,IF('B_WAVE+štěpka'!$AI$33=4,'B_WAVE+štěpka'!G235,IF('B_WAVE+štěpka'!$AI$33=5,'B_WAVE+štěpka'!G309,IF('B_WAVE+štěpka'!$AI$33=6,'B_WAVE+štěpka'!G387,IF('B_WAVE+štěpka'!$AI$33=7,'B_WAVE+štěpka'!G469,IF('B_WAVE+štěpka'!$AI$33=8,'B_WAVE+štěpka'!G555,IF('B_WAVE+štěpka'!$AI$33=9,'B_WAVE+štěpka'!G645,IF('B_WAVE+štěpka'!$AI$33=10,'B_WAVE+štěpka'!G739,"CHYBA")))))))))) -> 140 | I52: =IF('B_WAVE+štěpka'!$AI$33=1,'B_WAVE+štěpka'!H39,IF('B_WAVE+štěpka'!$AI$33=2,'B_WAVE+štěpka'!H99,IF('B_WAVE+štěpka'!$AI$33=3,'B_WAVE+štěpka'!H165,IF('B_WAVE+štěpka'!$AI$33=4,'B_WAVE+štěpka'!H235,IF('B_WAVE+štěpka'!$AI$33=5,'B_WAVE+štěpka'!H309,IF('B_WAVE+štěpka'!$AI$33=6,'B_WAVE+štěpka'!H387,IF('B_WAVE+štěpka'!$AI$33=7,'B_WAVE+štěpka'!H469,IF('B_WAVE+štěpka'!$AI$33=8,'B_WAVE+štěpka'!H555,IF('B_WAVE+štěpka'!$AI$33=9,'B_WAVE+štěpka'!H645,IF('B_WAVE+štěpka'!$AI$33=10,'B_WAVE+štěpka'!H739,"CHYBA")))))))))) -> 40 | J52: =IF('B_WAVE+štěpka'!$AI$33=1,'B_WAVE+štěpka'!I39,IF('B_WAVE+štěpka'!$AI$33=2,'B_WAVE+štěpka'!I99,IF('B_WAVE+štěpka'!$AI$33=3,'B_WAVE+štěpka'!I165,IF('B_WAVE+štěpka'!$AI$33=4,'B_WAVE+štěpka'!I235,IF('B_WAVE+štěpka'!$AI$33=5,'B_WAVE+štěpka'!I309,IF('B_WAVE+štěpka'!$AI$33=6,'B_WAVE+štěpka'!I387,IF('B_WAVE+štěpka'!$AI$33=7,'B_WAVE+štěpka'!I469,IF('B_WAVE+štěpka'!$AI$33=8,'B_WAVE+štěpka'!I555,IF('B_WAVE+štěpka'!$AI$33=9,'B_WAVE+štěpka'!I645,IF('B_WAVE+štěpka'!$AI$33=10,'B_WAVE+štěpka'!I739,"CHYBA")))))))))) -> 0 | K52: =IF('B_WAVE+štěpka'!$AI$33=1,'B_WAVE+štěpka'!J39,IF('B_WAVE+štěpka'!$AI$33=2,'B_WAVE+štěpka'!J99,IF('B_WAVE+štěpka'!$AI$33=3,'B_WAVE+štěpka'!J165,IF('B_WAVE+štěpka'!$AI$33=4,'B_WAVE+štěpka'!J235,IF('B_WAVE+štěpka'!$AI$33=5,'B_WAVE+štěpka'!J309,IF('B_WAVE+štěpka'!$AI$33=6,'B_WAVE+štěpka'!J387,IF('B_WAVE+štěpka'!$AI$33=7,'B_WAVE+štěpka'!J469,IF('B_WAVE+štěpka'!$AI$33=8,'B_WAVE+štěpka'!J555,IF('B_WAVE+štěpka'!$AI$33=9,'B_WAVE+štěpka'!J645,IF('B_WAVE+štěpka'!$AI$33=10,'B_WAVE+štěpka'!J739,"CHYBA")))))))))) -> 0 | L52: =IF('B_WAVE+štěpka'!$AI$33=1,'B_WAVE+štěpka'!K39,IF('B_WAVE+štěpka'!$AI$33=2,'B_WAVE+štěpka'!K99,IF('B_WAVE+štěpka'!$AI$33=3,'B_WAVE+štěpka'!K165,IF('B_WAVE+štěpka'!$AI$33=4,'B_WAVE+štěpka'!K235,IF('B_WAVE+štěpka'!$AI$33=5,'B_WAVE+štěpka'!K309,IF('B_WAVE+štěpka'!$AI$33=6,'B_WAVE+štěpka'!K387,IF('B_WAVE+štěpka'!$AI$33=7,'B_WAVE+štěpka'!K469,IF('B_WAVE+štěpka'!$AI$33=8,'B_WAVE+štěpka'!K555,IF('B_WAVE+štěpka'!$AI$33=9,'B_WAVE+štěpka'!K645,IF('B_WAVE+štěpka'!$AI$33=10,'B_WAVE+štěpka'!K739,"CHYBA")))))))))) -> 0 | M52: =IF('B_WAVE+štěpka'!$AI$33=1,'B_WAVE+štěpka'!L39,IF('B_WAVE+štěpka'!$AI$33=2,'B_WAVE+štěpka'!L99,IF('B_WAVE+štěpka'!$AI$33=3,'B_WAVE+štěpka'!L165,IF('B_WAVE+štěpka'!$AI$33=4,'B_WAVE+štěpka'!L235,IF('B_WAVE+štěpka'!$AI$33=5,'B_WAVE+štěpka'!L309,IF('B_WAVE+štěpka'!$AI$33=6,'B_WAVE+štěpka'!L387,IF('B_WAVE+štěpka'!$AI$33=7,'B_WAVE+štěpka'!L469,IF('B_WAVE+štěpka'!$AI$33=8,'B_WAVE+štěpka'!L555,IF('B_WAVE+štěpka'!$AI$33=9,'B_WAVE+štěpka'!L645,IF('B_WAVE+štěpka'!$AI$33=10,'B_WAVE+štěpka'!L739,"CHYBA")))))))))) -> 0 | N52: =IF('B_WAVE+štěpka'!$AI$33=1,'B_WAVE+štěpka'!M39,IF('B_WAVE+štěpka'!$AI$33=2,'B_WAVE+štěpka'!M99,IF('B_WAVE+štěpka'!$AI$33=3,'B_WAVE+štěpka'!M165,IF('B_WAVE+štěpka'!$AI$33=4,'B_WAVE+štěpka'!M235,IF('B_WAVE+štěpka'!$AI$33=5,'B_WAVE+štěpka'!M309,IF('B_WAVE+štěpka'!$AI$33=6,'B_WAVE+štěpka'!M387,IF('B_WAVE+štěpka'!$AI$33=7,'B_WAVE+štěpka'!M469,IF('B_WAVE+štěpka'!$AI$33=8,'B_WAVE+štěpka'!M555,IF('B_WAVE+štěpka'!$AI$33=9,'B_WAVE+štěpka'!M645,IF('B_WAVE+štěpka'!$AI$33=10,'B_WAVE+štěpka'!M739,"CHYBA")))))))))) -> 0 | O52: =IF('B_WAVE+štěpka'!$AI$33=1,'B_WAVE+štěpka'!N39,IF('B_WAVE+štěpka'!$AI$33=2,'B_WAVE+štěpka'!N99,IF('B_WAVE+štěpka'!$AI$33=3,'B_WAVE+štěpka'!N165,IF('B_WAVE+štěpka'!$AI$33=4,'B_WAVE+štěpka'!N235,IF('B_WAVE+štěpka'!$AI$33=5,'B_WAVE+štěpka'!N309,IF('B_WAVE+štěpka'!$AI$33=6,'B_WAVE+štěpka'!N387,IF('B_WAVE+štěpka'!$AI$33=7,'B_WAVE+štěpka'!N469,IF('B_WAVE+štěpka'!$AI$33=8,'B_WAVE+štěpka'!N555,IF('B_WAVE+štěpka'!$AI$33=9,'B_WAVE+štěpka'!N645,IF('B_WAVE+štěpka'!$AI$33=10,'B_WAVE+štěpka'!N739,"CHYBA")))))))))) -> 0 | P52: =IF('B_WAVE+štěpka'!$AI$33=1,'B_WAVE+štěpka'!O39,IF('B_WAVE+štěpka'!$AI$33=2,'B_WAVE+štěpka'!O99,IF('B_WAVE+štěpka'!$AI$33=3,'B_WAVE+štěpka'!O165,IF('B_WAVE+štěpka'!$AI$33=4,'B_WAVE+štěpka'!O235,IF('B_WAVE+štěpka'!$AI$33=5,'B_WAVE+štěpka'!O309,IF('B_WAVE+štěpka'!$AI$33=6,'B_WAVE+štěpka'!O387,IF('B_WAVE+štěpka'!$AI$33=7,'B_WAVE+štěpka'!O469,IF('B_WAVE+štěpka'!$AI$33=8,'B_WAVE+štěpka'!O555,IF('B_WAVE+štěpka'!$AI$33=9,'B_WAVE+štěpka'!O645,IF('B_WAVE+štěpka'!$AI$33=10,'B_WAVE+štěpka'!O739,"CHYBA")))))))))) -> 0 | Q52: =IF('B_WAVE+štěpka'!$AI$33=1,'B_WAVE+štěpka'!P39,IF('B_WAVE+štěpka'!$AI$33=2,'B_WAVE+štěpka'!P99,IF('B_WAVE+štěpka'!$AI$33=3,'B_WAVE+štěpka'!P165,IF('B_WAVE+štěpka'!$AI$33=4,'B_WAVE+štěpka'!P235,IF('B_WAVE+štěpka'!$AI$33=5,'B_WAVE+štěpka'!P309,IF('B_WAVE+štěpka'!$AI$33=6,'B_WAVE+štěpka'!P387,IF('B_WAVE+štěpka'!$AI$33=7,'B_WAVE+štěpka'!P469,IF('B_WAVE+štěpka'!$AI$33=8,'B_WAVE+štěpka'!P555,IF('B_WAVE+štěpka'!$AI$33=9,'B_WAVE+štěpka'!P645,IF('B_WAVE+štěpka'!$AI$33=10,'B_WAVE+štěpka'!P739,"CHYBA")))))))))) -> 0 | R52: =IF('B_WAVE+štěpka'!$AI$33=1,'B_WAVE+štěpka'!Q39,IF('B_WAVE+štěpka'!$AI$33=2,'B_WAVE+štěpka'!Q99,IF('B_WAVE+štěpka'!$AI$33=3,'B_WAVE+štěpka'!Q165,IF('B_WAVE+štěpka'!$AI$33=4,'B_WAVE+štěpka'!Q235,IF('B_WAVE+štěpka'!$AI$33=5,'B_WAVE+štěpka'!Q309,IF('B_WAVE+štěpka'!$AI$33=6,'B_WAVE+štěpka'!Q387,IF('B_WAVE+štěpka'!$AI$33=7,'B_WAVE+štěpka'!Q469,IF('B_WAVE+štěpka'!$AI$33=8,'B_WAVE+štěpka'!Q555,IF('B_WAVE+štěpka'!$AI$33=9,'B_WAVE+štěpka'!Q645,IF('B_WAVE+štěpka'!$AI$33=10,'B_WAVE+štěpka'!Q739,"CHYBA")))))))))) -> 0
A53: Minimální tepelný výkon | B53: kW | C53: =MIN(IF(D53:R53>0,D53:R53)) -> 6 | D53: =IF('B_WAVE+štěpka'!$AI$33=1,'B_WAVE+štěpka'!C40,IF('B_WAVE+štěpka'!$AI$33=2,'B_WAVE+štěpka'!C100,IF('B_WAVE+štěpka'!$AI$33=3,'B_WAVE+štěpka'!C166,IF('B_WAVE+štěpka'!$AI$33=4,'B_WAVE+štěpka'!C236,IF('B_WAVE+štěpka'!$AI$33=5,'B_WAVE+štěpka'!C310,IF('B_WAVE+štěpka'!$AI$33=6,'B_WAVE+štěpka'!C388,IF('B_WAVE+štěpka'!$AI$33=7,'B_WAVE+štěpka'!C470,IF('B_WAVE+štěpka'!$AI$33=8,'B_WAVE+štěpka'!C556,IF('B_WAVE+štěpka'!$AI$33=9,'B_WAVE+štěpka'!C646,IF('B_WAVE+štěpka'!$AI$33=10,'B_WAVE+štěpka'!C740,"CHYBA")))))))))) -> 6 | E53: =IF('B_WAVE+štěpka'!$AI$33=1,'B_WAVE+štěpka'!D40,IF('B_WAVE+štěpka'!$AI$33=2,'B_WAVE+štěpka'!D100,IF('B_WAVE+štěpka'!$AI$33=3,'B_WAVE+štěpka'!D166,IF('B_WAVE+štěpka'!$AI$33=4,'B_WAVE+štěpka'!D236,IF('B_WAVE+štěpka'!$AI$33=5,'B_WAVE+štěpka'!D310,IF('B_WAVE+štěpka'!$AI$33=6,'B_WAVE+štěpka'!D388,IF('B_WAVE+štěpka'!$AI$33=7,'B_WAVE+štěpka'!D470,IF('B_WAVE+štěpka'!$AI$33=8,'B_WAVE+štěpka'!D556,IF('B_WAVE+štěpka'!$AI$33=9,'B_WAVE+štěpka'!D646,IF('B_WAVE+štěpka'!$AI$33=10,'B_WAVE+štěpka'!D740,"CHYBA")))))))))) -> 21 | F53: =IF('B_WAVE+štěpka'!$AI$33=1,'B_WAVE+štěpka'!E40,IF('B_WAVE+štěpka'!$AI$33=2,'B_WAVE+štěpka'!E100,IF('B_WAVE+štěpka'!$AI$33=3,'B_WAVE+štěpka'!E166,IF('B_WAVE+štěpka'!$AI$33=4,'B_WAVE+štěpka'!E236,IF('B_WAVE+štěpka'!$AI$33=5,'B_WAVE+štěpka'!E310,IF('B_WAVE+štěpka'!$AI$33=6,'B_WAVE+štěpka'!E388,IF('B_WAVE+štěpka'!$AI$33=7,'B_WAVE+štěpka'!E470,IF('B_WAVE+štěpka'!$AI$33=8,'B_WAVE+štěpka'!E556,IF('B_WAVE+štěpka'!$AI$33=9,'B_WAVE+štěpka'!E646,IF('B_WAVE+štěpka'!$AI$33=10,'B_WAVE+štěpka'!E740,"CHYBA")))))))))) -> 0 | G53: =IF('B_WAVE+štěpka'!$AI$33=1,'B_WAVE+štěpka'!F40,IF('B_WAVE+štěpka'!$AI$33=2,'B_WAVE+štěpka'!F100,IF('B_WAVE+štěpka'!$AI$33=3,'B_WAVE+štěpka'!F166,IF('B_WAVE+štěpka'!$AI$33=4,'B_WAVE+štěpka'!F236,IF('B_WAVE+štěpka'!$AI$33=5,'B_WAVE+štěpka'!F310,IF('B_WAVE+štěpka'!$AI$33=6,'B_WAVE+štěpka'!F388,IF('B_WAVE+štěpka'!$AI$33=7,'B_WAVE+štěpka'!F470,IF('B_WAVE+štěpka'!$AI$33=8,'B_WAVE+štěpka'!F556,IF('B_WAVE+štěpka'!$AI$33=9,'B_WAVE+štěpka'!F646,IF('B_WAVE+štěpka'!$AI$33=10,'B_WAVE+štěpka'!F740,"CHYBA")))))))))) -> 42 | H53: =IF('B_WAVE+štěpka'!$AI$33=1,'B_WAVE+štěpka'!G40,IF('B_WAVE+štěpka'!$AI$33=2,'B_WAVE+štěpka'!G100,IF('B_WAVE+štěpka'!$AI$33=3,'B_WAVE+štěpka'!G166,IF('B_WAVE+štěpka'!$AI$33=4,'B_WAVE+štěpka'!G236,IF('B_WAVE+štěpka'!$AI$33=5,'B_WAVE+štěpka'!G310,IF('B_WAVE+štěpka'!$AI$33=6,'B_WAVE+štěpka'!G388,IF('B_WAVE+štěpka'!$AI$33=7,'B_WAVE+štěpka'!G470,IF('B_WAVE+štěpka'!$AI$33=8,'B_WAVE+štěpka'!G556,IF('B_WAVE+štěpka'!$AI$33=9,'B_WAVE+štěpka'!G646,IF('B_WAVE+štěpka'!$AI$33=10,'B_WAVE+štěpka'!G740,"CHYBA")))))))))) -> 42 | I53: =IF('B_WAVE+štěpka'!$AI$33=1,'B_WAVE+štěpka'!H40,IF('B_WAVE+štěpka'!$AI$33=2,'B_WAVE+štěpka'!H100,IF('B_WAVE+štěpka'!$AI$33=3,'B_WAVE+štěpka'!H166,IF('B_WAVE+štěpka'!$AI$33=4,'B_WAVE+štěpka'!H236,IF('B_WAVE+štěpka'!$AI$33=5,'B_WAVE+štěpka'!H310,IF('B_WAVE+štěpka'!$AI$33=6,'B_WAVE+štěpka'!H388,IF('B_WAVE+štěpka'!$AI$33=7,'B_WAVE+štěpka'!H470,IF('B_WAVE+štěpka'!$AI$33=8,'B_WAVE+štěpka'!H556,IF('B_WAVE+štěpka'!$AI$33=9,'B_WAVE+štěpka'!H646,IF('B_WAVE+štěpka'!$AI$33=10,'B_WAVE+štěpka'!H740,"CHYBA")))))))))) -> 12 | J53: =IF('B_WAVE+štěpka'!$AI$33=1,'B_WAVE+štěpka'!I40,IF('B_WAVE+štěpka'!$AI$33=2,'B_WAVE+štěpka'!I100,IF('B_WAVE+štěpka'!$AI$33=3,'B_WAVE+štěpka'!I166,IF('B_WAVE+štěpka'!$AI$33=4,'B_WAVE+štěpka'!I236,IF('B_WAVE+štěpka'!$AI$33=5,'B_WAVE+štěpka'!I310,IF('B_WAVE+štěpka'!$AI$33=6,'B_WAVE+štěpka'!I388,IF('B_WAVE+štěpka'!$AI$33=7,'B_WAVE+štěpka'!I470,IF('B_WAVE+štěpka'!$AI$33=8,'B_WAVE+štěpka'!I556,IF('B_WAVE+štěpka'!$AI$33=9,'B_WAVE+štěpka'!I646,IF('B_WAVE+štěpka'!$AI$33=10,'B_WAVE+štěpka'!I740,"CHYBA")))))))))) -> 0 | K53: =IF('B_WAVE+štěpka'!$AI$33=1,'B_WAVE+štěpka'!J40,IF('B_WAVE+štěpka'!$AI$33=2,'B_WAVE+štěpka'!J100,IF('B_WAVE+štěpka'!$AI$33=3,'B_WAVE+štěpka'!J166,IF('B_WAVE+štěpka'!$AI$33=4,'B_WAVE+štěpka'!J236,IF('B_WAVE+štěpka'!$AI$33=5,'B_WAVE+štěpka'!J310,IF('B_WAVE+štěpka'!$AI$33=6,'B_WAVE+štěpka'!J388,IF('B_WAVE+štěpka'!$AI$33=7,'B_WAVE+štěpka'!J470,IF('B_WAVE+štěpka'!$AI$33=8,'B_WAVE+štěpka'!J556,IF('B_WAVE+štěpka'!$AI$33=9,'B_WAVE+štěpka'!J646,IF('B_WAVE+štěpka'!$AI$33=10,'B_WAVE+štěpka'!J740,"CHYBA")))))))))) -> 0 | L53: =IF('B_WAVE+štěpka'!$AI$33=1,'B_WAVE+štěpka'!K40,IF('B_WAVE+štěpka'!$AI$33=2,'B_WAVE+štěpka'!K100,IF('B_WAVE+štěpka'!$AI$33=3,'B_WAVE+štěpka'!K166,IF('B_WAVE+štěpka'!$AI$33=4,'B_WAVE+štěpka'!K236,IF('B_WAVE+štěpka'!$AI$33=5,'B_WAVE+štěpka'!K310,IF('B_WAVE+štěpka'!$AI$33=6,'B_WAVE+štěpka'!K388,IF('B_WAVE+štěpka'!$AI$33=7,'B_WAVE+štěpka'!K470,IF('B_WAVE+štěpka'!$AI$33=8,'B_WAVE+štěpka'!K556,IF('B_WAVE+štěpka'!$AI$33=9,'B_WAVE+štěpka'!K646,IF('B_WAVE+štěpka'!$AI$33=10,'B_WAVE+štěpka'!K740,"CHYBA")))))))))) -> 0 | M53: =IF('B_WAVE+štěpka'!$AI$33=1,'B_WAVE+štěpka'!L40,IF('B_WAVE+štěpka'!$AI$33=2,'B_WAVE+štěpka'!L100,IF('B_WAVE+štěpka'!$AI$33=3,'B_WAVE+štěpka'!L166,IF('B_WAVE+štěpka'!$AI$33=4,'B_WAVE+štěpka'!L236,IF('B_WAVE+štěpka'!$AI$33=5,'B_WAVE+štěpka'!L310,IF('B_WAVE+štěpka'!$AI$33=6,'B_WAVE+štěpka'!L388,IF('B_WAVE+štěpka'!$AI$33=7,'B_WAVE+štěpka'!L470,IF('B_WAVE+štěpka'!$AI$33=8,'B_WAVE+štěpka'!L556,IF('B_WAVE+štěpka'!$AI$33=9,'B_WAVE+štěpka'!L646,IF('B_WAVE+štěpka'!$AI$33=10,'B_WAVE+štěpka'!L740,"CHYBA")))))))))) -> 0 | N53: =IF('B_WAVE+štěpka'!$AI$33=1,'B_WAVE+štěpka'!M40,IF('B_WAVE+štěpka'!$AI$33=2,'B_WAVE+štěpka'!M100,IF('B_WAVE+štěpka'!$AI$33=3,'B_WAVE+štěpka'!M166,IF('B_WAVE+štěpka'!$AI$33=4,'B_WAVE+štěpka'!M236,IF('B_WAVE+štěpka'!$AI$33=5,'B_WAVE+štěpka'!M310,IF('B_WAVE+štěpka'!$AI$33=6,'B_WAVE+štěpka'!M388,IF('B_WAVE+štěpka'!$AI$33=7,'B_WAVE+štěpka'!M470,IF('B_WAVE+štěpka'!$AI$33=8,'B_WAVE+štěpka'!M556,IF('B_WAVE+štěpka'!$AI$33=9,'B_WAVE+štěpka'!M646,IF('B_WAVE+štěpka'!$AI$33=10,'B_WAVE+štěpka'!M740,"CHYBA")))))))))) -> 0 | O53: =IF('B_WAVE+štěpka'!$AI$33=1,'B_WAVE+štěpka'!N40,IF('B_WAVE+štěpka'!$AI$33=2,'B_WAVE+štěpka'!N100,IF('B_WAVE+štěpka'!$AI$33=3,'B_WAVE+štěpka'!N166,IF('B_WAVE+štěpka'!$AI$33=4,'B_WAVE+štěpka'!N236,IF('B_WAVE+štěpka'!$AI$33=5,'B_WAVE+štěpka'!N310,IF('B_WAVE+štěpka'!$AI$33=6,'B_WAVE+štěpka'!N388,IF('B_WAVE+štěpka'!$AI$33=7,'B_WAVE+štěpka'!N470,IF('B_WAVE+štěpka'!$AI$33=8,'B_WAVE+štěpka'!N556,IF('B_WAVE+štěpka'!$AI$33=9,'B_WAVE+štěpka'!N646,IF('B_WAVE+štěpka'!$AI$33=10,'B_WAVE+štěpka'!N740,"CHYBA")))))))))) -> 0 | P53: =IF('B_WAVE+štěpka'!$AI$33=1,'B_WAVE+štěpka'!O40,IF('B_WAVE+štěpka'!$AI$33=2,'B_WAVE+štěpka'!O100,IF('B_WAVE+štěpka'!$AI$33=3,'B_WAVE+štěpka'!O166,IF('B_WAVE+štěpka'!$AI$33=4,'B_WAVE+štěpka'!O236,IF('B_WAVE+štěpka'!$AI$33=5,'B_WAVE+štěpka'!O310,IF('B_WAVE+štěpka'!$AI$33=6,'B_WAVE+štěpka'!O388,IF('B_WAVE+štěpka'!$AI$33=7,'B_WAVE+štěpka'!O470,IF('B_WAVE+štěpka'!$AI$33=8,'B_WAVE+štěpka'!O556,IF('B_WAVE+štěpka'!$AI$33=9,'B_WAVE+štěpka'!O646,IF('B_WAVE+štěpka'!$AI$33=10,'B_WAVE+štěpka'!O740,"CHYBA")))))))))) -> 0 | Q53: =IF('B_WAVE+štěpka'!$AI$33=1,'B_WAVE+štěpka'!P40,IF('B_WAVE+štěpka'!$AI$33=2,'B_WAVE+štěpka'!P100,IF('B_WAVE+štěpka'!$AI$33=3,'B_WAVE+štěpka'!P166,IF('B_WAVE+štěpka'!$AI$33=4,'B_WAVE+štěpka'!P236,IF('B_WAVE+štěpka'!$AI$33=5,'B_WAVE+štěpka'!P310,IF('B_WAVE+štěpka'!$AI$33=6,'B_WAVE+štěpka'!P388,IF('B_WAVE+štěpka'!$AI$33=7,'B_WAVE+štěpka'!P470,IF('B_WAVE+štěpka'!$AI$33=8,'B_WAVE+štěpka'!P556,IF('B_WAVE+štěpka'!$AI$33=9,'B_WAVE+štěpka'!P646,IF('B_WAVE+štěpka'!$AI$33=10,'B_WAVE+štěpka'!P740,"CHYBA")))))))))) -> 0 | R53: =IF('B_WAVE+štěpka'!$AI$33=1,'B_WAVE+štěpka'!Q40,IF('B_WAVE+štěpka'!$AI$33=2,'B_WAVE+štěpka'!Q100,IF('B_WAVE+štěpka'!$AI$33=3,'B_WAVE+štěpka'!Q166,IF('B_WAVE+štěpka'!$AI$33=4,'B_WAVE+štěpka'!Q236,IF('B_WAVE+štěpka'!$AI$33=5,'B_WAVE+štěpka'!Q310,IF('B_WAVE+štěpka'!$AI$33=6,'B_WAVE+štěpka'!Q388,IF('B_WAVE+štěpka'!$AI$33=7,'B_WAVE+štěpka'!Q470,IF('B_WAVE+štěpka'!$AI$33=8,'B_WAVE+štěpka'!Q556,IF('B_WAVE+štěpka'!$AI$33=9,'B_WAVE+štěpka'!Q646,IF('B_WAVE+štěpka'!$AI$33=10,'B_WAVE+štěpka'!Q740,"CHYBA")))))))))) -> 0
A54: Roční produkce tepla | B54: GJ/r | C54: =IF('B_WAVE+štěpka'!$AI$33=1,'B_WAVE+štěpka'!B41,IF('B_WAVE+štěpka'!$AI$33=2,'B_WAVE+štěpka'!B101,IF('B_WAVE+štěpka'!$AI$33=3,'B_WAVE+štěpka'!B167,IF('B_WAVE+štěpka'!$AI$33=4,'B_WAVE+štěpka'!B237,IF('B_WAVE+štěpka'!$AI$33=5,'B_WAVE+štěpka'!B311,IF('B_WAVE+štěpka'!$AI$33=6,'B_WAVE+štěpka'!B389,IF('B_WAVE+štěpka'!$AI$33=7,'B_WAVE+štěpka'!B471,IF('B_WAVE+štěpka'!$AI$33=8,'B_WAVE+štěpka'!B557,IF('B_WAVE+štěpka'!$AI$33=9,'B_WAVE+štěpka'!B647,IF('B_WAVE+štěpka'!$AI$33=10,'B_WAVE+štěpka'!B741,"CHYBA")))))))))) -> 1741.0248
A55: Využití instalovaného výkonu | B55: h/r | C55: =IFERROR(C54/3.6*1000/C52,0) -> 1179.556098
B56: % | C56: =100/8760*C55 -> 13.46525226
A57: Odhad investičních nákladů | B57: tis. Kč | C57: =-0.001*IF('B_WAVE+štěpka'!$AI$33=1,'B_WAVE+štěpka'!B49,IF('B_WAVE+štěpka'!$AI$33=2,'B_WAVE+štěpka'!B109,IF('B_WAVE+štěpka'!$AI$33=3,'B_WAVE+štěpka'!B175,IF('B_WAVE+štěpka'!$AI$33=4,'B_WAVE+štěpka'!B245,IF('B_WAVE+štěpka'!$AI$33=5,'B_WAVE+štěpka'!B319,IF('B_WAVE+štěpka'!$AI$33=6,'B_WAVE+štěpka'!B397,IF('B_WAVE+štěpka'!$AI$33=7,'B_WAVE+štěpka'!B479,IF('B_WAVE+štěpka'!$AI$33=8,'B_WAVE+štěpka'!B565,IF('B_WAVE+štěpka'!$AI$33=9,'B_WAVE+štěpka'!B655,IF('B_WAVE+štěpka'!$AI$33=10,'B_WAVE+štěpka'!B749,"CHYBA")))))))))) -> -9553
A58: Odhad provozních nákladů (nom.hodn.) | B58: tis. Kč/r | C58: =-0.001*IF('B_WAVE+štěpka'!$AI$33=1,'B_WAVE+štěpka'!D49,IF('B_WAVE+štěpka'!$AI$33=2,'B_WAVE+štěpka'!D109,IF('B_WAVE+štěpka'!$AI$33=3,'B_WAVE+štěpka'!D175,IF('B_WAVE+štěpka'!$AI$33=4,'B_WAVE+štěpka'!D245,IF('B_WAVE+štěpka'!$AI$33=5,'B_WAVE+štěpka'!D319,IF('B_WAVE+štěpka'!$AI$33=6,'B_WAVE+štěpka'!D397,IF('B_WAVE+štěpka'!$AI$33=7,'B_WAVE+štěpka'!D479,IF('B_WAVE+štěpka'!$AI$33=8,'B_WAVE+štěpka'!D565,IF('B_WAVE+štěpka'!$AI$33=9,'B_WAVE+štěpka'!D655,IF('B_WAVE+štěpka'!$AI$33=10,'B_WAVE+štěpka'!D749,"CHYBA")))))))))) -> -307.8980937
A61: Produkce tepla | C61: LEDEN | D61: ÚNOR | E61: BŘEZEN | F61: DUBEN | G61: KVĚTEN | H61: ČERVEN | I61: ČERVENEC | J61: SRPEN | K61: ZÁŘÍ | L61: ŘÍJEN | M61: LISTOPAD | N61: PROSINEC
A62: WAVY celkem | B62: GJ/měsíc | C62: =IF('B_WAVE+štěpka'!$AI$33=1,'B_WAVE+štěpka'!C64,IF('B_WAVE+štěpka'!$AI$33=2,'B_WAVE+štěpka'!C128,IF('B_WAVE+štěpka'!$AI$33=3,'B_WAVE+štěpka'!C197,IF('B_WAVE+štěpka'!$AI$33=4,'B_WAVE+štěpka'!C270,IF('B_WAVE+štěpka'!$AI$33=5,'B_WAVE+štěpka'!C347,IF('B_WAVE+štěpka'!$AI$33=6,'B_WAVE+štěpka'!C428,IF('B_WAVE+štěpka'!$AI$33=7,'B_WAVE+štěpka'!C513,IF('B_WAVE+štěpka'!$AI$33=8,'B_WAVE+štěpka'!C602,IF('B_WAVE+štěpka'!$AI$33=9,'B_WAVE+štěpka'!C695,IF('B_WAVE+štěpka'!$AI$33=10,'B_WAVE+štěpka'!C792,"CHYBA")))))))))) -> 962.1036 | D62: =IF('B_WAVE+štěpka'!$AI$33=1,'B_WAVE+štěpka'!D64,IF('B_WAVE+štěpka'!$AI$33=2,'B_WAVE+štěpka'!D128,IF('B_WAVE+štěpka'!$AI$33=3,'B_WAVE+štěpka'!D197,IF('B_WAVE+štěpka'!$AI$33=4,'B_WAVE+štěpka'!D270,IF('B_WAVE+štěpka'!$AI$33=5,'B_WAVE+štěpka'!D347,IF('B_WAVE+štěpka'!$AI$33=6,'B_WAVE+štěpka'!D428,IF('B_WAVE+štěpka'!$AI$33=7,'B_WAVE+štěpka'!D513,IF('B_WAVE+štěpka'!$AI$33=8,'B_WAVE+štěpka'!D602,IF('B_WAVE+štěpka'!$AI$33=9,'B_WAVE+štěpka'!D695,IF('B_WAVE+štěpka'!$AI$33=10,'B_WAVE+štěpka'!D792,"CHYBA")))))))))) -> 865.368 | E62: =IF('B_WAVE+štěpka'!$AI$33=1,'B_WAVE+štěpka'!E64,IF('B_WAVE+štěpka'!$AI$33=2,'B_WAVE+štěpka'!E128,IF('B_WAVE+štěpka'!$AI$33=3,'B_WAVE+štěpka'!E197,IF('B_WAVE+štěpka'!$AI$33=4,'B_WAVE+štěpka'!E270,IF('B_WAVE+štěpka'!$AI$33=5,'B_WAVE+štěpka'!E347,IF('B_WAVE+štěpka'!$AI$33=6,'B_WAVE+štěpka'!E428,IF('B_WAVE+štěpka'!$AI$33=7,'B_WAVE+štěpka'!E513,IF('B_WAVE+štěpka'!$AI$33=8,'B_WAVE+štěpka'!E602,IF('B_WAVE+štěpka'!$AI$33=9,'B_WAVE+štěpka'!E695,IF('B_WAVE+štěpka'!$AI$33=10,'B_WAVE+štěpka'!E792,"CHYBA")))))))))) -> 905.1876 | F62: =IF('B_WAVE+štěpka'!$AI$33=1,'B_WAVE+štěpka'!F64,IF('B_WAVE+štěpka'!$AI$33=2,'B_WAVE+štěpka'!F128,IF('B_WAVE+štěpka'!$AI$33=3,'B_WAVE+štěpka'!F197,IF('B_WAVE+štěpka'!$AI$33=4,'B_WAVE+štěpka'!F270,IF('B_WAVE+štěpka'!$AI$33=5,'B_WAVE+štěpka'!F347,IF('B_WAVE+štěpka'!$AI$33=6,'B_WAVE+štěpka'!F428,IF('B_WAVE+štěpka'!$AI$33=7,'B_WAVE+štěpka'!F513,IF('B_WAVE+štěpka'!$AI$33=8,'B_WAVE+štěpka'!F602,IF('B_WAVE+štěpka'!$AI$33=9,'B_WAVE+štěpka'!F695,IF('B_WAVE+štěpka'!$AI$33=10,'B_WAVE+štěpka'!F792,"CHYBA")))))))))) -> 773.172 | G62: =IF('B_WAVE+štěpka'!$AI$33=1,'B_WAVE+štěpka'!G64,IF('B_WAVE+štěpka'!$AI$33=2,'B_WAVE+štěpka'!G128,IF('B_WAVE+štěpka'!$AI$33=3,'B_WAVE+štěpka'!G197,IF('B_WAVE+štěpka'!$AI$33=4,'B_WAVE+štěpka'!G270,IF('B_WAVE+štěpka'!$AI$33=5,'B_WAVE+štěpka'!G347,IF('B_WAVE+štěpka'!$AI$33=6,'B_WAVE+štěpka'!G428,IF('B_WAVE+štěpka'!$AI$33=7,'B_WAVE+štěpka'!G513,IF('B_WAVE+štěpka'!$AI$33=8,'B_WAVE+štěpka'!G602,IF('B_WAVE+štěpka'!$AI$33=9,'B_WAVE+štěpka'!G695,IF('B_WAVE+štěpka'!$AI$33=10,'B_WAVE+štěpka'!G792,"CHYBA")))))))))) -> 670.158 | H62: =IF('B_WAVE+štěpka'!$AI$33=1,'B_WAVE+štěpka'!H64,IF('B_WAVE+štěpka'!$AI$33=2,'B_WAVE+štěpka'!H128,IF('B_WAVE+štěpka'!$AI$33=3,'B_WAVE+štěpka'!H197,IF('B_WAVE+štěpka'!$AI$33=4,'B_WAVE+štěpka'!H270,IF('B_WAVE+štěpka'!$AI$33=5,'B_WAVE+štěpka'!H347,IF('B_WAVE+štěpka'!$AI$33=6,'B_WAVE+štěpka'!H428,IF('B_WAVE+štěpka'!$AI$33=7,'B_WAVE+štěpka'!H513,IF('B_WAVE+štěpka'!$AI$33=8,'B_WAVE+štěpka'!H602,IF('B_WAVE+štěpka'!$AI$33=9,'B_WAVE+štěpka'!H695,IF('B_WAVE+štěpka'!$AI$33=10,'B_WAVE+štěpka'!H792,"CHYBA")))))))))) -> 408.564 | I62: =IF('B_WAVE+štěpka'!$AI$33=1,'B_WAVE+štěpka'!I64,IF('B_WAVE+štěpka'!$AI$33=2,'B_WAVE+štěpka'!I128,IF('B_WAVE+štěpka'!$AI$33=3,'B_WAVE+štěpka'!I197,IF('B_WAVE+štěpka'!$AI$33=4,'B_WAVE+štěpka'!I270,IF('B_WAVE+štěpka'!$AI$33=5,'B_WAVE+štěpka'!I347,IF('B_WAVE+štěpka'!$AI$33=6,'B_WAVE+štěpka'!I428,IF('B_WAVE+štěpka'!$AI$33=7,'B_WAVE+štěpka'!I513,IF('B_WAVE+štěpka'!$AI$33=8,'B_WAVE+štěpka'!I602,IF('B_WAVE+štěpka'!$AI$33=9,'B_WAVE+štěpka'!I695,IF('B_WAVE+štěpka'!$AI$33=10,'B_WAVE+štěpka'!I792,"CHYBA")))))))))) -> 422.1828 | J62: =IF('B_WAVE+štěpka'!$AI$33=1,'B_WAVE+štěpka'!J64,IF('B_WAVE+štěpka'!$AI$33=2,'B_WAVE+štěpka'!J128,IF('B_WAVE+štěpka'!$AI$33=3,'B_WAVE+štěpka'!J197,IF('B_WAVE+štěpka'!$AI$33=4,'B_WAVE+štěpka'!J270,IF('B_WAVE+štěpka'!$AI$33=5,'B_WAVE+štěpka'!J347,IF('B_WAVE+štěpka'!$AI$33=6,'B_WAVE+štěpka'!J428,IF('B_WAVE+štěpka'!$AI$33=7,'B_WAVE+štěpka'!J513,IF('B_WAVE+štěpka'!$AI$33=8,'B_WAVE+štěpka'!J602,IF('B_WAVE+štěpka'!$AI$33=9,'B_WAVE+štěpka'!J695,IF('B_WAVE+štěpka'!$AI$33=10,'B_WAVE+štěpka'!J792,"CHYBA")))))))))) -> 422.1828 | K62: =IF('B_WAVE+štěpka'!$AI$33=1,'B_WAVE+štěpka'!K64,IF('B_WAVE+štěpka'!$AI$33=2,'B_WAVE+štěpka'!K128,IF('B_WAVE+štěpka'!$AI$33=3,'B_WAVE+štěpka'!K197,IF('B_WAVE+štěpka'!$AI$33=4,'B_WAVE+štěpka'!K270,IF('B_WAVE+štěpka'!$AI$33=5,'B_WAVE+štěpka'!K347,IF('B_WAVE+štěpka'!$AI$33=6,'B_WAVE+štěpka'!K428,IF('B_WAVE+štěpka'!$AI$33=7,'B_WAVE+štěpka'!K513,IF('B_WAVE+štěpka'!$AI$33=8,'B_WAVE+štěpka'!K602,IF('B_WAVE+štěpka'!$AI$33=9,'B_WAVE+štěpka'!K695,IF('B_WAVE+štěpka'!$AI$33=10,'B_WAVE+štěpka'!K792,"CHYBA")))))))))) -> 652.428 | L62: =IF('B_WAVE+štěpka'!$AI$33=1,'B_WAVE+štěpka'!L64,IF('B_WAVE+štěpka'!$AI$33=2,'B_WAVE+štěpka'!L128,IF('B_WAVE+štěpka'!$AI$33=3,'B_WAVE+štěpka'!L197,IF('B_WAVE+štěpka'!$AI$33=4,'B_WAVE+štěpka'!L270,IF('B_WAVE+štěpka'!$AI$33=5,'B_WAVE+štěpka'!L347,IF('B_WAVE+štěpka'!$AI$33=6,'B_WAVE+štěpka'!L428,IF('B_WAVE+štěpka'!$AI$33=7,'B_WAVE+štěpka'!L513,IF('B_WAVE+štěpka'!$AI$33=8,'B_WAVE+štěpka'!L602,IF('B_WAVE+štěpka'!$AI$33=9,'B_WAVE+štěpka'!L695,IF('B_WAVE+štěpka'!$AI$33=10,'B_WAVE+štěpka'!L792,"CHYBA")))))))))) -> 796.824 | M62: =IF('B_WAVE+štěpka'!$AI$33=1,'B_WAVE+štěpka'!M64,IF('B_WAVE+štěpka'!$AI$33=2,'B_WAVE+štěpka'!M128,IF('B_WAVE+štěpka'!$AI$33=3,'B_WAVE+štěpka'!M197,IF('B_WAVE+štěpka'!$AI$33=4,'B_WAVE+štěpka'!M270,IF('B_WAVE+štěpka'!$AI$33=5,'B_WAVE+štěpka'!M347,IF('B_WAVE+štěpka'!$AI$33=6,'B_WAVE+štěpka'!M428,IF('B_WAVE+štěpka'!$AI$33=7,'B_WAVE+štěpka'!M513,IF('B_WAVE+štěpka'!$AI$33=8,'B_WAVE+štěpka'!M602,IF('B_WAVE+štěpka'!$AI$33=9,'B_WAVE+štěpka'!M695,IF('B_WAVE+štěpka'!$AI$33=10,'B_WAVE+štěpka'!M792,"CHYBA")))))))))) -> 881.604 | N62: =IF('B_WAVE+štěpka'!$AI$33=1,'B_WAVE+štěpka'!N64,IF('B_WAVE+štěpka'!$AI$33=2,'B_WAVE+štěpka'!N128,IF('B_WAVE+štěpka'!$AI$33=3,'B_WAVE+štěpka'!N197,IF('B_WAVE+štěpka'!$AI$33=4,'B_WAVE+štěpka'!N270,IF('B_WAVE+štěpka'!$AI$33=5,'B_WAVE+štěpka'!N347,IF('B_WAVE+štěpka'!$AI$33=6,'B_WAVE+štěpka'!N428,IF('B_WAVE+štěpka'!$AI$33=7,'B_WAVE+štěpka'!N513,IF('B_WAVE+štěpka'!$AI$33=8,'B_WAVE+štěpka'!N602,IF('B_WAVE+štěpka'!$AI$33=9,'B_WAVE+štěpka'!N695,IF('B_WAVE+štěpka'!$AI$33=10,'B_WAVE+štěpka'!N792,"CHYBA")))))))))) -> 957.3048
A63: Kotle celkem | B63: GJ/měsíc | C63: =IF('B_WAVE+štěpka'!$AI$33=1,'B_WAVE+štěpka'!C67,IF('B_WAVE+štěpka'!$AI$33=2,'B_WAVE+štěpka'!C131,IF('B_WAVE+štěpka'!$AI$33=3,'B_WAVE+štěpka'!C200,IF('B_WAVE+štěpka'!$AI$33=4,'B_WAVE+štěpka'!C273,IF('B_WAVE+štěpka'!$AI$33=5,'B_WAVE+štěpka'!C350,IF('B_WAVE+štěpka'!$AI$33=6,'B_WAVE+štěpka'!C431,IF('B_WAVE+štěpka'!$AI$33=7,'B_WAVE+štěpka'!C516,IF('B_WAVE+štěpka'!$AI$33=8,'B_WAVE+štěpka'!C605,IF('B_WAVE+štěpka'!$AI$33=9,'B_WAVE+štěpka'!C698,IF('B_WAVE+štěpka'!$AI$33=10,'B_WAVE+štěpka'!C795,"CHYBA")))))))))) -> 353.1024 | D63: =IF('B_WAVE+štěpka'!$AI$33=1,'B_WAVE+štěpka'!D67,IF('B_WAVE+štěpka'!$AI$33=2,'B_WAVE+štěpka'!D131,IF('B_WAVE+štěpka'!$AI$33=3,'B_WAVE+štěpka'!D200,IF('B_WAVE+štěpka'!$AI$33=4,'B_WAVE+štěpka'!D273,IF('B_WAVE+štěpka'!$AI$33=5,'B_WAVE+štěpka'!D350,IF('B_WAVE+štěpka'!$AI$33=6,'B_WAVE+štěpka'!D431,IF('B_WAVE+štěpka'!$AI$33=7,'B_WAVE+štěpka'!D516,IF('B_WAVE+štěpka'!$AI$33=8,'B_WAVE+štěpka'!D605,IF('B_WAVE+štěpka'!$AI$33=9,'B_WAVE+štěpka'!D698,IF('B_WAVE+štěpka'!$AI$33=10,'B_WAVE+štěpka'!D795,"CHYBA")))))))))) -> 285.768 | E63: =IF('B_WAVE+štěpka'!$AI$33=1,'B_WAVE+štěpka'!E67,IF('B_WAVE+štěpka'!$AI$33=2,'B_WAVE+štěpka'!E131,IF('B_WAVE+štěpka'!$AI$33=3,'B_WAVE+štěpka'!E200,IF('B_WAVE+štěpka'!$AI$33=4,'B_WAVE+štěpka'!E273,IF('B_WAVE+štěpka'!$AI$33=5,'B_WAVE+štěpka'!E350,IF('B_WAVE+štěpka'!$AI$33=6,'B_WAVE+štěpka'!E431,IF('B_WAVE+štěpka'!$AI$33=7,'B_WAVE+štěpka'!E516,IF('B_WAVE+štěpka'!$AI$33=8,'B_WAVE+štěpka'!E605,IF('B_WAVE+štěpka'!$AI$33=9,'B_WAVE+štěpka'!E698,IF('B_WAVE+štěpka'!$AI$33=10,'B_WAVE+štěpka'!E795,"CHYBA")))))))))) -> 209.4732 | F63: =IF('B_WAVE+štěpka'!$AI$33=1,'B_WAVE+štěpka'!F67,IF('B_WAVE+štěpka'!$AI$33=2,'B_WAVE+štěpka'!F131,IF('B_WAVE+štěpka'!$AI$33=3,'B_WAVE+štěpka'!F200,IF('B_WAVE+štěpka'!$AI$33=4,'B_WAVE+štěpka'!F273,IF('B_WAVE+štěpka'!$AI$33=5,'B_WAVE+štěpka'!F350,IF('B_WAVE+štěpka'!$AI$33=6,'B_WAVE+štěpka'!F431,IF('B_WAVE+štěpka'!$AI$33=7,'B_WAVE+štěpka'!F516,IF('B_WAVE+štěpka'!$AI$33=8,'B_WAVE+štěpka'!F605,IF('B_WAVE+štěpka'!$AI$33=9,'B_WAVE+štěpka'!F698,IF('B_WAVE+štěpka'!$AI$33=10,'B_WAVE+štěpka'!F795,"CHYBA")))))))))) -> 111.348 | G63: =IF('B_WAVE+štěpka'!$AI$33=1,'B_WAVE+štěpka'!G67,IF('B_WAVE+štěpka'!$AI$33=2,'B_WAVE+štěpka'!G131,IF('B_WAVE+štěpka'!$AI$33=3,'B_WAVE+štěpka'!G200,IF('B_WAVE+štěpka'!$AI$33=4,'B_WAVE+štěpka'!G273,IF('B_WAVE+štěpka'!$AI$33=5,'B_WAVE+štěpka'!G350,IF('B_WAVE+štěpka'!$AI$33=6,'B_WAVE+štěpka'!G431,IF('B_WAVE+štěpka'!$AI$33=7,'B_WAVE+štěpka'!G516,IF('B_WAVE+štěpka'!$AI$33=8,'B_WAVE+štěpka'!G605,IF('B_WAVE+štěpka'!$AI$33=9,'B_WAVE+štěpka'!G698,IF('B_WAVE+štěpka'!$AI$33=10,'B_WAVE+štěpka'!G795,"CHYBA")))))))))) -> 34.9308 | H63: =IF('B_WAVE+štěpka'!$AI$33=1,'B_WAVE+štěpka'!H67,IF('B_WAVE+štěpka'!$AI$33=2,'B_WAVE+štěpka'!H131,IF('B_WAVE+štěpka'!$AI$33=3,'B_WAVE+štěpka'!H200,IF('B_WAVE+štěpka'!$AI$33=4,'B_WAVE+štěpka'!H273,IF('B_WAVE+štěpka'!$AI$33=5,'B_WAVE+štěpka'!H350,IF('B_WAVE+štěpka'!$AI$33=6,'B_WAVE+štěpka'!H431,IF('B_WAVE+štěpka'!$AI$33=7,'B_WAVE+štěpka'!H516,IF('B_WAVE+štěpka'!$AI$33=8,'B_WAVE+štěpka'!H605,IF('B_WAVE+štěpka'!$AI$33=9,'B_WAVE+štěpka'!H698,IF('B_WAVE+štěpka'!$AI$33=10,'B_WAVE+štěpka'!H795,"CHYBA")))))))))) -> 23.976 | I63: =IF('B_WAVE+štěpka'!$AI$33=1,'B_WAVE+štěpka'!I67,IF('B_WAVE+štěpka'!$AI$33=2,'B_WAVE+štěpka'!I131,IF('B_WAVE+štěpka'!$AI$33=3,'B_WAVE+štěpka'!I200,IF('B_WAVE+štěpka'!$AI$33=4,'B_WAVE+štěpka'!I273,IF('B_WAVE+štěpka'!$AI$33=5,'B_WAVE+štěpka'!I350,IF('B_WAVE+štěpka'!$AI$33=6,'B_WAVE+štěpka'!I431,IF('B_WAVE+štěpka'!$AI$33=7,'B_WAVE+štěpka'!I516,IF('B_WAVE+štěpka'!$AI$33=8,'B_WAVE+štěpka'!I605,IF('B_WAVE+štěpka'!$AI$33=9,'B_WAVE+štěpka'!I698,IF('B_WAVE+štěpka'!$AI$33=10,'B_WAVE+štěpka'!I795,"CHYBA")))))))))) -> 24.7752 | J63: =IF('B_WAVE+štěpka'!$AI$33=1,'B_WAVE+štěpka'!J67,IF('B_WAVE+štěpka'!$AI$33=2,'B_WAVE+štěpka'!J131,IF('B_WAVE+štěpka'!$AI$33=3,'B_WAVE+štěpka'!J200,IF('B_WAVE+štěpka'!$AI$33=4,'B_WAVE+štěpka'!J273,IF('B_WAVE+štěpka'!$AI$33=5,'B_WAVE+štěpka'!J350,IF('B_WAVE+štěpka'!$AI$33=6,'B_WAVE+štěpka'!J431,IF('B_WAVE+štěpka'!$AI$33=7,'B_WAVE+štěpka'!J516,IF('B_WAVE+štěpka'!$AI$33=8,'B_WAVE+štěpka'!J605,IF('B_WAVE+štěpka'!$AI$33=9,'B_WAVE+štěpka'!J698,IF('B_WAVE+štěpka'!$AI$33=10,'B_WAVE+štěpka'!J795,"CHYBA")))))))))) -> 24.7752 | K63: =IF('B_WAVE+štěpka'!$AI$33=1,'B_WAVE+štěpka'!K67,IF('B_WAVE+štěpka'!$AI$33=2,'B_WAVE+štěpka'!K131,IF('B_WAVE+štěpka'!$AI$33=3,'B_WAVE+štěpka'!K200,IF('B_WAVE+štěpka'!$AI$33=4,'B_WAVE+štěpka'!K273,IF('B_WAVE+štěpka'!$AI$33=5,'B_WAVE+štěpka'!K350,IF('B_WAVE+štěpka'!$AI$33=6,'B_WAVE+štěpka'!K431,IF('B_WAVE+štěpka'!$AI$33=7,'B_WAVE+štěpka'!K516,IF('B_WAVE+štěpka'!$AI$33=8,'B_WAVE+štěpka'!K605,IF('B_WAVE+štěpka'!$AI$33=9,'B_WAVE+štěpka'!K698,IF('B_WAVE+štěpka'!$AI$33=10,'B_WAVE+štěpka'!K795,"CHYBA")))))))))) -> 37.692 | L63: =IF('B_WAVE+štěpka'!$AI$33=1,'B_WAVE+štěpka'!L67,IF('B_WAVE+štěpka'!$AI$33=2,'B_WAVE+štěpka'!L131,IF('B_WAVE+štěpka'!$AI$33=3,'B_WAVE+štěpka'!L200,IF('B_WAVE+štěpka'!$AI$33=4,'B_WAVE+štěpka'!L273,IF('B_WAVE+štěpka'!$AI$33=5,'B_WAVE+štěpka'!L350,IF('B_WAVE+štěpka'!$AI$33=6,'B_WAVE+štěpka'!L431,IF('B_WAVE+štěpka'!$AI$33=7,'B_WAVE+štěpka'!L516,IF('B_WAVE+štěpka'!$AI$33=8,'B_WAVE+štěpka'!L605,IF('B_WAVE+štěpka'!$AI$33=9,'B_WAVE+štěpka'!L698,IF('B_WAVE+štěpka'!$AI$33=10,'B_WAVE+štěpka'!L795,"CHYBA")))))))))) -> 113.1624 | M63: =IF('B_WAVE+štěpka'!$AI$33=1,'B_WAVE+štěpka'!M67,IF('B_WAVE+štěpka'!$AI$33=2,'B_WAVE+štěpka'!M131,IF('B_WAVE+štěpka'!$AI$33=3,'B_WAVE+štěpka'!M200,IF('B_WAVE+štěpka'!$AI$33=4,'B_WAVE+štěpka'!M273,IF('B_WAVE+štěpka'!$AI$33=5,'B_WAVE+štěpka'!M350,IF('B_WAVE+štěpka'!$AI$33=6,'B_WAVE+štěpka'!M431,IF('B_WAVE+štěpka'!$AI$33=7,'B_WAVE+štěpka'!M516,IF('B_WAVE+štěpka'!$AI$33=8,'B_WAVE+štěpka'!M605,IF('B_WAVE+štěpka'!$AI$33=9,'B_WAVE+štěpka'!M698,IF('B_WAVE+štěpka'!$AI$33=10,'B_WAVE+štěpka'!M795,"CHYBA")))))))))) -> 208.872 | N63: =IF('B_WAVE+štěpka'!$AI$33=1,'B_WAVE+štěpka'!N67,IF('B_WAVE+štěpka'!$AI$33=2,'B_WAVE+štěpka'!N131,IF('B_WAVE+štěpka'!$AI$33=3,'B_WAVE+štěpka'!N200,IF('B_WAVE+štěpka'!$AI$33=4,'B_WAVE+štěpka'!N273,IF('B_WAVE+štěpka'!$AI$33=5,'B_WAVE+štěpka'!N350,IF('B_WAVE+štěpka'!$AI$33=6,'B_WAVE+štěpka'!N431,IF('B_WAVE+štěpka'!$AI$33=7,'B_WAVE+štěpka'!N516,IF('B_WAVE+štěpka'!$AI$33=8,'B_WAVE+štěpka'!N605,IF('B_WAVE+štěpka'!$AI$33=9,'B_WAVE+štěpka'!N698,IF('B_WAVE+štěpka'!$AI$33=10,'B_WAVE+štěpka'!N795,"CHYBA")))))))))) -> 313.1496
A64: CELKEM | B64: GJ/měsíc | C64: =C63+C62 -> 1315.206 | D64: =D63+D62 -> 1151.136 | E64: 1114.6608 | F64: 884.52 | G64: 705.0888 | H64: 432.54 | I64: 446.958 | J64: 446.958 | K64: 690.12 | L64: 909.9864 | M64: 1090.476 | N64: 1270.4544 | O64: =SUM(C64:N64) -> 10458.1044 | P64: GJ/rok
A66: Využití instalovaného výkonu | C66: LEDEN | D66: ÚNOR | E66: BŘEZEN | F66: DUBEN | G66: KVĚTEN | H66: ČERVEN | I66: ČERVENEC | J66: SRPEN | K66: ZÁŘÍ | L66: ŘÍJEN | M66: LISTOPAD | N66: PROSINEC
A67: WAVY celkem | B67: h/měsíc | C67: =IF('B_WAVE+štěpka'!$AI$33=1,'B_WAVE+štěpka'!C68,IF('B_WAVE+štěpka'!$AI$33=2,'B_WAVE+štěpka'!C134,IF('B_WAVE+štěpka'!$AI$33=3,'B_WAVE+štěpka'!C204,IF('B_WAVE+štěpka'!$AI$33=4,'B_WAVE+štěpka'!C278,IF('B_WAVE+štěpka'!$AI$33=5,'B_WAVE+štěpka'!C356,IF('B_WAVE+štěpka'!$AI$33=6,'B_WAVE+štěpka'!C438,IF('B_WAVE+štěpka'!$AI$33=7,'B_WAVE+štěpka'!C524,IF('B_WAVE+štěpka'!$AI$33=8,'B_WAVE+štěpka'!C614,IF('B_WAVE+štěpka'!$AI$33=9,'B_WAVE+štěpka'!C708,IF('B_WAVE+štěpka'!$AI$33=10,'B_WAVE+štěpka'!C806,"CHYBA")))))))))) -> 742.3638889 | D67: =IF('B_WAVE+štěpka'!$AI$33=1,'B_WAVE+štěpka'!D68,IF('B_WAVE+štěpka'!$AI$33=2,'B_WAVE+štěpka'!D134,IF('B_WAVE+štěpka'!$AI$33=3,'B_WAVE+štěpka'!D204,IF('B_WAVE+štěpka'!$AI$33=4,'B_WAVE+štěpka'!D278,IF('B_WAVE+štěpka'!$AI$33=5,'B_WAVE+štěpka'!D356,IF('B_WAVE+štěpka'!$AI$33=6,'B_WAVE+štěpka'!D438,IF('B_WAVE+štěpka'!$AI$33=7,'B_WAVE+štěpka'!D524,IF('B_WAVE+štěpka'!$AI$33=8,'B_WAVE+štěpka'!D614,IF('B_WAVE+štěpka'!$AI$33=9,'B_WAVE+štěpka'!D708,IF('B_WAVE+štěpka'!$AI$33=10,'B_WAVE+štěpka'!D806,"CHYBA")))))))))) -> 667.7222222 | E67: =IF('B_WAVE+štěpka'!$AI$33=1,'B_WAVE+štěpka'!E68,IF('B_WAVE+štěpka'!$AI$33=2,'B_WAVE+štěpka'!E134,IF('B_WAVE+štěpka'!$AI$33=3,'B_WAVE+štěpka'!E204,IF('B_WAVE+štěpka'!$AI$33=4,'B_WAVE+štěpka'!E278,IF('B_WAVE+štěpka'!$AI$33=5,'B_WAVE+štěpka'!E356,IF('B_WAVE+štěpka'!$AI$33=6,'B_WAVE+štěpka'!E438,IF('B_WAVE+štěpka'!$AI$33=7,'B_WAVE+štěpka'!E524,IF('B_WAVE+štěpka'!$AI$33=8,'B_WAVE+štěpka'!E614,IF('B_WAVE+štěpka'!$AI$33=9,'B_WAVE+štěpka'!E708,IF('B_WAVE+štěpka'!$AI$33=10,'B_WAVE+štěpka'!E806,"CHYBA")))))))))) -> 698.4472222 | F67: =IF('B_WAVE+štěpka'!$AI$33=1,'B_WAVE+štěpka'!F68,IF('B_WAVE+štěpka'!$AI$33=2,'B_WAVE+štěpka'!F134,IF('B_WAVE+štěpka'!$AI$33=3,'B_WAVE+štěpka'!F204,IF('B_WAVE+štěpka'!$AI$33=4,'B_WAVE+štěpka'!F278,IF('B_WAVE+štěpka'!$AI$33=5,'B_WAVE+štěpka'!F356,IF('B_WAVE+štěpka'!$AI$33=6,'B_WAVE+štěpka'!F438,IF('B_WAVE+štěpka'!$AI$33=7,'B_WAVE+štěpka'!F524,IF('B_WAVE+štěpka'!$AI$33=8,'B_WAVE+štěpka'!F614,IF('B_WAVE+štěpka'!$AI$33=9,'B_WAVE+štěpka'!F708,IF('B_WAVE+štěpka'!$AI$33=10,'B_WAVE+štěpka'!F806,"CHYBA")))))))))) -> 596.5833333 | G67: =IF('B_WAVE+štěpka'!$AI$33=1,'B_WAVE+štěpka'!G68,IF('B_WAVE+štěpka'!$AI$33=2,'B_WAVE+štěpka'!G134,IF('B_WAVE+štěpka'!$AI$33=3,'B_WAVE+štěpka'!G204,IF('B_WAVE+štěpka'!$AI$33=4,'B_WAVE+štěpka'!G278,IF('B_WAVE+štěpka'!$AI$33=5,'B_WAVE+štěpka'!G356,IF('B_WAVE+štěpka'!$AI$33=6,'B_WAVE+štěpka'!G438,IF('B_WAVE+štěpka'!$AI$33=7,'B_WAVE+štěpka'!G524,IF('B_WAVE+štěpka'!$AI$33=8,'B_WAVE+štěpka'!G614,IF('B_WAVE+štěpka'!$AI$33=9,'B_WAVE+štěpka'!G708,IF('B_WAVE+štěpka'!$AI$33=10,'B_WAVE+štěpka'!G806,"CHYBA")))))))))) -> 517.0972222 | H67: =IF('B_WAVE+štěpka'!$AI$33=1,'B_WAVE+štěpka'!H68,IF('B_WAVE+štěpka'!$AI$33=2,'B_WAVE+štěpka'!H134,IF('B_WAVE+štěpka'!$AI$33=3,'B_WAVE+štěpka'!H204,IF('B_WAVE+štěpka'!$AI$33=4,'B_WAVE+štěpka'!H278,IF('B_WAVE+štěpka'!$AI$33=5,'B_WAVE+štěpka'!H356,IF('B_WAVE+štěpka'!$AI$33=6,'B_WAVE+štěpka'!H438,IF('B_WAVE+štěpka'!$AI$33=7,'B_WAVE+štěpka'!H524,IF('B_WAVE+štěpka'!$AI$33=8,'B_WAVE+štěpka'!H614,IF('B_WAVE+štěpka'!$AI$33=9,'B_WAVE+štěpka'!H708,IF('B_WAVE+štěpka'!$AI$33=10,'B_WAVE+štěpka'!H806,"CHYBA")))))))))) -> 315.25 | I67: =IF('B_WAVE+štěpka'!$AI$33=1,'B_WAVE+štěpka'!I68,IF('B_WAVE+štěpka'!$AI$33=2,'B_WAVE+štěpka'!I134,IF('B_WAVE+štěpka'!$AI$33=3,'B_WAVE+štěpka'!I204,IF('B_WAVE+štěpka'!$AI$33=4,'B_WAVE+štěpka'!I278,IF('B_WAVE+štěpka'!$AI$33=5,'B_WAVE+štěpka'!I356,IF('B_WAVE+štěpka'!$AI$33=6,'B_WAVE+štěpka'!I438,IF('B_WAVE+štěpka'!$AI$33=7,'B_WAVE+štěpka'!I524,IF('B_WAVE+štěpka'!$AI$33=8,'B_WAVE+štěpka'!I614,IF('B_WAVE+štěpka'!$AI$33=9,'B_WAVE+štěpka'!I708,IF('B_WAVE+štěpka'!$AI$33=10,'B_WAVE+štěpka'!I806,"CHYBA")))))))))) -> 325.7583333 | J67: =IF('B_WAVE+štěpka'!$AI$33=1,'B_WAVE+štěpka'!J68,IF('B_WAVE+štěpka'!$AI$33=2,'B_WAVE+štěpka'!J134,IF('B_WAVE+štěpka'!$AI$33=3,'B_WAVE+štěpka'!J204,IF('B_WAVE+štěpka'!$AI$33=4,'B_WAVE+štěpka'!J278,IF('B_WAVE+štěpka'!$AI$33=5,'B_WAVE+štěpka'!J356,IF('B_WAVE+štěpka'!$AI$33=6,'B_WAVE+štěpka'!J438,IF('B_WAVE+štěpka'!$AI$33=7,'B_WAVE+štěpka'!J524,IF('B_WAVE+štěpka'!$AI$33=8,'B_WAVE+štěpka'!J614,IF('B_WAVE+štěpka'!$AI$33=9,'B_WAVE+štěpka'!J708,IF('B_WAVE+štěpka'!$AI$33=10,'B_WAVE+štěpka'!J806,"CHYBA")))))))))) -> 325.7583333 | K67: =IF('B_WAVE+štěpka'!$AI$33=1,'B_WAVE+štěpka'!K68,IF('B_WAVE+štěpka'!$AI$33=2,'B_WAVE+štěpka'!K134,IF('B_WAVE+štěpka'!$AI$33=3,'B_WAVE+štěpka'!K204,IF('B_WAVE+štěpka'!$AI$33=4,'B_WAVE+štěpka'!K278,IF('B_WAVE+štěpka'!$AI$33=5,'B_WAVE+štěpka'!K356,IF('B_WAVE+štěpka'!$AI$33=6,'B_WAVE+štěpka'!K438,IF('B_WAVE+štěpka'!$AI$33=7,'B_WAVE+štěpka'!K524,IF('B_WAVE+štěpka'!$AI$33=8,'B_WAVE+štěpka'!K614,IF('B_WAVE+štěpka'!$AI$33=9,'B_WAVE+štěpka'!K708,IF('B_WAVE+štěpka'!$AI$33=10,'B_WAVE+štěpka'!K806,"CHYBA")))))))))) -> 503.4166667 | L67: =IF('B_WAVE+štěpka'!$AI$33=1,'B_WAVE+štěpka'!L68,IF('B_WAVE+štěpka'!$AI$33=2,'B_WAVE+štěpka'!L134,IF('B_WAVE+štěpka'!$AI$33=3,'B_WAVE+štěpka'!L204,IF('B_WAVE+štěpka'!$AI$33=4,'B_WAVE+štěpka'!L278,IF('B_WAVE+štěpka'!$AI$33=5,'B_WAVE+štěpka'!L356,IF('B_WAVE+štěpka'!$AI$33=6,'B_WAVE+štěpka'!L438,IF('B_WAVE+štěpka'!$AI$33=7,'B_WAVE+štěpka'!L524,IF('B_WAVE+štěpka'!$AI$33=8,'B_WAVE+štěpka'!L614,IF('B_WAVE+štěpka'!$AI$33=9,'B_WAVE+štěpka'!L708,IF('B_WAVE+štěpka'!$AI$33=10,'B_WAVE+štěpka'!L806,"CHYBA")))))))))) -> 614.8333333 | M67: =IF('B_WAVE+štěpka'!$AI$33=1,'B_WAVE+štěpka'!M68,IF('B_WAVE+štěpka'!$AI$33=2,'B_WAVE+štěpka'!M134,IF('B_WAVE+štěpka'!$AI$33=3,'B_WAVE+štěpka'!M204,IF('B_WAVE+štěpka'!$AI$33=4,'B_WAVE+štěpka'!M278,IF('B_WAVE+štěpka'!$AI$33=5,'B_WAVE+štěpka'!M356,IF('B_WAVE+štěpka'!$AI$33=6,'B_WAVE+štěpka'!M438,IF('B_WAVE+štěpka'!$AI$33=7,'B_WAVE+štěpka'!M524,IF('B_WAVE+štěpka'!$AI$33=8,'B_WAVE+štěpka'!M614,IF('B_WAVE+štěpka'!$AI$33=9,'B_WAVE+štěpka'!M708,IF('B_WAVE+štěpka'!$AI$33=10,'B_WAVE+štěpka'!M806,"CHYBA")))))))))) -> 680.25 | N67: =IF('B_WAVE+štěpka'!$AI$33=1,'B_WAVE+štěpka'!N68,IF('B_WAVE+štěpka'!$AI$33=2,'B_WAVE+štěpka'!N134,IF('B_WAVE+štěpka'!$AI$33=3,'B_WAVE+štěpka'!N204,IF('B_WAVE+štěpka'!$AI$33=4,'B_WAVE+štěpka'!N278,IF('B_WAVE+štěpka'!$AI$33=5,'B_WAVE+štěpka'!N356,IF('B_WAVE+štěpka'!$AI$33=6,'B_WAVE+štěpka'!N438,IF('B_WAVE+štěpka'!$AI$33=7,'B_WAVE+štěpka'!N524,IF('B_WAVE+štěpka'!$AI$33=8,'B_WAVE+štěpka'!N614,IF('B_WAVE+štěpka'!$AI$33=9,'B_WAVE+štěpka'!N708,IF('B_WAVE+štěpka'!$AI$33=10,'B_WAVE+štěpka'!N806,"CHYBA")))))))))) -> 738.6611111
B68: % | C68: =100/(24*'B_WAVE+štěpka'!C$13)*C67 -> 99.78009259 | D68: =100/(24*'B_WAVE+štěpka'!D$13)*D67 -> 99.36342593 | E68: =100/(24*'B_WAVE+štěpka'!E$13)*E67 -> 93.87731481 | F68: =100/(24*'B_WAVE+štěpka'!F$13)*F67 -> 82.8587963 | G68: =100/(24*'B_WAVE+štěpka'!G$13)*G67 -> 69.50231481 | H68: =100/(24*'B_WAVE+štěpka'!H$13)*H67 -> 43.78472222 | I68: =100/(24*'B_WAVE+štěpka'!I$13)*I67 -> 43.78472222 | J68: =100/(24*'B_WAVE+štěpka'!J$13)*J67 -> 43.78472222 | K68: =100/(24*'B_WAVE+štěpka'!K$13)*K67 -> 69.91898148 | L68: =100/(24*'B_WAVE+štěpka'!L$13)*L67 -> 82.63888889 | M68: =100/(24*'B_WAVE+štěpka'!M$13)*M67 -> 94.47916667 | N68: =100/(24*'B_WAVE+štěpka'!N$13)*N67 -> 99.28240741
A69: Kotle celkem | B69: h/měsíc | C69: =IF('B_WAVE+štěpka'!$AI$33=1,'B_WAVE+štěpka'!C71,IF('B_WAVE+štěpka'!$AI$33=2,'B_WAVE+štěpka'!C137,IF('B_WAVE+štěpka'!$AI$33=3,'B_WAVE+štěpka'!C207,IF('B_WAVE+štěpka'!$AI$33=4,'B_WAVE+štěpka'!C281,IF('B_WAVE+štěpka'!$AI$33=5,'B_WAVE+štěpka'!C359,IF('B_WAVE+štěpka'!$AI$33=6,'B_WAVE+štěpka'!C441,IF('B_WAVE+štěpka'!$AI$33=7,'B_WAVE+štěpka'!C527,IF('B_WAVE+štěpka'!$AI$33=8,'B_WAVE+štěpka'!C617,IF('B_WAVE+štěpka'!$AI$33=9,'B_WAVE+štěpka'!C711,IF('B_WAVE+štěpka'!$AI$33=10,'B_WAVE+štěpka'!C809,"CHYBA")))))))))) -> 239.2292683 | D69: =IF('B_WAVE+štěpka'!$AI$33=1,'B_WAVE+štěpka'!D71,IF('B_WAVE+štěpka'!$AI$33=2,'B_WAVE+štěpka'!D137,IF('B_WAVE+štěpka'!$AI$33=3,'B_WAVE+štěpka'!D207,IF('B_WAVE+štěpka'!$AI$33=4,'B_WAVE+štěpka'!D281,IF('B_WAVE+štěpka'!$AI$33=5,'B_WAVE+štěpka'!D359,IF('B_WAVE+štěpka'!$AI$33=6,'B_WAVE+štěpka'!D441,IF('B_WAVE+štěpka'!$AI$33=7,'B_WAVE+štěpka'!D527,IF('B_WAVE+štěpka'!$AI$33=8,'B_WAVE+štěpka'!D617,IF('B_WAVE+štěpka'!$AI$33=9,'B_WAVE+štěpka'!D711,IF('B_WAVE+štěpka'!$AI$33=10,'B_WAVE+štěpka'!D809,"CHYBA")))))))))) -> 193.6097561 | E69: =IF('B_WAVE+štěpka'!$AI$33=1,'B_WAVE+štěpka'!E71,IF('B_WAVE+štěpka'!$AI$33=2,'B_WAVE+štěpka'!E137,IF('B_WAVE+štěpka'!$AI$33=3,'B_WAVE+štěpka'!E207,IF('B_WAVE+štěpka'!$AI$33=4,'B_WAVE+štěpka'!E281,IF('B_WAVE+štěpka'!$AI$33=5,'B_WAVE+štěpka'!E359,IF('B_WAVE+štěpka'!$AI$33=6,'B_WAVE+štěpka'!E441,IF('B_WAVE+štěpka'!$AI$33=7,'B_WAVE+štěpka'!E527,IF('B_WAVE+štěpka'!$AI$33=8,'B_WAVE+štěpka'!E617,IF('B_WAVE+štěpka'!$AI$33=9,'B_WAVE+štěpka'!E711,IF('B_WAVE+štěpka'!$AI$33=10,'B_WAVE+štěpka'!E809,"CHYBA")))))))))) -> 141.9195122 | F69: =IF('B_WAVE+štěpka'!$AI$33=1,'B_WAVE+štěpka'!F71,IF('B_WAVE+štěpka'!$AI$33=2,'B_WAVE+štěpka'!F137,IF('B_WAVE+štěpka'!$AI$33=3,'B_WAVE+štěpka'!F207,IF('B_WAVE+štěpka'!$AI$33=4,'B_WAVE+štěpka'!F281,IF('B_WAVE+štěpka'!$AI$33=5,'B_WAVE+štěpka'!F359,IF('B_WAVE+štěpka'!$AI$33=6,'B_WAVE+štěpka'!F441,IF('B_WAVE+štěpka'!$AI$33=7,'B_WAVE+štěpka'!F527,IF('B_WAVE+štěpka'!$AI$33=8,'B_WAVE+štěpka'!F617,IF('B_WAVE+štěpka'!$AI$33=9,'B_WAVE+štěpka'!F711,IF('B_WAVE+štěpka'!$AI$33=10,'B_WAVE+štěpka'!F809,"CHYBA")))))))))) -> 75.43902439 | G69: =IF('B_WAVE+štěpka'!$AI$33=1,'B_WAVE+štěpka'!G71,IF('B_WAVE+štěpka'!$AI$33=2,'B_WAVE+štěpka'!G137,IF('B_WAVE+štěpka'!$AI$33=3,'B_WAVE+štěpka'!G207,IF('B_WAVE+štěpka'!$AI$33=4,'B_WAVE+štěpka'!G281,IF('B_WAVE+štěpka'!$AI$33=5,'B_WAVE+štěpka'!G359,IF('B_WAVE+štěpka'!$AI$33=6,'B_WAVE+štěpka'!G441,IF('B_WAVE+štěpka'!$AI$33=7,'B_WAVE+štěpka'!G527,IF('B_WAVE+štěpka'!$AI$33=8,'B_WAVE+štěpka'!G617,IF('B_WAVE+štěpka'!$AI$33=9,'B_WAVE+štěpka'!G711,IF('B_WAVE+štěpka'!$AI$33=10,'B_WAVE+štěpka'!G809,"CHYBA")))))))))) -> 23.66585366 | H69: =IF('B_WAVE+štěpka'!$AI$33=1,'B_WAVE+štěpka'!H71,IF('B_WAVE+štěpka'!$AI$33=2,'B_WAVE+štěpka'!H137,IF('B_WAVE+štěpka'!$AI$33=3,'B_WAVE+štěpka'!H207,IF('B_WAVE+štěpka'!$AI$33=4,'B_WAVE+štěpka'!H281,IF('B_WAVE+štěpka'!$AI$33=5,'B_WAVE+štěpka'!H359,IF('B_WAVE+štěpka'!$AI$33=6,'B_WAVE+štěpka'!H441,IF('B_WAVE+štěpka'!$AI$33=7,'B_WAVE+štěpka'!H527,IF('B_WAVE+štěpka'!$AI$33=8,'B_WAVE+štěpka'!H617,IF('B_WAVE+štěpka'!$AI$33=9,'B_WAVE+štěpka'!H711,IF('B_WAVE+štěpka'!$AI$33=10,'B_WAVE+štěpka'!H809,"CHYBA")))))))))) -> 16.24390244 | I69: =IF('B_WAVE+štěpka'!$AI$33=1,'B_WAVE+štěpka'!I71,IF('B_WAVE+štěpka'!$AI$33=2,'B_WAVE+štěpka'!I137,IF('B_WAVE+štěpka'!$AI$33=3,'B_WAVE+štěpka'!I207,IF('B_WAVE+štěpka'!$AI$33=4,'B_WAVE+štěpka'!I281,IF('B_WAVE+štěpka'!$AI$33=5,'B_WAVE+štěpka'!I359,IF('B_WAVE+štěpka'!$AI$33=6,'B_WAVE+štěpka'!I441,IF('B_WAVE+štěpka'!$AI$33=7,'B_WAVE+štěpka'!I527,IF('B_WAVE+štěpka'!$AI$33=8,'B_WAVE+štěpka'!I617,IF('B_WAVE+štěpka'!$AI$33=9,'B_WAVE+štěpka'!I711,IF('B_WAVE+štěpka'!$AI$33=10,'B_WAVE+štěpka'!I809,"CHYBA")))))))))) -> 16.78536585 | J69: =IF('B_WAVE+štěpka'!$AI$33=1,'B_WAVE+štěpka'!J71,IF('B_WAVE+štěpka'!$AI$33=2,'B_WAVE+štěpka'!J137,IF('B_WAVE+štěpka'!$AI$33=3,'B_WAVE+štěpka'!J207,IF('B_WAVE+štěpka'!$AI$33=4,'B_WAVE+štěpka'!J281,IF('B_WAVE+štěpka'!$AI$33=5,'B_WAVE+štěpka'!J359,IF('B_WAVE+štěpka'!$AI$33=6,'B_WAVE+štěpka'!J441,IF('B_WAVE+štěpka'!$AI$33=7,'B_WAVE+štěpka'!J527,IF('B_WAVE+štěpka'!$AI$33=8,'B_WAVE+štěpka'!J617,IF('B_WAVE+štěpka'!$AI$33=9,'B_WAVE+štěpka'!J711,IF('B_WAVE+štěpka'!$AI$33=10,'B_WAVE+štěpka'!J809,"CHYBA")))))))))) -> 16.78536585 | K69: =IF('B_WAVE+štěpka'!$AI$33=1,'B_WAVE+štěpka'!K71,IF('B_WAVE+štěpka'!$AI$33=2,'B_WAVE+štěpka'!K137,IF('B_WAVE+štěpka'!$AI$33=3,'B_WAVE+štěpka'!K207,IF('B_WAVE+štěpka'!$AI$33=4,'B_WAVE+štěpka'!K281,IF('B_WAVE+štěpka'!$AI$33=5,'B_WAVE+štěpka'!K359,IF('B_WAVE+štěpka'!$AI$33=6,'B_WAVE+štěpka'!K441,IF('B_WAVE+štěpka'!$AI$33=7,'B_WAVE+štěpka'!K527,IF('B_WAVE+štěpka'!$AI$33=8,'B_WAVE+štěpka'!K617,IF('B_WAVE+štěpka'!$AI$33=9,'B_WAVE+štěpka'!K711,IF('B_WAVE+štěpka'!$AI$33=10,'B_WAVE+štěpka'!K809,"CHYBA")))))))))) -> 25.53658537 | L69: =IF('B_WAVE+štěpka'!$AI$33=1,'B_WAVE+štěpka'!L71,IF('B_WAVE+štěpka'!$AI$33=2,'B_WAVE+štěpka'!L137,IF('B_WAVE+štěpka'!$AI$33=3,'B_WAVE+štěpka'!L207,IF('B_WAVE+štěpka'!$AI$33=4,'B_WAVE+štěpka'!L281,IF('B_WAVE+štěpka'!$AI$33=5,'B_WAVE+štěpka'!L359,IF('B_WAVE+štěpka'!$AI$33=6,'B_WAVE+štěpka'!L441,IF('B_WAVE+štěpka'!$AI$33=7,'B_WAVE+štěpka'!L527,IF('B_WAVE+štěpka'!$AI$33=8,'B_WAVE+štěpka'!L617,IF('B_WAVE+štěpka'!$AI$33=9,'B_WAVE+štěpka'!L711,IF('B_WAVE+štěpka'!$AI$33=10,'B_WAVE+štěpka'!L809,"CHYBA")))))))))) -> 76.66829268 | M69: =IF('B_WAVE+štěpka'!$AI$33=1,'B_WAVE+štěpka'!M71,IF('B_WAVE+štěpka'!$AI$33=2,'B_WAVE+štěpka'!M137,IF('B_WAVE+štěpka'!$AI$33=3,'B_WAVE+štěpka'!M207,IF('B_WAVE+štěpka'!$AI$33=4,'B_WAVE+štěpka'!M281,IF('B_WAVE+štěpka'!$AI$33=5,'B_WAVE+štěpka'!M359,IF('B_WAVE+štěpka'!$AI$33=6,'B_WAVE+štěpka'!M441,IF('B_WAVE+štěpka'!$AI$33=7,'B_WAVE+štěpka'!M527,IF('B_WAVE+štěpka'!$AI$33=8,'B_WAVE+štěpka'!M617,IF('B_WAVE+štěpka'!$AI$33=9,'B_WAVE+štěpka'!M711,IF('B_WAVE+štěpka'!$AI$33=10,'B_WAVE+štěpka'!M809,"CHYBA")))))))))) -> 141.5121951 | N69: =IF('B_WAVE+štěpka'!$AI$33=1,'B_WAVE+štěpka'!N71,IF('B_WAVE+štěpka'!$AI$33=2,'B_WAVE+štěpka'!N137,IF('B_WAVE+štěpka'!$AI$33=3,'B_WAVE+štěpka'!N207,IF('B_WAVE+štěpka'!$AI$33=4,'B_WAVE+štěpka'!N281,IF('B_WAVE+štěpka'!$AI$33=5,'B_WAVE+štěpka'!N359,IF('B_WAVE+štěpka'!$AI$33=6,'B_WAVE+štěpka'!N441,IF('B_WAVE+štěpka'!$AI$33=7,'B_WAVE+štěpka'!N527,IF('B_WAVE+štěpka'!$AI$33=8,'B_WAVE+štěpka'!N617,IF('B_WAVE+štěpka'!$AI$33=9,'B_WAVE+štěpka'!N711,IF('B_WAVE+štěpka'!$AI$33=10,'B_WAVE+štěpka'!N809,"CHYBA")))))))))) -> 212.1609756
B70: % | C70: =100/(24*'A_WAVE+pelety'!C$13)*C69 -> 32.15447154 | D70: =100/(24*'A_WAVE+pelety'!D$13)*D69 -> 28.81097561 | E70: =100/(24*'A_WAVE+pelety'!E$13)*E69 -> 19.07520325 | F70: =100/(24*'A_WAVE+pelety'!F$13)*F69 -> 10.47764228 | G70: =100/(24*'A_WAVE+pelety'!G$13)*G69 -> 3.180894309 | H70: =100/(24*'A_WAVE+pelety'!H$13)*H69 -> 2.256097561 | I70: =100/(24*'A_WAVE+pelety'!I$13)*I69 -> 2.256097561 | J70: =100/(24*'A_WAVE+pelety'!J$13)*J69 -> 2.256097561 | K70: =100/(24*'A_WAVE+pelety'!K$13)*K69 -> 3.546747967 | L70: =100/(24*'A_WAVE+pelety'!L$13)*L69 -> 10.30487805 | M70: =100/(24*'A_WAVE+pelety'!M$13)*M69 -> 19.65447154 | N70: =100/(24*'A_WAVE+pelety'!N$13)*N69 -> 28.51626016
A74: VARIANTA C: KOTLE NA PELETY
C76: KOTLE CELKEM | D76: 1. kotel | E76: 2. kotel | F76: 3. kotel | G76: 4. kotel | H76: 5. kotel | I76: 6. kotel | J76: 7. kotel | K76: 8. kotel | L76: 9. kotel | M76: 10. kotel | N76: 11. kotel | O76: 12. kotel | P76: 13. kotel | Q76: 14. kotel | R76: 15. kotel
A77: Jmenovitý tepelný výkon | B77: kW | C77: =SUM(D77:R77) -> 770 | D77: =C_pelety!C20 -> 20 | E77: =C_pelety!D20 -> 140 | F77: =C_pelety!E20 -> 140 | G77: =C_pelety!F20 -> 140 | H77: =C_pelety!G20 -> 140 | I77: =C_pelety!H20 -> 140 | J77: =C_pelety!I20 -> 50 | K77: =C_pelety!J20 -> 0 | L77: =C_pelety!K20 -> 0 | M77: =C_pelety!L20 -> 0 | N77: =C_pelety!M20 -> 0 | O77: =C_pelety!N20 -> 0 | P77: =C_pelety!O20 -> 0 | Q77: =C_pelety!P20 -> 0 | R77: =C_pelety!Q20 -> 0
A78: Minimální tepelný výkon | B78: kW | C78: =MIN(IF(D78:R78>0,D78:R78)) -> 6 | D78: =C_pelety!C21 -> 6 | E78: =C_pelety!D21 -> 42 | F78: =C_pelety!E21 -> 42 | G78: =C_pelety!F21 -> 42 | H78: =C_pelety!G21 -> 42 | I78: =C_pelety!H21 -> 42 | J78: =C_pelety!I21 -> 15 | K78: =C_pelety!J21 -> 0 | L78: =C_pelety!K21 -> 0 | M78: =C_pelety!L21 -> 0 | N78: =C_pelety!M21 -> 0 | O78: =C_pelety!N21 -> 0 | P78: =C_pelety!O21 -> 0 | Q78: =C_pelety!P21 -> 0 | R78: =C_pelety!Q21 -> 0
A79: Roční produkce tepla | B79: GJ/r | C79: =C_pelety!B37 -> 10458.1044
A80: Využití instalovaného výkonu | B80: h/r | C80: =C_pelety!B38 -> 3772.764935
B81: % | C81: =100/8760*C80 -> 43.06809287
A82: Odhad investičních nákladů | B82: tis. Kč | C82: =C_pelety!B32/-1000 -> -13167
A83: Odhad provozních nákladů (nom.hodn.) | B83: tis. Kč/r | C83: =C_pelety!B31/-1000 -> -3331.571918
A86: Produkce tepla | C86: LEDEN | D86: ÚNOR | E86: BŘEZEN | F86: DUBEN | G86: KVĚTEN | H86: ČERVEN | I86: ČERVENEC | J86: SRPEN | K86: ZÁŘÍ | L86: ŘÍJEN | M86: LISTOPAD | N86: PROSINEC
A87: Kotle celkem | B87: GJ/měsíc | C87: =C_pelety!C37 -> 1315.206 | D87: =C_pelety!D37 -> 1151.136 | E87: =C_pelety!E37 -> 1114.6608 | F87: =C_pelety!F37 -> 884.52 | G87: =C_pelety!G37 -> 705.0888 | H87: =C_pelety!H37 -> 432.54 | I87: =C_pelety!I37 -> 446.958 | J87: =C_pelety!J37 -> 446.958 | K87: =C_pelety!K37 -> 690.12 | L87: =C_pelety!L37 -> 909.9864 | M87: =C_pelety!M37 -> 1090.476 | N87: =C_pelety!N37 -> 1270.4544 | O87: =SUM(C87:N87) -> 10458.1044 | P87: GJ/rok
A89: Využití instalovaného výkonu | C89: LEDEN | D89: ÚNOR | E89: BŘEZEN | F89: DUBEN | G89: KVĚTEN | H89: ČERVEN | I89: ČERVENEC | J89: SRPEN | K89: ZÁŘÍ | L89: ŘÍJEN | M89: LISTOPAD | N89: PROSINEC
A90: Kotle celkem | B90: h/měsíc | C90: =C_pelety!C38 -> 474.461039 | D90: =C_pelety!D38 -> 415.2727273 | E90: =C_pelety!E38 -> 402.1142857 | F90: =C_pelety!F38 -> 319.0909091 | G90: =C_pelety!G38 -> 254.361039 | H90: =C_pelety!H38 -> 156.038961 | I90: =C_pelety!I38 -> 161.2402597 | J90: =C_pelety!J38 -> 161.2402597 | K90: =C_pelety!K38 -> 248.961039 | L90: =C_pelety!L38 -> 328.2779221 | M90: =C_pelety!M38 -> 393.3896104 | N90: =C_pelety!N38 -> 458.3168831
B91: % | C91: =100/(24*'A_WAVE+pelety'!C$13)*C90 -> 63.77164502 | D91: =100/(24*'A_WAVE+pelety'!D$13)*D90 -> 61.7965368 | E91: =100/(24*'A_WAVE+pelety'!E$13)*E90 -> 54.04761905 | F91: =100/(24*'A_WAVE+pelety'!F$13)*F90 -> 44.31818182 | G91: =100/(24*'A_WAVE+pelety'!G$13)*G90 -> 34.18831169 | H91: =100/(24*'A_WAVE+pelety'!H$13)*H90 -> 21.67207792 | I91: =100/(24*'A_WAVE+pelety'!I$13)*I90 -> 21.67207792 | J91: =100/(24*'A_WAVE+pelety'!J$13)*J90 -> 21.67207792 | K91: =100/(24*'A_WAVE+pelety'!K$13)*K90 -> 34.57792208 | L91: =100/(24*'A_WAVE+pelety'!L$13)*L90 -> 44.12337662 | M91: =100/(24*'A_WAVE+pelety'!M$13)*M90 -> 54.63744589 | N91: =100/(24*'A_WAVE+pelety'!N$13)*N90 -> 61.6017316
A95: VARIANTA D: KOTLE NA ŠTĚPKU
C97: KOTLE CELKEM | D97: 1. kotel | E97: 2. kotel | F97: 3. kotel | G97: 4. kotel | H97: 5. kotel | I97: 6. kotel | J97: 7. kotel | K97: 8. kotel | L97: 9. kotel | M97: 10. kotel | N97: 11. kotel | O97: 12. kotel | P97: 13. kotel | Q97: 14. kotel | R97: 15. kotel
A98: Jmenovitý tepelný výkon | B98: kW | C98: =SUM(D98:R98) -> 770 | D98: =D_štěpka!C20 -> 20 | E98: =D_štěpka!D20 -> 140 | F98: =D_štěpka!E20 -> 140 | G98: =D_štěpka!F20 -> 140 | H98: =D_štěpka!G20 -> 140 | I98: =D_štěpka!H20 -> 140 | J98: =D_štěpka!I20 -> 50 | K98: =D_štěpka!J20 -> 0 | L98: =D_štěpka!K20 -> 0 | M98: =D_štěpka!L20 -> 0 | N98: =D_štěpka!M20 -> 0 | O98: =D_štěpka!N20 -> 0 | P98: =D_štěpka!O20 -> 0 | Q98: =D_štěpka!P20 -> 0 | R98: =D_štěpka!Q20 -> 0
A99: Minimální tepelný výkon | B99: kW | C99: =MIN(IF(D99:R99>0,D99:R99)) -> 6 | D99: =D_štěpka!C21 -> 6 | E99: =D_štěpka!D21 -> 42 | F99: =D_štěpka!E21 -> 42 | G99: =D_štěpka!F21 -> 42 | H99: =D_štěpka!G21 -> 42 | I99: =D_štěpka!H21 -> 42 | J99: =D_štěpka!I21 -> 15 | K99: =D_štěpka!J21 -> 0 | L99: =D_štěpka!K21 -> 0 | M99: =D_štěpka!L21 -> 0 | N99: =D_štěpka!M21 -> 0 | O99: =D_štěpka!N21 -> 0 | P99: =D_štěpka!O21 -> 0 | Q99: =D_štěpka!P21 -> 0 | R99: =D_štěpka!Q21 -> 0
A100: Roční produkce tepla | B100: GJ/r | C100: =D_štěpka!B37 -> 10458.1044
A101: Využití instalovaného výkonu | B101: h/r | C101: =D_štěpka!B38 -> 3772.764935
B102: % | C102: =100/8760*C101 -> 43.06809287
A103: Odhad investičních nákladů | B103: tis. Kč | C103: =D_štěpka!B32/-1000 -> -17941
A104: Odhad provozních nákladů (nom.hodn.) | B104: tis. Kč/r | C104: =D_štěpka!B31/-1000 -> -1848.966665
A107: Produkce tepla | C107: LEDEN | D107: ÚNOR | E107: BŘEZEN | F107: DUBEN | G107: KVĚTEN | H107: ČERVEN | I107: ČERVENEC | J107: SRPEN | K107: ZÁŘÍ | L107: ŘÍJEN | M107: LISTOPAD | N107: PROSINEC
A108: Kotle celkem | B108: GJ/měsíc | C108: =D_štěpka!C37 -> 1315.206 | D108: =D_štěpka!D37 -> 1151.136 | E108: =D_štěpka!E37 -> 1114.6608 | F108: =D_štěpka!F37 -> 884.52 | G108: =D_štěpka!G37 -> 705.0888 | H108: =D_štěpka!H37 -> 432.54 | I108: =D_štěpka!I37 -> 446.958 | J108: =D_štěpka!J37 -> 446.958 | K108: =D_štěpka!K37 -> 690.12 | L108: =D_štěpka!L37 -> 909.9864 | M108: =D_štěpka!M37 -> 1090.476 | N108: =D_štěpka!N37 -> 1270.4544 | O108: =SUM(C108:N108) -> 10458.1044 | P108: GJ/rok
A110: Využití instalovaného výkonu | C110: LEDEN | D110: ÚNOR | E110: BŘEZEN | F110: DUBEN | G110: KVĚTEN | H110: ČERVEN | I110: ČERVENEC | J110: SRPEN | K110: ZÁŘÍ | L110: ŘÍJEN | M110: LISTOPAD | N110: PROSINEC
A111: Kotle celkem | B111: h/měsíc | C111: =D_štěpka!C38 -> 474.461039 | D111: =D_štěpka!D38 -> 415.2727273 | E111: =D_štěpka!E38 -> 402.1142857 | F111: =D_štěpka!F38 -> 319.0909091 | G111: =D_štěpka!G38 -> 254.361039 | H111: =D_štěpka!H38 -> 156.038961 | I111: =D_štěpka!I38 -> 161.2402597 | J111: =D_štěpka!J38 -> 161.2402597 | K111: =D_štěpka!K38 -> 248.961039 | L111: =D_štěpka!L38 -> 328.2779221 | M111: =D_štěpka!M38 -> 393.3896104 | N111: =D_štěpka!N38 -> 458.3168831
B112: % | C112: =100/(24*'A_WAVE+pelety'!C$13)*C111 -> 63.77164502 | D112: =100/(24*'A_WAVE+pelety'!D$13)*D111 -> 61.7965368 | E112: =100/(24*'A_WAVE+pelety'!E$13)*E111 -> 54.04761905 | F112: =100/(24*'A_WAVE+pelety'!F$13)*F111 -> 44.31818182 | G112: =100/(24*'A_WAVE+pelety'!G$13)*G111 -> 34.18831169 | H112: =100/(24*'A_WAVE+pelety'!H$13)*H111 -> 21.67207792 | I112: =100/(24*'A_WAVE+pelety'!I$13)*I111 -> 21.67207792 | J112: =100/(24*'A_WAVE+pelety'!J$13)*J111 -> 21.67207792 | K112: =100/(24*'A_WAVE+pelety'!K$13)*K111 -> 34.57792208 | L112: =100/(24*'A_WAVE+pelety'!L$13)*L111 -> 44.12337662 | M112: =100/(24*'A_WAVE+pelety'!M$13)*M111 -> 54.63744589 | N112: =100/(24*'A_WAVE+pelety'!N$13)*N111 -> 61.6017316

Sheet CA
A1: CITLIVOSTNÍ ANALÝZA
A2: Vliv doby hodnocení | G2: Vliv diskontni miry | M2: Vliv ceny elektřiny | S2: Vliv ceny pelet | Y2: Vliv ceny stepky
A3: T_p (roky) | B3: NPV - varianta A | C3: NPV - varianta B | D3: NPV - varianta C | E3: NPV - varianta D | G3: d [%] | H3: NPV - varianta A | I3: NPV - varianta B | J3: NPV - varianta C | K3: NPV - varianta D | M3: E [Kč/MWh] | N3: NPV - varianta A | O3: NPV - varianta B | P3: NPV - varianta C | Q3: NPV - varianta D | S3: P [Kč/GJ] | T3: NPV - varianta A | U3: NPV - varianta B | V3: NPV - varianta C | W3: NPV - varianta D | Y3: S [Kč/GJ] | Z3: NPV - varianta A | AA3: NPV - varianta B | AB3: NPV - varianta C | AC3: NPV - varianta D
A4: 5 | B4: -27875.88524 | C4: -28035.44779 | D4: -32043.9871 | E4: -27749.41812 | G4: 0 | H4: -51183.20533 | I4: -50542.96529 | J4: -79075.52019 | K4: -52892.34752 | M4: 1000 | N4: -80588.35422 | O4: -78457.22026 | P4: -127748.3113 | Q4: -78630.99003 | S4: 100 | T4: -62736.48751 | U4: -72944.31627 | V4: -59849.0706 | W4: -78958.19035 | Y4: 60 | Z4: -43179.7545 | AA4: -40436.28592 | AB4: -127641.2661 | AC4: -47049.28041
A5: 10 | B5: -40356.24883 | C5: -40090.63033 | D5: -56572.82598 | E5: -40862.46853 | G5: 1 | H5: -54752.01099 | I5: -53950.8132 | J5: -86492.90867 | K5: -56857.66319 | M5: 1200 | N5: -79755.73526 | O5: -77909.2341 | P5: -127758.9505 | Q5: -78671.89007 | S5: 120 | T5: -69011.26885 | U5: -72944.31627 | V5: -69226.22288 | W5: -78958.19035 | Y5: 80 | Z5: -52317.37939 | AA5: -49949.65452 | AB5: -127641.2661 | AC5: -56340.92702
A6: 15 | B6: -55418.68985 | C6: -54587.42397 | D6: -87878.53079 | E6: -57598.41299 | G6: 2 | H6: -58760.06536 | I6: -57822.73526 | J6: -94920.38281 | K6: -61362.96789 | M6: 1400 | N6: -78923.1163 | O6: -77317.69022 | P6: -127769.5896 | Q6: -78712.79011 | S6: 140 | T6: -71158.9072 | U6: -72944.31627 | V6: -78603.37517 | W6: -78958.19035 | Y6: 100 | Z6: -61455.00429 | AA6: -59463.02311 | AB6: -127641.2661 | AC6: -65632.57363
A7: 20 | B7: -73927.40252 | C7: -72944.31627 | D7: -127833.4246 | E7: -78958.19035 | G7: 3 | H7: -63176.52584 | I7: -62225.87236 | J7: -104504.0788 | K7: -66486.38565 | M7: 1600 | N7: -78090.49733 | O7: -76588.79456 | P7: -127780.2288 | Q7: -78753.69015 | S7: 160 | T7: -72184.17713 | U7: -72944.31627 | V7: -87980.52745 | W7: -78958.19035 | Y7: 120 | Z7: -70592.62918 | AA7: -68976.3917 | AB7: -127641.2661 | AC7: -74924.22024
A8: 25 | B8: -97426.85781 | C8: -96063.47094 | D8: -178827.119 | E8: -106219.2804 | G8: 4 | H8: -68202.90087 | I8: -67237.08404 | J8: -115411.2862 | K8: -72317.34899 | M8: 1800 | N8: -77257.87837 | O8: -75859.8989 | P8: -127790.868 | Q8: -78794.59019 | S8: 180 | T8: -72762.63089 | U8: -72944.31627 | V8: -97357.67973 | W8: -78958.19035 | Y8: 140 | Z8: -79730.25408 | AA8: -78489.76029 | AB8: -127641.2661 | AC8: -84215.86685
G9: 5 | H9: -73927.40252 | I9: -72944.31627 | J9: -127833.4246 | K9: -78958.19035 | M9: 2000 | N9: -76425.25941 | O9: -75131.00324 | P9: -127801.5071 | Q9: -78835.49023 | S9: 200 | T9: -73341.08465 | U9: -72944.31627 | V9: -106734.832 | W9: -78958.19035 | Y9: 160 | Z9: -88867.87897 | AA9: -88003.12888 | AB9: -127641.2661 | AC9: -93507.51346
G10: 6 | H10: -80450.91909 | I10: -79401.93283 | J10: -141989.4213 | K10: -86525.94757 | M10: 2200 | N10: -75592.64044 | O10: -74402.10758 | P10: -127812.1463 | Q10: -78876.39027 | S10: 220 | T10: -73647.98243 | U10: -72944.31627 | V10: -116111.9843 | W10: -78958.19035 | Y10: 180 | Z10: -98005.50387 | AA10: -97516.49748 | AB10: -127641.2661 | AC10: -102799.1601
G11: 7 | H11: -87888.77939 | I11: -86702.04123 | J11: -158129.539 | K11: -95154.41051 | M11: 2400 | N11: -74760.02148 | O11: -73673.21192 | P11: -127822.7855 | Q11: -78917.29031 | S11: 240 | T11: -73871.5185 | U11: -72944.31627 | V11: -125489.1366 | W11: -78958.19035 | Y11: 200 | Z11: -107143.1288 | AA11: -107029.8661 | AB11: -127641.2661 | AC11: -112090.8067
G12: 8 | H12: -96372.75098 | I12: -95028.88656 | J12: -176539.7127 | K12: -104996.4392 | M12: 2600 | N12: -73927.40252 | O12: -72944.31627 | P12: -127833.4246 | Q12: -78958.19035 | S12: 260 | T12: -74095.05457 | U12: -72944.31627 | V12: -134866.2889 | W12: -78958.19035 | Y12: 220 | Z12: -115740.7678 | AA12: -116543.2347 | AB12: -127641.2661 | AC12: -121382.4533
G13: 9 | H13: -106053.3019 | I13: -104530.1502 | J13: -197546.4574 | K13: -116226.5876 | M13: 2800 | N13: -73094.78355 | O13: -72194.71391 | P13: -127844.0638 | Q13: -78999.09039 | S13: 280 | T13: -74318.59064 | U13: -72944.31627 | V13: -144243.4411 | W13: -78958.19035 | Y13: 240 | Z13: -124019.0162 | AA13: -126056.6033 | AB13: -127641.2661 | AC13: -130674.0999
G14: 10 | H14: -117102.1585 | I14: -115374.3779 | J14: -221522.4181 | K14: -129044.0709 | M14: 3000 | N14: -72262.16459 | O14: -71390.19365 | P14: -127854.703 | Q14: -79039.99043 | S14: 300 | T14: -74542.12671 | U14: -72944.31627 | V14: -153620.5934 | W14: -78958.19035 | Y14: 260 | Z14: -128626.2189 | AA14: -135569.9718 | AB14: -127641.2661 | AC14: -139965.7465
G15: 11 | H15: -129715.1955 | I15: -127753.8168 | J15: -248892.642 | K15: -143676.118 | M15: 3200 | N15: -71429.54562 | O15: -70585.67339 | P15: -127865.3421 | Q15: -79080.89047 | S15: 320 | T15: -74765.66278 | U15: -72944.31627 | V15: -162997.7457 | W15: -78958.19035 | Y15: 280 | Z15: -131527.984 | AA15: -145083.3404 | AB15: -127641.2661 | AC15: -149257.3931
G16: 12 | H16: -144115.6997 | I16: -141887.6184 | J16: -280141.6604 | K16: -160381.7581 | M16: 3400 | N16: -70596.92666 | O16: -69781.15312 | P16: -127875.9813 | Q16: -79121.79051 | S16: 340 | T16: -74989.19885 | U16: -72944.31627 | V16: -172374.898 | W16: -78958.19035 | Y16: 300 | Z16: -134429.7491 | AA16: -154596.709 | AB16: -127641.2661 | AC16: -158549.0397
G17: 13 | H17: -160558.052 | I17: -158025.4523 | J17: -315821.4782 | K17: -179456.0914 | M17: 3600 | N17: -69764.3077 | O17: -68976.63286 | P17: -127886.6205 | Q17: -79162.69055 | S17: 360 | T17: -75212.73492 | U17: -72944.31627 | V17: -181752.0503 | W17: -78958.19035 | Y17: 320 | Z17: -137331.5141 | AA17: -164110.0776 | AB17: -127641.2661 | AC17: -167840.6863
G18: 14 | H18: -179136.1979 | I18: -176413.7202 | J18: -356560.582 | K18: -201235.1053 | M18: 3800 | N18: -68931.68873 | O18: -68172.1126 | P18: -127897.2597 | Q18: -79203.59059 | S18: 380 | T18: -75436.27099 | U18: -72944.31627 | V18: -191129.2025 | W18: -78958.19035 | Y18: 340 | Z18: -140233.2792 | AA18: -173621.4123 | AB18: -127641.2661 | AC18: -177132.3329
G19: 15 | H19: -200186.4339 | I19: -197327.8432 | J19: -403074.0867 | K19: -226101.0981 | M19: 4000 | N19: -68099.06977 | O19: -67367.59234 | P19: -127907.8988 | Q19: -79244.49063 | S19: 400 | T19: -75659.80706 | U19: -72944.31627 | V19: -200506.3548 | W19: -78958.19035 | Y19: 360 | Z19: -143135.0443 | AA19: -183103.5162 | AB19: -127641.2661 | AC19: -186423.9796
G20: 16 | H20: -224217.9506 | I20: -221203.9696 | J20: -456175.1573 | K20: -254488.7857
G21: 17 | H21: -251648.9432 | I21: -247788.8649 | J21: -516787.8556 | K21: -286892.169 | M21: =COUNT(M4:M19) -> 16
G22: 18 | H22: -282954.3283 | I22: -277983.7271 | J22: -585961.578 | K22: -323872.2525
G23: 19 | H23: -318673.0828 | I23: -312435.3994 | J23: -664887.2706 | K23: -366065.7126
G24: 20 | H24: -359416.4781 | I24: -351733.469 | J24: -754915.6253 | K24: -414194.6256

Sheet Velikost zdroje
A1: MĚSÍČNÍ POTŘEBA TEPLA - VYTÁPĚNÍ
A2: =VSTUPY!B17 -> Praha a Středočeský | E2: Parametry otopného období (t_em = 15 °C): | J2: dny | K2: t_is=t_i | L2: t_es | M2: t_e | N2: Q [GJ] | O2: Q_v [GJ] | P2: pro stanovení zajištěnéno výkonu:
E3: délka | F3: =VLOOKUP(A2,Data!A52:D64,3,FALSE) -> 272 | G3: dny | I3: leden | J3: 31 | K3: =$F$4 -> 20 | L3: =B7 -> -1.2 | M3: =$F$5 -> -13.09090909 | N3: =24*3.6*$F$10*J3*(K3-L3)/(K3-M3)/1000 -> 824.8895461 | O3: =N3/(100-VSTUPY!$B$18)*100 -> 868.3047854 | P3: =O3/3.6*1000/(J3*24) -> 324.1878679 | Q3: kW
A4: Dlouhodobý normál teploty vzduchu 1981-2010: | E4: t_is = t_i | F4: =VSTUPY!B16 -> 20 | G4: °C | I4: únor | J4: 28 | K4: 20 | L4: -0.2 | M4: -13.09090909 | N4: =24*3.6*$F$10*J4*(K4-L4)/(K4-M4)/1000 -> 709.917114 | O4: =N4/(100-VSTUPY!$B$18)*100 -> 747.2811726
E5: t_e | F5: =VLOOKUP(A2,Data!A52:D64,2,FALSE) -> -13.09090909 | G5: °C | I5: březen | J5: 31 | K5: 20 | L5: 3.7 | M5: -13.09090909 | N5: 634.2311133 | O5: =N5/(100-VSTUPY!$B$18)*100 -> 667.6116982
B6: °C | E6: t_es | F6: =VLOOKUP(A2,Data!A52:D64,4,FALSE) -> 5.354545455 | G6: °C | I6: duben | J6: 30 | K6: 20 | L6: 8.6 | M6: -13.09090909 | N6: 429.2638843 | O6: =N6/(100-VSTUPY!$B$18)*100 -> 451.8567203
A7: leden | B7: =VLOOKUP($A$2,Data!$A$32:$M$44,2,FALSE) -> -1.2 | I7: květen | J7: =VLOOKUP(A2,Data!A52:F64,5,FALSE) -> 30 | K7: 20 | L7: 13.7 | M7: -13.09090909 | N7: =24*3.6*$F$10*J7*(K7-L7)/(K7-M7)/1000 -> 237.2247782 | O7: =N7/(100-VSTUPY!$B$18)*100 -> 249.7102928
A8: únor | B8: =VLOOKUP($A$2,Data!$A$32:$M$44,3,FALSE) -> -0.2 | I8: červen | J8: 0 | K8: 20 | L8: 16.5 | M8: -13.09090909 | N8: 0 | O8: =N8/(100-VSTUPY!$B$18)*100 -> 0
A9: březen | B9: =VLOOKUP($A$2,Data!$A$32:$M$44,4,FALSE) -> 3.7 | E9: Náročnost objektů na vytápění: | I9: červenec | J9: 0 | K9: 20 | L9: 18.5 | M9: -13.09090909 | N9: 0 | O9: =N9/(100-VSTUPY!$B$18)*100 -> 0
A10: duben | B10: =VLOOKUP($A$2,Data!$A$32:$M$44,5,FALSE) -> 8.6 | E10: Pz*epsilon | F10: =VSTUPY!B12*1000/24/3.6/F3/(F4-F6)*(F4-F5) -> 480.721118 | G10: kW | I10: srpen | J10: 0 | K10: 20 | L10: 18 | M10: -13.09090909 | N10: 0 | O10: =N10/(100-VSTUPY!$B$18)*100 -> 0
A11: květen | B11: =VLOOKUP($A$2,Data!$A$32:$M$44,6,FALSE) -> 13.7 | I11: září | J11: =VLOOKUP(A2,Data!A52:F64,6,FALSE) -> 30 | K11: 20 | L11: 13.5 | M11: -13.09090909 | N11: 244.7557235 | O11: =N11/(100-VSTUPY!$B$18)*100 -> 257.6376037
A12: červen | B12: =VLOOKUP($A$2,Data!$A$32:$M$44,7,FALSE) -> 16.5 | I12: říjen | J12: 31 | K12: 20 | L12: 8.7 | M12: -13.09090909 | N12: 439.681692 | O12: =N12/(100-VSTUPY!$B$18)*100 -> 462.8228337
A13: červenec | B13: =VLOOKUP($A$2,Data!$A$32:$M$44,8,FALSE) -> 18.5 | I13: listopad | J13: 30 | K13: 20 | L13: 3.4 | M13: -13.09090909 | N13: 625.0684631 | O13: =N13/(100-VSTUPY!$B$18)*100 -> 657.9668033
A14: srpen | B14: =VLOOKUP($A$2,Data!$A$32:$M$44,9,FALSE) -> 18 | I14: prosinec | J14: 31 | K14: 20 | L14: -0.1 | M14: -13.09090909 | N14: 782.0886735 | O14: =N14/(100-VSTUPY!$B$18)*100 -> 823.2512352
A15: září | B15: =VLOOKUP($A$2,Data!$A$32:$M$44,10,FALSE) -> 13.5 | M15: celkem: | N15: =SUM(N3:N14) -> 4927.120988 | O15: GJ/r
A16: říjen | B16: =VLOOKUP($A$2,Data!$A$32:$M$44,11,FALSE) -> 8.7 | M16: vstupy: | N16: =VSTUPY!B12 -> 5000 | O16: GJ/r
A17: listopad | B17: =VLOOKUP($A$2,Data!$A$32:$M$44,12,FALSE) -> 3.4 | M17: rozdil: | N17: =100/N16*(N15-N16) -> -1.457580239 | O17: %
A18: prosinec | B18: =VLOOKUP($A$2,Data!$A$32:$M$44,13,FALSE) -> -0.1 | M18: rozdíl daný rozdílem mezi průměrnou teplotou za otop.obd. z tzb-info a měsíčními prům. teplotami z ČHMÚ - po zprůměrování jiná hodnota
A22: MĚSÍČNÍ POTŘEBA TEPLA - OHŘEV TUV | I22: CELKOVÁ POTŘEBA TEPLA SE ZAHRNUTÍM ZTRÁT V ROZVODECH
A23: rovnoměrná potřeba tepla pro ohřev TUV během roku | I23: vytápění | J23: =SUM(O3:O14) -> 5186.443145 | K23: GJ/r
A24: roční potřeba | B24: =VSTUPY!B13/(100-VSTUPY!B18)*100 -> 1578.947368 | C24: GJ/r | D24: se zahrnutím ztrát v rozvodech | I24: ohřev TUV | J24: =B24 -> 1578.947368 | K24: GJ/r
A25: denní potř. | B25: =B24/365 -> 4.325883201 | C25: GJ/d | D25: se zahrnutím ztrát v rozvodech | I25: technologie | J25: =B30 -> 3684.210526 | K25: GJ/r
I26: CELKEM | J26: =J23+J24+J25 -> 10449.60104 | K26: GJ/r
A28: MĚSÍČNÍ POTŘEBA TEPLA - TECHNOLOGIE
A29: rovnoměrná potřeba tepla pro technologii během roku
A30: roční potřeba | B30: =VSTUPY!B14/(100-VSTUPY!B18)*100 -> 3684.210526 | C30: GJ/r | D30: se zahrnutím ztrát v rozvodech
A31: denní potř. | B31: =B30/365 -> 10.09372747 | C31: GJ/d | D31: se zahrnutím ztrát v rozvodech
A34: DENNÍ DIAGRAM
B35: vytápění | C35: tech.: 12h | D35: TUV | E35: tech.: 8h | F35: tech.: 16h | G35: tech.: 24h | O35: vytápění | P35: TUV
A36: hodina | B36: P/P_max | C36: P/P_max | D36: P/P_max | E36: P/P_max | F36: P/P_max | G36: P/P_max | O36: https://www.asb-portal.cz/stavebnictvi/technicka-zarizeni-budov/energie/biomasa-jako-zdroj-pro-vyrobu-elektricke-energie-a-tepla-v-bytovych-domech | P36: https://www.asb-portal.cz/stavebnictvi/technicka-zarizeni-budov/energie/biomasa-jako-zdroj-pro-vyrobu-elektricke-energie-a-tepla-v-bytovych-domech
A37: 0 | B37: 0.75 | C37: 0 | D37: 0.25 | E37: 0 | F37: 0 | G37: 1 | O37: https://www.tzb-info.cz/2227-integrace-vytapeni-a-ohrevu-tuv-v-nizkoenergetickych-bytovych-domech | P37: https://voda.tzb-info.cz/priprava-teple-vody/14864-priprava-teple-vody-v-obytnych-budovach
A38: 1 | B38: 0.75 | C38: 0 | D38: 0.1 | E38: 0 | F38: 0 | G38: 1 | O38: https://oze.tzb-info.cz/17501-dum-s-fotovoltaikou-a-domovni-baterii-20-mesicu-provozu | P38: http://panelovedomy.ekowatt.cz/tepla-voda/35-casove-rozlozeni-spotreby-teple-vody.html
A39: 2 | B39: 0.8 | C39: 0 | D39: 0.05 | E39: 0 | F39: 0 | G39: 1 | O39: Vlach str. 58 | P39: Cihelka str. 403 a 438
A40: 3 | B40: 0.85 | C40: 0 | D40: 0.05 | E40: 0 | F40: 0 | G40: 1
A41: 4 | B41: 0.9 | C41: 0 | D41: 0.1 | E41: 0 | F41: 0 | G41: 1
A42: 5 | B42: 0.95 | C42: 0 | D42: 0.2 | E42: 0 | F42: 0 | G42: 1
A43: 6 | B43: 0.975 | C43: 1 | D43: 0.35 | E43: 1 | F43: 1 | G43: 1
A44: 7 | B44: 1 | C44: 1 | D44: 0.55 | E44: 1 | F44: 1 | G44: 1
A45: 8 | B45: 1 | C45: 1 | D45: 0.6 | E45: 1 | F45: 1 | G45: 1
A46: 9 | B46: 0.9 | C46: 1 | D46: 0.55 | E46: 1 | F46: 1 | G46: 1
A47: 10 | B47: 0.7 | C47: 1 | D47: 0.45 | E47: 1 | F47: 1 | G47: 1
A48: 11 | B48: 0.6 | C48: 1 | D48: 0.4 | E48: 1 | F48: 1 | G48: 1
A49: 12 | B49: 0.5 | C49: 1 | D49: 0.35 | E49: 1 | F49: 1 | G49: 1
A50: 13 | B50: 0.4 | C50: 1 | D50: 0.325 | E50: 1 | F50: 1 | G50: 1
A51: 14 | B51: 0.4 | C51: 1 | D51: 0.3 | E51: 0 | F51: 1 | G51: 1
A52: 15 | B52: 0.45 | C52: 1 | D52: 0.3 | E52: 0 | F52: 1 | G52: 1
A53: 16 | B53: 0.5 | C53: 1 | D53: 0.35 | E53: 0 | F53: 1 | G53: 1
A54: 17 | B54: 0.55 | C54: 1 | D54: 0.45 | E54: 0 | F54: 1 | G54: 1
A55: 18 | B55: 0.6 | C55: 0 | D55: 0.6 | E55: 0 | F55: 1 | G55: 1
A56: 19 | B56: 0.625 | C56: 0 | D56: 0.75 | E56: 0 | F56: 1 | G56: 1
A57: 20 | B57: 0.65 | C57: 0 | D57: 0.9 | E57: 0 | F57: 1 | G57: 1
A58: 21 | B58: 0.675 | C58: 0 | D58: 1 | E58: 0 | F58: 1 | G58: 1
A59: 22 | B59: 0.7 | C59: 0 | D59: 0.8 | E59: 0 | F59: 0 | G59: 1
A60: 23 | B60: 0.725 | C60: 0 | D60: 0.55 | E60: 0 | F60: 0 | G60: 1
A61: 24 | B61: =B37 -> 0.75 | C61: =C37 -> 0 | D61: =D37 -> 0.25 | E61: =E37 -> 0 | F61: =F37 -> 0 | G61: 1
A63: (P/P_max)h | B63: =SUM(B38:B61) -> 16.95 | C63: =SUM(C38:C61) -> 12 | D63: =SUM(D38:D61) -> 10.325 | E63: =SUM(E38:E61) -> 8 | F63: 16 | G63: 24
A64: P_prum/P_max | B64: =B63/24 -> 0.70625 | C64: =C63/24 -> 0.5 | D64: =D63/24 -> 0.4302083333 | E64: =E63/24 -> 0.3333333333 | F64: 0.6666666667 | G64: 1
A65: P_min/P_max | B65: =MIN(B38:B61)/MAX(B38:B61) -> 0.4 | C65: =MIN(C38:C61)/MAX(C38:C61) -> 0 | D65: =MIN(D38:D61)/MAX(D38:D61) -> 0.05 | E65: =MIN(E38:E61)/MAX(E38:E61) -> 0 | F65: 0 | G65: 1
A66: P_max/P_prum | B66: =1/B64 -> 1.415929204 | C66: =1/C64 -> 2 | D66: 2.324455206 | E66: 3 | F66: 1.5 | G66: 1
A67: P_min/P_prum | B67: =MIN(B38:B61)/B64 -> 0.5663716814 | C67: =MIN(C38:C61)/C64 -> 0 | D67: 0.1162227603 | E67: 0 | F67: 0 | G67: 1
B70: vytápění | H70: technologie | N70: TUV
B71: d | C71: h | D71: Qv [GJ] | E71: Pv_prum [kW] | F71: Pv_max [kW] | G71: Pv_min [kW] | H71: d | I71: h | J71: Qt [GJ] | K71: Pt_prum [kW] | L71: Pt_max [kW] | M71: Pt_min [kW] | N71: d | O71: h | P71: Qt [GJ] | Q71: Pt_prum [kW] | R71: Pt_max [kW] | S71: Pt_min [kW]
A72: leden | B72: =J3 -> 31 | C72: =B72*24 -> 744 | D72: =O3 -> 868.3047854 | E72: =D72/3.6*1000/B72/24 -> 324.1878679 | F72: =E72*$B$66 -> 459.0270696 | G72: =E72*$B$67 -> 183.6108278 | H72: 31 | I72: =H72*24 -> 744 | J72: =$B$31*H72 -> 312.9055516 | K72: =J72/3.6*1000/I72 -> 116.8255494 | L72: =K72/IF(VSTUPY!$B$19=12,'Velikost zdroje'!$C$64,IF(VSTUPY!$B$19=8,'Velikost zdroje'!$E$64,IF(VSTUPY!$B$19=16,'Velikost zdroje'!$F$64,IF(VSTUPY!$B$19=24,'Velikost zdroje'!$G$64,0)))) -> 233.6510988 | M72: =L72*IF(VSTUPY!$B$19=12,'Velikost zdroje'!$C$65,IF(VSTUPY!$B$19=8,'Velikost zdroje'!$E$65,IF(VSTUPY!$B$19=16,'Velikost zdroje'!$F$65,IF(VSTUPY!$B$19=24,'Velikost zdroje'!$G$65,0)))) -> 0 | N72: 31 | O72: =N72*24 -> 744 | P72: =$B$25*N72 -> 134.1023792 | Q72: =P72/3.6*1000/O72 -> 50.06809261 | R72: =Q72/$D$64 -> 116.3810385 | S72: =R72*$D$65 -> 5.819051925
A73: únor | B73: 28 | C73: =B73*24 -> 672 | D73: =O4 -> 747.2811726 | E73: =D73/3.6*1000/B73/24 -> 308.8959873 | F73: =E73*$B$66 -> 437.3748493 | G73: =E73*$B$67 -> 174.9499397 | H73: 28 | I73: =H73*24 -> 672 | J73: =$B$31*H73 -> 282.6243691 | K73: =J73/3.6*1000/I73 -> 116.8255494 | L73: =K73/IF(VSTUPY!$B$19=12,'Velikost zdroje'!$C$64,IF(VSTUPY!$B$19=8,'Velikost zdroje'!$E$64,IF(VSTUPY!$B$19=16,'Velikost zdroje'!$F$64,IF(VSTUPY!$B$19=24,'Velikost zdroje'!$G$64,0)))) -> 233.6510988 | M73: =L73*IF(VSTUPY!$B$19=12,'Velikost zdroje'!$C$65,IF(VSTUPY!$B$19=8,'Velikost zdroje'!$E$65,IF(VSTUPY!$B$19=16,'Velikost zdroje'!$F$65,IF(VSTUPY!$B$19=24,'Velikost zdroje'!$G$65,0)))) -> 0 | N73: 28 | O73: =N73*24 -> 672 | P73: =$B$25*N73 -> 121.1247296 | Q73: =P73/3.6*1000/O73 -> 50.06809261 | R73: =Q73/$D$64 -> 116.3810385 | S73: =R73*$D$65 -> 5.819051925
A74: březen | B74: 31 | C74: 744 | D74: 667.6116982 | E74: =D74/3.6*1000/B74/24 -> 249.2576532 | F74: 352.9311903 | G74: 141.1724761 | H74: 31 | I74: 744 | J74: 312.9055516 | K74: =J74/3.6*1000/I74 -> 116.8255494 | L74: =K74/IF(VSTUPY!$B$19=12,'Velikost zdroje'!$C$64,IF(VSTUPY!$B$19=8,'Velikost zdroje'!$E$64,IF(VSTUPY!$B$19=16,'Velikost zdroje'!$F$64,IF(VSTUPY!$B$19=24,'Velikost zdroje'!$G$64,0)))) -> 233.6510988 | M74: =L74*IF(VSTUPY!$B$19=12,'Velikost zdroje'!$C$65,IF(VSTUPY!$B$19=8,'Velikost zdroje'!$E$65,IF(VSTUPY!$B$19=16,'Velikost zdroje'!$F$65,IF(VSTUPY!$B$19=24,'Velikost zdroje'!$G$65,0)))) -> 0 | N74: 31 | O74: 744 | P74: 134.1023792 | Q74: 50.06809261 | R74: 116.3810385 | S74: 5.819051925
A75: duben | B75: 30 | C75: 720 | D75: 451.8567203 | E75: =D75/3.6*1000/B75/24 -> 174.3274384 | F75: 246.835311 | G75: 98.73412441 | H75: 30 | I75: 720 | J75: 302.8118241 | K75: 116.8255494 | L75: =K75/IF(VSTUPY!$B$19=12,'Velikost zdroje'!$C$64,IF(VSTUPY!$B$19=8,'Velikost zdroje'!$E$64,IF(VSTUPY!$B$19=16,'Velikost zdroje'!$F$64,IF(VSTUPY!$B$19=24,'Velikost zdroje'!$G$64,0)))) -> 233.6510988 | M75: =L75*IF(VSTUPY!$B$19=12,'Velikost zdroje'!$C$65,IF(VSTUPY!$B$19=8,'Velikost zdroje'!$E$65,IF(VSTUPY!$B$19=16,'Velikost zdroje'!$F$65,IF(VSTUPY!$B$19=24,'Velikost zdroje'!$G$65,0)))) -> 0 | N75: 30 | O75: 720 | P75: 129.776496 | Q75: 50.06809261 | R75: 116.3810385 | S75: 5.819051925
A76: květen | B76: 30 | C76: 720 | D76: 249.7102928 | E76: =D76/3.6*1000/B76/24 -> 96.33884754 | F76: 136.4089877 | G76: 54.56359507 | H76: 31 | I76: 744 | J76: 312.9055516 | K76: 116.8255494 | L76: =K76/IF(VSTUPY!$B$19=12,'Velikost zdroje'!$C$64,IF(VSTUPY!$B$19=8,'Velikost zdroje'!$E$64,IF(VSTUPY!$B$19=16,'Velikost zdroje'!$F$64,IF(VSTUPY!$B$19=24,'Velikost zdroje'!$G$64,0)))) -> 233.6510988 | M76: =L76*IF(VSTUPY!$B$19=12,'Velikost zdroje'!$C$65,IF(VSTUPY!$B$19=8,'Velikost zdroje'!$E$65,IF(VSTUPY!$B$19=16,'Velikost zdroje'!$F$65,IF(VSTUPY!$B$19=24,'Velikost zdroje'!$G$65,0)))) -> 0 | N76: 31 | O76: 744 | P76: 134.1023792 | Q76: 50.06809261 | R76: 116.3810385 | S76: 5.819051925
A77: červen | B77: 0 | C77: 0 | D77: 0 | E77: 0 | F77: 0 | G77: =E77*$B$67 -> 0 | H77: 30 | I77: 720 | J77: 302.8118241 | K77: 116.8255494 | L77: =K77/IF(VSTUPY!$B$19=12,'Velikost zdroje'!$C$64,IF(VSTUPY!$B$19=8,'Velikost zdroje'!$E$64,IF(VSTUPY!$B$19=16,'Velikost zdroje'!$F$64,IF(VSTUPY!$B$19=24,'Velikost zdroje'!$G$64,0)))) -> 233.6510988 | M77: =L77*IF(VSTUPY!$B$19=12,'Velikost zdroje'!$C$65,IF(VSTUPY!$B$19=8,'Velikost zdroje'!$E$65,IF(VSTUPY!$B$19=16,'Velikost zdroje'!$F$65,IF(VSTUPY!$B$19=24,'Velikost zdroje'!$G$65,0)))) -> 0 | N77: 30 | O77: 720 | P77: 129.776496 | Q77: 50.06809261 | R77: 116.3810385 | S77: 5.819051925
A78: červenec | B78: 0 | C78: 0 | D78: 0 | E78: 0 | F78: 0 | G78: 0 | H78: 31 | I78: 744 | J78: 312.9055516 | K78: 116.8255494 | L78: =K78/IF(VSTUPY!$B$19=12,'Velikost zdroje'!$C$64,IF(VSTUPY!$B$19=8,'Velikost zdroje'!$E$64,IF(VSTUPY!$B$19=16,'Velikost zdroje'!$F$64,IF(VSTUPY!$B$19=24,'Velikost zdroje'!$G$64,0)))) -> 233.6510988 | M78: =L78*IF(VSTUPY!$B$19=12,'Velikost zdroje'!$C$65,IF(VSTUPY!$B$19=8,'Velikost zdroje'!$E$65,IF(VSTUPY!$B$19=16,'Velikost zdroje'!$F$65,IF(VSTUPY!$B$19=24,'Velikost zdroje'!$G$65,0)))) -> 0 | N78: 31 | O78: 744 | P78: 134.1023792 | Q78: 50.06809261 | R78: 116.3810385 | S78: 5.819051925
A79: srpen | B79: 0 | C79: 0 | D79: 0 | E79: 0 | F79: 0 | G79: 0 | H79: 31 | I79: 744 | J79: 312.9055516 | K79: 116.8255494 | L79: =K79/IF(VSTUPY!$B$19=12,'Velikost zdroje'!$C$64,IF(VSTUPY!$B$19=8,'Velikost zdroje'!$E$64,IF(VSTUPY!$B$19=16,'Velikost zdroje'!$F$64,IF(VSTUPY!$B$19=24,'Velikost zdroje'!$G$64,0)))) -> 233.6510988 | M79: =L79*IF(VSTUPY!$B$19=12,'Velikost zdroje'!$C$65,IF(VSTUPY!$B$19=8,'Velikost zdroje'!$E$65,IF(VSTUPY!$B$19=16,'Velikost zdroje'!$F$65,IF(VSTUPY!$B$19=24,'Velikost zdroje'!$G$65,0)))) -> 0 | N79: 31 | O79: 744 | P79: 134.1023792 | Q79: 50.06809261 | R79: 116.3810385 | S79: 5.819051925
A80: září | B80: 30 | C80: 720 | D80: 257.6376037 | E80: =D80/3.6*1000/B80/24 -> 99.39722365 | F80: 140.7394317 | G80: 56.29577269 | H80: 30 | I80: 720 | J80: 302.8118241 | K80: 116.8255494 | L80: =K80/IF(VSTUPY!$B$19=12,'Velikost zdroje'!$C$64,IF(VSTUPY!$B$19=8,'Velikost zdroje'!$E$64,IF(VSTUPY!$B$19=16,'Velikost zdroje'!$F$64,IF(VSTUPY!$B$19=24,'Velikost zdroje'!$G$64,0)))) -> 233.6510988 | M80: =L80*IF(VSTUPY!$B$19=12,'Velikost zdroje'!$C$65,IF(VSTUPY!$B$19=8,'Velikost zdroje'!$E$65,IF(VSTUPY!$B$19=16,'Velikost zdroje'!$F$65,IF(VSTUPY!$B$19=24,'Velikost zdroje'!$G$65,0)))) -> 0 | N80: 30 | O80: 720 | P80: 129.776496 | Q80: 50.06809261 | R80: 116.3810385 | S80: 5.819051925
A81: říjen | B81: 31 | C81: 744 | D81: 462.8228337 | E81: =D81/3.6*1000/B81/24 -> 172.7982503 | F81: 244.670089 | G81: 97.86803559 | H81: 31 | I81: 744 | J81: 312.9055516 | K81: 116.8255494 | L81: =K81/IF(VSTUPY!$B$19=12,'Velikost zdroje'!$C$64,IF(VSTUPY!$B$19=8,'Velikost zdroje'!$E$64,IF(VSTUPY!$B$19=16,'Velikost zdroje'!$F$64,IF(VSTUPY!$B$19=24,'Velikost zdroje'!$G$64,0)))) -> 233.6510988 | M81: =L81*IF(VSTUPY!$B$19=12,'Velikost zdroje'!$C$65,IF(VSTUPY!$B$19=8,'Velikost zdroje'!$E$65,IF(VSTUPY!$B$19=16,'Velikost zdroje'!$F$65,IF(VSTUPY!$B$19=24,'Velikost zdroje'!$G$65,0)))) -> 0 | N81: 31 | O81: 744 | P81: 134.1023792 | Q81: 50.06809261 | R81: 116.3810385 | S81: 5.819051925
A82: listopad | B82: 30 | C82: 720 | D82: 657.9668033 | E82: =D82/3.6*1000/B82/24 -> 253.8452173 | F82: 359.4268564 | G82: 143.7707426 | H82: 30 | I82: 720 | J82: 302.8118241 | K82: 116.8255494 | L82: =K82/IF(VSTUPY!$B$19=12,'Velikost zdroje'!$C$64,IF(VSTUPY!$B$19=8,'Velikost zdroje'!$E$64,IF(VSTUPY!$B$19=16,'Velikost zdroje'!$F$64,IF(VSTUPY!$B$19=24,'Velikost zdroje'!$G$64,0)))) -> 233.6510988 | M82: =L82*IF(VSTUPY!$B$19=12,'Velikost zdroje'!$C$65,IF(VSTUPY!$B$19=8,'Velikost zdroje'!$E$65,IF(VSTUPY!$B$19=16,'Velikost zdroje'!$F$65,IF(VSTUPY!$B$19=24,'Velikost zdroje'!$G$65,0)))) -> 0 | N82: 30 | O82: 720 | P82: 129.776496 | Q82: 50.06809261 | R82: 116.3810385 | S82: 5.819051925
A83: prosinec | B83: 31 | C83: 744 | D83: 823.2512352 | E83: =D83/3.6*1000/B83/24 -> 307.3667993 | F83: 435.2096273 | G83: 174.0838509 | H83: 31 | I83: 744 | J83: 312.9055516 | K83: 116.8255494 | L83: =K83/IF(VSTUPY!$B$19=12,'Velikost zdroje'!$C$64,IF(VSTUPY!$B$19=8,'Velikost zdroje'!$E$64,IF(VSTUPY!$B$19=16,'Velikost zdroje'!$F$64,IF(VSTUPY!$B$19=24,'Velikost zdroje'!$G$64,0)))) -> 233.6510988 | M83: =L83*IF(VSTUPY!$B$19=12,'Velikost zdroje'!$C$65,IF(VSTUPY!$B$19=8,'Velikost zdroje'!$E$65,IF(VSTUPY!$B$19=16,'Velikost zdroje'!$F$65,IF(VSTUPY!$B$19=24,'Velikost zdroje'!$G$65,0)))) -> 0 | N83: 31 | O83: 744 | P83: 134.1023792 | Q83: 50.06809261 | R83: 116.3810385 | S83: 5.819051925
A86: MĚSÍČNÍ POTŘEBA VÝKONU - CELKOVÁ
A87: celkem
B88: dny | C88: P_prum [kW] | D88: P_max [kW] | E88: P_min [kW] | F88: Q [GJ]
A89: leden | B89: 31 | C89: =E72+K72+Q72 -> 491.0815099 | D89: =Pomocné!$E62 -> 762.5067915 | E89: =Pomocné!$E63 -> 345.2448649 | F89: =D72+J72+P72 -> 1315.312716
A90: únor | B90: 28 | C90: =E73+K73+Q73 -> 475.7896294 | D90: =Pomocné!$I62 -> 740.8545713 | E90: =Pomocné!$I63 -> 332.2535327 | F90: 1151.030271
A91: březen | B91: 31 | C91: 416.1512952 | D91: =Pomocné!$M62 -> 656.4109122 | E91: =Pomocné!$M63 -> 276.3364966 | F91: 1114.619629
A92: duben | B92: 30 | C92: =E75+K75+Q75 -> 341.2210804 | D92: =Pomocné!$Q62 -> 550.3150329 | E92: =Pomocné!$Q63 -> 196.7645871 | F92: 884.4450405
A93: květen | B93: 31 | C93: 263.2324896 | D93: =Pomocné!$U62 -> 439.8887096 | E93: =Pomocné!$U63 -> 113.9448446 | F93: 696.7182236
A94: červen | B94: 30 | C94: 166.893642 | D94: =Pomocné!$Y62 -> 303.4797219 | E94: =Pomocné!$Y63 -> 5.819051925 | F94: 432.5883201
A95: červenec | B95: 31 | C95: 166.893642 | D95: =Pomocné!$AC62 -> 303.4797219 | E95: =Pomocné!$AC63 -> 5.819051925 | F95: 447.0079308
A96: srpen | B96: 31 | C96: 166.893642 | D96: =Pomocné!$AG62 -> 303.4797219 | E96: =Pomocné!$AG63 -> 5.819051925 | F96: 447.0079308
A97: září | B97: 30 | C97: 266.2908657 | D97: =Pomocné!$AK62 -> 444.2191536 | E97: =Pomocné!$AK63 -> 117.1926776 | F97: 690.2259238
A98: říjen | B98: 31 | C98: 339.6918924 | D98: =Pomocné!$AO62 -> 548.1498109 | E98: =Pomocné!$AO63 -> 195.1406706 | F98: 909.8307645
A99: listopad | B99: 30 | C99: 420.7388593 | D99: =Pomocné!$AS62 -> 662.9065783 | E99: =Pomocné!$AS63 -> 281.2082461 | F99: 1090.555123
A100: prosinec | B100: 31 | C100: 474.2604413 | D100: =Pomocné!$AW62 -> 738.6893492 | E100: =Pomocné!$AW63 -> 330.9543995 | F100: 1270.259166
F101: =SUM(F89:F100) -> 10449.60104 | G101: GJ/r
E102: vstupy: | F102: =VSTUPY!B7 -> 10000 | G102: GJ/r
E103: rozdil: | F103: =100/F102*(F101-F102) -> 4.496010401 | G103: %
A106: DTPV
G107: hodiny | H107: čas | I107: P_prum [kW] | J107: P_max [kW] | K107: P_min [kW]
B108: dny | C108: P_prum [kW] | D108: P_max [kW] | E108: P_min [kW] | G108: 0 | H108: 0 | I108: =I109 -> 491.0815099 | J108: =J109 -> 762.5067915 | K108: =K109 -> 345.2448649
A109: leden | B109: 31 | C109: 491.0815099 | D109: 762.5067915 | E109: 345.2448649 | G109: =B109*24 -> 744 | H109: =G109 -> 744 | I109: =C109 -> 491.0815099 | J109: 762.5067915 | K109: 345.2448649
A110: únor | B110: 28 | C110: 475.7896294 | D110: 740.8545713 | E110: 332.2535327 | G110: =B110*24 -> 672 | H110: =H109+G110 -> 1416 | I110: 475.7896294 | J110: 740.8545713 | K110: 332.2535327
A111: prosinec | B111: 31 | C111: 474.2604413 | D111: 738.6893492 | E111: 330.9543995 | G111: =B111*24 -> 744 | H111: =H110+G111 -> 2160 | I111: 474.2604413 | J111: 738.6893492 | K111: 330.9543995
A112: listopad | B112: 30 | C112: 420.7388593 | D112: 662.9065783 | E112: 281.2082461 | G112: 720 | H112: 2880 | I112: 420.7388593 | J112: 662.9065783 | K112: 281.2082461
A113: březen | B113: 31 | C113: 416.1512952 | D113: 656.4109122 | E113: 276.3364966 | G113: 744 | H113: 3624 | I113: =C113 -> 416.1512952 | J113: 656.4109122 | K113: 276.3364966
A114: duben | B114: 30 | C114: 341.2210804 | D114: 550.3150329 | E114: 196.7645871 | G114: 720 | H114: 4344 | I114: 341.2210804 | J114: 550.3150329 | K114: 196.7645871
A115: říjen | B115: 31 | C115: 339.6918924 | D115: 548.1498109 | E115: 195.1406706 | G115: 744 | H115: 5088 | I115: 339.6918924 | J115: 548.1498109 | K115: 195.1406706
A116: září | B116: 30 | C116: 266.2908657 | D116: 444.2191536 | E116: 117.1926776 | G116: 720 | H116: 5808 | I116: 266.2908657 | J116: 444.2191536 | K116: 117.1926776
A117: květen | B117: 31 | C117: 263.2324896 | D117: 439.8887096 | E117: 113.9448446 | G117: 744 | H117: 6552 | I117: 263.2324896 | J117: 439.8887096 | K117: 113.9448446
A118: červen | B118: 30 | C118: 166.893642 | D118: 303.4797219 | E118: 5.819051925 | G118: 720 | H118: 7272 | I118: 166.893642 | J118: 303.4797219 | K118: 5.819051925
A119: červenec | B119: 31 | C119: 166.893642 | D119: 303.4797219 | E119: 5.819051925 | G119: 744 | H119: 8016 | I119: 166.893642 | J119: 303.4797219 | K119: 5.819051925
A120: srpen | B120: 31 | C120: 166.893642 | D120: 303.4797219 | E120: 5.819051925 | G120: 744 | H120: 8760 | I120: 166.893642 | J120: 303.4797219 | K120: 5.819051925
A123: VELIKOST INSTALOVANÉHO VÝKONU
A124: Max. potřebný výkon: | B124: =MAX(D89:D100) -> 762.5067915 | C124: kW
A125: Celková roční potřeba tepla: | B125: =VSTUPY!B7 -> 10000 | C125: GJ/r
A126: Ztráta rozvodů: | B126: =VSTUPY!B18 -> 5 | C126: %
A127: Rocni potreba tepla (+ztraty): | B127: =ROUNDUP(B125/(100-B126)*100,0) -> 10527 | C127: GJ/r
A128: Doba využití výkonu: | B128: =ROUND(B127/3.6*1000/B124,0) -> 3835 | C128: h/r

Sheet Pomocné
A1: DENNÍ DIAGRAM PRO JEDNOTLIVÉ MĚSÍCE | K1: EKONOMIKA - DATA
B2: ='Velikost zdroje'!B35 -> vytápění | C2: ='Velikost zdroje'!C35 -> tech.: 12h | D2: ='Velikost zdroje'!D35 -> TUV | E2: ='Velikost zdroje'!E35 -> tech.: 8h | F2: ='Velikost zdroje'!F35 -> tech.: 16h | G2: ='Velikost zdroje'!G35 -> tech.: 24h | K2: Doba porovnani [roky] | M2: Diskontí míra [%]
A3: ='Velikost zdroje'!A36 -> hodina | B3: ='Velikost zdroje'!B36 -> P/P_max | C3: ='Velikost zdroje'!C36 -> P/P_max | D3: ='Velikost zdroje'!D36 -> P/P_max | E3: ='Velikost zdroje'!E36 -> P/P_max | F3: ='Velikost zdroje'!F36 -> P/P_max | G3: ='Velikost zdroje'!G36 -> P/P_max | K3: 5 | M3: 0
A4: ='Velikost zdroje'!A37 -> 0 | B4: ='Velikost zdroje'!B37 -> 0.75 | C4: ='Velikost zdroje'!C37 -> 0 | D4: ='Velikost zdroje'!D37 -> 0.25 | E4: ='Velikost zdroje'!E37 -> 0 | F4: ='Velikost zdroje'!F37 -> 0 | G4: ='Velikost zdroje'!G37 -> 1 | K4: 10 | M4: 1
A5: ='Velikost zdroje'!A38 -> 1 | B5: ='Velikost zdroje'!B38 -> 0.75 | C5: ='Velikost zdroje'!C38 -> 0 | D5: ='Velikost zdroje'!D38 -> 0.1 | E5: ='Velikost zdroje'!E38 -> 0 | F5: ='Velikost zdroje'!F38 -> 0 | G5: ='Velikost zdroje'!G38 -> 1 | K5: 15 | M5: 2
A6: ='Velikost zdroje'!A39 -> 2 | B6: ='Velikost zdroje'!B39 -> 0.8 | C6: ='Velikost zdroje'!C39 -> 0 | D6: ='Velikost zdroje'!D39 -> 0.05 | E6: ='Velikost zdroje'!E39 -> 0 | F6: ='Velikost zdroje'!F39 -> 0 | G6: ='Velikost zdroje'!G39 -> 1 | K6: 20 | M6: 3
A7: ='Velikost zdroje'!A40 -> 3 | B7: ='Velikost zdroje'!B40 -> 0.85 | C7: ='Velikost zdroje'!C40 -> 0 | D7: ='Velikost zdroje'!D40 -> 0.05 | E7: ='Velikost zdroje'!E40 -> 0 | F7: ='Velikost zdroje'!F40 -> 0 | G7: ='Velikost zdroje'!G40 -> 1 | K7: 25 | M7: 4
A8: ='Velikost zdroje'!A41 -> 4 | B8: ='Velikost zdroje'!B41 -> 0.9 | C8: ='Velikost zdroje'!C41 -> 0 | D8: ='Velikost zdroje'!D41 -> 0.1 | E8: ='Velikost zdroje'!E41 -> 0 | F8: ='Velikost zdroje'!F41 -> 0 | G8: ='Velikost zdroje'!G41 -> 1 | M8: 5
A9: ='Velikost zdroje'!A42 -> 5 | B9: ='Velikost zdroje'!B42 -> 0.95 | C9: ='Velikost zdroje'!C42 -> 0 | D9: ='Velikost zdroje'!D42 -> 0.2 | E9: ='Velikost zdroje'!E42 -> 0 | F9: ='Velikost zdroje'!F42 -> 0 | G9: ='Velikost zdroje'!G42 -> 1 | M9: 6
A10: ='Velikost zdroje'!A43 -> 6 | B10: ='Velikost zdroje'!B43 -> 0.975 | C10: ='Velikost zdroje'!C43 -> 1 | D10: ='Velikost zdroje'!D43 -> 0.35 | E10: ='Velikost zdroje'!E43 -> 1 | F10: ='Velikost zdroje'!F43 -> 1 | G10: ='Velikost zdroje'!G43 -> 1 | M10: 7
A11: ='Velikost zdroje'!A44 -> 7 | B11: ='Velikost zdroje'!B44 -> 1 | C11: ='Velikost zdroje'!C44 -> 1 | D11: ='Velikost zdroje'!D44 -> 0.55 | E11: ='Velikost zdroje'!E44 -> 1 | F11: ='Velikost zdroje'!F44 -> 1 | G11: ='Velikost zdroje'!G44 -> 1 | M11: 8
A12: ='Velikost zdroje'!A45 -> 8 | B12: ='Velikost zdroje'!B45 -> 1 | C12: ='Velikost zdroje'!C45 -> 1 | D12: ='Velikost zdroje'!D45 -> 0.6 | E12: ='Velikost zdroje'!E45 -> 1 | F12: ='Velikost zdroje'!F45 -> 1 | G12: ='Velikost zdroje'!G45 -> 1 | M12: 9
A13: ='Velikost zdroje'!A46 -> 9 | B13: ='Velikost zdroje'!B46 -> 0.9 | C13: ='Velikost zdroje'!C46 -> 1 | D13: ='Velikost zdroje'!D46 -> 0.55 | E13: ='Velikost zdroje'!E46 -> 1 | F13: ='Velikost zdroje'!F46 -> 1 | G13: ='Velikost zdroje'!G46 -> 1 | M13: 10
A14: ='Velikost zdroje'!A47 -> 10 | B14: ='Velikost zdroje'!B47 -> 0.7 | C14: ='Velikost zdroje'!C47 -> 1 | D14: ='Velikost zdroje'!D47 -> 0.45 | E14: ='Velikost zdroje'!E47 -> 1 | F14: ='Velikost zdroje'!F47 -> 1 | G14: ='Velikost zdroje'!G47 -> 1 | M14: 11
A15: ='Velikost zdroje'!A48 -> 11 | B15: ='Velikost zdroje'!B48 -> 0.6 | C15: ='Velikost zdroje'!C48 -> 1 | D15: ='Velikost zdroje'!D48 -> 0.4 | E15: ='Velikost zdroje'!E48 -> 1 | F15: ='Velikost zdroje'!F48 -> 1 | G15: ='Velikost zdroje'!G48 -> 1 | M15: 12
A16: ='Velikost zdroje'!A49 -> 12 | B16: ='Velikost zdroje'!B49 -> 0.5 | C16: ='Velikost zdroje'!C49 -> 1 | D16: ='Velikost zdroje'!D49 -> 0.35 | E16: ='Velikost zdroje'!E49 -> 1 | F16: ='Velikost zdroje'!F49 -> 1 | G16: ='Velikost zdroje'!G49 -> 1 | M16: 13
A17: ='Velikost zdroje'!A50 -> 13 | B17: ='Velikost zdroje'!B50 -> 0.4 | C17: ='Velikost zdroje'!C50 -> 1 | D17: ='Velikost zdroje'!D50 -> 0.325 | E17: ='Velikost zdroje'!E50 -> 1 | F17: ='Velikost zdroje'!F50 -> 1 | G17: ='Velikost zdroje'!G50 -> 1 | M17: 14
A18: ='Velikost zdroje'!A51 -> 14 | B18: ='Velikost zdroje'!B51 -> 0.4 | C18: ='Velikost zdroje'!C51 -> 1 | D18: ='Velikost zdroje'!D51 -> 0.3 | E18: ='Velikost zdroje'!E51 -> 0 | F18: ='Velikost zdroje'!F51 -> 1 | G18: ='Velikost zdroje'!G51 -> 1 | M18: 15
A19: ='Velikost zdroje'!A52 -> 15 | B19: ='Velikost zdroje'!B52 -> 0.45 | C19: ='Velikost zdroje'!C52 -> 1 | D19: ='Velikost zdroje'!D52 -> 0.3 | E19: ='Velikost zdroje'!E52 -> 0 | F19: ='Velikost zdroje'!F52 -> 1 | G19: ='Velikost zdroje'!G52 -> 1 | M19: 16
A20: ='Velikost zdroje'!A53 -> 16 | B20: ='Velikost zdroje'!B53 -> 0.5 | C20: ='Velikost zdroje'!C53 -> 1 | D20: ='Velikost zdroje'!D53 -> 0.35 | E20: ='Velikost zdroje'!E53 -> 0 | F20: ='Velikost zdroje'!F53 -> 1 | G20: ='Velikost zdroje'!G53 -> 1 | M20: 17
A21: ='Velikost zdroje'!A54 -> 17 | B21: ='Velikost zdroje'!B54 -> 0.55 | C21: ='Velikost zdroje'!C54 -> 1 | D21: ='Velikost zdroje'!D54 -> 0.45 | E21: ='Velikost zdroje'!E54 -> 0 | F21: ='Velikost zdroje'!F54 -> 1 | G21: ='Velikost zdroje'!G54 -> 1 | M21: 18
A22: ='Velikost zdroje'!A55 -> 18 | B22: ='Velikost zdroje'!B55 -> 0.6 | C22: ='Velikost zdroje'!C55 -> 0 | D22: ='Velikost zdroje'!D55 -> 0.6 | E22: ='Velikost zdroje'!E55 -> 0 | F22: ='Velikost zdroje'!F55 -> 1 | G22: ='Velikost zdroje'!G55 -> 1 | M22: 19
A23: ='Velikost zdroje'!A56 -> 19 | B23: ='Velikost zdroje'!B56 -> 0.625 | C23: ='Velikost zdroje'!C56 -> 0 | D23: ='Velikost zdroje'!D56 -> 0.75 | E23: ='Velikost zdroje'!E56 -> 0 | F23: ='Velikost zdroje'!F56 -> 1 | G23: ='Velikost zdroje'!G56 -> 1 | M23: 20
A24: ='Velikost zdroje'!A57 -> 20 | B24: ='Velikost zdroje'!B57 -> 0.65 | C24: ='Velikost zdroje'!C57 -> 0 | D24: ='Velikost zdroje'!D57 -> 0.9 | E24: ='Velikost zdroje'!E57 -> 0 | F24: ='Velikost zdroje'!F57 -> 1 | G24: ='Velikost zdroje'!G57 -> 1
A25: ='Velikost zdroje'!A58 -> 21 | B25: ='Velikost zdroje'!B58 -> 0.675 | C25: ='Velikost zdroje'!C58 -> 0 | D25: ='Velikost zdroje'!D58 -> 1 | E25: ='Velikost zdroje'!E58 -> 0 | F25: ='Velikost zdroje'!F58 -> 1 | G25: ='Velikost zdroje'!G58 -> 1
A26: ='Velikost zdroje'!A59 -> 22 | B26: ='Velikost zdroje'!B59 -> 0.7 | C26: ='Velikost zdroje'!C59 -> 0 | D26: ='Velikost zdroje'!D59 -> 0.8 | E26: ='Velikost zdroje'!E59 -> 0 | F26: ='Velikost zdroje'!F59 -> 0 | G26: ='Velikost zdroje'!G59 -> 1
A27: ='Velikost zdroje'!A60 -> 23 | B27: ='Velikost zdroje'!B60 -> 0.725 | C27: ='Velikost zdroje'!C60 -> 0 | D27: ='Velikost zdroje'!D60 -> 0.55 | E27: ='Velikost zdroje'!E60 -> 0 | F27: ='Velikost zdroje'!F60 -> 0 | G27: ='Velikost zdroje'!G60 -> 1
A28: ='Velikost zdroje'!A61 -> 24 | B28: ='Velikost zdroje'!B61 -> 0.75 | C28: ='Velikost zdroje'!C61 -> 0 | D28: ='Velikost zdroje'!D61 -> 0.25 | E28: ='Velikost zdroje'!E61 -> 0 | F28: ='Velikost zdroje'!F61 -> 0 | G28: ='Velikost zdroje'!G61 -> 1
B31: LEDEN | F31: ÚNOR | J31: BŘEZEN | N31: DUBEN | R31: KVĚTEN | V31: ČERVEN | Z31: ČERVENEC | AD31: SRPEN | AH31: ZÁŘÍ | AL31: ŘÍJEN | AP31: LISTOPAD | AT31: PROSINEC
B32: vytapeni | C32: technologie | D32: TUV | F32: vytapeni | G32: technologie | H32: TUV | J32: vytapeni | K32: technologie | L32: TUV | N32: vytapeni | O32: technologie | P32: TUV | R32: vytapeni | S32: technologie | T32: TUV | V32: vytapeni | W32: technologie | X32: TUV | Z32: vytapeni | AA32: technologie | AB32: TUV | AD32: vytapeni | AE32: technologie | AF32: TUV | AH32: vytapeni | AI32: technologie | AJ32: TUV | AL32: vytapeni | AM32: technologie | AN32: TUV | AP32: vytapeni | AQ32: technologie | AR32: TUV | AT32: vytapeni | AU32: technologie | AV32: TUV
A33: Px_max [kW] | B33: ='Velikost zdroje'!$F72 -> 459.0270696 | C33: ='Velikost zdroje'!$L72 -> 233.6510988 | D33: ='Velikost zdroje'!$R72 -> 116.3810385 | F33: ='Velikost zdroje'!$F73 -> 437.3748493 | G33: ='Velikost zdroje'!$L73 -> 233.6510988 | H33: ='Velikost zdroje'!$R73 -> 116.3810385 | J33: ='Velikost zdroje'!$F74 -> 352.9311903 | K33: ='Velikost zdroje'!$L74 -> 233.6510988 | L33: ='Velikost zdroje'!$R74 -> 116.3810385 | N33: ='Velikost zdroje'!$F75 -> 246.835311 | O33: ='Velikost zdroje'!$L75 -> 233.6510988 | P33: ='Velikost zdroje'!$R75 -> 116.3810385 | R33: ='Velikost zdroje'!$F76 -> 136.4089877 | S33: ='Velikost zdroje'!$L76 -> 233.6510988 | T33: ='Velikost zdroje'!$R76 -> 116.3810385 | V33: ='Velikost zdroje'!$F77 -> 0 | W33: ='Velikost zdroje'!$L77 -> 233.6510988 | X33: ='Velikost zdroje'!$R77 -> 116.3810385 | Z33: ='Velikost zdroje'!$F78 -> 0 | AA33: ='Velikost zdroje'!$L78 -> 233.6510988 | AB33: ='Velikost zdroje'!$R78 -> 116.3810385 | AD33: ='Velikost zdroje'!$F79 -> 0 | AE33: ='Velikost zdroje'!$L79 -> 233.6510988 | AF33: ='Velikost zdroje'!$R79 -> 116.3810385 | AH33: ='Velikost zdroje'!$F80 -> 140.7394317 | AI33: ='Velikost zdroje'!$L80 -> 233.6510988 | AJ33: ='Velikost zdroje'!$R80 -> 116.3810385 | AL33: ='Velikost zdroje'!$F81 -> 244.670089 | AM33: ='Velikost zdroje'!$L81 -> 233.6510988 | AN33: ='Velikost zdroje'!$R81 -> 116.3810385 | AP33: ='Velikost zdroje'!$F82 -> 359.4268564 | AQ33: ='Velikost zdroje'!$L82 -> 233.6510988 | AR33: ='Velikost zdroje'!$R82 -> 116.3810385 | AT33: ='Velikost zdroje'!$F83 -> 435.2096273 | AU33: ='Velikost zdroje'!$L83 -> 233.6510988 | AV33: ='Velikost zdroje'!$R83 -> 116.3810385
A35: hodina | B35: vytápění [kW] | C35: tech. [kW] | D35: TUV [kW] | E35: CELKEM [kW] | F35: vytápění [kW] | G35: tech. [kW] | H35: TUV [kW] | I35: CELKEM [kW] | J35: vytápění [kW] | K35: tech. [kW] | L35: TUV [kW] | M35: CELKEM [kW] | N35: vytápění [kW] | O35: tech. [kW] | P35: TUV [kW] | Q35: CELKEM [kW] | R35: vytápění [kW] | S35: tech. [kW] | T35: TUV [kW] | U35: CELKEM [kW] | V35: vytápění [kW] | W35: tech. [kW] | X35: TUV [kW] | Y35: CELKEM [kW] | Z35: vytápění [kW] | AA35: tech. [kW] | AB35: TUV [kW] | AC35: CELKEM [kW] | AD35: vytápění [kW] | AE35: tech. [kW] | AF35: TUV [kW] | AG35: CELKEM [kW] | AH35: vytápění [kW] | AI35: tech. [kW] | AJ35: TUV [kW] | AK35: CELKEM [kW] | AL35: vytápění [kW] | AM35: tech. [kW] | AN35: TUV [kW] | AO35: CELKEM [kW] | AP35: vytápění [kW] | AQ35: tech. [kW] | AR35: TUV [kW] | AS35: CELKEM [kW] | AT35: vytápění [kW] | AU35: tech. [kW] | AV35: TUV [kW] | AW35: CELKEM [kW]
A36: 0 | B36: =B$33*$B4 -> 344.2703022 | C36: =C$33*IF(VSTUPY!$B$19=8,Pomocné!$E4,IF(VSTUPY!$B$19=12,Pomocné!$C4,IF(VSTUPY!$B$19=16,Pomocné!$F4,Pomocné!$G4))) -> 0 | D36: =D$33*$D4 -> 29.09525963 | E36: =B36+C36+D36 -> 373.3655618 | F36: =F$33*$B4 -> 328.031137 | G36: =G$33*IF(VSTUPY!$B$19=8,Pomocné!$E4,IF(VSTUPY!$B$19=12,Pomocné!$C4,IF(VSTUPY!$B$19=16,Pomocné!$F4,Pomocné!$G4))) -> 0 | H36: =H$33*$D4 -> 29.09525963 | I36: =F36+G36+H36 -> 357.1263966 | J36: =J$33*$B4 -> 264.6983927 | K36: =K$33*IF(VSTUPY!$B$19=8,Pomocné!$E4,IF(VSTUPY!$B$19=12,Pomocné!$C4,IF(VSTUPY!$B$19=16,Pomocné!$F4,Pomocné!$G4))) -> 0 | L36: =L$33*$D4 -> 29.09525963 | M36: =J36+K36+L36 -> 293.7936524 | N36: =N$33*$B4 -> 185.1264833 | O36: =O$33*IF(VSTUPY!$B$19=8,Pomocné!$E4,IF(VSTUPY!$B$19=12,Pomocné!$C4,IF(VSTUPY!$B$19=16,Pomocné!$F4,Pomocné!$G4))) -> 0 | P36: =P$33*$D4 -> 29.09525963 | Q36: =N36+O36+P36 -> 214.2217429 | R36: =R$33*$B4 -> 102.3067407 | S36: =S$33*IF(VSTUPY!$B$19=8,Pomocné!$E4,IF(VSTUPY!$B$19=12,Pomocné!$C4,IF(VSTUPY!$B$19=16,Pomocné!$F4,Pomocné!$G4))) -> 0 | T36: =T$33*$D4 -> 29.09525963 | U36: =R36+S36+T36 -> 131.4020004 | V36: =V$33*$B4 -> 0 | W36: =W$33*IF(VSTUPY!$B$19=8,Pomocné!$E4,IF(VSTUPY!$B$19=12,Pomocné!$C4,IF(VSTUPY!$B$19=16,Pomocné!$F4,Pomocné!$G4))) -> 0 | X36: =X$33*$D4 -> 29.09525963 | Y36: =V36+W36+X36 -> 29.09525963 | Z36: =Z$33*$B4 -> 0 | AA36: =AA$33*IF(VSTUPY!$B$19=8,Pomocné!$E4,IF(VSTUPY!$B$19=12,Pomocné!$C4,IF(VSTUPY!$B$19=16,Pomocné!$F4,Pomocné!$G4))) -> 0 | AB36: =AB$33*$D4 -> 29.09525963 | AC36: =Z36+AA36+AB36 -> 29.09525963 | AD36: =AD$33*$B4 -> 0 | AE36: =AE$33*IF(VSTUPY!$B$19=8,Pomocné!$E4,IF(VSTUPY!$B$19=12,Pomocné!$C4,IF(VSTUPY!$B$19=16,Pomocné!$F4,Pomocné!$G4))) -> 0 | AF36: =AF$33*$D4 -> 29.09525963 | AG36: =AD36+AE36+AF36 -> 29.09525963 | AH36: =AH$33*$B4 -> 105.5545738 | AI36: =AI$33*IF(VSTUPY!$B$19=8,Pomocné!$E4,IF(VSTUPY!$B$19=12,Pomocné!$C4,IF(VSTUPY!$B$19=16,Pomocné!$F4,Pomocné!$G4))) -> 0 | AJ36: =AJ$33*$D4 -> 29.09525963 | AK36: =AH36+AI36+AJ36 -> 134.6498334 | AL36: =AL$33*$B4 -> 183.5025667 | AM36: =AM$33*IF(VSTUPY!$B$19=8,Pomocné!$E4,IF(VSTUPY!$B$19=12,Pomocné!$C4,IF(VSTUPY!$B$19=16,Pomocné!$F4,Pomocné!$G4))) -> 0 | AN36: =AN$33*$D4 -> 29.09525963 | AO36: =AL36+AM36+AN36 -> 212.5978264 | AP36: =AP$33*$B4 -> 269.5701423 | AQ36: =AQ$33*IF(VSTUPY!$B$19=8,Pomocné!$E4,IF(VSTUPY!$B$19=12,Pomocné!$C4,IF(VSTUPY!$B$19=16,Pomocné!$F4,Pomocné!$G4))) -> 0 | AR36: =AR$33*$D4 -> 29.09525963 | AS36: =AP36+AQ36+AR36 -> 298.6654019 | AT36: =AT$33*$B4 -> 326.4072205 | AU36: =AU$33*IF(VSTUPY!$B$19=8,Pomocné!$E4,IF(VSTUPY!$B$19=12,Pomocné!$C4,IF(VSTUPY!$B$19=16,Pomocné!$F4,Pomocné!$G4))) -> 0 | AV36: =AV$33*$D4 -> 29.09525963 | AW36: =AT36+AU36+AV36 -> 355.5024801
A37: 1 | B37: =B$33*$B5 -> 344.2703022 | C37: =C$33*IF(VSTUPY!$B$19=8,Pomocné!$E5,IF(VSTUPY!$B$19=12,Pomocné!$C5,IF(VSTUPY!$B$19=16,Pomocné!$F5,Pomocné!$G5))) -> 0 | D37: =D$33*$D5 -> 11.63810385 | E37: =B37+C37+D37 -> 355.9084061 | F37: =F$33*$B5 -> 328.031137 | G37: =G$33*IF(VSTUPY!$B$19=8,Pomocné!$E5,IF(VSTUPY!$B$19=12,Pomocné!$C5,IF(VSTUPY!$B$19=16,Pomocné!$F5,Pomocné!$G5))) -> 0 | H37: =H$33*$D5 -> 11.63810385 | I37: =F37+G37+H37 -> 339.6692409 | J37: =J$33*$B5 -> 264.6983927 | K37: =K$33*IF(VSTUPY!$B$19=8,Pomocné!$E5,IF(VSTUPY!$B$19=12,Pomocné!$C5,IF(VSTUPY!$B$19=16,Pomocné!$F5,Pomocné!$G5))) -> 0 | L37: =L$33*$D5 -> 11.63810385 | M37: =J37+K37+L37 -> 276.3364966 | N37: =N$33*$B5 -> 185.1264833 | O37: =O$33*IF(VSTUPY!$B$19=8,Pomocné!$E5,IF(VSTUPY!$B$19=12,Pomocné!$C5,IF(VSTUPY!$B$19=16,Pomocné!$F5,Pomocné!$G5))) -> 0 | P37: =P$33*$D5 -> 11.63810385 | Q37: =N37+O37+P37 -> 196.7645871 | R37: =R$33*$B5 -> 102.3067407 | S37: =S$33*IF(VSTUPY!$B$19=8,Pomocné!$E5,IF(VSTUPY!$B$19=12,Pomocné!$C5,IF(VSTUPY!$B$19=16,Pomocné!$F5,Pomocné!$G5))) -> 0 | T37: =T$33*$D5 -> 11.63810385 | U37: =R37+S37+T37 -> 113.9448446 | V37: =V$33*$B5 -> 0 | W37: =W$33*IF(VSTUPY!$B$19=8,Pomocné!$E5,IF(VSTUPY!$B$19=12,Pomocné!$C5,IF(VSTUPY!$B$19=16,Pomocné!$F5,Pomocné!$G5))) -> 0 | X37: =X$33*$D5 -> 11.63810385 | Y37: =V37+W37+X37 -> 11.63810385 | Z37: =Z$33*$B5 -> 0 | AA37: =AA$33*IF(VSTUPY!$B$19=8,Pomocné!$E5,IF(VSTUPY!$B$19=12,Pomocné!$C5,IF(VSTUPY!$B$19=16,Pomocné!$F5,Pomocné!$G5))) -> 0 | AB37: =AB$33*$D5 -> 11.63810385 | AC37: =Z37+AA37+AB37 -> 11.63810385 | AD37: =AD$33*$B5 -> 0 | AE37: =AE$33*IF(VSTUPY!$B$19=8,Pomocné!$E5,IF(VSTUPY!$B$19=12,Pomocné!$C5,IF(VSTUPY!$B$19=16,Pomocné!$F5,Pomocné!$G5))) -> 0 | AF37: =AF$33*$D5 -> 11.63810385 | AG37: =AD37+AE37+AF37 -> 11.63810385 | AH37: =AH$33*$B5 -> 105.5545738 | AI37: =AI$33*IF(VSTUPY!$B$19=8,Pomocné!$E5,IF(VSTUPY!$B$19=12,Pomocné!$C5,IF(VSTUPY!$B$19=16,Pomocné!$F5,Pomocné!$G5))) -> 0 | AJ37: =AJ$33*$D5 -> 11.63810385 | AK37: =AH37+AI37+AJ37 -> 117.1926776 | AL37: =AL$33*$B5 -> 183.5025667 | AM37: =AM$33*IF(VSTUPY!$B$19=8,Pomocné!$E5,IF(VSTUPY!$B$19=12,Pomocné!$C5,IF(VSTUPY!$B$19=16,Pomocné!$F5,Pomocné!$G5))) -> 0 | AN37: =AN$33*$D5 -> 11.63810385 | AO37: =AL37+AM37+AN37 -> 195.1406706 | AP37: =AP$33*$B5 -> 269.5701423 | AQ37: =AQ$33*IF(VSTUPY!$B$19=8,Pomocné!$E5,IF(VSTUPY!$B$19=12,Pomocné!$C5,IF(VSTUPY!$B$19=16,Pomocné!$F5,Pomocné!$G5))) -> 0 | AR37: =AR$33*$D5 -> 11.63810385 | AS37: =AP37+AQ37+AR37 -> 281.2082461 | AT37: =AT$33*$B5 -> 326.4072205 | AU37: =AU$33*IF(VSTUPY!$B$19=8,Pomocné!$E5,IF(VSTUPY!$B$19=12,Pomocné!$C5,IF(VSTUPY!$B$19=16,Pomocné!$F5,Pomocné!$G5))) -> 0 | AV37: =AV$33*$D5 -> 11.63810385 | AW37: =AT37+AU37+AV37 -> 338.0453243
A38: 2 | B38: 367.2216557 | C38: =C$33*IF(VSTUPY!$B$19=8,Pomocné!$E6,IF(VSTUPY!$B$19=12,Pomocné!$C6,IF(VSTUPY!$B$19=16,Pomocné!$F6,Pomocné!$G6))) -> 0 | D38: 5.819051925 | E38: 373.0407076 | F38: 349.8998795 | G38: =G$33*IF(VSTUPY!$B$19=8,Pomocné!$E6,IF(VSTUPY!$B$19=12,Pomocné!$C6,IF(VSTUPY!$B$19=16,Pomocné!$F6,Pomocné!$G6))) -> 0 | H38: 5.819051925 | I38: 355.7189314 | J38: 282.3449522 | K38: =K$33*IF(VSTUPY!$B$19=8,Pomocné!$E6,IF(VSTUPY!$B$19=12,Pomocné!$C6,IF(VSTUPY!$B$19=16,Pomocné!$F6,Pomocné!$G6))) -> 0 | L38: 5.819051925 | M38: 288.1640042 | N38: 197.4682488 | O38: =O$33*IF(VSTUPY!$B$19=8,Pomocné!$E6,IF(VSTUPY!$B$19=12,Pomocné!$C6,IF(VSTUPY!$B$19=16,Pomocné!$F6,Pomocné!$G6))) -> 0 | P38: 5.819051925 | Q38: 203.2873007 | R38: 109.1271901 | S38: =S$33*IF(VSTUPY!$B$19=8,Pomocné!$E6,IF(VSTUPY!$B$19=12,Pomocné!$C6,IF(VSTUPY!$B$19=16,Pomocné!$F6,Pomocné!$G6))) -> 0 | T38: 5.819051925 | U38: 114.9462421 | V38: 0 | W38: =W$33*IF(VSTUPY!$B$19=8,Pomocné!$E6,IF(VSTUPY!$B$19=12,Pomocné!$C6,IF(VSTUPY!$B$19=16,Pomocné!$F6,Pomocné!$G6))) -> 0 | X38: 5.819051925 | Y38: 5.819051925 | Z38: 0 | AA38: =AA$33*IF(VSTUPY!$B$19=8,Pomocné!$E6,IF(VSTUPY!$B$19=12,Pomocné!$C6,IF(VSTUPY!$B$19=16,Pomocné!$F6,Pomocné!$G6))) -> 0 | AB38: 5.819051925 | AC38: 5.819051925 | AD38: 0 | AE38: =AE$33*IF(VSTUPY!$B$19=8,Pomocné!$E6,IF(VSTUPY!$B$19=12,Pomocné!$C6,IF(VSTUPY!$B$19=16,Pomocné!$F6,Pomocné!$G6))) -> 0 | AF38: 5.819051925 | AG38: 5.819051925 | AH38: 112.5915454 | AI38: =AI$33*IF(VSTUPY!$B$19=8,Pomocné!$E6,IF(VSTUPY!$B$19=12,Pomocné!$C6,IF(VSTUPY!$B$19=16,Pomocné!$F6,Pomocné!$G6))) -> 0 | AJ38: 5.819051925 | AK38: 118.4105973 | AL38: 195.7360712 | AM38: =AM$33*IF(VSTUPY!$B$19=8,Pomocné!$E6,IF(VSTUPY!$B$19=12,Pomocné!$C6,IF(VSTUPY!$B$19=16,Pomocné!$F6,Pomocné!$G6))) -> 0 | AN38: 5.819051925 | AO38: 201.5551231 | AP38: 287.5414851 | AQ38: =AQ$33*IF(VSTUPY!$B$19=8,Pomocné!$E6,IF(VSTUPY!$B$19=12,Pomocné!$C6,IF(VSTUPY!$B$19=16,Pomocné!$F6,Pomocné!$G6))) -> 0 | AR38: 5.819051925 | AS38: 293.360537 | AT38: 348.1677019 | AU38: =AU$33*IF(VSTUPY!$B$19=8,Pomocné!$E6,IF(VSTUPY!$B$19=12,Pomocné!$C6,IF(VSTUPY!$B$19=16,Pomocné!$F6,Pomocné!$G6))) -> 0 | AV38: 5.819051925 | AW38: 353.9867538
A39: 3 | B39: 390.1730092 | C39: =C$33*IF(VSTUPY!$B$19=8,Pomocné!$E7,IF(VSTUPY!$B$19=12,Pomocné!$C7,IF(VSTUPY!$B$19=16,Pomocné!$F7,Pomocné!$G7))) -> 0 | D39: 5.819051925 | E39: 395.9920611 | F39: =F$33*$B7 -> 371.7686219 | G39: =G$33*IF(VSTUPY!$B$19=8,Pomocné!$E7,IF(VSTUPY!$B$19=12,Pomocné!$C7,IF(VSTUPY!$B$19=16,Pomocné!$F7,Pomocné!$G7))) -> 0 | H39: 5.819051925 | I39: 377.5876739 | J39: =J$33*$B7 -> 299.9915118 | K39: =K$33*IF(VSTUPY!$B$19=8,Pomocné!$E7,IF(VSTUPY!$B$19=12,Pomocné!$C7,IF(VSTUPY!$B$19=16,Pomocné!$F7,Pomocné!$G7))) -> 0 | L39: 5.819051925 | M39: 305.8105637 | N39: =N$33*$B7 -> 209.8100144 | O39: =O$33*IF(VSTUPY!$B$19=8,Pomocné!$E7,IF(VSTUPY!$B$19=12,Pomocné!$C7,IF(VSTUPY!$B$19=16,Pomocné!$F7,Pomocné!$G7))) -> 0 | P39: 5.819051925 | Q39: 215.6290663 | R39: =R$33*$B7 -> 115.9476395 | S39: =S$33*IF(VSTUPY!$B$19=8,Pomocné!$E7,IF(VSTUPY!$B$19=12,Pomocné!$C7,IF(VSTUPY!$B$19=16,Pomocné!$F7,Pomocné!$G7))) -> 0 | T39: 5.819051925 | U39: 121.7666914 | V39: =V$33*$B7 -> 0 | W39: =W$33*IF(VSTUPY!$B$19=8,Pomocné!$E7,IF(VSTUPY!$B$19=12,Pomocné!$C7,IF(VSTUPY!$B$19=16,Pomocné!$F7,Pomocné!$G7))) -> 0 | X39: 5.819051925 | Y39: 5.819051925 | Z39: =Z$33*$B7 -> 0 | AA39: =AA$33*IF(VSTUPY!$B$19=8,Pomocné!$E7,IF(VSTUPY!$B$19=12,Pomocné!$C7,IF(VSTUPY!$B$19=16,Pomocné!$F7,Pomocné!$G7))) -> 0 | AB39: 5.819051925 | AC39: 5.819051925 | AD39: =AD$33*$B7 -> 0 | AE39: =AE$33*IF(VSTUPY!$B$19=8,Pomocné!$E7,IF(VSTUPY!$B$19=12,Pomocné!$C7,IF(VSTUPY!$B$19=16,Pomocné!$F7,Pomocné!$G7))) -> 0 | AF39: 5.819051925 | AG39: 5.819051925 | AH39: =AH$33*$B7 -> 119.628517 | AI39: =AI$33*IF(VSTUPY!$B$19=8,Pomocné!$E7,IF(VSTUPY!$B$19=12,Pomocné!$C7,IF(VSTUPY!$B$19=16,Pomocné!$F7,Pomocné!$G7))) -> 0 | AJ39: 5.819051925 | AK39: 125.4475689 | AL39: =AL$33*$B7 -> 207.9695756 | AM39: =AM$33*IF(VSTUPY!$B$19=8,Pomocné!$E7,IF(VSTUPY!$B$19=12,Pomocné!$C7,IF(VSTUPY!$B$19=16,Pomocné!$F7,Pomocné!$G7))) -> 0 | AN39: 5.819051925 | AO39: 213.7886276 | AP39: =AP$33*$B7 -> 305.5128279 | AQ39: =AQ$33*IF(VSTUPY!$B$19=8,Pomocné!$E7,IF(VSTUPY!$B$19=12,Pomocné!$C7,IF(VSTUPY!$B$19=16,Pomocné!$F7,Pomocné!$G7))) -> 0 | AR39: 5.819051925 | AS39: 311.3318799 | AT39: =AT$33*$B7 -> 369.9281832 | AU39: =AU$33*IF(VSTUPY!$B$19=8,Pomocné!$E7,IF(VSTUPY!$B$19=12,Pomocné!$C7,IF(VSTUPY!$B$19=16,Pomocné!$F7,Pomocné!$G7))) -> 0 | AV39: 5.819051925 | AW39: 375.7472351
A40: 4 | B40: 413.1243626 | C40: =C$33*IF(VSTUPY!$B$19=8,Pomocné!$E8,IF(VSTUPY!$B$19=12,Pomocné!$C8,IF(VSTUPY!$B$19=16,Pomocné!$F8,Pomocné!$G8))) -> 0 | D40: 11.63810385 | E40: 424.7624665 | F40: 393.6373644 | G40: =G$33*IF(VSTUPY!$B$19=8,Pomocné!$E8,IF(VSTUPY!$B$19=12,Pomocné!$C8,IF(VSTUPY!$B$19=16,Pomocné!$F8,Pomocné!$G8))) -> 0 | H40: 11.63810385 | I40: 405.2754683 | J40: 317.6380713 | K40: =K$33*IF(VSTUPY!$B$19=8,Pomocné!$E8,IF(VSTUPY!$B$19=12,Pomocné!$C8,IF(VSTUPY!$B$19=16,Pomocné!$F8,Pomocné!$G8))) -> 0 | L40: 11.63810385 | M40: 329.2761751 | N40: 222.1517799 | O40: =O$33*IF(VSTUPY!$B$19=8,Pomocné!$E8,IF(VSTUPY!$B$19=12,Pomocné!$C8,IF(VSTUPY!$B$19=16,Pomocné!$F8,Pomocné!$G8))) -> 0 | P40: 11.63810385 | Q40: 233.7898838 | R40: 122.7680889 | S40: =S$33*IF(VSTUPY!$B$19=8,Pomocné!$E8,IF(VSTUPY!$B$19=12,Pomocné!$C8,IF(VSTUPY!$B$19=16,Pomocné!$F8,Pomocné!$G8))) -> 0 | T40: 11.63810385 | U40: 134.4061927 | V40: 0 | W40: =W$33*IF(VSTUPY!$B$19=8,Pomocné!$E8,IF(VSTUPY!$B$19=12,Pomocné!$C8,IF(VSTUPY!$B$19=16,Pomocné!$F8,Pomocné!$G8))) -> 0 | X40: 11.63810385 | Y40: 11.63810385 | Z40: 0 | AA40: =AA$33*IF(VSTUPY!$B$19=8,Pomocné!$E8,IF(VSTUPY!$B$19=12,Pomocné!$C8,IF(VSTUPY!$B$19=16,Pomocné!$F8,Pomocné!$G8))) -> 0 | AB40: 11.63810385 | AC40: 11.63810385 | AD40: 0 | AE40: =AE$33*IF(VSTUPY!$B$19=8,Pomocné!$E8,IF(VSTUPY!$B$19=12,Pomocné!$C8,IF(VSTUPY!$B$19=16,Pomocné!$F8,Pomocné!$G8))) -> 0 | AF40: 11.63810385 | AG40: 11.63810385 | AH40: 126.6654885 | AI40: =AI$33*IF(VSTUPY!$B$19=8,Pomocné!$E8,IF(VSTUPY!$B$19=12,Pomocné!$C8,IF(VSTUPY!$B$19=16,Pomocné!$F8,Pomocné!$G8))) -> 0 | AJ40: 11.63810385 | AK40: 138.3035924 | AL40: 220.2030801 | AM40: =AM$33*IF(VSTUPY!$B$19=8,Pomocné!$E8,IF(VSTUPY!$B$19=12,Pomocné!$C8,IF(VSTUPY!$B$19=16,Pomocné!$F8,Pomocné!$G8))) -> 0 | AN40: 11.63810385 | AO40: 231.8411839 | AP40: 323.4841707 | AQ40: =AQ$33*IF(VSTUPY!$B$19=8,Pomocné!$E8,IF(VSTUPY!$B$19=12,Pomocné!$C8,IF(VSTUPY!$B$19=16,Pomocné!$F8,Pomocné!$G8))) -> 0 | AR40: 11.63810385 | AS40: 335.1222746 | AT40: 391.6886646 | AU40: =AU$33*IF(VSTUPY!$B$19=8,Pomocné!$E8,IF(VSTUPY!$B$19=12,Pomocné!$C8,IF(VSTUPY!$B$19=16,Pomocné!$F8,Pomocné!$G8))) -> 0 | AV40: 11.63810385 | AW40: 403.3267684
A41: 5 | B41: 436.0757161 | C41: =C$33*IF(VSTUPY!$B$19=8,Pomocné!$E9,IF(VSTUPY!$B$19=12,Pomocné!$C9,IF(VSTUPY!$B$19=16,Pomocné!$F9,Pomocné!$G9))) -> 0 | D41: 23.2762077 | E41: 459.3519238 | F41: 415.5061069 | G41: =G$33*IF(VSTUPY!$B$19=8,Pomocné!$E9,IF(VSTUPY!$B$19=12,Pomocné!$C9,IF(VSTUPY!$B$19=16,Pomocné!$F9,Pomocné!$G9))) -> 0 | H41: 23.2762077 | I41: 438.7823146 | J41: 335.2846308 | K41: =K$33*IF(VSTUPY!$B$19=8,Pomocné!$E9,IF(VSTUPY!$B$19=12,Pomocné!$C9,IF(VSTUPY!$B$19=16,Pomocné!$F9,Pomocné!$G9))) -> 0 | L41: 23.2762077 | M41: 358.5608385 | N41: 234.4935455 | O41: =O$33*IF(VSTUPY!$B$19=8,Pomocné!$E9,IF(VSTUPY!$B$19=12,Pomocné!$C9,IF(VSTUPY!$B$19=16,Pomocné!$F9,Pomocné!$G9))) -> 0 | P41: 23.2762077 | Q41: 257.7697532 | R41: 129.5885383 | S41: =S$33*IF(VSTUPY!$B$19=8,Pomocné!$E9,IF(VSTUPY!$B$19=12,Pomocné!$C9,IF(VSTUPY!$B$19=16,Pomocné!$F9,Pomocné!$G9))) -> 0 | T41: 23.2762077 | U41: 152.864746 | V41: 0 | W41: =W$33*IF(VSTUPY!$B$19=8,Pomocné!$E9,IF(VSTUPY!$B$19=12,Pomocné!$C9,IF(VSTUPY!$B$19=16,Pomocné!$F9,Pomocné!$G9))) -> 0 | X41: 23.2762077 | Y41: 23.2762077 | Z41: 0 | AA41: =AA$33*IF(VSTUPY!$B$19=8,Pomocné!$E9,IF(VSTUPY!$B$19=12,Pomocné!$C9,IF(VSTUPY!$B$19=16,Pomocné!$F9,Pomocné!$G9))) -> 0 | AB41: 23.2762077 | AC41: 23.2762077 | AD41: 0 | AE41: =AE$33*IF(VSTUPY!$B$19=8,Pomocné!$E9,IF(VSTUPY!$B$19=12,Pomocné!$C9,IF(VSTUPY!$B$19=16,Pomocné!$F9,Pomocné!$G9))) -> 0 | AF41: 23.2762077 | AG41: 23.2762077 | AH41: 133.7024601 | AI41: =AI$33*IF(VSTUPY!$B$19=8,Pomocné!$E9,IF(VSTUPY!$B$19=12,Pomocné!$C9,IF(VSTUPY!$B$19=16,Pomocné!$F9,Pomocné!$G9))) -> 0 | AJ41: 23.2762077 | AK41: 156.9786678 | AL41: 232.4365845 | AM41: =AM$33*IF(VSTUPY!$B$19=8,Pomocné!$E9,IF(VSTUPY!$B$19=12,Pomocné!$C9,IF(VSTUPY!$B$19=16,Pomocné!$F9,Pomocné!$G9))) -> 0 | AN41: 23.2762077 | AO41: 255.7127922 | AP41: 341.4555136 | AQ41: =AQ$33*IF(VSTUPY!$B$19=8,Pomocné!$E9,IF(VSTUPY!$B$19=12,Pomocné!$C9,IF(VSTUPY!$B$19=16,Pomocné!$F9,Pomocné!$G9))) -> 0 | AR41: 23.2762077 | AS41: 364.7317213 | AT41: 413.4491459 | AU41: =AU$33*IF(VSTUPY!$B$19=8,Pomocné!$E9,IF(VSTUPY!$B$19=12,Pomocné!$C9,IF(VSTUPY!$B$19=16,Pomocné!$F9,Pomocné!$G9))) -> 0 | AV41: 23.2762077 | AW41: 436.7253536
A42: 6 | B42: 447.5513929 | C42: =C$33*IF(VSTUPY!$B$19=8,Pomocné!$E10,IF(VSTUPY!$B$19=12,Pomocné!$C10,IF(VSTUPY!$B$19=16,Pomocné!$F10,Pomocné!$G10))) -> 233.6510988 | D42: 40.73336348 | E42: 721.9358552 | F42: 426.4404781 | G42: =G$33*IF(VSTUPY!$B$19=8,Pomocné!$E10,IF(VSTUPY!$B$19=12,Pomocné!$C10,IF(VSTUPY!$B$19=16,Pomocné!$F10,Pomocné!$G10))) -> 233.6510988 | H42: 40.73336348 | I42: 700.8249404 | J42: 344.1079106 | K42: =K$33*IF(VSTUPY!$B$19=8,Pomocné!$E10,IF(VSTUPY!$B$19=12,Pomocné!$C10,IF(VSTUPY!$B$19=16,Pomocné!$F10,Pomocné!$G10))) -> 233.6510988 | L42: 40.73336348 | M42: 618.4923729 | N42: 240.6644282 | O42: =O$33*IF(VSTUPY!$B$19=8,Pomocné!$E10,IF(VSTUPY!$B$19=12,Pomocné!$C10,IF(VSTUPY!$B$19=16,Pomocné!$F10,Pomocné!$G10))) -> 233.6510988 | P42: 40.73336348 | Q42: 515.0488905 | R42: 132.998763 | S42: =S$33*IF(VSTUPY!$B$19=8,Pomocné!$E10,IF(VSTUPY!$B$19=12,Pomocné!$C10,IF(VSTUPY!$B$19=16,Pomocné!$F10,Pomocné!$G10))) -> 233.6510988 | T42: 40.73336348 | U42: 407.3832253 | V42: 0 | W42: =W$33*IF(VSTUPY!$B$19=8,Pomocné!$E10,IF(VSTUPY!$B$19=12,Pomocné!$C10,IF(VSTUPY!$B$19=16,Pomocné!$F10,Pomocné!$G10))) -> 233.6510988 | X42: 40.73336348 | Y42: 274.3844623 | Z42: 0 | AA42: =AA$33*IF(VSTUPY!$B$19=8,Pomocné!$E10,IF(VSTUPY!$B$19=12,Pomocné!$C10,IF(VSTUPY!$B$19=16,Pomocné!$F10,Pomocné!$G10))) -> 233.6510988 | AB42: 40.73336348 | AC42: 274.3844623 | AD42: 0 | AE42: =AE$33*IF(VSTUPY!$B$19=8,Pomocné!$E10,IF(VSTUPY!$B$19=12,Pomocné!$C10,IF(VSTUPY!$B$19=16,Pomocné!$F10,Pomocné!$G10))) -> 233.6510988 | AF42: 40.73336348 | AG42: 274.3844623 | AH42: 137.2209459 | AI42: =AI$33*IF(VSTUPY!$B$19=8,Pomocné!$E10,IF(VSTUPY!$B$19=12,Pomocné!$C10,IF(VSTUPY!$B$19=16,Pomocné!$F10,Pomocné!$G10))) -> 233.6510988 | AJ42: 40.73336348 | AK42: 411.6054082 | AL42: 238.5533368 | AM42: =AM$33*IF(VSTUPY!$B$19=8,Pomocné!$E10,IF(VSTUPY!$B$19=12,Pomocné!$C10,IF(VSTUPY!$B$19=16,Pomocné!$F10,Pomocné!$G10))) -> 233.6510988 | AN42: 40.73336348 | AO42: 512.9377991 | AP42: 350.441185 | AQ42: =AQ$33*IF(VSTUPY!$B$19=8,Pomocné!$E10,IF(VSTUPY!$B$19=12,Pomocné!$C10,IF(VSTUPY!$B$19=16,Pomocné!$F10,Pomocné!$G10))) -> 233.6510988 | AR42: 40.73336348 | AS42: 624.8256473 | AT42: 424.3293866 | AU42: =AU$33*IF(VSTUPY!$B$19=8,Pomocné!$E10,IF(VSTUPY!$B$19=12,Pomocné!$C10,IF(VSTUPY!$B$19=16,Pomocné!$F10,Pomocné!$G10))) -> 233.6510988 | AV42: 40.73336348 | AW42: 698.7138489
A43: 7 | B43: 459.0270696 | C43: =C$33*IF(VSTUPY!$B$19=8,Pomocné!$E11,IF(VSTUPY!$B$19=12,Pomocné!$C11,IF(VSTUPY!$B$19=16,Pomocné!$F11,Pomocné!$G11))) -> 233.6510988 | D43: 64.00957118 | E43: 756.6877396 | F43: 437.3748493 | G43: =G$33*IF(VSTUPY!$B$19=8,Pomocné!$E11,IF(VSTUPY!$B$19=12,Pomocné!$C11,IF(VSTUPY!$B$19=16,Pomocné!$F11,Pomocné!$G11))) -> 233.6510988 | H43: 64.00957118 | I43: 735.0355193 | J43: 352.9311903 | K43: =K$33*IF(VSTUPY!$B$19=8,Pomocné!$E11,IF(VSTUPY!$B$19=12,Pomocné!$C11,IF(VSTUPY!$B$19=16,Pomocné!$F11,Pomocné!$G11))) -> 233.6510988 | L43: 64.00957118 | M43: 650.5918603 | N43: 246.835311 | O43: =O$33*IF(VSTUPY!$B$19=8,Pomocné!$E11,IF(VSTUPY!$B$19=12,Pomocné!$C11,IF(VSTUPY!$B$19=16,Pomocné!$F11,Pomocné!$G11))) -> 233.6510988 | P43: 64.00957118 | Q43: 544.495981 | R43: 136.4089877 | S43: =S$33*IF(VSTUPY!$B$19=8,Pomocné!$E11,IF(VSTUPY!$B$19=12,Pomocné!$C11,IF(VSTUPY!$B$19=16,Pomocné!$F11,Pomocné!$G11))) -> 233.6510988 | T43: 64.00957118 | U43: 434.0696577 | V43: 0 | W43: =W$33*IF(VSTUPY!$B$19=8,Pomocné!$E11,IF(VSTUPY!$B$19=12,Pomocné!$C11,IF(VSTUPY!$B$19=16,Pomocné!$F11,Pomocné!$G11))) -> 233.6510988 | X43: 64.00957118 | Y43: 297.66067 | Z43: 0 | AA43: =AA$33*IF(VSTUPY!$B$19=8,Pomocné!$E11,IF(VSTUPY!$B$19=12,Pomocné!$C11,IF(VSTUPY!$B$19=16,Pomocné!$F11,Pomocné!$G11))) -> 233.6510988 | AB43: 64.00957118 | AC43: 297.66067 | AD43: 0 | AE43: =AE$33*IF(VSTUPY!$B$19=8,Pomocné!$E11,IF(VSTUPY!$B$19=12,Pomocné!$C11,IF(VSTUPY!$B$19=16,Pomocné!$F11,Pomocné!$G11))) -> 233.6510988 | AF43: 64.00957118 | AG43: 297.66067 | AH43: 140.7394317 | AI43: =AI$33*IF(VSTUPY!$B$19=8,Pomocné!$E11,IF(VSTUPY!$B$19=12,Pomocné!$C11,IF(VSTUPY!$B$19=16,Pomocné!$F11,Pomocné!$G11))) -> 233.6510988 | AJ43: 64.00957118 | AK43: 438.4001017 | AL43: 244.670089 | AM43: =AM$33*IF(VSTUPY!$B$19=8,Pomocné!$E11,IF(VSTUPY!$B$19=12,Pomocné!$C11,IF(VSTUPY!$B$19=16,Pomocné!$F11,Pomocné!$G11))) -> 233.6510988 | AN43: 64.00957118 | AO43: 542.330759 | AP43: 359.4268564 | AQ43: =AQ$33*IF(VSTUPY!$B$19=8,Pomocné!$E11,IF(VSTUPY!$B$19=12,Pomocné!$C11,IF(VSTUPY!$B$19=16,Pomocné!$F11,Pomocné!$G11))) -> 233.6510988 | AR43: 64.00957118 | AS43: 657.0875264 | AT43: 435.2096273 | AU43: =AU$33*IF(VSTUPY!$B$19=8,Pomocné!$E11,IF(VSTUPY!$B$19=12,Pomocné!$C11,IF(VSTUPY!$B$19=16,Pomocné!$F11,Pomocné!$G11))) -> 233.6510988 | AV43: 64.00957118 | AW43: 732.8702973
A44: 8 | B44: 459.0270696 | C44: =C$33*IF(VSTUPY!$B$19=8,Pomocné!$E12,IF(VSTUPY!$B$19=12,Pomocné!$C12,IF(VSTUPY!$B$19=16,Pomocné!$F12,Pomocné!$G12))) -> 233.6510988 | D44: 69.8286231 | E44: 762.5067915 | F44: 437.3748493 | G44: =G$33*IF(VSTUPY!$B$19=8,Pomocné!$E12,IF(VSTUPY!$B$19=12,Pomocné!$C12,IF(VSTUPY!$B$19=16,Pomocné!$F12,Pomocné!$G12))) -> 233.6510988 | H44: 69.8286231 | I44: 740.8545713 | J44: 352.9311903 | K44: =K$33*IF(VSTUPY!$B$19=8,Pomocné!$E12,IF(VSTUPY!$B$19=12,Pomocné!$C12,IF(VSTUPY!$B$19=16,Pomocné!$F12,Pomocné!$G12))) -> 233.6510988 | L44: 69.8286231 | M44: 656.4109122 | N44: 246.835311 | O44: =O$33*IF(VSTUPY!$B$19=8,Pomocné!$E12,IF(VSTUPY!$B$19=12,Pomocné!$C12,IF(VSTUPY!$B$19=16,Pomocné!$F12,Pomocné!$G12))) -> 233.6510988 | P44: 69.8286231 | Q44: 550.3150329 | R44: 136.4089877 | S44: =S$33*IF(VSTUPY!$B$19=8,Pomocné!$E12,IF(VSTUPY!$B$19=12,Pomocné!$C12,IF(VSTUPY!$B$19=16,Pomocné!$F12,Pomocné!$G12))) -> 233.6510988 | T44: 69.8286231 | U44: 439.8887096 | V44: 0 | W44: =W$33*IF(VSTUPY!$B$19=8,Pomocné!$E12,IF(VSTUPY!$B$19=12,Pomocné!$C12,IF(VSTUPY!$B$19=16,Pomocné!$F12,Pomocné!$G12))) -> 233.6510988 | X44: 69.8286231 | Y44: 303.4797219 | Z44: 0 | AA44: =AA$33*IF(VSTUPY!$B$19=8,Pomocné!$E12,IF(VSTUPY!$B$19=12,Pomocné!$C12,IF(VSTUPY!$B$19=16,Pomocné!$F12,Pomocné!$G12))) -> 233.6510988 | AB44: 69.8286231 | AC44: 303.4797219 | AD44: 0 | AE44: =AE$33*IF(VSTUPY!$B$19=8,Pomocné!$E12,IF(VSTUPY!$B$19=12,Pomocné!$C12,IF(VSTUPY!$B$19=16,Pomocné!$F12,Pomocné!$G12))) -> 233.6510988 | AF44: 69.8286231 | AG44: 303.4797219 | AH44: 140.7394317 | AI44: =AI$33*IF(VSTUPY!$B$19=8,Pomocné!$E12,IF(VSTUPY!$B$19=12,Pomocné!$C12,IF(VSTUPY!$B$19=16,Pomocné!$F12,Pomocné!$G12))) -> 233.6510988 | AJ44: 69.8286231 | AK44: 444.2191536 | AL44: 244.670089 | AM44: =AM$33*IF(VSTUPY!$B$19=8,Pomocné!$E12,IF(VSTUPY!$B$19=12,Pomocné!$C12,IF(VSTUPY!$B$19=16,Pomocné!$F12,Pomocné!$G12))) -> 233.6510988 | AN44: 69.8286231 | AO44: 548.1498109 | AP44: 359.4268564 | AQ44: =AQ$33*IF(VSTUPY!$B$19=8,Pomocné!$E12,IF(VSTUPY!$B$19=12,Pomocné!$C12,IF(VSTUPY!$B$19=16,Pomocné!$F12,Pomocné!$G12))) -> 233.6510988 | AR44: 69.8286231 | AS44: 662.9065783 | AT44: 435.2096273 | AU44: =AU$33*IF(VSTUPY!$B$19=8,Pomocné!$E12,IF(VSTUPY!$B$19=12,Pomocné!$C12,IF(VSTUPY!$B$19=16,Pomocné!$F12,Pomocné!$G12))) -> 233.6510988 | AV44: 69.8286231 | AW44: 738.6893492
A45: 9 | B45: 413.1243626 | C45: =C$33*IF(VSTUPY!$B$19=8,Pomocné!$E13,IF(VSTUPY!$B$19=12,Pomocné!$C13,IF(VSTUPY!$B$19=16,Pomocné!$F13,Pomocné!$G13))) -> 233.6510988 | D45: 64.00957118 | E45: 710.7850326 | F45: 393.6373644 | G45: =G$33*IF(VSTUPY!$B$19=8,Pomocné!$E13,IF(VSTUPY!$B$19=12,Pomocné!$C13,IF(VSTUPY!$B$19=16,Pomocné!$F13,Pomocné!$G13))) -> 233.6510988 | H45: 64.00957118 | I45: 691.2980344 | J45: 317.6380713 | K45: =K$33*IF(VSTUPY!$B$19=8,Pomocné!$E13,IF(VSTUPY!$B$19=12,Pomocné!$C13,IF(VSTUPY!$B$19=16,Pomocné!$F13,Pomocné!$G13))) -> 233.6510988 | L45: 64.00957118 | M45: 615.2987413 | N45: 222.1517799 | O45: =O$33*IF(VSTUPY!$B$19=8,Pomocné!$E13,IF(VSTUPY!$B$19=12,Pomocné!$C13,IF(VSTUPY!$B$19=16,Pomocné!$F13,Pomocné!$G13))) -> 233.6510988 | P45: 64.00957118 | Q45: 519.8124499 | R45: 122.7680889 | S45: =S$33*IF(VSTUPY!$B$19=8,Pomocné!$E13,IF(VSTUPY!$B$19=12,Pomocné!$C13,IF(VSTUPY!$B$19=16,Pomocné!$F13,Pomocné!$G13))) -> 233.6510988 | T45: 64.00957118 | U45: 420.4287589 | V45: 0 | W45: =W$33*IF(VSTUPY!$B$19=8,Pomocné!$E13,IF(VSTUPY!$B$19=12,Pomocné!$C13,IF(VSTUPY!$B$19=16,Pomocné!$F13,Pomocné!$G13))) -> 233.6510988 | X45: 64.00957118 | Y45: 297.66067 | Z45: 0 | AA45: =AA$33*IF(VSTUPY!$B$19=8,Pomocné!$E13,IF(VSTUPY!$B$19=12,Pomocné!$C13,IF(VSTUPY!$B$19=16,Pomocné!$F13,Pomocné!$G13))) -> 233.6510988 | AB45: 64.00957118 | AC45: 297.66067 | AD45: 0 | AE45: =AE$33*IF(VSTUPY!$B$19=8,Pomocné!$E13,IF(VSTUPY!$B$19=12,Pomocné!$C13,IF(VSTUPY!$B$19=16,Pomocné!$F13,Pomocné!$G13))) -> 233.6510988 | AF45: 64.00957118 | AG45: 297.66067 | AH45: 126.6654885 | AI45: =AI$33*IF(VSTUPY!$B$19=8,Pomocné!$E13,IF(VSTUPY!$B$19=12,Pomocné!$C13,IF(VSTUPY!$B$19=16,Pomocné!$F13,Pomocné!$G13))) -> 233.6510988 | AJ45: 64.00957118 | AK45: 424.3261586 | AL45: 220.2030801 | AM45: =AM$33*IF(VSTUPY!$B$19=8,Pomocné!$E13,IF(VSTUPY!$B$19=12,Pomocné!$C13,IF(VSTUPY!$B$19=16,Pomocné!$F13,Pomocné!$G13))) -> 233.6510988 | AN45: 64.00957118 | AO45: 517.8637501 | AP45: 323.4841707 | AQ45: =AQ$33*IF(VSTUPY!$B$19=8,Pomocné!$E13,IF(VSTUPY!$B$19=12,Pomocné!$C13,IF(VSTUPY!$B$19=16,Pomocné!$F13,Pomocné!$G13))) -> 233.6510988 | AR45: 64.00957118 | AS45: 621.1448408 | AT45: 391.6886646 | AU45: =AU$33*IF(VSTUPY!$B$19=8,Pomocné!$E13,IF(VSTUPY!$B$19=12,Pomocné!$C13,IF(VSTUPY!$B$19=16,Pomocné!$F13,Pomocné!$G13))) -> 233.6510988 | AV45: 64.00957118 | AW45: 689.3493346
A46: 10 | B46: 321.3189487 | C46: =C$33*IF(VSTUPY!$B$19=8,Pomocné!$E14,IF(VSTUPY!$B$19=12,Pomocné!$C14,IF(VSTUPY!$B$19=16,Pomocné!$F14,Pomocné!$G14))) -> 233.6510988 | D46: 52.37146733 | E46: 607.3415149 | F46: 306.1623945 | G46: =G$33*IF(VSTUPY!$B$19=8,Pomocné!$E14,IF(VSTUPY!$B$19=12,Pomocné!$C14,IF(VSTUPY!$B$19=16,Pomocné!$F14,Pomocné!$G14))) -> 233.6510988 | H46: 52.37146733 | I46: 592.1849607 | J46: 247.0518332 | K46: =K$33*IF(VSTUPY!$B$19=8,Pomocné!$E14,IF(VSTUPY!$B$19=12,Pomocné!$C14,IF(VSTUPY!$B$19=16,Pomocné!$F14,Pomocné!$G14))) -> 233.6510988 | L46: 52.37146733 | M46: 533.0743994 | N46: 172.7847177 | O46: =O$33*IF(VSTUPY!$B$19=8,Pomocné!$E14,IF(VSTUPY!$B$19=12,Pomocné!$C14,IF(VSTUPY!$B$19=16,Pomocné!$F14,Pomocné!$G14))) -> 233.6510988 | P46: 52.37146733 | Q46: 458.8072839 | R46: 95.48629137 | S46: =S$33*IF(VSTUPY!$B$19=8,Pomocné!$E14,IF(VSTUPY!$B$19=12,Pomocné!$C14,IF(VSTUPY!$B$19=16,Pomocné!$F14,Pomocné!$G14))) -> 233.6510988 | T46: 52.37146733 | U46: 381.5088575 | V46: 0 | W46: =W$33*IF(VSTUPY!$B$19=8,Pomocné!$E14,IF(VSTUPY!$B$19=12,Pomocné!$C14,IF(VSTUPY!$B$19=16,Pomocné!$F14,Pomocné!$G14))) -> 233.6510988 | X46: 52.37146733 | Y46: 286.0225662 | Z46: 0 | AA46: =AA$33*IF(VSTUPY!$B$19=8,Pomocné!$E14,IF(VSTUPY!$B$19=12,Pomocné!$C14,IF(VSTUPY!$B$19=16,Pomocné!$F14,Pomocné!$G14))) -> 233.6510988 | AB46: 52.37146733 | AC46: 286.0225662 | AD46: 0 | AE46: =AE$33*IF(VSTUPY!$B$19=8,Pomocné!$E14,IF(VSTUPY!$B$19=12,Pomocné!$C14,IF(VSTUPY!$B$19=16,Pomocné!$F14,Pomocné!$G14))) -> 233.6510988 | AF46: 52.37146733 | AG46: 286.0225662 | AH46: 98.5176022 | AI46: =AI$33*IF(VSTUPY!$B$19=8,Pomocné!$E14,IF(VSTUPY!$B$19=12,Pomocné!$C14,IF(VSTUPY!$B$19=16,Pomocné!$F14,Pomocné!$G14))) -> 233.6510988 | AJ46: 52.37146733 | AK46: 384.5401684 | AL46: 171.2690623 | AM46: =AM$33*IF(VSTUPY!$B$19=8,Pomocné!$E14,IF(VSTUPY!$B$19=12,Pomocné!$C14,IF(VSTUPY!$B$19=16,Pomocné!$F14,Pomocné!$G14))) -> 233.6510988 | AN46: 52.37146733 | AO46: 457.2916284 | AP46: 251.5987995 | AQ46: =AQ$33*IF(VSTUPY!$B$19=8,Pomocné!$E14,IF(VSTUPY!$B$19=12,Pomocné!$C14,IF(VSTUPY!$B$19=16,Pomocné!$F14,Pomocné!$G14))) -> 233.6510988 | AR46: 52.37146733 | AS46: 537.6213656 | AT46: 304.6467391 | AU46: =AU$33*IF(VSTUPY!$B$19=8,Pomocné!$E14,IF(VSTUPY!$B$19=12,Pomocné!$C14,IF(VSTUPY!$B$19=16,Pomocné!$F14,Pomocné!$G14))) -> 233.6510988 | AV46: 52.37146733 | AW46: 590.6693053
A47: 11 | B47: 275.4162418 | C47: =C$33*IF(VSTUPY!$B$19=8,Pomocné!$E15,IF(VSTUPY!$B$19=12,Pomocné!$C15,IF(VSTUPY!$B$19=16,Pomocné!$F15,Pomocné!$G15))) -> 233.6510988 | D47: 46.5524154 | E47: 555.619756 | F47: 262.4249096 | G47: =G$33*IF(VSTUPY!$B$19=8,Pomocné!$E15,IF(VSTUPY!$B$19=12,Pomocné!$C15,IF(VSTUPY!$B$19=16,Pomocné!$F15,Pomocné!$G15))) -> 233.6510988 | H47: 46.5524154 | I47: 542.6284238 | J47: 211.7587142 | K47: =K$33*IF(VSTUPY!$B$19=8,Pomocné!$E15,IF(VSTUPY!$B$19=12,Pomocné!$C15,IF(VSTUPY!$B$19=16,Pomocné!$F15,Pomocné!$G15))) -> 233.6510988 | L47: 46.5524154 | M47: 491.9622284 | N47: 148.1011866 | O47: =O$33*IF(VSTUPY!$B$19=8,Pomocné!$E15,IF(VSTUPY!$B$19=12,Pomocné!$C15,IF(VSTUPY!$B$19=16,Pomocné!$F15,Pomocné!$G15))) -> 233.6510988 | P47: 46.5524154 | Q47: 428.3047008 | R47: 81.8453926 | S47: =S$33*IF(VSTUPY!$B$19=8,Pomocné!$E15,IF(VSTUPY!$B$19=12,Pomocné!$C15,IF(VSTUPY!$B$19=16,Pomocné!$F15,Pomocné!$G15))) -> 233.6510988 | T47: 46.5524154 | U47: 362.0489068 | V47: 0 | W47: =W$33*IF(VSTUPY!$B$19=8,Pomocné!$E15,IF(VSTUPY!$B$19=12,Pomocné!$C15,IF(VSTUPY!$B$19=16,Pomocné!$F15,Pomocné!$G15))) -> 233.6510988 | X47: 46.5524154 | Y47: 280.2035142 | Z47: 0 | AA47: =AA$33*IF(VSTUPY!$B$19=8,Pomocné!$E15,IF(VSTUPY!$B$19=12,Pomocné!$C15,IF(VSTUPY!$B$19=16,Pomocné!$F15,Pomocné!$G15))) -> 233.6510988 | AB47: 46.5524154 | AC47: 280.2035142 | AD47: 0 | AE47: =AE$33*IF(VSTUPY!$B$19=8,Pomocné!$E15,IF(VSTUPY!$B$19=12,Pomocné!$C15,IF(VSTUPY!$B$19=16,Pomocné!$F15,Pomocné!$G15))) -> 233.6510988 | AF47: 46.5524154 | AG47: 280.2035142 | AH47: 84.44365903 | AI47: =AI$33*IF(VSTUPY!$B$19=8,Pomocné!$E15,IF(VSTUPY!$B$19=12,Pomocné!$C15,IF(VSTUPY!$B$19=16,Pomocné!$F15,Pomocné!$G15))) -> 233.6510988 | AJ47: 46.5524154 | AK47: 364.6471733 | AL47: 146.8020534 | AM47: =AM$33*IF(VSTUPY!$B$19=8,Pomocné!$E15,IF(VSTUPY!$B$19=12,Pomocné!$C15,IF(VSTUPY!$B$19=16,Pomocné!$F15,Pomocné!$G15))) -> 233.6510988 | AN47: 46.5524154 | AO47: 427.0055676 | AP47: 215.6561138 | AQ47: =AQ$33*IF(VSTUPY!$B$19=8,Pomocné!$E15,IF(VSTUPY!$B$19=12,Pomocné!$C15,IF(VSTUPY!$B$19=16,Pomocné!$F15,Pomocné!$G15))) -> 233.6510988 | AR47: 46.5524154 | AS47: 495.8596281 | AT47: 261.1257764 | AU47: =AU$33*IF(VSTUPY!$B$19=8,Pomocné!$E15,IF(VSTUPY!$B$19=12,Pomocné!$C15,IF(VSTUPY!$B$19=16,Pomocné!$F15,Pomocné!$G15))) -> 233.6510988 | AV47: 46.5524154 | AW47: 541.3292906
A48: 12 | B48: 229.5135348 | C48: =C$33*IF(VSTUPY!$B$19=8,Pomocné!$E16,IF(VSTUPY!$B$19=12,Pomocné!$C16,IF(VSTUPY!$B$19=16,Pomocné!$F16,Pomocné!$G16))) -> 233.6510988 | D48: 40.73336348 | E48: 503.8979971 | F48: 218.6874247 | G48: =G$33*IF(VSTUPY!$B$19=8,Pomocné!$E16,IF(VSTUPY!$B$19=12,Pomocné!$C16,IF(VSTUPY!$B$19=16,Pomocné!$F16,Pomocné!$G16))) -> 233.6510988 | H48: 40.73336348 | I48: 493.071887 | J48: 176.4655952 | K48: =K$33*IF(VSTUPY!$B$19=8,Pomocné!$E16,IF(VSTUPY!$B$19=12,Pomocné!$C16,IF(VSTUPY!$B$19=16,Pomocné!$F16,Pomocné!$G16))) -> 233.6510988 | L48: 40.73336348 | M48: 450.8500575 | N48: 123.4176555 | O48: =O$33*IF(VSTUPY!$B$19=8,Pomocné!$E16,IF(VSTUPY!$B$19=12,Pomocné!$C16,IF(VSTUPY!$B$19=16,Pomocné!$F16,Pomocné!$G16))) -> 233.6510988 | P48: 40.73336348 | Q48: 397.8021178 | R48: 68.20449383 | S48: =S$33*IF(VSTUPY!$B$19=8,Pomocné!$E16,IF(VSTUPY!$B$19=12,Pomocné!$C16,IF(VSTUPY!$B$19=16,Pomocné!$F16,Pomocné!$G16))) -> 233.6510988 | T48: 40.73336348 | U48: 342.5889561 | V48: 0 | W48: =W$33*IF(VSTUPY!$B$19=8,Pomocné!$E16,IF(VSTUPY!$B$19=12,Pomocné!$C16,IF(VSTUPY!$B$19=16,Pomocné!$F16,Pomocné!$G16))) -> 233.6510988 | X48: 40.73336348 | Y48: 274.3844623 | Z48: 0 | AA48: =AA$33*IF(VSTUPY!$B$19=8,Pomocné!$E16,IF(VSTUPY!$B$19=12,Pomocné!$C16,IF(VSTUPY!$B$19=16,Pomocné!$F16,Pomocné!$G16))) -> 233.6510988 | AB48: 40.73336348 | AC48: 274.3844623 | AD48: 0 | AE48: =AE$33*IF(VSTUPY!$B$19=8,Pomocné!$E16,IF(VSTUPY!$B$19=12,Pomocné!$C16,IF(VSTUPY!$B$19=16,Pomocné!$F16,Pomocné!$G16))) -> 233.6510988 | AF48: 40.73336348 | AG48: 274.3844623 | AH48: 70.36971586 | AI48: =AI$33*IF(VSTUPY!$B$19=8,Pomocné!$E16,IF(VSTUPY!$B$19=12,Pomocné!$C16,IF(VSTUPY!$B$19=16,Pomocné!$F16,Pomocné!$G16))) -> 233.6510988 | AJ48: 40.73336348 | AK48: 344.7541782 | AL48: 122.3350445 | AM48: =AM$33*IF(VSTUPY!$B$19=8,Pomocné!$E16,IF(VSTUPY!$B$19=12,Pomocné!$C16,IF(VSTUPY!$B$19=16,Pomocné!$F16,Pomocné!$G16))) -> 233.6510988 | AN48: 40.73336348 | AO48: 396.7195068 | AP48: 179.7134282 | AQ48: =AQ$33*IF(VSTUPY!$B$19=8,Pomocné!$E16,IF(VSTUPY!$B$19=12,Pomocné!$C16,IF(VSTUPY!$B$19=16,Pomocné!$F16,Pomocné!$G16))) -> 233.6510988 | AR48: 40.73336348 | AS48: 454.0978905 | AT48: 217.6048137 | AU48: =AU$33*IF(VSTUPY!$B$19=8,Pomocné!$E16,IF(VSTUPY!$B$19=12,Pomocné!$C16,IF(VSTUPY!$B$19=16,Pomocné!$F16,Pomocné!$G16))) -> 233.6510988 | AV48: 40.73336348 | AW48: 491.989276
A49: 13 | B49: 183.6108278 | C49: =C$33*IF(VSTUPY!$B$19=8,Pomocné!$E17,IF(VSTUPY!$B$19=12,Pomocné!$C17,IF(VSTUPY!$B$19=16,Pomocné!$F17,Pomocné!$G17))) -> 233.6510988 | D49: 37.82383751 | E49: 455.0857642 | F49: 174.9499397 | G49: =G$33*IF(VSTUPY!$B$19=8,Pomocné!$E17,IF(VSTUPY!$B$19=12,Pomocné!$C17,IF(VSTUPY!$B$19=16,Pomocné!$F17,Pomocné!$G17))) -> 233.6510988 | H49: 37.82383751 | I49: 446.4248761 | J49: 141.1724761 | K49: =K$33*IF(VSTUPY!$B$19=8,Pomocné!$E17,IF(VSTUPY!$B$19=12,Pomocné!$C17,IF(VSTUPY!$B$19=16,Pomocné!$F17,Pomocné!$G17))) -> 233.6510988 | L49: 37.82383751 | M49: 412.6474125 | N49: 98.73412441 | O49: =O$33*IF(VSTUPY!$B$19=8,Pomocné!$E17,IF(VSTUPY!$B$19=12,Pomocné!$C17,IF(VSTUPY!$B$19=16,Pomocné!$F17,Pomocné!$G17))) -> 233.6510988 | P49: 37.82383751 | Q49: 370.2090607 | R49: 54.56359507 | S49: =S$33*IF(VSTUPY!$B$19=8,Pomocné!$E17,IF(VSTUPY!$B$19=12,Pomocné!$C17,IF(VSTUPY!$B$19=16,Pomocné!$F17,Pomocné!$G17))) -> 233.6510988 | T49: 37.82383751 | U49: 326.0385314 | V49: 0 | W49: =W$33*IF(VSTUPY!$B$19=8,Pomocné!$E17,IF(VSTUPY!$B$19=12,Pomocné!$C17,IF(VSTUPY!$B$19=16,Pomocné!$F17,Pomocné!$G17))) -> 233.6510988 | X49: 37.82383751 | Y49: 271.4749363 | Z49: 0 | AA49: =AA$33*IF(VSTUPY!$B$19=8,Pomocné!$E17,IF(VSTUPY!$B$19=12,Pomocné!$C17,IF(VSTUPY!$B$19=16,Pomocné!$F17,Pomocné!$G17))) -> 233.6510988 | AB49: 37.82383751 | AC49: 271.4749363 | AD49: 0 | AE49: =AE$33*IF(VSTUPY!$B$19=8,Pomocné!$E17,IF(VSTUPY!$B$19=12,Pomocné!$C17,IF(VSTUPY!$B$19=16,Pomocné!$F17,Pomocné!$G17))) -> 233.6510988 | AF49: 37.82383751 | AG49: 271.4749363 | AH49: 56.29577269 | AI49: =AI$33*IF(VSTUPY!$B$19=8,Pomocné!$E17,IF(VSTUPY!$B$19=12,Pomocné!$C17,IF(VSTUPY!$B$19=16,Pomocné!$F17,Pomocné!$G17))) -> 233.6510988 | AJ49: 37.82383751 | AK49: 327.770709 | AL49: 97.86803559 | AM49: =AM$33*IF(VSTUPY!$B$19=8,Pomocné!$E17,IF(VSTUPY!$B$19=12,Pomocné!$C17,IF(VSTUPY!$B$19=16,Pomocné!$F17,Pomocné!$G17))) -> 233.6510988 | AN49: 37.82383751 | AO49: 369.3429719 | AP49: 143.7707426 | AQ49: =AQ$33*IF(VSTUPY!$B$19=8,Pomocné!$E17,IF(VSTUPY!$B$19=12,Pomocné!$C17,IF(VSTUPY!$B$19=16,Pomocné!$F17,Pomocné!$G17))) -> 233.6510988 | AR49: 37.82383751 | AS49: 415.2456789 | AT49: 174.0838509 | AU49: =AU$33*IF(VSTUPY!$B$19=8,Pomocné!$E17,IF(VSTUPY!$B$19=12,Pomocné!$C17,IF(VSTUPY!$B$19=16,Pomocné!$F17,Pomocné!$G17))) -> 233.6510988 | AV49: 37.82383751 | AW49: 445.5587873
A50: 14 | B50: 183.6108278 | C50: =C$33*IF(VSTUPY!$B$19=8,Pomocné!$E18,IF(VSTUPY!$B$19=12,Pomocné!$C18,IF(VSTUPY!$B$19=16,Pomocné!$F18,Pomocné!$G18))) -> 233.6510988 | D50: 34.91431155 | E50: 452.1762382 | F50: 174.9499397 | G50: =G$33*IF(VSTUPY!$B$19=8,Pomocné!$E18,IF(VSTUPY!$B$19=12,Pomocné!$C18,IF(VSTUPY!$B$19=16,Pomocné!$F18,Pomocné!$G18))) -> 233.6510988 | H50: 34.91431155 | I50: 443.5153501 | J50: 141.1724761 | K50: =K$33*IF(VSTUPY!$B$19=8,Pomocné!$E18,IF(VSTUPY!$B$19=12,Pomocné!$C18,IF(VSTUPY!$B$19=16,Pomocné!$F18,Pomocné!$G18))) -> 233.6510988 | L50: 34.91431155 | M50: 409.7378865 | N50: 98.73412441 | O50: =O$33*IF(VSTUPY!$B$19=8,Pomocné!$E18,IF(VSTUPY!$B$19=12,Pomocné!$C18,IF(VSTUPY!$B$19=16,Pomocné!$F18,Pomocné!$G18))) -> 233.6510988 | P50: 34.91431155 | Q50: 367.2995348 | R50: 54.56359507 | S50: =S$33*IF(VSTUPY!$B$19=8,Pomocné!$E18,IF(VSTUPY!$B$19=12,Pomocné!$C18,IF(VSTUPY!$B$19=16,Pomocné!$F18,Pomocné!$G18))) -> 233.6510988 | T50: 34.91431155 | U50: 323.1290054 | V50: 0 | W50: =W$33*IF(VSTUPY!$B$19=8,Pomocné!$E18,IF(VSTUPY!$B$19=12,Pomocné!$C18,IF(VSTUPY!$B$19=16,Pomocné!$F18,Pomocné!$G18))) -> 233.6510988 | X50: 34.91431155 | Y50: 268.5654104 | Z50: 0 | AA50: =AA$33*IF(VSTUPY!$B$19=8,Pomocné!$E18,IF(VSTUPY!$B$19=12,Pomocné!$C18,IF(VSTUPY!$B$19=16,Pomocné!$F18,Pomocné!$G18))) -> 233.6510988 | AB50: 34.91431155 | AC50: 268.5654104 | AD50: 0 | AE50: =AE$33*IF(VSTUPY!$B$19=8,Pomocné!$E18,IF(VSTUPY!$B$19=12,Pomocné!$C18,IF(VSTUPY!$B$19=16,Pomocné!$F18,Pomocné!$G18))) -> 233.6510988 | AF50: 34.91431155 | AG50: 268.5654104 | AH50: 56.29577269 | AI50: =AI$33*IF(VSTUPY!$B$19=8,Pomocné!$E18,IF(VSTUPY!$B$19=12,Pomocné!$C18,IF(VSTUPY!$B$19=16,Pomocné!$F18,Pomocné!$G18))) -> 233.6510988 | AJ50: 34.91431155 | AK50: 324.8611831 | AL50: 97.86803559 | AM50: =AM$33*IF(VSTUPY!$B$19=8,Pomocné!$E18,IF(VSTUPY!$B$19=12,Pomocné!$C18,IF(VSTUPY!$B$19=16,Pomocné!$F18,Pomocné!$G18))) -> 233.6510988 | AN50: 34.91431155 | AO50: 366.433446 | AP50: 143.7707426 | AQ50: =AQ$33*IF(VSTUPY!$B$19=8,Pomocné!$E18,IF(VSTUPY!$B$19=12,Pomocné!$C18,IF(VSTUPY!$B$19=16,Pomocné!$F18,Pomocné!$G18))) -> 233.6510988 | AR50: 34.91431155 | AS50: 412.3361529 | AT50: 174.0838509 | AU50: =AU$33*IF(VSTUPY!$B$19=8,Pomocné!$E18,IF(VSTUPY!$B$19=12,Pomocné!$C18,IF(VSTUPY!$B$19=16,Pomocné!$F18,Pomocné!$G18))) -> 233.6510988 | AV50: 34.91431155 | AW50: 442.6492613
A51: 15 | B51: 206.5621813 | C51: =C$33*IF(VSTUPY!$B$19=8,Pomocné!$E19,IF(VSTUPY!$B$19=12,Pomocné!$C19,IF(VSTUPY!$B$19=16,Pomocné!$F19,Pomocné!$G19))) -> 233.6510988 | D51: 34.91431155 | E51: 475.1275917 | F51: 196.8186822 | G51: =G$33*IF(VSTUPY!$B$19=8,Pomocné!$E19,IF(VSTUPY!$B$19=12,Pomocné!$C19,IF(VSTUPY!$B$19=16,Pomocné!$F19,Pomocné!$G19))) -> 233.6510988 | H51: 34.91431155 | I51: 465.3840926 | J51: 158.8190356 | K51: =K$33*IF(VSTUPY!$B$19=8,Pomocné!$E19,IF(VSTUPY!$B$19=12,Pomocné!$C19,IF(VSTUPY!$B$19=16,Pomocné!$F19,Pomocné!$G19))) -> 233.6510988 | L51: 34.91431155 | M51: 427.384446 | N51: 111.07589 | O51: =O$33*IF(VSTUPY!$B$19=8,Pomocné!$E19,IF(VSTUPY!$B$19=12,Pomocné!$C19,IF(VSTUPY!$B$19=16,Pomocné!$F19,Pomocné!$G19))) -> 233.6510988 | P51: 34.91431155 | Q51: 379.6413003 | R51: 61.38404445 | S51: =S$33*IF(VSTUPY!$B$19=8,Pomocné!$E19,IF(VSTUPY!$B$19=12,Pomocné!$C19,IF(VSTUPY!$B$19=16,Pomocné!$F19,Pomocné!$G19))) -> 233.6510988 | T51: 34.91431155 | U51: 329.9494548 | V51: 0 | W51: =W$33*IF(VSTUPY!$B$19=8,Pomocné!$E19,IF(VSTUPY!$B$19=12,Pomocné!$C19,IF(VSTUPY!$B$19=16,Pomocné!$F19,Pomocné!$G19))) -> 233.6510988 | X51: 34.91431155 | Y51: 268.5654104 | Z51: 0 | AA51: =AA$33*IF(VSTUPY!$B$19=8,Pomocné!$E19,IF(VSTUPY!$B$19=12,Pomocné!$C19,IF(VSTUPY!$B$19=16,Pomocné!$F19,Pomocné!$G19))) -> 233.6510988 | AB51: 34.91431155 | AC51: 268.5654104 | AD51: 0 | AE51: =AE$33*IF(VSTUPY!$B$19=8,Pomocné!$E19,IF(VSTUPY!$B$19=12,Pomocné!$C19,IF(VSTUPY!$B$19=16,Pomocné!$F19,Pomocné!$G19))) -> 233.6510988 | AF51: 34.91431155 | AG51: 268.5654104 | AH51: 63.33274427 | AI51: =AI$33*IF(VSTUPY!$B$19=8,Pomocné!$E19,IF(VSTUPY!$B$19=12,Pomocné!$C19,IF(VSTUPY!$B$19=16,Pomocné!$F19,Pomocné!$G19))) -> 233.6510988 | AJ51: 34.91431155 | AK51: 331.8981547 | AL51: 110.10154 | AM51: =AM$33*IF(VSTUPY!$B$19=8,Pomocné!$E19,IF(VSTUPY!$B$19=12,Pomocné!$C19,IF(VSTUPY!$B$19=16,Pomocné!$F19,Pomocné!$G19))) -> 233.6510988 | AN51: 34.91431155 | AO51: 378.6669504 | AP51: 161.7420854 | AQ51: =AQ$33*IF(VSTUPY!$B$19=8,Pomocné!$E19,IF(VSTUPY!$B$19=12,Pomocné!$C19,IF(VSTUPY!$B$19=16,Pomocné!$F19,Pomocné!$G19))) -> 233.6510988 | AR51: 34.91431155 | AS51: 430.3074958 | AT51: 195.8443323 | AU51: =AU$33*IF(VSTUPY!$B$19=8,Pomocné!$E19,IF(VSTUPY!$B$19=12,Pomocné!$C19,IF(VSTUPY!$B$19=16,Pomocné!$F19,Pomocné!$G19))) -> 233.6510988 | AV51: 34.91431155 | AW51: 464.4097427
A52: 16 | B52: 229.5135348 | C52: =C$33*IF(VSTUPY!$B$19=8,Pomocné!$E20,IF(VSTUPY!$B$19=12,Pomocné!$C20,IF(VSTUPY!$B$19=16,Pomocné!$F20,Pomocné!$G20))) -> 233.6510988 | D52: 40.73336348 | E52: 503.8979971 | F52: 218.6874247 | G52: =G$33*IF(VSTUPY!$B$19=8,Pomocné!$E20,IF(VSTUPY!$B$19=12,Pomocné!$C20,IF(VSTUPY!$B$19=16,Pomocné!$F20,Pomocné!$G20))) -> 233.6510988 | H52: 40.73336348 | I52: 493.071887 | J52: 176.4655952 | K52: =K$33*IF(VSTUPY!$B$19=8,Pomocné!$E20,IF(VSTUPY!$B$19=12,Pomocné!$C20,IF(VSTUPY!$B$19=16,Pomocné!$F20,Pomocné!$G20))) -> 233.6510988 | L52: 40.73336348 | M52: 450.8500575 | N52: 123.4176555 | O52: =O$33*IF(VSTUPY!$B$19=8,Pomocné!$E20,IF(VSTUPY!$B$19=12,Pomocné!$C20,IF(VSTUPY!$B$19=16,Pomocné!$F20,Pomocné!$G20))) -> 233.6510988 | P52: 40.73336348 | Q52: 397.8021178 | R52: 68.20449383 | S52: =S$33*IF(VSTUPY!$B$19=8,Pomocné!$E20,IF(VSTUPY!$B$19=12,Pomocné!$C20,IF(VSTUPY!$B$19=16,Pomocné!$F20,Pomocné!$G20))) -> 233.6510988 | T52: 40.73336348 | U52: 342.5889561 | V52: 0 | W52: =W$33*IF(VSTUPY!$B$19=8,Pomocné!$E20,IF(VSTUPY!$B$19=12,Pomocné!$C20,IF(VSTUPY!$B$19=16,Pomocné!$F20,Pomocné!$G20))) -> 233.6510988 | X52: 40.73336348 | Y52: 274.3844623 | Z52: 0 | AA52: =AA$33*IF(VSTUPY!$B$19=8,Pomocné!$E20,IF(VSTUPY!$B$19=12,Pomocné!$C20,IF(VSTUPY!$B$19=16,Pomocné!$F20,Pomocné!$G20))) -> 233.6510988 | AB52: 40.73336348 | AC52: 274.3844623 | AD52: 0 | AE52: =AE$33*IF(VSTUPY!$B$19=8,Pomocné!$E20,IF(VSTUPY!$B$19=12,Pomocné!$C20,IF(VSTUPY!$B$19=16,Pomocné!$F20,Pomocné!$G20))) -> 233.6510988 | AF52: 40.73336348 | AG52: 274.3844623 | AH52: 70.36971586 | AI52: =AI$33*IF(VSTUPY!$B$19=8,Pomocné!$E20,IF(VSTUPY!$B$19=12,Pomocné!$C20,IF(VSTUPY!$B$19=16,Pomocné!$F20,Pomocné!$G20))) -> 233.6510988 | AJ52: 40.73336348 | AK52: 344.7541782 | AL52: 122.3350445 | AM52: =AM$33*IF(VSTUPY!$B$19=8,Pomocné!$E20,IF(VSTUPY!$B$19=12,Pomocné!$C20,IF(VSTUPY!$B$19=16,Pomocné!$F20,Pomocné!$G20))) -> 233.6510988 | AN52: 40.73336348 | AO52: 396.7195068 | AP52: 179.7134282 | AQ52: =AQ$33*IF(VSTUPY!$B$19=8,Pomocné!$E20,IF(VSTUPY!$B$19=12,Pomocné!$C20,IF(VSTUPY!$B$19=16,Pomocné!$F20,Pomocné!$G20))) -> 233.6510988 | AR52: 40.73336348 | AS52: 454.0978905 | AT52: 217.6048137 | AU52: =AU$33*IF(VSTUPY!$B$19=8,Pomocné!$E20,IF(VSTUPY!$B$19=12,Pomocné!$C20,IF(VSTUPY!$B$19=16,Pomocné!$F20,Pomocné!$G20))) -> 233.6510988 | AV52: 40.73336348 | AW52: 491.989276
A53: 17 | B53: 252.4648883 | C53: =C$33*IF(VSTUPY!$B$19=8,Pomocné!$E21,IF(VSTUPY!$B$19=12,Pomocné!$C21,IF(VSTUPY!$B$19=16,Pomocné!$F21,Pomocné!$G21))) -> 233.6510988 | D53: 52.37146733 | E53: 538.4874544 | F53: 240.5561671 | G53: =G$33*IF(VSTUPY!$B$19=8,Pomocné!$E21,IF(VSTUPY!$B$19=12,Pomocné!$C21,IF(VSTUPY!$B$19=16,Pomocné!$F21,Pomocné!$G21))) -> 233.6510988 | H53: 52.37146733 | I53: 526.5787333 | J53: 194.1121547 | K53: =K$33*IF(VSTUPY!$B$19=8,Pomocné!$E21,IF(VSTUPY!$B$19=12,Pomocné!$C21,IF(VSTUPY!$B$19=16,Pomocné!$F21,Pomocné!$G21))) -> 233.6510988 | L53: 52.37146733 | M53: 480.1347208 | N53: 135.7594211 | O53: =O$33*IF(VSTUPY!$B$19=8,Pomocné!$E21,IF(VSTUPY!$B$19=12,Pomocné!$C21,IF(VSTUPY!$B$19=16,Pomocné!$F21,Pomocné!$G21))) -> 233.6510988 | P53: 52.37146733 | Q53: 421.7819872 | R53: 75.02494322 | S53: =S$33*IF(VSTUPY!$B$19=8,Pomocné!$E21,IF(VSTUPY!$B$19=12,Pomocné!$C21,IF(VSTUPY!$B$19=16,Pomocné!$F21,Pomocné!$G21))) -> 233.6510988 | T53: 52.37146733 | U53: 361.0475094 | V53: 0 | W53: =W$33*IF(VSTUPY!$B$19=8,Pomocné!$E21,IF(VSTUPY!$B$19=12,Pomocné!$C21,IF(VSTUPY!$B$19=16,Pomocné!$F21,Pomocné!$G21))) -> 233.6510988 | X53: 52.37146733 | Y53: 286.0225662 | Z53: 0 | AA53: =AA$33*IF(VSTUPY!$B$19=8,Pomocné!$E21,IF(VSTUPY!$B$19=12,Pomocné!$C21,IF(VSTUPY!$B$19=16,Pomocné!$F21,Pomocné!$G21))) -> 233.6510988 | AB53: 52.37146733 | AC53: 286.0225662 | AD53: 0 | AE53: =AE$33*IF(VSTUPY!$B$19=8,Pomocné!$E21,IF(VSTUPY!$B$19=12,Pomocné!$C21,IF(VSTUPY!$B$19=16,Pomocné!$F21,Pomocné!$G21))) -> 233.6510988 | AF53: 52.37146733 | AG53: 286.0225662 | AH53: 77.40668745 | AI53: =AI$33*IF(VSTUPY!$B$19=8,Pomocné!$E21,IF(VSTUPY!$B$19=12,Pomocné!$C21,IF(VSTUPY!$B$19=16,Pomocné!$F21,Pomocné!$G21))) -> 233.6510988 | AJ53: 52.37146733 | AK53: 363.4292536 | AL53: 134.5685489 | AM53: =AM$33*IF(VSTUPY!$B$19=8,Pomocné!$E21,IF(VSTUPY!$B$19=12,Pomocné!$C21,IF(VSTUPY!$B$19=16,Pomocné!$F21,Pomocné!$G21))) -> 233.6510988 | AN53: 52.37146733 | AO53: 420.5911151 | AP53: 197.684771 | AQ53: =AQ$33*IF(VSTUPY!$B$19=8,Pomocné!$E21,IF(VSTUPY!$B$19=12,Pomocné!$C21,IF(VSTUPY!$B$19=16,Pomocné!$F21,Pomocné!$G21))) -> 233.6510988 | AR53: 52.37146733 | AS53: 483.7073372 | AT53: 239.365295 | AU53: =AU$33*IF(VSTUPY!$B$19=8,Pomocné!$E21,IF(VSTUPY!$B$19=12,Pomocné!$C21,IF(VSTUPY!$B$19=16,Pomocné!$F21,Pomocné!$G21))) -> 233.6510988 | AV53: 52.37146733 | AW53: 525.3878612
A54: 18 | B54: 275.4162418 | C54: =C$33*IF(VSTUPY!$B$19=8,Pomocné!$E22,IF(VSTUPY!$B$19=12,Pomocné!$C22,IF(VSTUPY!$B$19=16,Pomocné!$F22,Pomocné!$G22))) -> 0 | D54: 69.8286231 | E54: 345.2448649 | F54: 262.4249096 | G54: =G$33*IF(VSTUPY!$B$19=8,Pomocné!$E22,IF(VSTUPY!$B$19=12,Pomocné!$C22,IF(VSTUPY!$B$19=16,Pomocné!$F22,Pomocné!$G22))) -> 0 | H54: 69.8286231 | I54: 332.2535327 | J54: 211.7587142 | K54: =K$33*IF(VSTUPY!$B$19=8,Pomocné!$E22,IF(VSTUPY!$B$19=12,Pomocné!$C22,IF(VSTUPY!$B$19=16,Pomocné!$F22,Pomocné!$G22))) -> 0 | L54: 69.8286231 | M54: 281.5873373 | N54: 148.1011866 | O54: =O$33*IF(VSTUPY!$B$19=8,Pomocné!$E22,IF(VSTUPY!$B$19=12,Pomocné!$C22,IF(VSTUPY!$B$19=16,Pomocné!$F22,Pomocné!$G22))) -> 0 | P54: 69.8286231 | Q54: 217.9298097 | R54: 81.8453926 | S54: =S$33*IF(VSTUPY!$B$19=8,Pomocné!$E22,IF(VSTUPY!$B$19=12,Pomocné!$C22,IF(VSTUPY!$B$19=16,Pomocné!$F22,Pomocné!$G22))) -> 0 | T54: 69.8286231 | U54: 151.6740157 | V54: 0 | W54: =W$33*IF(VSTUPY!$B$19=8,Pomocné!$E22,IF(VSTUPY!$B$19=12,Pomocné!$C22,IF(VSTUPY!$B$19=16,Pomocné!$F22,Pomocné!$G22))) -> 0 | X54: 69.8286231 | Y54: 69.8286231 | Z54: 0 | AA54: =AA$33*IF(VSTUPY!$B$19=8,Pomocné!$E22,IF(VSTUPY!$B$19=12,Pomocné!$C22,IF(VSTUPY!$B$19=16,Pomocné!$F22,Pomocné!$G22))) -> 0 | AB54: 69.8286231 | AC54: 69.8286231 | AD54: 0 | AE54: =AE$33*IF(VSTUPY!$B$19=8,Pomocné!$E22,IF(VSTUPY!$B$19=12,Pomocné!$C22,IF(VSTUPY!$B$19=16,Pomocné!$F22,Pomocné!$G22))) -> 0 | AF54: 69.8286231 | AG54: 69.8286231 | AH54: 84.44365903 | AI54: =AI$33*IF(VSTUPY!$B$19=8,Pomocné!$E22,IF(VSTUPY!$B$19=12,Pomocné!$C22,IF(VSTUPY!$B$19=16,Pomocné!$F22,Pomocné!$G22))) -> 0 | AJ54: 69.8286231 | AK54: 154.2722821 | AL54: 146.8020534 | AM54: =AM$33*IF(VSTUPY!$B$19=8,Pomocné!$E22,IF(VSTUPY!$B$19=12,Pomocné!$C22,IF(VSTUPY!$B$19=16,Pomocné!$F22,Pomocné!$G22))) -> 0 | AN54: 69.8286231 | AO54: 216.6306765 | AP54: 215.6561138 | AQ54: =AQ$33*IF(VSTUPY!$B$19=8,Pomocné!$E22,IF(VSTUPY!$B$19=12,Pomocné!$C22,IF(VSTUPY!$B$19=16,Pomocné!$F22,Pomocné!$G22))) -> 0 | AR54: 69.8286231 | AS54: 285.4847369 | AT54: 261.1257764 | AU54: =AU$33*IF(VSTUPY!$B$19=8,Pomocné!$E22,IF(VSTUPY!$B$19=12,Pomocné!$C22,IF(VSTUPY!$B$19=16,Pomocné!$F22,Pomocné!$G22))) -> 0 | AV54: 69.8286231 | AW54: 330.9543995
A55: 19 | B55: 286.8919185 | C55: =C$33*IF(VSTUPY!$B$19=8,Pomocné!$E23,IF(VSTUPY!$B$19=12,Pomocné!$C23,IF(VSTUPY!$B$19=16,Pomocné!$F23,Pomocné!$G23))) -> 0 | D55: 87.28577888 | E55: 374.1776974 | F55: 273.3592808 | G55: =G$33*IF(VSTUPY!$B$19=8,Pomocné!$E23,IF(VSTUPY!$B$19=12,Pomocné!$C23,IF(VSTUPY!$B$19=16,Pomocné!$F23,Pomocné!$G23))) -> 0 | H55: 87.28577888 | I55: 360.6450597 | J55: 220.5819939 | K55: =K$33*IF(VSTUPY!$B$19=8,Pomocné!$E23,IF(VSTUPY!$B$19=12,Pomocné!$C23,IF(VSTUPY!$B$19=16,Pomocné!$F23,Pomocné!$G23))) -> 0 | L55: 87.28577888 | M55: 307.8677728 | N55: 154.2720694 | O55: =O$33*IF(VSTUPY!$B$19=8,Pomocné!$E23,IF(VSTUPY!$B$19=12,Pomocné!$C23,IF(VSTUPY!$B$19=16,Pomocné!$F23,Pomocné!$G23))) -> 0 | P55: 87.28577888 | Q55: 241.5578483 | R55: 85.25561729 | S55: =S$33*IF(VSTUPY!$B$19=8,Pomocné!$E23,IF(VSTUPY!$B$19=12,Pomocné!$C23,IF(VSTUPY!$B$19=16,Pomocné!$F23,Pomocné!$G23))) -> 0 | T55: 87.28577888 | U55: 172.5413962 | V55: 0 | W55: =W$33*IF(VSTUPY!$B$19=8,Pomocné!$E23,IF(VSTUPY!$B$19=12,Pomocné!$C23,IF(VSTUPY!$B$19=16,Pomocné!$F23,Pomocné!$G23))) -> 0 | X55: 87.28577888 | Y55: 87.28577888 | Z55: 0 | AA55: =AA$33*IF(VSTUPY!$B$19=8,Pomocné!$E23,IF(VSTUPY!$B$19=12,Pomocné!$C23,IF(VSTUPY!$B$19=16,Pomocné!$F23,Pomocné!$G23))) -> 0 | AB55: 87.28577888 | AC55: 87.28577888 | AD55: 0 | AE55: =AE$33*IF(VSTUPY!$B$19=8,Pomocné!$E23,IF(VSTUPY!$B$19=12,Pomocné!$C23,IF(VSTUPY!$B$19=16,Pomocné!$F23,Pomocné!$G23))) -> 0 | AF55: 87.28577888 | AG55: 87.28577888 | AH55: 87.96214482 | AI55: =AI$33*IF(VSTUPY!$B$19=8,Pomocné!$E23,IF(VSTUPY!$B$19=12,Pomocné!$C23,IF(VSTUPY!$B$19=16,Pomocné!$F23,Pomocné!$G23))) -> 0 | AJ55: 87.28577888 | AK55: 175.2479237 | AL55: 152.9188056 | AM55: =AM$33*IF(VSTUPY!$B$19=8,Pomocné!$E23,IF(VSTUPY!$B$19=12,Pomocné!$C23,IF(VSTUPY!$B$19=16,Pomocné!$F23,Pomocné!$G23))) -> 0 | AN55: 87.28577888 | AO55: 240.2045845 | AP55: 224.6417852 | AQ55: =AQ$33*IF(VSTUPY!$B$19=8,Pomocné!$E23,IF(VSTUPY!$B$19=12,Pomocné!$C23,IF(VSTUPY!$B$19=16,Pomocné!$F23,Pomocné!$G23))) -> 0 | AR55: 87.28577888 | AS55: 311.9275641 | AT55: 272.0060171 | AU55: =AU$33*IF(VSTUPY!$B$19=8,Pomocné!$E23,IF(VSTUPY!$B$19=12,Pomocné!$C23,IF(VSTUPY!$B$19=16,Pomocné!$F23,Pomocné!$G23))) -> 0 | AV55: 87.28577888 | AW55: 359.2917959
A56: 20 | B56: 298.3675952 | C56: =C$33*IF(VSTUPY!$B$19=8,Pomocné!$E24,IF(VSTUPY!$B$19=12,Pomocné!$C24,IF(VSTUPY!$B$19=16,Pomocné!$F24,Pomocné!$G24))) -> 0 | D56: 104.7429347 | E56: 403.1105299 | F56: 284.2936521 | G56: =G$33*IF(VSTUPY!$B$19=8,Pomocné!$E24,IF(VSTUPY!$B$19=12,Pomocné!$C24,IF(VSTUPY!$B$19=16,Pomocné!$F24,Pomocné!$G24))) -> 0 | H56: 104.7429347 | I56: 389.0365867 | J56: 229.4052737 | K56: =K$33*IF(VSTUPY!$B$19=8,Pomocné!$E24,IF(VSTUPY!$B$19=12,Pomocné!$C24,IF(VSTUPY!$B$19=16,Pomocné!$F24,Pomocné!$G24))) -> 0 | L56: 104.7429347 | M56: 334.1482084 | N56: 160.4429522 | O56: =O$33*IF(VSTUPY!$B$19=8,Pomocné!$E24,IF(VSTUPY!$B$19=12,Pomocné!$C24,IF(VSTUPY!$B$19=16,Pomocné!$F24,Pomocné!$G24))) -> 0 | P56: 104.7429347 | Q56: 265.1858868 | R56: 88.66584198 | S56: =S$33*IF(VSTUPY!$B$19=8,Pomocné!$E24,IF(VSTUPY!$B$19=12,Pomocné!$C24,IF(VSTUPY!$B$19=16,Pomocné!$F24,Pomocné!$G24))) -> 0 | T56: 104.7429347 | U56: 193.4087766 | V56: 0 | W56: =W$33*IF(VSTUPY!$B$19=8,Pomocné!$E24,IF(VSTUPY!$B$19=12,Pomocné!$C24,IF(VSTUPY!$B$19=16,Pomocné!$F24,Pomocné!$G24))) -> 0 | X56: 104.7429347 | Y56: 104.7429347 | Z56: 0 | AA56: =AA$33*IF(VSTUPY!$B$19=8,Pomocné!$E24,IF(VSTUPY!$B$19=12,Pomocné!$C24,IF(VSTUPY!$B$19=16,Pomocné!$F24,Pomocné!$G24))) -> 0 | AB56: 104.7429347 | AC56: 104.7429347 | AD56: 0 | AE56: =AE$33*IF(VSTUPY!$B$19=8,Pomocné!$E24,IF(VSTUPY!$B$19=12,Pomocné!$C24,IF(VSTUPY!$B$19=16,Pomocné!$F24,Pomocné!$G24))) -> 0 | AF56: 104.7429347 | AG56: 104.7429347 | AH56: 91.48063062 | AI56: =AI$33*IF(VSTUPY!$B$19=8,Pomocné!$E24,IF(VSTUPY!$B$19=12,Pomocné!$C24,IF(VSTUPY!$B$19=16,Pomocné!$F24,Pomocné!$G24))) -> 0 | AJ56: 104.7429347 | AK56: 196.2235653 | AL56: 159.0355578 | AM56: =AM$33*IF(VSTUPY!$B$19=8,Pomocné!$E24,IF(VSTUPY!$B$19=12,Pomocné!$C24,IF(VSTUPY!$B$19=16,Pomocné!$F24,Pomocné!$G24))) -> 0 | AN56: 104.7429347 | AO56: 263.7784925 | AP56: 233.6274567 | AQ56: =AQ$33*IF(VSTUPY!$B$19=8,Pomocné!$E24,IF(VSTUPY!$B$19=12,Pomocné!$C24,IF(VSTUPY!$B$19=16,Pomocné!$F24,Pomocné!$G24))) -> 0 | AR56: 104.7429347 | AS56: 338.3703913 | AT56: 282.8862578 | AU56: =AU$33*IF(VSTUPY!$B$19=8,Pomocné!$E24,IF(VSTUPY!$B$19=12,Pomocné!$C24,IF(VSTUPY!$B$19=16,Pomocné!$F24,Pomocné!$G24))) -> 0 | AV56: 104.7429347 | AW56: 387.6291924
A57: 21 | B57: 309.843272 | C57: =C$33*IF(VSTUPY!$B$19=8,Pomocné!$E25,IF(VSTUPY!$B$19=12,Pomocné!$C25,IF(VSTUPY!$B$19=16,Pomocné!$F25,Pomocné!$G25))) -> 0 | D57: 116.3810385 | E57: 426.2243105 | F57: 295.2280233 | G57: =G$33*IF(VSTUPY!$B$19=8,Pomocné!$E25,IF(VSTUPY!$B$19=12,Pomocné!$C25,IF(VSTUPY!$B$19=16,Pomocné!$F25,Pomocné!$G25))) -> 0 | H57: 116.3810385 | I57: 411.6090618 | J57: 238.2285535 | K57: =K$33*IF(VSTUPY!$B$19=8,Pomocné!$E25,IF(VSTUPY!$B$19=12,Pomocné!$C25,IF(VSTUPY!$B$19=16,Pomocné!$F25,Pomocné!$G25))) -> 0 | L57: 116.3810385 | M57: 354.609592 | N57: 166.6138349 | O57: =O$33*IF(VSTUPY!$B$19=8,Pomocné!$E25,IF(VSTUPY!$B$19=12,Pomocné!$C25,IF(VSTUPY!$B$19=16,Pomocné!$F25,Pomocné!$G25))) -> 0 | P57: 116.3810385 | Q57: 282.9948734 | R57: 92.07606667 | S57: =S$33*IF(VSTUPY!$B$19=8,Pomocné!$E25,IF(VSTUPY!$B$19=12,Pomocné!$C25,IF(VSTUPY!$B$19=16,Pomocné!$F25,Pomocné!$G25))) -> 0 | T57: 116.3810385 | U57: 208.4571052 | V57: 0 | W57: =W$33*IF(VSTUPY!$B$19=8,Pomocné!$E25,IF(VSTUPY!$B$19=12,Pomocné!$C25,IF(VSTUPY!$B$19=16,Pomocné!$F25,Pomocné!$G25))) -> 0 | X57: 116.3810385 | Y57: 116.3810385 | Z57: 0 | AA57: =AA$33*IF(VSTUPY!$B$19=8,Pomocné!$E25,IF(VSTUPY!$B$19=12,Pomocné!$C25,IF(VSTUPY!$B$19=16,Pomocné!$F25,Pomocné!$G25))) -> 0 | AB57: 116.3810385 | AC57: 116.3810385 | AD57: 0 | AE57: =AE$33*IF(VSTUPY!$B$19=8,Pomocné!$E25,IF(VSTUPY!$B$19=12,Pomocné!$C25,IF(VSTUPY!$B$19=16,Pomocné!$F25,Pomocné!$G25))) -> 0 | AF57: 116.3810385 | AG57: 116.3810385 | AH57: 94.99911641 | AI57: =AI$33*IF(VSTUPY!$B$19=8,Pomocné!$E25,IF(VSTUPY!$B$19=12,Pomocné!$C25,IF(VSTUPY!$B$19=16,Pomocné!$F25,Pomocné!$G25))) -> 0 | AJ57: 116.3810385 | AK57: 211.3801549 | AL57: 165.1523101 | AM57: =AM$33*IF(VSTUPY!$B$19=8,Pomocné!$E25,IF(VSTUPY!$B$19=12,Pomocné!$C25,IF(VSTUPY!$B$19=16,Pomocné!$F25,Pomocné!$G25))) -> 0 | AN57: 116.3810385 | AO57: 281.5333486 | AP57: 242.6131281 | AQ57: =AQ$33*IF(VSTUPY!$B$19=8,Pomocné!$E25,IF(VSTUPY!$B$19=12,Pomocné!$C25,IF(VSTUPY!$B$19=16,Pomocné!$F25,Pomocné!$G25))) -> 0 | AR57: 116.3810385 | AS57: 358.9941666 | AT57: 293.7664984 | AU57: =AU$33*IF(VSTUPY!$B$19=8,Pomocné!$E25,IF(VSTUPY!$B$19=12,Pomocné!$C25,IF(VSTUPY!$B$19=16,Pomocné!$F25,Pomocné!$G25))) -> 0 | AV57: 116.3810385 | AW57: 410.1475369
A58: 22 | B58: 321.3189487 | C58: =C$33*IF(VSTUPY!$B$19=8,Pomocné!$E26,IF(VSTUPY!$B$19=12,Pomocné!$C26,IF(VSTUPY!$B$19=16,Pomocné!$F26,Pomocné!$G26))) -> 0 | D58: 93.1048308 | E58: 414.4237795 | F58: 306.1623945 | G58: =G$33*IF(VSTUPY!$B$19=8,Pomocné!$E26,IF(VSTUPY!$B$19=12,Pomocné!$C26,IF(VSTUPY!$B$19=16,Pomocné!$F26,Pomocné!$G26))) -> 0 | H58: 93.1048308 | I58: 399.2672253 | J58: 247.0518332 | K58: =K$33*IF(VSTUPY!$B$19=8,Pomocné!$E26,IF(VSTUPY!$B$19=12,Pomocné!$C26,IF(VSTUPY!$B$19=16,Pomocné!$F26,Pomocné!$G26))) -> 0 | L58: 93.1048308 | M58: 340.156664 | N58: 172.7847177 | O58: =O$33*IF(VSTUPY!$B$19=8,Pomocné!$E26,IF(VSTUPY!$B$19=12,Pomocné!$C26,IF(VSTUPY!$B$19=16,Pomocné!$F26,Pomocné!$G26))) -> 0 | P58: 93.1048308 | Q58: 265.8895485 | R58: 95.48629137 | S58: =S$33*IF(VSTUPY!$B$19=8,Pomocné!$E26,IF(VSTUPY!$B$19=12,Pomocné!$C26,IF(VSTUPY!$B$19=16,Pomocné!$F26,Pomocné!$G26))) -> 0 | T58: 93.1048308 | U58: 188.5911222 | V58: 0 | W58: =W$33*IF(VSTUPY!$B$19=8,Pomocné!$E26,IF(VSTUPY!$B$19=12,Pomocné!$C26,IF(VSTUPY!$B$19=16,Pomocné!$F26,Pomocné!$G26))) -> 0 | X58: 93.1048308 | Y58: 93.1048308 | Z58: 0 | AA58: =AA$33*IF(VSTUPY!$B$19=8,Pomocné!$E26,IF(VSTUPY!$B$19=12,Pomocné!$C26,IF(VSTUPY!$B$19=16,Pomocné!$F26,Pomocné!$G26))) -> 0 | AB58: 93.1048308 | AC58: 93.1048308 | AD58: 0 | AE58: =AE$33*IF(VSTUPY!$B$19=8,Pomocné!$E26,IF(VSTUPY!$B$19=12,Pomocné!$C26,IF(VSTUPY!$B$19=16,Pomocné!$F26,Pomocné!$G26))) -> 0 | AF58: 93.1048308 | AG58: 93.1048308 | AH58: 98.5176022 | AI58: =AI$33*IF(VSTUPY!$B$19=8,Pomocné!$E26,IF(VSTUPY!$B$19=12,Pomocné!$C26,IF(VSTUPY!$B$19=16,Pomocné!$F26,Pomocné!$G26))) -> 0 | AJ58: 93.1048308 | AK58: 191.622433 | AL58: 171.2690623 | AM58: =AM$33*IF(VSTUPY!$B$19=8,Pomocné!$E26,IF(VSTUPY!$B$19=12,Pomocné!$C26,IF(VSTUPY!$B$19=16,Pomocné!$F26,Pomocné!$G26))) -> 0 | AN58: 93.1048308 | AO58: 264.3738931 | AP58: 251.5987995 | AQ58: =AQ$33*IF(VSTUPY!$B$19=8,Pomocné!$E26,IF(VSTUPY!$B$19=12,Pomocné!$C26,IF(VSTUPY!$B$19=16,Pomocné!$F26,Pomocné!$G26))) -> 0 | AR58: 93.1048308 | AS58: 344.7036303 | AT58: 304.6467391 | AU58: =AU$33*IF(VSTUPY!$B$19=8,Pomocné!$E26,IF(VSTUPY!$B$19=12,Pomocné!$C26,IF(VSTUPY!$B$19=16,Pomocné!$F26,Pomocné!$G26))) -> 0 | AV58: 93.1048308 | AW58: 397.7515699
A59: 23 | B59: 332.7946255 | C59: =C$33*IF(VSTUPY!$B$19=8,Pomocné!$E27,IF(VSTUPY!$B$19=12,Pomocné!$C27,IF(VSTUPY!$B$19=16,Pomocné!$F27,Pomocné!$G27))) -> 0 | D59: 64.00957118 | E59: 396.8041966 | F59: 317.0967658 | G59: =G$33*IF(VSTUPY!$B$19=8,Pomocné!$E27,IF(VSTUPY!$B$19=12,Pomocné!$C27,IF(VSTUPY!$B$19=16,Pomocné!$F27,Pomocné!$G27))) -> 0 | H59: 64.00957118 | I59: 381.1063369 | J59: 255.875113 | K59: =K$33*IF(VSTUPY!$B$19=8,Pomocné!$E27,IF(VSTUPY!$B$19=12,Pomocné!$C27,IF(VSTUPY!$B$19=16,Pomocné!$F27,Pomocné!$G27))) -> 0 | L59: 64.00957118 | M59: 319.8846842 | N59: 178.9556005 | O59: =O$33*IF(VSTUPY!$B$19=8,Pomocné!$E27,IF(VSTUPY!$B$19=12,Pomocné!$C27,IF(VSTUPY!$B$19=16,Pomocné!$F27,Pomocné!$G27))) -> 0 | P59: 64.00957118 | Q59: 242.9651717 | R59: 98.89651606 | S59: =S$33*IF(VSTUPY!$B$19=8,Pomocné!$E27,IF(VSTUPY!$B$19=12,Pomocné!$C27,IF(VSTUPY!$B$19=16,Pomocné!$F27,Pomocné!$G27))) -> 0 | T59: 64.00957118 | U59: 162.9060872 | V59: 0 | W59: =W$33*IF(VSTUPY!$B$19=8,Pomocné!$E27,IF(VSTUPY!$B$19=12,Pomocné!$C27,IF(VSTUPY!$B$19=16,Pomocné!$F27,Pomocné!$G27))) -> 0 | X59: 64.00957118 | Y59: 64.00957118 | Z59: 0 | AA59: =AA$33*IF(VSTUPY!$B$19=8,Pomocné!$E27,IF(VSTUPY!$B$19=12,Pomocné!$C27,IF(VSTUPY!$B$19=16,Pomocné!$F27,Pomocné!$G27))) -> 0 | AB59: 64.00957118 | AC59: 64.00957118 | AD59: 0 | AE59: =AE$33*IF(VSTUPY!$B$19=8,Pomocné!$E27,IF(VSTUPY!$B$19=12,Pomocné!$C27,IF(VSTUPY!$B$19=16,Pomocné!$F27,Pomocné!$G27))) -> 0 | AF59: 64.00957118 | AG59: 64.00957118 | AH59: 102.036088 | AI59: =AI$33*IF(VSTUPY!$B$19=8,Pomocné!$E27,IF(VSTUPY!$B$19=12,Pomocné!$C27,IF(VSTUPY!$B$19=16,Pomocné!$F27,Pomocné!$G27))) -> 0 | AJ59: 64.00957118 | AK59: 166.0456592 | AL59: 177.3858145 | AM59: =AM$33*IF(VSTUPY!$B$19=8,Pomocné!$E27,IF(VSTUPY!$B$19=12,Pomocné!$C27,IF(VSTUPY!$B$19=16,Pomocné!$F27,Pomocné!$G27))) -> 0 | AN59: 64.00957118 | AO59: 241.3953857 | AP59: 260.5844709 | AQ59: =AQ$33*IF(VSTUPY!$B$19=8,Pomocné!$E27,IF(VSTUPY!$B$19=12,Pomocné!$C27,IF(VSTUPY!$B$19=16,Pomocné!$F27,Pomocné!$G27))) -> 0 | AR59: 64.00957118 | AS59: 324.5940421 | AT59: 315.5269798 | AU59: =AU$33*IF(VSTUPY!$B$19=8,Pomocné!$E27,IF(VSTUPY!$B$19=12,Pomocné!$C27,IF(VSTUPY!$B$19=16,Pomocné!$F27,Pomocné!$G27))) -> 0 | AV59: 64.00957118 | AW59: 379.536551
A60: 24 | B60: 344.2703022 | C60: =C$33*IF(VSTUPY!$B$19=8,Pomocné!$E28,IF(VSTUPY!$B$19=12,Pomocné!$C28,IF(VSTUPY!$B$19=16,Pomocné!$F28,Pomocné!$G28))) -> 0 | D60: 29.09525963 | E60: 373.3655618 | F60: 328.031137 | G60: =G$33*IF(VSTUPY!$B$19=8,Pomocné!$E28,IF(VSTUPY!$B$19=12,Pomocné!$C28,IF(VSTUPY!$B$19=16,Pomocné!$F28,Pomocné!$G28))) -> 0 | H60: 29.09525963 | I60: 357.1263966 | J60: 264.6983927 | K60: =K$33*IF(VSTUPY!$B$19=8,Pomocné!$E28,IF(VSTUPY!$B$19=12,Pomocné!$C28,IF(VSTUPY!$B$19=16,Pomocné!$F28,Pomocné!$G28))) -> 0 | L60: 29.09525963 | M60: 293.7936524 | N60: 185.1264833 | O60: =O$33*IF(VSTUPY!$B$19=8,Pomocné!$E28,IF(VSTUPY!$B$19=12,Pomocné!$C28,IF(VSTUPY!$B$19=16,Pomocné!$F28,Pomocné!$G28))) -> 0 | P60: 29.09525963 | Q60: 214.2217429 | R60: 102.3067407 | S60: =S$33*IF(VSTUPY!$B$19=8,Pomocné!$E28,IF(VSTUPY!$B$19=12,Pomocné!$C28,IF(VSTUPY!$B$19=16,Pomocné!$F28,Pomocné!$G28))) -> 0 | T60: 29.09525963 | U60: 131.4020004 | V60: 0 | W60: =W$33*IF(VSTUPY!$B$19=8,Pomocné!$E28,IF(VSTUPY!$B$19=12,Pomocné!$C28,IF(VSTUPY!$B$19=16,Pomocné!$F28,Pomocné!$G28))) -> 0 | X60: 29.09525963 | Y60: 29.09525963 | Z60: 0 | AA60: =AA$33*IF(VSTUPY!$B$19=8,Pomocné!$E28,IF(VSTUPY!$B$19=12,Pomocné!$C28,IF(VSTUPY!$B$19=16,Pomocné!$F28,Pomocné!$G28))) -> 0 | AB60: 29.09525963 | AC60: 29.09525963 | AD60: 0 | AE60: =AE$33*IF(VSTUPY!$B$19=8,Pomocné!$E28,IF(VSTUPY!$B$19=12,Pomocné!$C28,IF(VSTUPY!$B$19=16,Pomocné!$F28,Pomocné!$G28))) -> 0 | AF60: 29.09525963 | AG60: 29.09525963 | AH60: 105.5545738 | AI60: =AI$33*IF(VSTUPY!$B$19=8,Pomocné!$E28,IF(VSTUPY!$B$19=12,Pomocné!$C28,IF(VSTUPY!$B$19=16,Pomocné!$F28,Pomocné!$G28))) -> 0 | AJ60: 29.09525963 | AK60: 134.6498334 | AL60: 183.5025667 | AM60: =AM$33*IF(VSTUPY!$B$19=8,Pomocné!$E28,IF(VSTUPY!$B$19=12,Pomocné!$C28,IF(VSTUPY!$B$19=16,Pomocné!$F28,Pomocné!$G28))) -> 0 | AN60: 29.09525963 | AO60: 212.5978264 | AP60: 269.5701423 | AQ60: =AQ$33*IF(VSTUPY!$B$19=8,Pomocné!$E28,IF(VSTUPY!$B$19=12,Pomocné!$C28,IF(VSTUPY!$B$19=16,Pomocné!$F28,Pomocné!$G28))) -> 0 | AR60: 29.09525963 | AS60: 298.6654019 | AT60: 326.4072205 | AU60: =AU$33*IF(VSTUPY!$B$19=8,Pomocné!$E28,IF(VSTUPY!$B$19=12,Pomocné!$C28,IF(VSTUPY!$B$19=16,Pomocné!$F28,Pomocné!$G28))) -> 0 | AV60: 29.09525963 | AW60: 355.5024801
D62: MAXIMUM | E62: =MAX(E36:E60) -> 762.5067915 | I62: =MAX(I36:I60) -> 740.8545713 | M62: =MAX(M36:M60) -> 656.4109122 | Q62: =MAX(Q36:Q60) -> 550.3150329 | U62: =MAX(U36:U60) -> 439.8887096 | Y62: =MAX(Y36:Y60) -> 303.4797219 | AC62: =MAX(AC36:AC60) -> 303.4797219 | AG62: =MAX(AG36:AG60) -> 303.4797219 | AK62: =MAX(AK36:AK60) -> 444.2191536 | AO62: =MAX(AO36:AO60) -> 548.1498109 | AS62: =MAX(AS36:AS60) -> 662.9065783 | AW62: =MAX(AW36:AW60) -> 738.6893492
D63: MINIMUM | E63: =MIN(E36:E60) -> 345.2448649 | I63: =MIN(I36:I60) -> 332.2535327 | M63: =MIN(M36:M60) -> 276.3364966 | Q63: =MIN(Q36:Q60) -> 196.7645871 | U63: =MIN(U36:U60) -> 113.9448446 | Y63: =MIN(Y36:Y60) -> 5.819051925 | AC63: =MIN(AC36:AC60) -> 5.819051925 | AG63: =MIN(AG36:AG60) -> 5.819051925 | AK63: =MIN(AK36:AK60) -> 117.1926776 | AO63: =MIN(AO36:AO60) -> 195.1406706 | AS63: =MIN(AS36:AS60) -> 281.2082461 | AW63: =MIN(AW36:AW60) -> 330.9543995
D64: PRŮMĚR | E64: =AVERAGE(E36:E60) -> 486.372872 | I64: =AVERAGE(I36:I60) -> 471.0431001 | M64: =AVERAGE(M36:M60) -> 411.2569895 | Q64: =AVERAGE(Q36:Q60) -> 336.1411069 | U64: =AVERAGE(U36:U60) -> 257.95927 | Y64: =AVERAGE(Y36:Y60) -> 161.3817067 | AC64: =AVERAGE(AC36:AC60) -> 161.3817067 | AG64: =AVERAGE(AG36:AG60) -> 161.3817067 | AK64: =AVERAGE(AK36:AK60) -> 261.0252244 | AO64: =AVERAGE(AO36:AO60) -> 334.6081297 | AS64: =AVERAGE(AS36:AS60) -> 415.855921 | AW64: =AVERAGE(AW36:AW60) -> 469.5101229
E65: 31 | I65: 28 | M65: 31 | Q65: 30 | U65: 31 | Y65: 30 | AC65: 31 | AG65: 31 | AK65: 30 | AO65: 31 | AS65: 30 | AW65: 31
A66: CELÝ ROK
A67: MAXIMUM | B67: =MAX(E62,I62,M62,Q62,U62,Y62,AC62,AG62,AK62,AO62,AS62,AW62) -> 762.5067915 | C67: kW
A68: MINIMUM | B68: =ROUNDUP(D69,0) -> 6 | C68: kW
A69: PRŮMĚR | B69: =(E64*E65+I64*I65+M64*M65+Q64*Q65+U64*U65+Y64*Y65+AC64*AC65+AG64*AG65+AK64*AK65+AO64*AO65+AS64*AS65+AW64*AW65)/SUM(E65:AW65) -> 326.5148501 | C69: kW | D69: =(MIN(IF(E63:AW63>0,E63:AW63))) -> 5.819051925
B71: 31 | C71: 28 | D71: 31 | E71: 30 | F71: 31 | G71: 30 | H71: 31 | I71: 31 | J71: 30 | K71: 31 | L71: 30 | M71: 31
B72: CELKEM: | C72: hodiny pro 1 den v mesici (v ramci jednoho mesice se uvazuje, ze je prubeh stejny všechny dny)
A73: hodina | B73: LEDEN | C73: ÚNOR | D73: BŘEZEN | E73: DUBEN | F73: KVĚTEN | G73: ČERVEN | H73: ČERVENEC | I73: SRPEN | J73: ZÁŘÍ | K73: ŘÍJEN | L73: LISTOPAD | M73: PROSINEC | N73: kontrola
A74: 1 | B74: =ROUND(E37,0) -> 356 | C74: =ROUND(I37,0) -> 340 | D74: =ROUND(M37,0) -> 276 | E74: =ROUND(Q37,0) -> 197 | F74: =ROUND(U37,0) -> 114 | G74: =ROUND(Y37,0) -> 12 | H74: =ROUND(AC37,0) -> 12 | I74: =ROUND(AG37,0) -> 12 | J74: =ROUND(AK37,0) -> 117 | K74: =ROUND(AO37,0) -> 195 | L74: =ROUND(AS37,0) -> 281 | M74: =ROUND(AW37,0) -> 338 | N74: =B74*$B$71+C74*$C$71+D74*$D$71+E74*$E$71+F74*$F$71+G74*$G$71+H74*$H$71+I74*$I$71+J74*$J$71+K74*$K$71+L74*$L$71+M74*$M$71 -> 68123 | Q74: =(Q75-P75)/1000*3.6 -> 0 | R74: GJ/r
A75: 2 | B75: 373 | C75: 356 | D75: 288 | E75: 203 | F75: 115 | G75: 6 | H75: 6 | I75: 6 | J75: 118 | K75: 202 | L75: 293 | M75: 354 | N75: =B75*$B$71+C75*$C$71+D75*$D$71+E75*$E$71+F75*$F$71+G75*$G$71+H75*$H$71+I75*$I$71+J75*$J$71+K75*$K$71+L75*$L$71+M75*$M$71 -> 70232 | P75: =N98 -> 2905029 | Q75: =O125 -> 2905029 | R75: kWh
A76: 3 | B76: 396 | C76: 378 | D76: 306 | E76: 216 | F76: 122 | G76: 6 | H76: 6 | I76: 6 | J76: 125 | K76: 214 | L76: 311 | M76: 376 | N76: 74530 | P76: =P75/1000*3.6 -> 10458.1044 | Q76: =Q75/1000*3.6 -> 10458.1044 | R76: GJ/r
A77: 4 | B77: 425 | C77: 405 | D77: 329 | E77: 234 | F77: 134 | G77: 12 | H77: 12 | I77: 12 | J77: 138 | K77: 232 | L77: 335 | M77: 403 | N77: 80867 | O77: vstupy: | P77: =VSTUPY!B7 -> 10000 | Q77: ='Velikost zdroje'!J26 -> 10449.60104 | R77: GJ/r
A78: 5 | B78: 459 | C78: 439 | D78: 359 | E78: 258 | F78: 153 | G78: 23 | H78: 23 | I78: 23 | J78: 157 | K78: 256 | L78: 365 | M78: 437 | N78: 89392 | O78: rozdil: | P78: =100/P77*(P76-P77) -> 4.581044 | Q78: =100/Q77*(Q76-Q77) -> 0.08137497216 | R78: %
A79: 6 | B79: 722 | C79: 701 | D79: 618 | E79: 515 | F79: 407 | G79: 274 | H79: 274 | I79: 274 | J79: 412 | K79: 513 | L79: 625 | M79: 699 | N79: 183125
A80: 7 | B80: 757 | C80: 735 | D80: 651 | E80: 544 | F80: 434 | G80: 298 | H80: 298 | I80: 298 | J80: 438 | K80: 542 | L80: 657 | M80: 733 | N80: 193793
A81: 8 | B81: 763 | C81: 741 | D81: 656 | E81: 550 | F81: 440 | G81: 303 | H81: 303 | I81: 303 | J81: 444 | K81: 548 | L81: 663 | M81: 739 | N81: 195860
A82: 9 | B82: 711 | C82: 691 | D82: 615 | E82: 520 | F82: 420 | G82: 298 | H82: 298 | I82: 298 | J82: 424 | K82: 518 | L82: 621 | M82: 689 | N82: 185257
A83: 10 | B83: 607 | C83: 592 | D83: 533 | E83: 459 | F83: 382 | G83: 286 | H83: 286 | I83: 286 | J83: 385 | K83: 457 | L83: 538 | M83: 591 | N83: 164018
A84: 11 | B84: 556 | C84: 543 | D84: 492 | E84: 428 | F84: 362 | G84: 280 | H84: 280 | I84: 280 | J84: 365 | K84: 427 | L84: 496 | M84: 541 | N84: 153352
A85: 12 | B85: 504 | C85: 493 | D85: 451 | E85: 398 | F85: 343 | G85: 274 | H85: 274 | I85: 274 | J85: 345 | K85: 397 | L85: 454 | M85: 492 | N85: 142719
A86: 13 | B86: 455 | C86: 446 | D86: 413 | E86: 370 | F86: 326 | G86: 271 | H86: 271 | I86: 271 | J86: 328 | K86: 369 | L86: 415 | M86: 446 | N86: 133089
A87: 14 | B87: 452 | C87: 444 | D87: 410 | E87: 367 | F87: 323 | G87: 269 | H87: 269 | I87: 269 | J87: 325 | K87: 366 | L87: 412 | M87: 443 | N87: =B87*$B$71+C87*$C$71+D87*$D$71+E87*$E$71+F87*$F$71+G87*$G$71+H87*$H$71+I87*$I$71+J87*$J$71+K87*$K$71+L87*$L$71+M87*$M$71 -> 132114
A88: 15 | B88: 475 | C88: 465 | D88: 427 | E88: 380 | F88: 330 | G88: 269 | H88: 269 | I88: 269 | J88: 332 | K88: 379 | L88: 430 | M88: 464 | N88: 136353
A89: 16 | B89: 504 | C89: 493 | D89: 451 | E89: 398 | F89: 343 | G89: 274 | H89: 274 | I89: 274 | J89: 345 | K89: 397 | L89: 454 | M89: 492 | N89: 142719
A90: 17 | B90: 538 | C90: 527 | D90: 480 | E90: 422 | F90: 361 | G90: 286 | H90: 286 | I90: 286 | J90: 363 | K90: 421 | L90: 484 | M90: 525 | N90: 151213
A91: 18 | B91: 345 | C91: 332 | D91: 282 | E91: 218 | F91: 152 | G91: 70 | H91: 70 | I91: 70 | J91: 154 | K91: 217 | L91: 285 | M91: 331 | N91: 76583
A92: 19 | B92: 374 | C92: 361 | D92: 308 | E92: 242 | F92: 173 | G92: 87 | H92: 87 | I92: 87 | J92: 175 | K92: 240 | L92: 312 | M92: 359 | N92: 85056
A93: 20 | B93: 403 | C93: 389 | D93: 334 | E93: 265 | F93: 193 | G93: 105 | H93: 105 | I93: 105 | J93: 196 | K93: 264 | L93: 338 | M93: 388 | N93: 93564
A94: 21 | B94: 426 | C94: 412 | D94: 355 | E94: 283 | F94: 208 | G94: 116 | H94: 116 | I94: 116 | J94: 211 | K94: 282 | L94: 359 | M94: 410 | N94: 99909
A95: 22 | B95: 414 | C95: 399 | D95: 340 | E95: 266 | F95: 189 | G95: 93 | H95: 93 | I95: 93 | J95: 192 | K95: 264 | L95: 345 | M95: 398 | N95: 93573
A96: 23 | B96: 397 | C96: 381 | D96: 320 | E96: 243 | F96: 163 | G96: 64 | H96: 64 | I96: 64 | J96: 166 | K96: 241 | L96: 325 | M96: 380 | N96: 85107
A97: 24 | B97: 373 | C97: 357 | D97: 294 | E97: 214 | F97: 131 | G97: 29 | H97: 29 | I97: 29 | J97: 135 | K97: 213 | L97: 299 | M97: 356 | N97: 74481
B98: =SUM(B74:B97) -> 11785 | C98: 11420 | D98: 9988 | E98: 8190 | F98: 6318 | G98: 4005 | H98: 4005 | I98: 4005 | J98: 6390 | K98: 8154 | L98: 10097 | M98: 11384 | N98: 2905029
B100: =B461+B466+B471+B476+B481+B486+B491+B496+B501+B506+B511+B516 -> 11785 | C100: =C461+C466+C471+C476+C481+C486+C491+C496+C501+C506+C511+C516 -> 11420 | D100: 9988 | E100: 8190 | F100: 6318 | G100: 4005 | H100: 4005 | I100: 4005 | J100: 6390 | K100: 8154 | L100: 10097 | M100: 11384 | N100: =B98*B71+C98*C71+D98*D71+E98*E71+F98*F71+G98*G71+H98*H71+I98*I71+J98*J71+K98*K71+L98*L71+M98*M71 -> 2905029
B103: GJ/mesic | C103: GJ/mesic | D103: GJ/mesic | E103: GJ/mesic | F103: GJ/mesic | G103: GJ/mesic | H103: GJ/mesic | I103: GJ/mesic | J103: GJ/mesic | K103: GJ/mesic | L103: GJ/mesic | M103: GJ/mesic | N103: GJ/rok
B104: =B98/1000*3.6*B71 -> 1315.206 | C104: 1151.136 | D104: 1114.6608 | E104: 884.52 | F104: 705.0888 | G104: 432.54 | H104: 446.958 | I104: 446.958 | J104: 690.12 | K104: 909.9864 | L104: 1090.476 | M104: 1270.4544 | N104: =SUM(B104:M104) -> 10458.1044
A106: PRŮMĚRNÝ VÝKON PRO WAVY, KTERÉ JSOU V BĚHU (PODLE POČTU INSTALOVANÝCH WAVŮ) | R106: PROVOZNÍ PARAMETRY JEDNOTLIVÝCH WAVŮ (PODLE POČTU INSTALOVANÝCH WAVŮ)
B107: 31 | C107: 28 | D107: 31 | E107: 30 | F107: 31 | G107: 30 | H107: 31 | I107: 31 | J107: 30 | K107: 31 | L107: 30 | M107: 31 | U107: 31 | V107: 28 | W107: 31 | X107: 30 | Y107: 31 | Z107: 30 | AA107: 31 | AB107: 31 | AC107: 30 | AD107: 31 | AE107: 30 | AF107: 31
A108: WAVE: | B108: 1 | C108: x
B109: LEDEN | C109: ÚNOR | D109: BŘEZEN | E109: DUBEN | F109: KVĚTEN | G109: ČERVEN | H109: ČERVENEC | I109: SRPEN | J109: ZÁŘÍ | K109: ŘÍJEN | L109: LISTOPAD | M109: PROSINEC | U109: LEDEN | V109: ÚNOR | W109: BŘEZEN | X109: DUBEN | Y109: KVĚTEN | Z109: ČERVEN | AA109: ČERVENEC | AB109: SRPEN | AC109: ZÁŘÍ | AD109: ŘÍJEN | AE109: LISTOPAD | AF109: PROSINEC | AI109: =SUM(AI110:AI120) -> 10458.1044
A110: kotle pod WAVE | B110: =SUMIF(B$74:B$97,"<="&$A$111) -> 0 | C110: 0 | D110: 0 | E110: 0 | F110: 0 | G110: 222 | H110: 222 | I110: 222 | J110: 0 | K110: 0 | L110: 0 | M110: 0 | N110: kWh/den | R110: 1x WAVE | S110: kotle pod WAVE | T110: vyroba tepla [kWh/m] | U110: =B114 -> 0 | V110: =C114 -> 0 | W110: 0 | X110: 0 | Y110: =F114 -> 0 | Z110: 6660 | AA110: 6882 | AB110: 6882 | AC110: 0 | AD110: 0 | AE110: 0 | AF110: 0 | AG110: CELKEM ZA ROK | AI110: =SUM(U110:AF110)/1000*3.6 -> 73.5264 | AJ110: GJ/rok
A111: =A117-1 -> 71 | B111: =COUNTIF(B$74:B$97,"<="&$A111)-COUNTIF(B$74:B$97,"<="&$A112) -> 0 | C111: =COUNTIF(C$74:C$97,"<="&$A111)-COUNTIF(C$74:C$97,"<="&$A112) -> 0 | D111: 0 | E111: 0 | F111: 0 | G111: =COUNTIF(G$74:G$97,"<="&$A111)-COUNTIF(G$74:G$97,"<="&$A112) -> 8 | H111: =COUNTIF(H$74:H$97,"<="&$A111)-COUNTIF(H$74:H$97,"<="&$A112) -> 8 | I111: =COUNTIF(I$74:I$97,"<="&$A111)-COUNTIF(I$74:I$97,"<="&$A112) -> 8 | J111: =COUNTIF(J$74:J$97,"<="&$A111)-COUNTIF(J$74:J$97,"<="&$A112) -> 0 | K111: =COUNTIF(K$74:K$97,"<="&$A111)-COUNTIF(K$74:K$97,"<="&$A112) -> 0 | L111: =COUNTIF(L$74:L$97,"<="&$A111)-COUNTIF(L$74:L$97,"<="&$A112) -> 0 | M111: =COUNTIF(M$74:M$97,"<="&$A111)-COUNTIF(M$74:M$97,"<="&$A112) -> 0 | N111: doba behu [h/d] | T111: doba behu [h/m] | U111: =B112 -> 0 | V111: 0 | W111: 0 | X111: 0 | Y111: =F112 -> 0 | Z111: 240 | AA111: 248 | AB111: 248 | AC111: 0 | AD111: 0 | AE111: 0 | AF111: 0 | AG111: =SUM(U111:AF111) -> 736 | AH111: h/r
A112: 0 | B112: =B111*B$107 -> 0 | C112: =C111*C$107 -> 0 | D112: 0 | E112: 0 | F112: 0 | G112: 240 | H112: 248 | I112: 248 | J112: 0 | K112: 0 | L112: 0 | M112: 0 | N112: doba behu [h/m] | T112: prum. vykon [kW] | U112: =IFERROR(U110/U111,0) -> 0 | V112: 0 | W112: 0 | X112: 0 | Y112: =IFERROR(Y110/Y111,0) -> 0 | Z112: 27.75 | AA112: 27.75 | AB112: 27.75 | AC112: 0 | AD112: 0 | AE112: 0 | AF112: 0 | AG112: =IFERROR((U111*U112+V111*V112+W111*W112+X111*X112+Y111*Y112+Z111*Z112+AA111*AA112+AB111*AB112+AC111*AC112+AD111*AD112+AE111*AE112+AF111*AF112)/AG111,0) -> 27.75 | AH112: kW
B113: =IFERROR(B110/B111,0) -> 0 | C113: =IFERROR(C110/C111,0) -> 0 | D113: 0 | E113: 0 | F113: 0 | G113: 27.75 | H113: 27.75 | I113: 27.75 | J113: 0 | K113: 0 | L113: 0 | M113: 0 | N113: prum vykon [kW]
B114: =B113*B112 -> 0 | C114: =C113*C112 -> 0 | D114: 0 | E114: 0 | F114: 0 | G114: 6660 | H114: 6882 | I114: 6882 | J114: 0 | K114: 0 | L114: 0 | M114: 0 | N114: kWh/mesic | O114: =SUM(B114:M114) -> 20424 | P114: =F110*F107 -> 0
A115: 1 WAVE | B115: =SUMIF(B$74:B$97,">="&$A$117)-SUMIF(B$74:B$97,">"&$A$116)+COUNTIF(B$74:B$97,">"&$A$116)*$A$116 -> 2880 | C115: 2880 | D115: 2880 | E115: 2880 | F115: 2869 | G115: 1841 | H115: 1841 | I115: 1841 | J115: 2875 | K115: 2880 | L115: 2880 | M115: 2880 | N115: kWh/den | S115: 1. WAVE | T115: vyroba tepla [kWh/m] | U115: =B119 -> 89280 | V115: =C119 -> 80640 | W115: 89280 | X115: 86400 | Y115: 88939 | Z115: 55230 | AA115: 57071 | AB115: 57071 | AC115: 86250 | AD115: 89280 | AE115: 86400 | AF115: 89280 | AG115: CELKEM ZA ROK | AI115: =SUM(U115:AF115)/1000*3.6 -> 3438.4356 | AJ115: GJ/rok
A116: 120 | B116: =COUNTIF(B$74:B$97,">="&$A$117) -> 24 | C116: 24 | D116: 24 | E116: 24 | F116: 24 | G116: 16 | H116: 16 | I116: 16 | J116: 24 | K116: 24 | L116: 24 | M116: 24 | N116: doba behu [h/d] | T116: doba behu [h/m] | U116: =B117 -> 744 | V116: =C117 -> 672 | W116: 744 | X116: 720 | Y116: 744 | Z116: 480 | AA116: 496 | AB116: 496 | AC116: 720 | AD116: 744 | AE116: 720 | AF116: 744 | AG116: =SUM(U116:AF116) -> 8024 | AH116: h/r
A117: ='Kotle na pelety'!$F$23 -> 72 | B117: =B116*B$107 -> 744 | C117: =C116*C$107 -> 672 | D117: 744 | E117: 720 | F117: 744 | G117: 480 | H117: 496 | I117: 496 | J117: 720 | K117: 744 | L117: 720 | M117: 744 | N117: doba behu [h/m] | T117: prum. vykon [kW] | U117: =IFERROR(U115/U116,0) -> 120 | V117: =IFERROR(V115/V116,0) -> 120 | W117: 120 | X117: 120 | Y117: 119.5416667 | Z117: 115.0625 | AA117: 115.0625 | AB117: 115.0625 | AC117: 119.7916667 | AD117: 120 | AE117: 120 | AF117: 120 | AG117: =IFERROR((U116*U117+V116*V117+W116*W117+X116*X117+Y116*Y117+Z116*Z117+AA116*AA117+AB116*AB117+AC116*AC117+AD116*AD117+AE116*AE117+AF116*AF117)/AG116,0) -> 119.0330259 | AH117: kW
B118: =IFERROR(B115/B116,0) -> 120 | C118: =IFERROR(C115/C116,0) -> 120 | D118: 120 | E118: 120 | F118: 119.5416667 | G118: 115.0625 | H118: 115.0625 | I118: 115.0625 | J118: 119.7916667 | K118: 120 | L118: 120 | M118: 120 | N118: prum vykon [kW]
B119: =B118*B117 -> 89280 | C119: =C118*C117 -> 80640 | D119: 89280 | E119: 86400 | F119: 88939 | G119: 55230 | H119: 57071 | I119: 57071 | J119: 86250 | K119: 89280 | L119: 86400 | M119: 89280 | N119: kWh/mesic | O119: =SUM(B119:M119) -> 955121
A120: kotle nad WAVE | B120: =SUMIF(B$74:B$97,">="&$A$122)-COUNTIF(B$74:B$97,">="&$A$122)*$A$116 -> 8905 | C120: 8540 | D120: 7108 | E120: 5310 | F120: 3449 | G120: 1942 | H120: 1942 | I120: 1942 | J120: 3515 | K120: 5274 | L120: 7217 | M120: 8504 | N120: kWh/den | S120: kotle nad W | T120: vyroba tepla [kWh/m] | U120: =B124 -> 276055 | V120: =C124 -> 239120 | W120: 220348 | X120: 159300 | Y120: 106919 | Z120: 58260 | AA120: 60202 | AB120: 60202 | AC120: 105450 | AD120: 163494 | AE120: 216510 | AF120: 263624 | AG120: CELKEM ZA ROK | AI120: =SUM(U120:AF120)/1000*3.6 -> 6946.1424 | AJ120: GJ/rok
B121: =COUNTIF(B$74:B$97,">="&$A$122) -> 24 | C121: 24 | D121: 24 | E121: 24 | F121: 22 | G121: 12 | H121: 12 | I121: 12 | J121: 22 | K121: 24 | L121: 24 | M121: 24 | N121: doba behu [h/d] | T121: doba behu [h/m] | U121: =B122 -> 744 | V121: =C122 -> 672 | W121: 744 | X121: 720 | Y121: 682 | Z121: 360 | AA121: 372 | AB121: 372 | AC121: 660 | AD121: 744 | AE121: 720 | AF121: 744 | AG121: =SUM(U121:AF121) -> 7534 | AH121: h/r
A122: =A116+1 -> 121 | B122: =B121*B$107 -> 744 | C122: =C121*C$107 -> 672 | D122: 744 | E122: 720 | F122: 682 | G122: 360 | H122: 372 | I122: 372 | J122: 660 | K122: 744 | L122: 720 | M122: 744 | N122: doba behu [h/m] | T122: prum. vykon [kW] | U122: =IFERROR(U120/U121,0) -> 371.0416667 | V122: =IFERROR(V120/V121,0) -> 355.8333333 | W122: 296.1666667 | X122: 221.25 | Y122: 156.7727273 | Z122: 161.8333333 | AA122: 161.8333333 | AB122: 161.8333333 | AC122: 159.7727273 | AD122: 219.75 | AE122: 300.7083333 | AF122: 354.3333333 | AG122: =IFERROR((U121*U122+V121*V122+W121*W122+X121*X122+Y121*Y122+Z121*Z122+AA121*AA122+AB121*AB122+AC121*AC122+AD121*AD122+AE121*AE122+AF121*AF122)/AG121,0) -> 256.1035307 | AH122: kW
B123: =IFERROR(B120/B121,0) -> 371.0416667 | C123: =IFERROR(C120/C121,0) -> 355.8333333 | D123: 296.1666667 | E123: 221.25 | F123: 156.7727273 | G123: 161.8333333 | H123: 161.8333333 | I123: 161.8333333 | J123: 159.7727273 | K123: 219.75 | L123: 300.7083333 | M123: 354.3333333 | N123: prum vykon [kW]
B124: =B123*B122 -> 276055 | C124: =C123*C122 -> 239120 | D124: 220348 | E124: 159300 | F124: 106919 | G124: 58260 | H124: 60202 | I124: 60202 | J124: 105450 | K124: 163494 | L124: 216510 | M124: 263624 | N124: kWh/mesic | O124: =SUM(B124:M124) -> 1929484
O125: =SUM(O110:O124) -> 2905029
A127: WAVE: | B127: 2 | C127: x
B128: LEDEN | C128: ÚNOR | D128: BŘEZEN | E128: DUBEN | F128: KVĚTEN | G128: ČERVEN | H128: ČERVENEC | I128: SRPEN | J128: ZÁŘÍ | K128: ŘÍJEN | L128: LISTOPAD | M128: PROSINEC | U128: LEDEN | V128: ÚNOR | W128: BŘEZEN | X128: DUBEN | Y128: KVĚTEN | Z128: ČERVEN | AA128: ČERVENEC | AB128: SRPEN | AC128: ZÁŘÍ | AD128: ŘÍJEN | AE128: LISTOPAD | AF128: PROSINEC | AI128: =SUM(AI129:AI144) -> 10458.1044
A129: kotle pod WAVE | B129: =SUMIF(B$74:B$97,"<="&$A130)+SUMIF(B$74:B$97,">"&$A135)-SUMIF(B$74:B$97,">="&$A141)-COUNTIF(B$74:B$97,">"&$A135)*$A135+COUNTIF(B$74:B$97,">="&$A141)*$A135 -> 0 | C129: =SUMIF(C$74:C$97,"<="&$A130)+SUMIF(C$74:C$97,">"&$A135)-SUMIF(C$74:C$97,">="&$A141)-COUNTIF(C$74:C$97,">"&$A135)*$A135+COUNTIF(C$74:C$97,">="&$A141)*$A135 -> 0 | D129: 0 | E129: 0 | F129: 27 | G129: 222 | H129: 222 | I129: 222 | J129: 38 | K129: 0 | L129: 0 | M129: 0 | N129: kWh/den | R129: 2x WAVE | S129: kotle pod WAVE | T129: vyroba tepla [kWh/m] | U129: =B133 -> 0 | V129: =C133 -> 0 | W129: =D133 -> 0 | X129: =E133 -> 0 | Y129: =F133 -> 837 | Z129: =G133 -> 6660 | AA129: =H133 -> 6882 | AB129: =I133 -> 6882 | AC129: =J133 -> 1140 | AD129: =K133 -> 0 | AE129: =L133 -> 0 | AF129: =M133 -> 0 | AG129: CELKEM ZA ROK | AI129: =SUM(U129:AF129)/1000*3.6 -> 80.6436 | AJ129: GJ/rok
A130: =A136-1 -> 71 | B130: =COUNTIF(B$74:B$97,"<="&$A130)-COUNTIF(B$74:B$97,"<="&$A131)+COUNTIF(B$74:B$97,">"&$A135)-COUNTIF(B$74:B$97,">="&$A141) -> 0 | C130: =COUNTIF(C$74:C$97,"<="&$A130)-COUNTIF(C$74:C$97,"<="&$A131)+COUNTIF(C$74:C$97,">"&$A135)-COUNTIF(C$74:C$97,">="&$A141) -> 0 | D130: =COUNTIF(D$74:D$97,"<="&$A130)-COUNTIF(D$74:D$97,"<="&$A131)+COUNTIF(D$74:D$97,">"&$A135)-COUNTIF(D$74:D$97,">="&$A141) -> 0 | E130: =COUNTIF(E$74:E$97,"<="&$A130)-COUNTIF(E$74:E$97,"<="&$A131)+COUNTIF(E$74:E$97,">"&$A135)-COUNTIF(E$74:E$97,">="&$A141) -> 0 | F130: =COUNTIF(F$74:F$97,"<="&$A130)-COUNTIF(F$74:F$97,"<="&$A131)+COUNTIF(F$74:F$97,">"&$A135)-COUNTIF(F$74:F$97,">="&$A141) -> 3 | G130: =COUNTIF(G$74:G$97,"<="&$A130)-COUNTIF(G$74:G$97,"<="&$A131)+COUNTIF(G$74:G$97,">"&$A135)-COUNTIF(G$74:G$97,">="&$A141) -> 8 | H130: =COUNTIF(H$74:H$97,"<="&$A130)-COUNTIF(H$74:H$97,"<="&$A131)+COUNTIF(H$74:H$97,">"&$A135)-COUNTIF(H$74:H$97,">="&$A141) -> 8 | I130: =COUNTIF(I$74:I$97,"<="&$A130)-COUNTIF(I$74:I$97,"<="&$A131)+COUNTIF(I$74:I$97,">"&$A135)-COUNTIF(I$74:I$97,">="&$A141) -> 8 | J130: =COUNTIF(J$74:J$97,"<="&$A130)-COUNTIF(J$74:J$97,"<="&$A131)+COUNTIF(J$74:J$97,">"&$A135)-COUNTIF(J$74:J$97,">="&$A141) -> 3 | K130: =COUNTIF(K$74:K$97,"<="&$A130)-COUNTIF(K$74:K$97,"<="&$A131)+COUNTIF(K$74:K$97,">"&$A135)-COUNTIF(K$74:K$97,">="&$A141) -> 0 | L130: =COUNTIF(L$74:L$97,"<="&$A130)-COUNTIF(L$74:L$97,"<="&$A131)+COUNTIF(L$74:L$97,">"&$A135)-COUNTIF(L$74:L$97,">="&$A141) -> 0 | M130: =COUNTIF(M$74:M$97,"<="&$A130)-COUNTIF(M$74:M$97,"<="&$A131)+COUNTIF(M$74:M$97,">"&$A135)-COUNTIF(M$74:M$97,">="&$A141) -> 0 | N130: doba behu [h/d] | T130: doba behu [h/m] | U130: =B131 -> 0 | V130: =C131 -> 0 | W130: =D131 -> 0 | X130: =E131 -> 0 | Y130: =F131 -> 93 | Z130: =G131 -> 240 | AA130: =H131 -> 248 | AB130: =I131 -> 248 | AC130: =J131 -> 90 | AD130: =K131 -> 0 | AE130: =L131 -> 0 | AF130: =M131 -> 0 | AG130: =SUM(U130:AF130) -> 919 | AH130: h/r
A131: 0 | B131: =B130*B$107 -> 0 | C131: =C130*C$107 -> 0 | D131: 0 | E131: =E130*E$107 -> 0 | F131: 93 | G131: 240 | H131: 248 | I131: 248 | J131: 90 | K131: 0 | L131: 0 | M131: 0 | N131: doba behu [h/m] | T131: prum. vykon [kW] | U131: =IFERROR(U129/U130,0) -> 0 | V131: =IFERROR(V129/V130,0) -> 0 | W131: =IFERROR(W129/W130,0) -> 0 | X131: =IFERROR(X129/X130,0) -> 0 | Y131: =IFERROR(Y129/Y130,0) -> 9 | Z131: =IFERROR(Z129/Z130,0) -> 27.75 | AA131: =IFERROR(AA129/AA130,0) -> 27.75 | AB131: =IFERROR(AB129/AB130,0) -> 27.75 | AC131: =IFERROR(AC129/AC130,0) -> 12.66666667 | AD131: =IFERROR(AD129/AD130,0) -> 0 | AE131: =IFERROR(AE129/AE130,0) -> 0 | AF131: =IFERROR(AF129/AF130,0) -> 0 | AG131: =IFERROR((U130*U131+V130*V131+W130*W131+X130*X131+Y130*Y131+Z130*Z131+AA130*AA131+AB130*AB131+AC130*AC131+AD130*AD131+AE130*AE131+AF130*AF131)/AG130,0) -> 24.37540805 | AH131: kW
B132: =IFERROR(B129/B130,0) -> 0 | C132: =IFERROR(C129/C130,0) -> 0 | D132: 0 | E132: 0 | F132: 9 | G132: 27.75 | H132: 27.75 | I132: 27.75 | J132: 12.66666667 | K132: 0 | L132: 0 | M132: 0 | N132: prum vykon [kW] | U132: =B132 -> 0 | V132: =C132 -> 0 | W132: 0 | X132: 0 | Y132: 9 | Z132: 27.75 | AA132: 27.75 | AB132: 27.75 | AC132: 12.66666667 | AD132: 0 | AE132: 0 | AF132: 0
B133: =B132*B131 -> 0 | C133: =C132*C131 -> 0 | D133: 0 | E133: 0 | F133: 837 | G133: 6660 | H133: 6882 | I133: 6882 | J133: 1140 | K133: 0 | L133: 0 | M133: 0 | N133: kWh/mesic | O133: =SUM(B133:M133) -> 22401
A134: 1 WAVE | B134: =SUMIF(B$74:B$97,">="&$A136)-SUMIF(B$74:B$97,">"&$A135)+(COUNTIF(B$74:B$97,">"&$A135)-COUNTIF(B$74:B$97,">="&$A141))*$A135 -> 0 | C134: =SUMIF(C$74:C$97,">="&$A136)-SUMIF(C$74:C$97,">"&$A135)+(COUNTIF(C$74:C$97,">"&$A135)-COUNTIF(C$74:C$97,">="&$A141))*$A135 -> 0 | D134: 0 | E134: 0 | F134: 589 | G134: 401 | H134: 401 | I134: 401 | J134: 595 | K134: 0 | L134: 0 | M134: 0 | N134: kWh/den | S134: 1. WAVE | T134: vyroba tepla [kWh/m] | U134: =B138+B143/2 -> 89280 | V134: 80640 | W134: 89280 | X134: 84030 | Y134: 81979.5 | Z134: 55230 | AA134: 57071 | AB134: 57071 | AC134: 79815 | AD134: 86691.5 | AE134: 86400 | AF134: 89280 | AG134: CELKEM ZA ROK | AI134: =SUM(U134:AF134)/1000*3.6 -> 3372.3648 | AJ134: GJ/rok
A135: 120 | B135: =COUNTIF(B$74:B$97,">="&$A136)-COUNTIF(B$74:B$97,">"&$A135)+(COUNTIF(B$74:B$97,">"&$A135)-COUNTIF(B$74:B$97,">="&$A141)) -> 0 | C135: =COUNTIF(C$74:C$97,">="&$A136)-COUNTIF(C$74:C$97,">"&$A135)+(COUNTIF(C$74:C$97,">"&$A135)-COUNTIF(C$74:C$97,">="&$A141)) -> 0 | D135: 0 | E135: 0 | F135: 5 | G135: 4 | H135: 4 | I135: 4 | J135: 5 | K135: 0 | L135: 0 | M135: 0 | N135: doba behu [h/d] | T135: doba behu [h/m] | U135: =B136+B141 -> 744 | V135: =C136+C141 -> 672 | W135: 744 | X135: 720 | Y135: 744 | Z135: 480 | AA135: 496 | AB135: 496 | AC135: 720 | AD135: 744 | AE135: 720 | AF135: 744 | AG135: =SUM(U135:AF135) -> 8024 | AH135: h/r
A136: ='Kotle na pelety'!$F$23 -> 72 | B136: =B135*B$107 -> 0 | C136: =C135*C$107 -> 0 | D136: 0 | E136: 0 | F136: 155 | G136: 120 | H136: 124 | I136: 124 | J136: 150 | K136: 0 | L136: 0 | M136: 0 | N136: doba behu [h/m] | T136: prum. vykon [kW] | U136: =IFERROR(U134/U135,0) -> 120 | V136: =IFERROR(V134/V135,0) -> 120 | W136: 120 | X136: 116.7083333 | Y136: 110.1875 | Z136: 115.0625 | AA136: 115.0625 | AB136: 115.0625 | AC136: 110.8541667 | AD136: 116.5208333 | AE136: 120 | AF136: 120 | AG136: =IFERROR((U135*U136+V135*V136+W135*W136+X135*X136+Y135*Y136+Z135*Z136+AA135*AA136+AB135*AB136+AC135*AC136+AD135*AD136+AE135*AE136+AF135*AF136)/AG135,0) -> 116.7457627 | AH136: kW
B137: =IFERROR(B134/B135,0) -> 0 | C137: =IFERROR(C134/C135,0) -> 0 | D137: 0 | E137: 0 | F137: 117.8 | G137: 100.25 | H137: 100.25 | I137: 100.25 | J137: 119 | K137: 0 | L137: 0 | M137: 0 | N137: prum vykon [kW] | U137: =IFERROR((IFERROR(B138/B136,0)*B136+IFERROR(B143/2/B141,0)*B141)/(B141+B136),0) -> 120 | V137: 120 | W137: 120 | X137: 116.7083333 | Y137: 110.1875 | Z137: 115.0625 | AA137: 115.0625 | AB137: 115.0625 | AC137: 110.8541667 | AD137: 116.5208333 | AE137: 120 | AF137: 120
B138: =B137*B136 -> 0 | C138: =C137*C136 -> 0 | D138: 0 | E138: 0 | F138: 18259 | G138: 12030 | H138: 12431 | I138: 12431 | J138: 17850 | K138: 0 | L138: 0 | M138: 0 | N138: kWh/mesic | O138: =SUM(B138:M138) -> 73001
A139: 2 WAVE | B139: =SUMIF(B$74:B$97,">="&$A141)-SUMIF(B$74:B$97,">"&$A140)+COUNTIF(B$74:B$97,">"&$A140)*$A140 -> 5760 | C139: =SUMIF(C$74:C$97,">="&$A141)-SUMIF(C$74:C$97,">"&$A140)+COUNTIF(C$74:C$97,">"&$A140)*$A140 -> 5760 | D139: 5760 | E139: 5602 | F139: 4111 | G139: 2880 | H139: 2880 | I139: 2880 | J139: 4131 | K139: 5593 | L139: 5760 | M139: 5760 | N139: kWh/den | S139: 2. WAVE | T139: vyroba tepla [kWh/m] | U139: =B143/2 -> 89280 | V139: =C143/2 -> 80640 | W139: 89280 | X139: 84030 | Y139: 63720.5 | Z139: 43200 | AA139: 44640 | AB139: 44640 | AC139: 61965 | AD139: 86691.5 | AE139: 86400 | AF139: 89280 | AG139: CELKEM ZA ROK | AI139: =SUM(U139:AF139)/1000*3.6 -> 3109.5612 | AJ139: GJ/rok
A140: =120*B127 -> 240 | B140: =COUNTIF(B$74:B$97,">="&$A141) -> 24 | C140: =COUNTIF(C$74:C$97,">="&$A141) -> 24 | D140: 24 | E140: 24 | F140: 19 | G140: 12 | H140: 12 | I140: 12 | J140: 19 | K140: 24 | L140: 24 | M140: 24 | N140: doba behu [h/d] | T140: doba behu [h/m] | U140: =B141 -> 744 | V140: =C141 -> 672 | W140: 744 | X140: 720 | Y140: 589 | Z140: 360 | AA140: 372 | AB140: 372 | AC140: 570 | AD140: 744 | AE140: 720 | AF140: 744 | AG140: =SUM(U140:AF140) -> 7351 | AH140: h/r
A141: ='Kotle na pelety'!$F$23*B127 -> 144 | B141: =B140*B$107 -> 744 | C141: =C140*C$107 -> 672 | D141: 744 | E141: 720 | F141: 589 | G141: 360 | H141: 372 | I141: 372 | J141: 570 | K141: 744 | L141: 720 | M141: 744 | N141: doba behu [h/m] | T141: prum. vykon [kW] | U141: =IFERROR(U139/U140,0) -> 120 | V141: =IFERROR(V139/V140,0) -> 120 | W141: 120 | X141: 116.7083333 | Y141: 108.1842105 | Z141: 120 | AA141: 120 | AB141: 120 | AC141: 108.7105263 | AD141: 116.5208333 | AE141: 120 | AF141: 120 | AG141: =IFERROR((U140*U141+V140*V141+W140*W141+X140*X141+Y140*Y141+Z140*Z141+AA140*AA141+AB140*AB141+AC140*AC141+AD140*AD141+AE140*AE141+AF140*AF141)/AG140,0) -> 117.5033329 | AH141: kW
B142: =IFERROR(B139/B140,0) -> 240 | C142: =IFERROR(C139/C140,0) -> 240 | D142: 240 | E142: 233.4166667 | F142: 216.3684211 | G142: 240 | H142: 240 | I142: 240 | J142: 217.4210526 | K142: 233.0416667 | L142: 240 | M142: 240 | N142: prum vykon [kW] | U142: =B142/2 -> 120 | V142: =C142/2 -> 120 | W142: 120 | X142: 116.7083333 | Y142: 108.1842105 | Z142: 120 | AA142: 120 | AB142: 120 | AC142: 108.7105263 | AD142: 116.5208333 | AE142: 120 | AF142: 120
B143: =B142*B141 -> 178560 | C143: =C142*C141 -> 161280 | D143: 178560 | E143: 168060 | F143: 127441 | G143: 86400 | H143: 89280 | I143: 89280 | J143: 123930 | K143: 173383 | L143: 172800 | M143: 178560 | N143: kWh/mesic | O143: =SUM(B143:M143) -> 1727534
A144: kotle nad WAVE | B144: =SUMIF(B$74:B$97,">="&$A146)-COUNTIF(B$74:B$97,">="&$A146)*$A140 -> 6025 | C144: =SUMIF(C$74:C$97,">="&$A146)-COUNTIF(C$74:C$97,">="&$A146)*$A140 -> 5660 | D144: 4228 | E144: 2588 | F144: 1591 | G144: 502 | H144: 502 | I144: 502 | J144: 1626 | K144: 2561 | L144: 4337 | M144: 5624 | N144: kWh/den | S144: kotle nad W | T144: vyroba tepla [kWh/m] | U144: =B148 -> 186775 | V144: =C148 -> 158480 | W144: 131068 | X144: 77640 | Y144: 49321 | Z144: 15060 | AA144: 15562 | AB144: 15562 | AC144: 48780 | AD144: 79391 | AE144: 130110 | AF144: 174344 | AG144: CELKEM ZA ROK | AI144: =SUM(U144:AF144)/1000*3.6 -> 3895.5348 | AJ144: GJ/rok
B145: =COUNTIF(B$74:B$97,">="&$A146) -> 24 | C145: =COUNTIF(C$74:C$97,">="&$A146) -> 24 | D145: 24 | E145: 18 | F145: 12 | G145: 12 | H145: 12 | I145: 12 | J145: 12 | K145: 17 | L145: 24 | M145: 24 | N145: doba behu [h/d] | T145: doba behu [h/m] | U145: =B146 -> 744 | V145: =C146 -> 672 | W145: 744 | X145: 540 | Y145: 372 | Z145: 360 | AA145: 372 | AB145: 372 | AC145: 360 | AD145: 527 | AE145: 720 | AF145: 744 | AG145: =SUM(U145:AF145) -> 6527 | AH145: h/r
A146: =A140+1 -> 241 | B146: =B145*B$107 -> 744 | C146: =C145*C$107 -> 672 | D146: 744 | E146: 540 | F146: 372 | G146: 360 | H146: 372 | I146: 372 | J146: 360 | K146: 527 | L146: 720 | M146: 744 | N146: doba behu [h/m] | T146: prum. vykon [kW] | U146: =IFERROR(U144/U145,0) -> 251.0416667 | V146: =IFERROR(V144/V145,0) -> 235.8333333 | W146: 176.1666667 | X146: 143.7777778 | Y146: 132.5833333 | Z146: 41.83333333 | AA146: 41.83333333 | AB146: 41.83333333 | AC146: 135.5 | AD146: 150.6470588 | AE146: 180.7083333 | AF146: 234.3333333 | AG146: =IFERROR((U145*U146+V145*V146+W145*W146+X145*X146+Y145*Y146+Z145*Z146+AA145*AA146+AB145*AB146+AC145*AC146+AD145*AD146+AE145*AE146+AF145*AF146)/AG145,0) -> 165.7871917 | AH146: kW
B147: =IFERROR(B144/B145,0) -> 251.0416667 | C147: =IFERROR(C144/C145,0) -> 235.8333333 | D147: 176.1666667 | E147: 143.7777778 | F147: 132.5833333 | G147: 41.83333333 | H147: 41.83333333 | I147: 41.83333333 | J147: 135.5 | K147: 150.6470588 | L147: 180.7083333 | M147: 234.3333333 | N147: prum vykon [kW] | U147: =B147 -> 251.0416667 | V147: =C147 -> 235.8333333 | W147: 176.1666667 | X147: 143.7777778 | Y147: 132.5833333 | Z147: 41.83333333 | AA147: 41.83333333 | AB147: 41.83333333 | AC147: 135.5 | AD147: 150.6470588 | AE147: 180.7083333 | AF147: 234.3333333
B148: =B147*B146 -> 186775 | C148: =C147*C146 -> 158480 | D148: 131068 | E148: 77640 | F148: 49321 | G148: 15060 | H148: 15562 | I148: 15562 | J148: 48780 | K148: 79391 | L148: 130110 | M148: 174344 | N148: kWh/mesic | O148: 1082093
B149: =B148+B143+B138+B133 -> 365335 | C149: =C148+C143+C138+C133 -> 319760 | D149: 309628 | E149: 245700 | F149: 195858 | G149: 120150 | H149: 124155 | I149: 124155 | J149: 191700 | K149: 252774 | L149: 302910 | M149: 352904 | O149: =SUM(O133:O148) -> 2905029
A151: WAVE: | B151: 3 | C151: x
B152: LEDEN | C152: ÚNOR | D152: BŘEZEN | E152: DUBEN | F152: KVĚTEN | G152: ČERVEN | H152: ČERVENEC | I152: SRPEN | J152: ZÁŘÍ | K152: ŘÍJEN | L152: LISTOPAD | M152: PROSINEC | U152: LEDEN | V152: ÚNOR | W152: BŘEZEN | X152: DUBEN | Y152: KVĚTEN | Z152: ČERVEN | AA152: ČERVENEC | AB152: SRPEN | AC152: ZÁŘÍ | AD152: ŘÍJEN | AE152: LISTOPAD | AF152: PROSINEC
A153: kotle pod WAVE | B153: =SUMIF(B$74:B$97,"<="&$A154)+SUMIF(B$74:B$97,">"&$A159)-SUMIF(B$74:B$97,">="&$A165)-COUNTIF(B$74:B$97,">"&$A159)*$A159+COUNTIF(B$74:B$97,">="&$A165)*$A159 -> 0 | C153: =SUMIF(C$74:C$97,"<="&$A154)+SUMIF(C$74:C$97,">"&$A159)-SUMIF(C$74:C$97,">="&$A165)-COUNTIF(C$74:C$97,">"&$A159)*$A159+COUNTIF(C$74:C$97,">="&$A165)*$A159 -> 0 | D153: 0 | E153: 0 | F153: =SUMIF(F$74:F$97,"<="&$A154)+SUMIF(F$74:F$97,">"&$A159)-SUMIF(F$74:F$97,">="&$A165)-COUNTIF(F$74:F$97,">"&$A159)*$A159+COUNTIF(F$74:F$97,">="&$A165)*$A159 -> 27 | G153: 222 | H153: 222 | I153: 222 | J153: 38 | K153: 0 | L153: 0 | M153: 0 | N153: kWh/den | R153: 3x WAVE | S153: kotle pod WAVE | T153: vyroba tepla [kWh/m] | U153: =B157 -> 0 | V153: =C157 -> 0 | W153: =D157 -> 0 | X153: =E157 -> 0 | Y153: =F157 -> 837 | Z153: =G157 -> 6660 | AA153: =H157 -> 6882 | AB153: =I157 -> 6882 | AC153: =J157 -> 1140 | AD153: =K157 -> 0 | AE153: =L157 -> 0 | AF153: =M157 -> 0 | AG153: CELKEM ZA ROK | AI153: =SUM(U153:AF153)/1000*3.6 -> 80.6436 | AJ153: GJ/r
A154: =A160-1 -> 71 | B154: =COUNTIF(B$74:B$97,"<="&$A154)-COUNTIF(B$74:B$97,"<="&$A155)+COUNTIF(B$74:B$97,">"&$A159)-COUNTIF(B$74:B$97,">="&$A165) -> 0 | C154: =COUNTIF(C$74:C$97,"<="&$A154)-COUNTIF(C$74:C$97,"<="&$A155)+COUNTIF(C$74:C$97,">"&$A159)-COUNTIF(C$74:C$97,">="&$A165) -> 0 | D154: =COUNTIF(D$74:D$97,"<="&$A154)-COUNTIF(D$74:D$97,"<="&$A155)+COUNTIF(D$74:D$97,">"&$A159)-COUNTIF(D$74:D$97,">="&$A165) -> 0 | E154: =COUNTIF(E$74:E$97,"<="&$A154)-COUNTIF(E$74:E$97,"<="&$A155)+COUNTIF(E$74:E$97,">"&$A159)-COUNTIF(E$74:E$97,">="&$A165) -> 0 | F154: =COUNTIF(F$74:F$97,"<="&$A154)-COUNTIF(F$74:F$97,"<="&$A155)+COUNTIF(F$74:F$97,">"&$A159)-COUNTIF(F$74:F$97,">="&$A165) -> 3 | G154: =COUNTIF(G$74:G$97,"<="&$A154)-COUNTIF(G$74:G$97,"<="&$A155)+COUNTIF(G$74:G$97,">"&$A159)-COUNTIF(G$74:G$97,">="&$A165) -> 8 | H154: =COUNTIF(H$74:H$97,"<="&$A154)-COUNTIF(H$74:H$97,"<="&$A155)+COUNTIF(H$74:H$97,">"&$A159)-COUNTIF(H$74:H$97,">="&$A165) -> 8 | I154: =COUNTIF(I$74:I$97,"<="&$A154)-COUNTIF(I$74:I$97,"<="&$A155)+COUNTIF(I$74:I$97,">"&$A159)-COUNTIF(I$74:I$97,">="&$A165) -> 8 | J154: =COUNTIF(J$74:J$97,"<="&$A154)-COUNTIF(J$74:J$97,"<="&$A155)+COUNTIF(J$74:J$97,">"&$A159)-COUNTIF(J$74:J$97,">="&$A165) -> 3 | K154: =COUNTIF(K$74:K$97,"<="&$A154)-COUNTIF(K$74:K$97,"<="&$A155)+COUNTIF(K$74:K$97,">"&$A159)-COUNTIF(K$74:K$97,">="&$A165) -> 0 | L154: =COUNTIF(L$74:L$97,"<="&$A154)-COUNTIF(L$74:L$97,"<="&$A155)+COUNTIF(L$74:L$97,">"&$A159)-COUNTIF(L$74:L$97,">="&$A165) -> 0 | M154: =COUNTIF(M$74:M$97,"<="&$A154)-COUNTIF(M$74:M$97,"<="&$A155)+COUNTIF(M$74:M$97,">"&$A159)-COUNTIF(M$74:M$97,">="&$A165) -> 0 | N154: doba behu [h/d] | T154: doba behu [h/m] | U154: =B155 -> 0 | V154: =C155 -> 0 | W154: =D155 -> 0 | X154: =E155 -> 0 | Y154: =F155 -> 93 | Z154: =G155 -> 240 | AA154: =H155 -> 248 | AB154: =I155 -> 248 | AC154: =J155 -> 90 | AD154: =K155 -> 0 | AE154: =L155 -> 0 | AF154: =M155 -> 0 | AG154: =SUM(U154:AF154) -> 919 | AH154: h/r
A155: 0 | B155: =B154*B$107 -> 0 | C155: =C154*C$107 -> 0 | D155: 0 | E155: 0 | F155: 93 | G155: 240 | H155: 248 | I155: 248 | J155: 90 | K155: 0 | L155: 0 | M155: 0 | N155: doba behu [h/m] | T155: prum. vykon [kW] | U155: =IFERROR(U153/U154,0) -> 0 | V155: =IFERROR(V153/V154,0) -> 0 | W155: =IFERROR(W153/W154,0) -> 0 | X155: =IFERROR(X153/X154,0) -> 0 | Y155: =IFERROR(Y153/Y154,0) -> 9 | Z155: =IFERROR(Z153/Z154,0) -> 27.75 | AA155: =IFERROR(AA153/AA154,0) -> 27.75 | AB155: =IFERROR(AB153/AB154,0) -> 27.75 | AC155: =IFERROR(AC153/AC154,0) -> 12.66666667 | AD155: =IFERROR(AD153/AD154,0) -> 0 | AE155: =IFERROR(AE153/AE154,0) -> 0 | AF155: =IFERROR(AF153/AF154,0) -> 0 | AG155: =IFERROR((U154*U155+V154*V155+W154*W155+X154*X155+Y154*Y155+Z154*Z155+AA154*AA155+AB154*AB155+AC154*AC155+AD154*AD155+AE154*AE155+AF154*AF155)/AG154,0) -> 24.37540805 | AH155: kW
B156: =IFERROR(B153/B154,0) -> 0 | C156: =IFERROR(C153/C154,0) -> 0 | D156: 0 | E156: 0 | F156: 9 | G156: 27.75 | H156: 27.75 | I156: 27.75 | J156: 12.66666667 | K156: 0 | L156: 0 | M156: 0 | N156: prum vykon [kW] | U156: =B156 -> 0 | V156: =C156 -> 0 | W156: 0 | X156: 0 | Y156: 9 | Z156: 27.75 | AA156: 27.75 | AB156: 27.75 | AC156: 12.66666667 | AD156: 0 | AE156: 0 | AF156: 0
B157: =B156*B155 -> 0 | C157: =C156*C155 -> 0 | D157: 0 | E157: 0 | F157: 837 | G157: 6660 | H157: 6882 | I157: 6882 | J157: 1140 | K157: 0 | L157: 0 | M157: 0 | N157: kWh/mesic | O157: =SUM(B157:M157) -> 22401 | P157: kWh/r
A158: 1x WAVE | B158: =SUMIF(B$74:B$97,">="&$A160)-SUMIF(B$74:B$97,">"&$A159)+(COUNTIF(B$74:B$97,">"&$A159)-COUNTIF(B$74:B$97,">="&$A165))*$A159 -> 0 | C158: =SUMIF(C$74:C$97,">="&$A160)-SUMIF(C$74:C$97,">"&$A159)+(COUNTIF(C$74:C$97,">"&$A159)-COUNTIF(C$74:C$97,">="&$A165))*$A159 -> 0 | D158: 0 | E158: 0 | F158: 589 | G158: 401 | H158: 401 | I158: 401 | J158: 595 | K158: 0 | L158: 0 | M158: 0 | N158: kWh/den | S158: 1. WAVE | T158: vyroba tepla [kWh/m] | U158: =B162+B167/2+B172/3 -> 89083.66667 | V158: =C162+C167/2+C172/3 -> 80126.66667 | W158: 83813.66667 | X158: 78000 | Y158: 80584.5 | Z158: 45850 | AA158: 47378.33333 | AB158: 47378.33333 | AC158: 78565 | AD158: 81597.16667 | AE158: 81630 | AF158: 88639.33333 | AG158: CELKEM ZA ROK | AI158: =SUM(U158:AF158)/1000*3.6 -> 3177.528 | AJ158: GJ/r
A159: 120 | B159: =COUNTIF(B$74:B$97,">="&$A160)-COUNTIF(B$74:B$97,">"&$A159)+(COUNTIF(B$74:B$97,">"&$A159)-COUNTIF(B$74:B$97,">="&$A165)) -> 0 | C159: =COUNTIF(C$74:C$97,">="&$A160)-COUNTIF(C$74:C$97,">"&$A159)+(COUNTIF(C$74:C$97,">"&$A159)-COUNTIF(C$74:C$97,">="&$A165)) -> 0 | D159: 0 | E159: 0 | F159: 5 | G159: 4 | H159: 4 | I159: 4 | J159: 5 | K159: 0 | L159: 0 | M159: 0 | N159: doba behu [h/d] | T159: doba behu [h/m] | U159: =B160+B165+B170 -> 744 | V159: =C160+C165+C170 -> 672 | W159: 744 | X159: 720 | Y159: 744 | Z159: 480 | AA159: 496 | AB159: 496 | AC159: 720 | AD159: 744 | AE159: 720 | AF159: 744 | AG159: =SUM(U159:AF159) -> 8024 | AH159: h/r
A160: ='Kotle na pelety'!$F$23 -> 72 | B160: =B159*B$107 -> 0 | C160: =C159*C$107 -> 0 | D160: 0 | E160: 0 | F160: 155 | G160: 120 | H160: 124 | I160: 124 | J160: 150 | K160: 0 | L160: 0 | M160: 0 | N160: doba behu [h/m] | T160: prum. vykon [kW] | U160: =IFERROR(U158/U159,0) -> 119.7361111 | V160: =IFERROR(V158/V159,0) -> 119.2361111 | W160: 112.6527778 | X160: 108.3333333 | Y160: 108.3125 | Z160: 95.52083333 | AA160: 95.52083333 | AB160: 95.52083333 | AC160: 109.1180556 | AD160: 109.6736111 | AE160: 113.375 | AF160: 119.1388889 | AG160: =IFERROR((U159*U160+V159*V160+W159*W160+X159*X160+Y159*Y160+Z159*Z160+AA159*AA160+AB159*AB160+AC159*AC160+AD159*AD160+AE159*AE160+AF159*AF160)/AG159,0) -> 110.0008308 | AH160: kW
B161: =IFERROR(B158/B159,0) -> 0 | C161: =IFERROR(C158/C159,0) -> 0 | D161: 0 | E161: 0 | F161: 117.8 | G161: 100.25 | H161: 100.25 | I161: 100.25 | J161: 119 | K161: 0 | L161: 0 | M161: 0 | N161: prum vykon [kW]
B162: =B161*B160 -> 0 | C162: =C161*C160 -> 0 | D162: 0 | E162: 0 | F162: 18259 | G162: 12030 | H162: 12431 | I162: 12431 | J162: 17850 | K162: 0 | L162: 0 | M162: 0 | N162: kWh/mesic | O162: =SUM(B162:M162) -> 73001 | P162: kWh/r
A163: 2x WAVE | B163: =SUMIF(B$74:B$97,">="&$A165)-SUMIF(B$74:B$97,">"&$A164) -> 0 | C163: =SUMIF(C$74:C$97,">="&$A165)-SUMIF(C$74:C$97,">"&$A164) -> 0 | D163: 0 | E163: 1282 | F163: 1231 | G163: 0 | H163: 0 | I163: 0 | J163: 1251 | K163: 1513 | L163: 0 | M163: 0 | N163: kWh/den | S163: 2. WAVE | T163: vyroba tepla [kWh/m] | U163: =B167/2+B172/3 -> 89083.66667 | V163: =C167/2+C172/3 -> 80126.66667 | W163: 83813.66667 | X163: 78000 | Y163: 62325.5 | Z163: 33820 | AA163: 34947.33333 | AB163: 34947.33333 | AC163: 60715 | AD163: 81597.16667 | AE163: 81630 | AF163: 88639.33333 | AG163: CELKEM ZA ROK | AI163: =SUM(U163:AF163)/1000*3.6 -> 2914.7244 | AJ163: GJ/r
A164: =A159*2 -> 240 | B164: =COUNTIF(B$74:B$97,">="&$A165)-COUNTIF(B$74:B$97,">"&$A164) -> 0 | C164: =COUNTIF(C$74:C$97,">="&$A165)-COUNTIF(C$74:C$97,">"&$A164) -> 0 | D164: 0 | E164: 6 | F164: 7 | G164: 0 | H164: 0 | I164: 0 | J164: 7 | K164: 7 | L164: 0 | M164: 0 | N164: doba behu [h/d] | T164: doba behu [h/m] | U164: =B165+B170 -> 744 | V164: =C165+C170 -> 672 | W164: 744 | X164: 720 | Y164: 589 | Z164: 360 | AA164: 372 | AB164: 372 | AC164: 570 | AD164: 744 | AE164: 720 | AF164: 744 | AG164: =SUM(U164:AF164) -> 7351 | AH164: h/r
A165: =A160*2 -> 144 | B165: =B164*B$107 -> 0 | C165: =C164*C$107 -> 0 | D165: 0 | E165: 180 | F165: 217 | G165: 0 | H165: 0 | I165: 0 | J165: 210 | K165: 217 | L165: 0 | M165: 0 | N165: doba behu [h/m] | T165: prum. vykon [kW] | U165: =IFERROR(U163/U164,0) -> 119.7361111 | V165: =IFERROR(V163/V164,0) -> 119.2361111 | W165: 112.6527778 | X165: 108.3333333 | Y165: 105.8157895 | Z165: 93.94444444 | AA165: 93.94444444 | AB165: 93.94444444 | AC165: 106.5175439 | AD165: 109.6736111 | AE165: 113.375 | AF165: 119.1388889 | AG165: =IFERROR((U164*U165+V164*V165+W164*W165+X164*X165+Y164*Y165+Z164*Z165+AA164*AA165+AB164*AB165+AC164*AC165+AD164*AD165+AE164*AE165+AF164*AF165)/AG164,0) -> 110.1408879 | AH165: kW
B166: =IFERROR(B163/B164,0) -> 0 | C166: =IFERROR(C163/C164,0) -> 0 | D166: 0 | E166: 213.6666667 | F166: 175.8571429 | G166: 0 | H166: 0 | I166: 0 | J166: 178.7142857 | K166: 216.1428571 | L166: 0 | M166: 0 | N166: prum vykon [kW]
B167: =B166*B165 -> 0 | C167: =C166*C165 -> 0 | D167: 0 | E167: 38460 | F167: 38161 | G167: 0 | H167: 0 | I167: 0 | J167: 37530 | K167: 46903 | L167: 0 | M167: 0 | N167: kWh/mesic | O167: =SUM(B167:M167) -> 161054 | P167: kWh/r
A168: 3x WAVE | B168: =SUMIF(B$74:B$97,">="&$A170)-SUMIF(B$74:B$97,">"&$A169)+COUNTIF(B$74:B$97,">"&$A169)*$A169 -> 8621 | C168: =SUMIF(C$74:C$97,">="&$A170)-SUMIF(C$74:C$97,">"&$A169)+COUNTIF(C$74:C$97,">"&$A169)*$A169 -> 8585 | D168: 8111 | E168: 5877 | F168: 4185 | G168: 3382 | H168: 3382 | I168: 3382 | J168: 4195 | K168: =SUMIF(K$74:K$97,">="&$A170)-SUMIF(K$74:K$97,">"&$A169)+COUNTIF(K$74:K$97,">"&$A169)*$A169 -> 5627 | L168: 8163 | M168: 8578 | N168: kWh/den | S168: 3. WAVE | T168: vyroba tepla [kWh/m] | U168: =B172/3 -> 89083.66667 | V168: =C172/3 -> 80126.66667 | W168: 83813.66667 | X168: 58770 | Y168: 43245 | Z168: 33820 | AA168: 34947.33333 | AB168: 34947.33333 | AC168: 41950 | AD168: 58145.66667 | AE168: 81630 | AF168: 88639.33333 | AG168: CELKEM ZA ROK | AI168: =SUM(U168:AF168)/1000*3.6 -> 2624.8272 | AJ168: GJ/r
A169: =120*B151 -> 360 | B169: =COUNTIF(B$74:B$97,">="&$A170) -> 24 | C169: =COUNTIF(C$74:C$97,">="&$A170) -> 24 | D169: 24 | E169: 18 | F169: 12 | G169: 12 | H169: 12 | I169: 12 | J169: 12 | K169: 17 | L169: 24 | M169: 24 | N169: doba behu [h/d] | T169: doba behu [h/m] | U169: =B170 -> 744 | V169: =C170 -> 672 | W169: 744 | X169: 540 | Y169: 372 | Z169: 360 | AA169: 372 | AB169: 372 | AC169: 360 | AD169: 527 | AE169: 720 | AF169: 744 | AG169: =SUM(U169:AF169) -> 6527 | AH169: h/r
A170: =A164+1 -> 241 | B170: =B169*B$107 -> 744 | C170: =C169*C$107 -> 672 | D170: 744 | E170: 540 | F170: 372 | G170: 360 | H170: 372 | I170: 372 | J170: =J169*J$107 -> 360 | K170: =K169*K$107 -> 527 | L170: 720 | M170: 744 | N170: doba behu [h/m] | T170: prum. vykon [kW] | U170: =IFERROR(U168/U169,0) -> 119.7361111 | V170: =IFERROR(V168/V169,0) -> 119.2361111 | W170: 112.6527778 | X170: 108.8333333 | Y170: 116.25 | Z170: 93.94444444 | AA170: 93.94444444 | AB170: 93.94444444 | AC170: 116.5277778 | AD170: 110.3333333 | AE170: 113.375 | AF170: 119.1388889 | AG170: =IFERROR((U169*U170+V169*V170+W169*W170+X169*X170+Y169*Y170+Z169*Z170+AA169*AA170+AB169*AB170+AC169*AC170+AD169*AD170+AE169*AE170+AF169*AF170)/AG169,0) -> 111.7080844 | AH170: kW
B171: =IFERROR(B168/B169,0) -> 359.2083333 | C171: =IFERROR(C168/C169,0) -> 357.7083333 | D171: 337.9583333 | E171: 326.5 | F171: 348.75 | G171: 281.8333333 | H171: 281.8333333 | I171: 281.8333333 | J171: 349.5833333 | K171: =IFERROR(K168/K169,0) -> 331 | L171: 340.125 | M171: 357.4166667 | N171: prum vykon [kW] | U171: =B171/3 -> 119.7361111 | V171: =C171/3 -> 119.2361111 | W171: 112.6527778 | X171: 108.8333333 | Y171: 116.25 | Z171: 93.94444444 | AA171: 93.94444444 | AB171: 93.94444444 | AC171: 116.5277778 | AD171: 110.3333333 | AE171: 113.375 | AF171: 119.1388889
B172: =B171*B170 -> 267251 | C172: =C171*C170 -> 240380 | D172: 251441 | E172: 176310 | F172: 129735 | G172: 101460 | H172: 104842 | I172: 104842 | J172: 125850 | K172: =K171*K170 -> 174437 | L172: 244890 | M172: 265918 | N172: kWh/mesic | O172: =SUM(B172:M172) -> 2187356 | P172: kWh/r
A173: kotle nad WAVE | B173: =SUMIF(B$74:B$97,">="&$A175)-COUNTIF(B$74:B$97,">="&$A175)*$A169 -> 3164 | C173: =SUMIF(C$74:C$97,">="&$A175)-COUNTIF(C$74:C$97,">="&$A175)*$A169 -> 2835 | D173: 1877 | E173: 1031 | F173: 286 | G173: 0 | H173: 0 | I173: 0 | J173: 311 | K173: =SUMIF(K$74:K$97,">="&$A175)-COUNTIF(K$74:K$97,">="&$A175)*$A169 -> 1014 | L173: 1934 | M173: 2806 | N173: kWh/den | S173: kotle nad WAVE | T173: vyroba tepla [kWh/m] | U173: =B177 -> 98084 | V173: =C177 -> 79380 | W173: 58187 | X173: 30930 | Y173: 8866 | Z173: 0 | AA173: 0 | AB173: 0 | AC173: 9330 | AD173: 31434 | AE173: 58020 | AF173: 86986 | AG173: CELKEM ZA ROK | AI173: =SUM(U173:AF173)/1000*3.6 -> 1660.3812 | AJ173: GJ/r
B174: =COUNTIF(B$74:B$97,">="&$A175) -> 22 | C174: =COUNTIF(C$74:C$97,">="&$A175) -> 20 | D174: 12 | E174: 12 | F174: 7 | G174: 0 | H174: 0 | I174: 0 | J174: 7 | K174: =COUNTIF(K$74:K$97,">="&$A175) -> 12 | L174: 13 | M174: 19 | N174: doba behu [h/d] | T174: doba behu [h/m] | U174: =B175 -> 682 | V174: =C175 -> 560 | W174: 372 | X174: 360 | Y174: 217 | Z174: 0 | AA174: 0 | AB174: 0 | AC174: 210 | AD174: 372 | AE174: 390 | AF174: 589 | AG174: =SUM(U174:AF174) -> 3752 | AH174: h/r
A175: =A169+1 -> 361 | B175: =B174*B$107 -> 682 | C175: =C174*C$107 -> 560 | D175: 372 | E175: 360 | F175: 217 | G175: 0 | H175: 0 | I175: 0 | J175: 210 | K175: 372 | L175: 390 | M175: 589 | N175: doba behu [h/m] | T175: prum. vykon [kW] | U175: =IFERROR(U173/U174,0) -> 143.8181818 | V175: =IFERROR(V173/V174,0) -> 141.75 | W175: 156.4166667 | X175: 85.91666667 | Y175: 40.85714286 | Z175: 0 | AA175: 0 | AB175: 0 | AC175: 44.42857143 | AD175: 84.5 | AE175: 148.7692308 | AF175: 147.6842105 | AG175: =IFERROR((U174*U175+V174*V175+W174*W175+X174*X175+Y174*Y175+Z174*Z175+AA174*AA175+AB174*AB175+AC174*AC175+AD174*AD175+AE174*AE175+AF174*AF175)/AG174,0) -> 122.9256397 | AH175: kW
B176: =IFERROR(B173/B174,0) -> 143.8181818 | C176: =IFERROR(C173/C174,0) -> 141.75 | D176: 156.4166667 | E176: 85.91666667 | F176: 40.85714286 | G176: 0 | H176: 0 | I176: 0 | J176: 44.42857143 | K176: 84.5 | L176: 148.7692308 | M176: 147.6842105 | N176: prum vykon [kW] | U176: =B176 -> 143.8181818 | V176: =C176 -> 141.75 | W176: 156.4166667 | X176: 85.91666667 | Y176: 40.85714286 | Z176: 0 | AA176: 0 | AB176: 0 | AC176: 44.42857143 | AD176: 84.5 | AE176: 148.7692308 | AF176: 147.6842105 | AI176: =SUM(AI153:AI173) -> 10458.1044 | AJ176: GJ/r
B177: =B176*B175 -> 98084 | C177: =C176*C175 -> 79380 | D177: 58187 | E177: 30930 | F177: 8866 | G177: 0 | H177: 0 | I177: 0 | J177: 9330 | K177: 31434 | L177: 58020 | M177: 86986 | N177: kWh/mesic | O177: =SUM(B177:M177) -> 461217 | P177: kWh/r
N178: CELKEM: | O178: =O157+O162+O167+O172+O177 -> 2905029 | P178: kWh/r
A180: WAVE: | B180: 4 | C180: x
B181: LEDEN | C181: ÚNOR | D181: BŘEZEN | E181: DUBEN | F181: KVĚTEN | G181: ČERVEN | H181: ČERVENEC | I181: SRPEN | J181: ZÁŘÍ | K181: ŘÍJEN | L181: LISTOPAD | M181: PROSINEC | U181: LEDEN | V181: ÚNOR | W181: BŘEZEN | X181: DUBEN | Y181: KVĚTEN | Z181: ČERVEN | AA181: ČERVENEC | AB181: SRPEN | AC181: ZÁŘÍ | AD181: ŘÍJEN | AE181: LISTOPAD | AF181: PROSINEC | AI181: =SUM(AI182:AI213) -> 10458.1044
A182: kotle pod WAVE | B182: =SUMIF(B$74:B$97,"<="&$A183)+SUMIF(B$74:B$97,">"&$A188)-SUMIF(B$74:B$97,">="&$A194)-COUNTIF(B$74:B$97,">"&$A188)*$A188+COUNTIF(B$74:B$97,">="&$A194)*$A188 -> 0 | C182: =SUMIF(C$74:C$97,"<="&$A183)+SUMIF(C$74:C$97,">"&$A188)-SUMIF(C$74:C$97,">="&$A194)-COUNTIF(C$74:C$97,">"&$A188)*$A188+COUNTIF(C$74:C$97,">="&$A194)*$A188 -> 0 | D182: 0 | E182: 0 | F182: 27 | G182: 222 | H182: 222 | I182: 222 | J182: 38 | K182: 0 | L182: 0 | M182: 0 | N182: kWh/den | R182: 4x WAVE | S182: kotle pod WAVE | T182: vyroba tepla [kWh/m] | U182: =B186 -> 0 | V182: =C186 -> 0 | W182: 0 | X182: 0 | Y182: 837 | Z182: 6660 | AA182: 6882 | AB182: 6882 | AC182: 1140 | AD182: 0 | AE182: 0 | AF182: 0 | AG182: CELKEM ZA ROK | AI182: =SUM(U182:AF182)/1000*3.6 -> 80.6436 | AJ182: GJ/rok
A183: =A189-1 -> 71 | B183: =COUNTIF(B$74:B$97,"<="&$A183)-COUNTIF(B$74:B$97,"<="&$A184)+COUNTIF(B$74:B$97,">"&$A188)-COUNTIF(B$74:B$97,">="&$A194) -> 0 | C183: =COUNTIF(C$74:C$97,"<="&$A183)-COUNTIF(C$74:C$97,"<="&$A184)+COUNTIF(C$74:C$97,">"&$A188)-COUNTIF(C$74:C$97,">="&$A194) -> 0 | D183: =COUNTIF(D$74:D$97,"<="&$A183)-COUNTIF(D$74:D$97,"<="&$A184)+COUNTIF(D$74:D$97,">"&$A188)-COUNTIF(D$74:D$97,">="&$A194) -> 0 | E183: =COUNTIF(E$74:E$97,"<="&$A183)-COUNTIF(E$74:E$97,"<="&$A184)+COUNTIF(E$74:E$97,">"&$A188)-COUNTIF(E$74:E$97,">="&$A194) -> 0 | F183: =COUNTIF(F$74:F$97,"<="&$A183)-COUNTIF(F$74:F$97,"<="&$A184)+COUNTIF(F$74:F$97,">"&$A188)-COUNTIF(F$74:F$97,">="&$A194) -> 3 | G183: =COUNTIF(G$74:G$97,"<="&$A183)-COUNTIF(G$74:G$97,"<="&$A184)+COUNTIF(G$74:G$97,">"&$A188)-COUNTIF(G$74:G$97,">="&$A194) -> 8 | H183: =COUNTIF(H$74:H$97,"<="&$A183)-COUNTIF(H$74:H$97,"<="&$A184)+COUNTIF(H$74:H$97,">"&$A188)-COUNTIF(H$74:H$97,">="&$A194) -> 8 | I183: =COUNTIF(I$74:I$97,"<="&$A183)-COUNTIF(I$74:I$97,"<="&$A184)+COUNTIF(I$74:I$97,">"&$A188)-COUNTIF(I$74:I$97,">="&$A194) -> 8 | J183: =COUNTIF(J$74:J$97,"<="&$A183)-COUNTIF(J$74:J$97,"<="&$A184)+COUNTIF(J$74:J$97,">"&$A188)-COUNTIF(J$74:J$97,">="&$A194) -> 3 | K183: =COUNTIF(K$74:K$97,"<="&$A183)-COUNTIF(K$74:K$97,"<="&$A184)+COUNTIF(K$74:K$97,">"&$A188)-COUNTIF(K$74:K$97,">="&$A194) -> 0 | L183: =COUNTIF(L$74:L$97,"<="&$A183)-COUNTIF(L$74:L$97,"<="&$A184)+COUNTIF(L$74:L$97,">"&$A188)-COUNTIF(L$74:L$97,">="&$A194) -> 0 | M183: =COUNTIF(M$74:M$97,"<="&$A183)-COUNTIF(M$74:M$97,"<="&$A184)+COUNTIF(M$74:M$97,">"&$A188)-COUNTIF(M$74:M$97,">="&$A194) -> 0 | N183: doba behu [h/d] | T183: doba behu [h/m] | U183: =B184 -> 0 | V183: =C184 -> 0 | W183: 0 | X183: 0 | Y183: 93 | Z183: 240 | AA183: 248 | AB183: 248 | AC183: 90 | AD183: 0 | AE183: 0 | AF183: 0 | AG183: =SUM(U183:AF183) -> 919 | AH183: h/r
A184: 0 | B184: =B183*B$107 -> 0 | C184: =C183*C$107 -> 0 | D184: 0 | E184: 0 | F184: 93 | G184: 240 | H184: 248 | I184: 248 | J184: 90 | K184: 0 | L184: 0 | M184: 0 | N184: doba behu [h/m] | T184: prum. vykon [kW] | U184: =IFERROR(U182/U183,0) -> 0 | V184: =IFERROR(V182/V183,0) -> 0 | W184: 0 | X184: 0 | Y184: 9 | Z184: 27.75 | AA184: 27.75 | AB184: 27.75 | AC184: 12.66666667 | AD184: 0 | AE184: 0 | AF184: 0 | AG184: =IFERROR((U183*U184+V183*V184+W183*W184+X183*X184+Y183*Y184+Z183*Z184+AA183*AA184+AB183*AB184+AC183*AC184+AD183*AD184+AE183*AE184+AF183*AF184)/AG183,0) -> 24.37540805 | AH184: kW
B185: =IFERROR(B182/B183,0) -> 0 | C185: =IFERROR(C182/C183,0) -> 0 | D185: 0 | E185: 0 | F185: 9 | G185: 27.75 | H185: 27.75 | I185: 27.75 | J185: 12.66666667 | K185: 0 | L185: 0 | M185: 0 | N185: prum vykon [kW] | U185: =B185 -> 0 | V185: =C185 -> 0 | W185: 0 | X185: 0 | Y185: 9 | Z185: 27.75 | AA185: 27.75 | AB185: 27.75 | AC185: 12.66666667 | AD185: 0 | AE185: 0 | AF185: 0
B186: =B185*B184 -> 0 | C186: =C185*C184 -> 0 | D186: 0 | E186: 0 | F186: 837 | G186: 6660 | H186: 6882 | I186: 6882 | J186: 1140 | K186: 0 | L186: 0 | M186: 0 | N186: kWh/mesic | O186: =SUM(B186:M186) -> 22401
A187: 1 WAVE | B187: =SUMIF(B$74:B$97,">="&$A189)-SUMIF(B$74:B$97,">"&$A188)+(COUNTIF(B$74:B$97,">"&$A188)-COUNTIF(B$74:B$97,">="&$A194))*$A188 -> 0 | C187: =SUMIF(C$74:C$97,">="&$A189)-SUMIF(C$74:C$97,">"&$A188)+(COUNTIF(C$74:C$97,">"&$A188)-COUNTIF(C$74:C$97,">="&$A194))*$A188 -> 0 | D187: 0 | E187: 0 | F187: 589 | G187: 401 | H187: 401 | I187: 401 | J187: 595 | K187: 0 | L187: 0 | M187: 0 | N187: kWh/den | S187: 1. WAVE | T187: vyroba tepla [kWh/m] | U187: =B191+B196/2+B201/3+B206/4 -> 82744.16667 | V187: =C191+C196/2+C201/3+C206/4 -> 74799.66667 | W187: 81891.66667 | X187: 73365 | Y187: 76291 | Z187: 45850 | AA187: 47378.33333 | AB187: 47378.33333 | AC187: 74597.5 | AD187: 76737.91667 | AE187: 79005 | AF187: 83563.08333 | AG187: CELKEM ZA ROK | AI187: =SUM(U187:AF187)/1000*3.6 -> 3036.966 | AJ187: GJ/rok
A188: 120 | B188: =COUNTIF(B$74:B$97,">="&$A189)-COUNTIF(B$74:B$97,">"&$A188)+(COUNTIF(B$74:B$97,">"&$A188)-COUNTIF(B$74:B$97,">="&$A194)) -> 0 | C188: =COUNTIF(C$74:C$97,">="&$A189)-COUNTIF(C$74:C$97,">"&$A188)+(COUNTIF(C$74:C$97,">"&$A188)-COUNTIF(C$74:C$97,">="&$A194)) -> 0 | D188: 0 | E188: 0 | F188: 5 | G188: 4 | H188: 4 | I188: 4 | J188: 5 | K188: 0 | L188: 0 | M188: 0 | N188: doba behu [h/d] | T188: doba behu [h/m] | U188: =B189+B194+B199+B204 -> 744 | V188: =C189+C194+C199+C204 -> 672 | W188: 744 | X188: 720 | Y188: 744 | Z188: 480 | AA188: 496 | AB188: 496 | AC188: 720 | AD188: 744 | AE188: 720 | AF188: 744 | AG188: =SUM(U188:AF188) -> 8024 | AH188: h/r
A189: ='Kotle na pelety'!$F$23 -> 72 | B189: =B188*B$107 -> 0 | C189: =C188*C$107 -> 0 | D189: 0 | E189: 0 | F189: 155 | G189: 120 | H189: 124 | I189: 124 | J189: 150 | K189: 0 | L189: 0 | M189: 0 | N189: doba behu [h/m] | T189: prum. vykon [kW] | U189: =IFERROR(U187/U188,0) -> 111.2152778 | V189: =IFERROR(V187/V188,0) -> 111.3090278 | W189: 110.0694444 | X189: 101.8958333 | Y189: 102.5416667 | Z189: 95.52083333 | AA189: 95.52083333 | AB189: 95.52083333 | AC189: 103.6076389 | AD189: 103.1423611 | AE189: 109.7291667 | AF189: 112.3159722 | AG189: =IFERROR((U188*U189+V188*V189+W188*W189+X188*X189+Y188*Y189+Z188*Z189+AA188*AA189+AB188*AB189+AC188*AC189+AD188*AD189+AE188*AE189+AF188*AF189)/AG188,0) -> 105.1348039 | AH189: kW
B190: =IFERROR(B187/B188,0) -> 0 | C190: =IFERROR(C187/C188,0) -> 0 | D190: 0 | E190: 0 | F190: 117.8 | G190: 100.25 | H190: 100.25 | I190: 100.25 | J190: 119 | K190: 0 | L190: 0 | M190: 0 | N190: prum vykon [kW]
B191: =B190*B189 -> 0 | C191: =C190*C189 -> 0 | D191: 0 | E191: 0 | F191: 18259 | G191: 12030 | H191: 12431 | I191: 12431 | J191: 17850 | K191: 0 | L191: 0 | M191: 0 | N191: kWh/mesic | O191: =SUM(B191:M191) -> 73001
A192: 2 WAVE | B192: =SUMIF(B$74:B$97,">="&$A194)-SUMIF(B$74:B$97,">"&$A193) -> 0 | C192: =SUMIF(C$74:C$97,">="&$A194)-SUMIF(C$74:C$97,">"&$A193) -> 0 | D192: 0 | E192: 1282 | F192: 1231 | G192: 0 | H192: 0 | I192: 0 | J192: 1251 | K192: 1513 | L192: 0 | M192: 0 | N192: kWh/den | S192: 2. WAVE | T192: vyroba tepla [kWh/m] | U192: =B196/2+B201/3+B206/4 -> 82744.16667 | V192: =C196/2+C201/3+C206/4 -> 74799.66667 | W192: 81891.66667 | X192: 73365 | Y192: 58032 | Z192: 33820 | AA192: 34947.33333 | AB192: 34947.33333 | AC192: 56747.5 | AD192: 76737.91667 | AE192: 79005 | AF192: 83563.08333 | AG192: CELKEM ZA ROK | AI192: =SUM(U192:AF192)/1000*3.6 -> 2774.1624 | AJ192: GJ/rok
A193: =A188*2 -> 240 | B193: =COUNTIF(B$74:B$97,">="&$A194)-COUNTIF(B$74:B$97,">"&$A193) -> 0 | C193: =COUNTIF(C$74:C$97,">="&$A194)-COUNTIF(C$74:C$97,">"&$A193) -> 0 | D193: 0 | E193: 6 | F193: 7 | G193: 0 | H193: 0 | I193: 0 | J193: 7 | K193: 7 | L193: 0 | M193: 0 | N193: doba behu [h/d] | T193: doba behu [h/m] | U193: =B194+B199+B204 -> 744 | V193: =C194+C199+C204 -> 672 | W193: 744 | X193: 720 | Y193: 589 | Z193: 360 | AA193: 372 | AB193: 372 | AC193: 570 | AD193: 744 | AE193: 720 | AF193: 744 | AG193: =SUM(U193:AF193) -> 7351 | AH193: h/r
